Workbook

Sheet ALLAgencies
A1: currentfuture | B1: responder_name | C1: responder_email | D1: data_set_identifier | E1: responsible_organization | F1: multiple_organization | G1: additional_responsible_orgs | H1: international_coordination | I1: international_coordination_selection | J1: tcdr_heritage | K1: assessment_body | L1: quality_control_organization | M1: QC Selection | N1: climate_applications | O1: ecv_record_ID | P1: collection_organization | Q1: calibration_organization | R1: intercalibration_organization | S1: fcdr_organization | T1: tcdr_organization | U1: gcos_requirements_assessments_ | V1: independent_peer_review_organi | W1: archiving_organization | X1: user_service_organization | Y1: user_feedback_organization | Z1: start_date_monthyear | AA1: end_date_monthyear | AB1: commitment_end_date_year | AC1: physical_quantity | AD1: units_1 | AE1: satellite1 | AF1: instrument1 | AG1: intrument_name_long | AH1: mutiple_sat_bool | AI1: satellite2 | AJ1: instrument2 | AK1: intrument_name_long_2 | AL1: satellite3 | AM1: instrument3 | AN1: intrument_name_long_3 | AO1: satellite4 | AP1: instrument4 | AQ1: intrument_name_long_4 | AR1: satellite5 | AS1: instrument5 | AT1: intrument_name_long_5 | AU1: satellite6 | AV1: instrument6 | AW1: intrument_name_long_6 | AX1: comments | AY1: satelliteinstrument | AZ1: coverage | BA1: horizontal_resolution | BB1: vertical_resolution | BC1: temporal_resolution | BD1: accuracy | BE1: stability | BF1: scientific_process_link | BG1: cdr_generation_link | BH1: stability_and_homogeneity_link | BI1: calibration_in_situ_network | BJ1: calibr_comments | BK1: intercalibration_satellite | BL1: intercalibration_instrument | BM1: intercalibration_satelliteinst | BN1: gcos_compliance_assessment | BO1: independent_peer_review_compli | BP1: peer_review_link | BQ1: maturity_bool | BR1: maturity_index_link | BS1: contact_email | BT1: fcdr_availability | BU1: data_format | BV1: data_access | BW1: dissemination | BX1: data_documentation_link | BY1: dataset_link | BZ1: data_release_period_months | CA1: RecordID | CB1: DateSubmitted | CC1: LFUUID | CD1: record_name_short | CE1: new_cdr_record_id | CF1: tcdr_category | CG1: essential_climate_variable_ecv | CH1: assessment_body_org | CI1: intercal_bool | CJ1: intercalibration_satellite_2 | CK1: intercalibration_instrument_2 | CL1: intercalibration_satellite_3 | CM1: intercalibration_instrument_3 | CN1: intercalibration_satellite_4 | CO1: intercalibration_instrument_4 | CP1: intercalibration_satellite_5 | CQ1: intercalibration_instrument_5 | CR1: intercalibration_satellite_6 | CS1: intercalibration_instrument_6 | CY1: ECV Length | CZ1: G 1 | DA1: G2 | DB1: G3 | DC1: G4 | DD1: G5 | DE1: G6 | DF1: G7 | DG1: G8 | DH1: G9 | DI1: G10 | DJ1: G11 | DK1: G12 | DL1: GAVG | DM1: horizontal_resolution | DN1: vertical_resolution | DO1: temporal_resolution | DP1: accuracy | DQ1: stability | DR1: Resolution rating | DS1: Use | DT1: use text | DU1: Overall Rating
A2: Current | B2: Mireille Paulin | C2: mireille.paulin@cnes.fr | E2: CNES | H2: no | K2: no | L2: yes | N2: Climate Research, Ozone Depletion Monitoring, Climate Inter Annual Variability | O2: CDR_ECV07_14 | P2: EUMETSAT | Q2: CNES | R2: CNES | S2: EUMETSAT | T2: EUMETSAT | U2: ESA | V2: Others (TBD) | W2: CNES | X2: CNES | Y2: CNES | Z2: 2010-06-01 | AA2: 2012-12-01 | AC2: OZONE PROFILE | AD2: ppm | AH2: No | AZ2: Global | BA2: 25 | BB2: 6 (3 partial column 0-6km, 0-12km; 0-18km)) | BC2: 0,5 | BD2: 5 DU | BE2: TBD | BI2: yes | BN2: no | BO2: no | BS2: mireille.paulin@cnes.fr | BT2: both | BU2: not selected | BV2: Constrained Access | BW2: web interface | BZ2: 1 | CA2: 1430 | CB2: Feb 24 2014 8:44PM | CC2: E335175F-C18E-464A-AE58-6B9319598AD1 | CF2: OZONE PROFILES | CG2: OZONE | CY2: =YEARFRAC(Z2,AA2) -> 2.5 | CZ2: =(COUNTIF(S2,"*")+COUNTIF(T2,"*")+COUNTIF(AE2,"*")+COUNTIF(BG2,"*"))/4 -> 0.5 | DA2: =(COUNTIF(Q2,"*")+COUNTIF(I2,"*")+COUNTIF(BR2,"y*"))/3 -> 0.3333333333 | DB2: =(COUNTIF(U2,"*")+COUNTA(BA2)+COUNTA(BB2)+COUNTA(BC2)+COUNTA(BD2)+COUNTA(BE2)+COUNTIF(BN2,"y*"))/7 -> 0.8571428571 | DC2: =(COUNTIF(V2,"*")+COUNTIF(BH2,"*"))/2 -> 0.5 | DD2: =(COUNTIF(V2,"*")+COUNTIF(BF2,"*"))/2 -> 0.5 | DE2: =COUNTIF(AZ2,"*") -> 1 | DF2: =COUNTIF(W2,"*") -> 1 | DG2: =(COUNTIF(X2,"*")+COUNTIF(BS2,"*")+COUNTIF(BT2,"*")+COUNTIF(BU2,"*")+COUNTIF(BV2,"*")+COUNTIF(BW2,"*")+COUNTIF(BX2,"*")-COUNTIF(BT2,"no*")-COUNTIF(BU2,"no*")-COUNTIF(BV2,"no*"))/7 -> 0.7142857143 | DH2: =COUNTIF(BZ2,"*")+COUNTA(BZ2) -> 1 | DI2: =COUNTIF(Y2,"*") -> 1 | DJ2: =COUNTIF(BR2,"y*") -> 0 | DK2: =(COUNTIF(U2,"*")+COUNTIF(W2,"*")+COUNTIF(BO2,"y*"))/3 -> 0.6666666667 | DL2: =SUM(CZ2:DK2)/12 -> 0.6726190476 | DM2: =BA2 -> 25 | DN2: 6 (3 partial column 0-6km, 0-12km; 0-18km)) | DO2: 0,5 | DP2: 5 DU | DQ2: TBD | DR2: 1 | DS2: =COUNTIF(N2,"*") -> 1 | DT2: =N2 -> Climate Research, Ozone Depletion Monitoring, Climate Inter Annual Variability | DU2: =SUM(CY2/30,DL2,DR2,DS2) -> 2.755952381
A3: Current | B3: Mireille Paulin | C3: mireille.paulin@cnes.fr | E3: CNES | H3: no | K3: no | L3: yes | N3: Climate Research, Climate Inter Annual Variability | O3: CDR_ECV32_1 | P3: EUMETSAT | Q3: CNES | R3: CNES | S3: EUMETSAT | T3: EUMETSAT | U3: ESA | V3: Others (TBD) | W3: CNES | X3: CNES | Y3: CNES | Z3: 2010-06-01 | AA3: 2012-12-01 | AC3: ATMOSPHERIC CHEMISTRY - CO (COLUMN/PROFILE) | AD3: ppm | AH3: No | AZ3: Global | BA3: na | BB3: 6 | BC3: 0,5 | BD3: some mol/cm2 | BE3: TBD | BI3: yes | BN3: no | BO3: no | BS3: mireille.paulin@cnes.fr | BT3: both | BU3: not selected | BV3: Constrained Access | BW3: web interface | BZ3: 1999-12-31 | CA3: 1520 | CB3: Feb 24 2014 8:44PM | CC3: F9C4E7FF-C9A0-4770-BD5B-B3DB6A137B10 | CF3: CO | CG3: PRECURSORS SUPPORTING THE AEROSOL AND OZONE ECVS | CY3: =YEARFRAC(Z3,AA3) -> 2.5 | CZ3: 0.5 | DA3: 0.3333333333 | DB3: 0.8571428571 | DC3: 0.5 | DD3: 0.5 | DE3: 1 | DF3: 1 | DG3: 0.7142857143 | DH3: 1 | DI3: 1 | DJ3: 0 | DK3: 0.6666666667 | DL3: 0.6726190476 | DM3: na | DN3: 6 | DO3: 0,5 | DP3: some mol/cm2 | DQ3: TBD | DR3: 1 | DS3: 1 | DT3: Climate Research, Climate Inter Annual Variability | DU3: =SUM(CY3/30,DL3,DR3,DS3) -> 2.755952381
A4: Future | B4: Stella M L Melo | C4: stella.melo@asc-csa.gc.ca | E4: CSA | H4: no | K4: yes | L4: yes | N4: Sparc Data Initiative, Esa Climate Change Initiative; Spin Si2n, Sparc Ccmval2 Project; | O4: CDR_ECV07_16 | P4: CSA | Q4: CSA | R4: CSA | S4: not selected | T4: not selected | U4: not selected | V4: CSA | W4: CSA | X4: CSA | Y4: CSA | Z4: 2001-10-01 | AC4: OZONE PROFILE | AD4: not selected | AE4: Odin | AF4: OSIRIS | AH4: No | AY4: Odin/OSIRIS | AZ4: Global | BA4: local | BB4: 1.5 km | BD4: measurements to within 2% from 18 to 53 km altitude | BI4: no | BK4: MLS | BL4: OSIRIS | BN4: yes | BO4: no | BS4: User interface is web based: http://osirus.usask.ca/?q=node/280 | BT4: no | BU4: HDF-EOS | BV4: Open Access | BW4: Website is the main mechanism for data dissemination together with presence in conferences and workshops of relevance | CA4: 1432 | CB4: Feb 24 2014 8:44PM | CC4: E659F26B-0499-40BB-A0ED-D45B4FFC0D81 | CF4: OZONE PROFILES | CG4: OZONE | CI4: yes | CJ4: SCSIAT | CL4: SAGE-III | CN4: UARS | CY4: 101.7527778 | CZ4: 0.75 | DA4: 0.3333333333 | DB4: 0.7142857143 | DC4: 0.5 | DD4: 0.5 | DE4: 1 | DF4: 1 | DG4: 0.7142857143 | DH4: 0 | DI4: 1 | DJ4: 0 | DK4: 0.6666666667 | DL4: 0.5982142857 | DM4: local | DN4: 1.5 km | DO4: 0 | DP4: measurements to within 2% from 18 to 53 km altitude | DQ4: 0 | DR4: 0.6 | DS4: 1 | DT4: Sparc Data Initiative, Esa Climate Change Initiative; Spin Si2n, Sparc Ccmval2 Project; | DU4: =SUM(CY4/30,DL4,DR4,DS4) -> 5.589973545
A5: Future | B5: Stella M L Melo | C5: stella.melo@asc-csa.gc.ca | E5: CSA | H5: no | K5: yes | L5: no | N5: Sparc Data Initiative, Esa Climate Change Initiative, | O5: CDR_ECV09_13 | P5: CSA | Q5: CSA | R5: CSA | S5: not selected | T5: not selected | U5: CSA | V5: not selected | W5: CSA | X5: CSA | Y5: CSA | Z5: 2001-10-01 | AC5: AEROSOL EXTINCTION / BACKSCATTER (COLUMN/PROFILE) | AD5: not selected | AE5: Odin | AF5: OSIRIS | AH5: No | AY5: Odin/OSIRIS | AZ5: Global | BA5: local | BB5: 1.5 km | BE5: Information available at: http://osirus.usask.ca/?q=node/244 | BI5: no | BN5: yes | BO5: yes | BS5: user interface is done via web - contacts are included there: http://osirus.usask.ca/ | BT5: both | BU5: HDF-EOS | BV5: Open Access | BW5: Web page available via ESA data portal as OSIRIS is an ESA third part mission | CA5: 1443 | CB5: Feb 24 2014 8:44PM | CC5: A8ACEAA6-E75C-4A57-ACD6-4EF11A6ED59C | CF5: AEROSOL OPTICAL DEPTH | CG5: AEROSOL PROPERTIES | CY5: 101.7527778 | CZ5: 0.75 | DA5: 0.3333333333 | DB5: 0.7142857143 | DC5: 0.5 | DD5: 0.5 | DE5: 1 | DF5: 1 | DG5: 0.8571428571 | DH5: 0 | DI5: 1 | DJ5: 0 | DK5: 1 | DL5: 0.6378968254 | DM5: local | DN5: 1.5 km | DO5: 0 | DP5: 0 | DQ5: Information available at: http://osirus.usask.ca/?q=node/244 | DR5: 0.6 | DS5: 1 | DT5: Sparc Data Initiative, Esa Climate Change Initiative, | DU5: =SUM(CY5/30,DL5,DR5,DS5) -> 5.629656085
A6: Future | B6: Stella M L Melo | C6: stella.melo@asc-csa.gc.ca | E6: CSA | H6: no | K6: yes | L6: yes | N6: 1- Sparc Data Initiative (intercomparison Of Satellite Climatologies) Contributing Data From Ace-fts For ~20 Species. 2- Esa Sparc Initiative (spin) Ace-fts Climatologies From Sparc Data Initiative Have Been Contributed To This Effort To Develop Long-ter | O6: CDR_ECV10_1 | P6: CSA | Q6: CSA | R6: CSA | S6: not selected | T6: not selected | U6: CSA | V6: not selected | W6: CSA | X6: CSA | Y6: CSA | Z6: 2004-03-01 | AC6: ATMOSPHERIC CHEMISTRY - CH4 (COLUMN/PROFILE) | AD6: ppm | AE6: SCISAT | AF6: ACE-FTS | AH6: No | AY6: SCISAT/ACE-FTS | AZ6: not selected | BA6: local | BB6: 3-4 km | BC6: occultation measurements (sunset/sunrize conditions) | BI6: no | BL6: ACE-FTS | BN6: no | BO6: no | BS6: info@scisat.ca | BT6: no | BU6: HDF-EOS | BV6: Open Access | BW6: http://www.ace.uwaterloo.ca/data.html | CA6: 1452 | CB6: 2014-02-24T20:44:00 | CC6: E1DE9C6D-69C5-46CD-81FC-2886AAB60AF6 | CF6: CH4 | CG6: CARBON DIOXIDE, METHANE, AND GREENHOUSE GASES | CY6: 104.1694444 | CZ6: 0.75 | DA6: 0.3333333333 | DB6: 0.5714285714 | DC6: 0.5 | DD6: 0.5 | DE6: 1 | DF6: 1 | DG6: 0.7142857143 | DH6: 0 | DI6: 1 | DJ6: 0 | DK6: 0.6666666667 | DL6: 0.5863095238 | DM6: local | DN6: 3-4 km | DO6: occultation measurements (sunset/sunrize conditions) | DP6: 0 | DQ6: 0 | DR6: 0.6 | DS6: 1 | DT6: 1- Sparc Data Initiative (intercomparison Of Satellite Climatologies) Contributing Data From Ace-fts For ~20 Species. 2- Esa Sparc Initiative (spin) Ace-fts Climatologies From Sparc Data Initiative Have Been Contributed To This Effort To Develop Long-ter | DU6: =SUM(CY6/30,DL6,DR6,DS6) -> 5.658624339
A7: Current | B7: Roselyne Lacaze | C7: rl@hygeos.com | D7: Global Albedo SPOT/VGT | E7: EC | H7: no | K7: yes | L7: yes | N7: Land Surface - Carbon Cycle - Climate And Meteorology | O7: CDR_ECV22_2 | P7: CNES | Q7: CNES | R7: CNES | S7: CNES | T7: EC | U7: EC | V7: EC | W7: Others (TBD) | X7: EC | Y7: EC | Z7: 1999-01-01 | AA7: 2013-12-01 | AB7: 2014-12-13 | AC7: EARTH SURFACE ALBEDO | AD7: not selected | AE7: SPOT-4 | AF7: VEGETATION | AH7: Yes | AI7: SPOT-5 | AJ7: VEGETATION | AY7: SPOT-4|VEGETATION||SPOT-5|VEGETATION | AZ7: Global | BA7: 1 | BC7: 10 | BD7: 0.05 for snow-free targets | BI7: yes | BK7: Terra | BL7: MODIS | BM7: Terra|MODIS||Aqua|MODIS||PARASOL|POLDER-P||Meteosat-9|SEVIRI | BN7: no | BO7: no | BS7: helpdesk@geoland2.eu | BT7: both | BU7: HDF | BV7: Open Access | BW7: FTP | BZ7: 1 | CA7: 1493 | CB7: 2014-02-24T20:44:00 | CC7: F99DE89D-B3CF-4F0A-81A4-1D8625933514 | CF7: BLACK-SKY AND WHITE-SKY ALBEDO | CG7: ALBEDO | CI7: yes | CJ7: Aqua | CY7: 14.91666667 | CZ7: 0.75 | DA7: 0.3333333333 | DB7: 0.5714285714 | DC7: 0.5 | DD7: 0.5 | DE7: 1 | DF7: 1 | DG7: 0.8571428571 | DH7: 1 | DI7: 1 | DJ7: 0 | DK7: 0.6666666667 | DL7: 0.681547619 | DM7: 1 | DN7: 0 | DO7: 10 | DP7: 0.05 for snow-free targets | DQ7: 0 | DR7: 0.6 | DS7: 1 | DT7: Land Surface - Carbon Cycle - Climate And Meteorology | DU7: =SUM(CY7/30,DL7,DR7,DS7) -> 2.778769841
A8: Current | B8: Nadine Gobron | C8: nadine.gobron@jrc.ec.europa.eu | D8: JRC FAPAR Global | E8: EC | H8: no | K8: yes | L8: yes | N8: Carbon Cycle - Land Surface - Drought | O8: CDR_ECV24_1 | P8: NASA | Q8: NASA | R8: EC | S8: NASA | T8: EC | U8: EC | V8: EC | W8: EC | X8: EC | Y8: EC | Z8: 1997-07-01 | AA8: 2010-12-01 | AB8: 2014-12-10 | AC8: FRACTIONALLY ABSORBED PAR (FPAR) | AD8: not selected | AE8: OrbView-2 | AF8: SeaWiFS | AH8: No | AY8: OrbView-2|not selectedSeaWiFS | AZ8: Global | BA8: 1.5 | BC8: 1, 10 and 30 | BD8: 0.1 | BE8: n/a | BI8: yes | BK8: Envisat | BL8: MERIS | BM8: Envisat|MERIS | BN8: no | BO8: no | BS8: nadine.gobron@jrc.ec.europa.eu | BT8: both | BU8: HDF | BV8: Constrained Access | BW8: web interface or ftp | BZ8: every time calibration update | CA8: 2004-02-11 | CB8: Feb 24 2014 8:44PM | CC8: 505B676A-4F25-4B1F-99C0-87F9C0295DCD | CF8: MAPS OF THE FRACTION OF ABSORBED PHOTOSYNTHETICALLY ACTIVE RADIATION | CG8: FAPAR | CY8: 13.41666667 | CZ8: 0.75 | DA8: 0.3333333333 | DB8: 0.7142857143 | DC8: 0.5 | DD8: 0.5 | DE8: 1 | DF8: 1 | DG8: 0.8571428571 | DH8: 2 | DI8: 1 | DJ8: 0 | DK8: 0.6666666667 | DL8: 0.7767857143 | DM8: 1.5 | DN8: 0 | DO8: 1, 10 and 30 | DP8: 0.1 | DQ8: n/a | DR8: 0.6 | DS8: 1 | DT8: Carbon Cycle - Land Surface - Drought | DU8: =SUM(CY8/30,DL8,DR8,DS8) -> 2.824007937
A9: Current | B9: Roselyne Lacaze | C9: rl@hygeos.com | D9: GLOBAL FAPAR SPOT/VGT | E9: EC | H9: no | K9: yes | L9: yes | N9: Land Surface - Carbon Cycle - Water Cycle | O9: CDR_ECV24_3 | P9: CNES | Q9: CNES | R9: CNES | S9: CNES | T9: EC | U9: EC | V9: EC | W9: Others (TBD) | X9: EC | Y9: EC | Z9: 1999-01-01 | AA9: 2013-12-01 | AB9: 2014-12-13 | AC9: FRACTIONALLY ABSORBED PAR (FPAR) | AD9: not selected | AE9: SPOT-4 | AF9: VEGETATION | AH9: Yes | AI9: SPOT-5 | AJ9: VEGETATION | AY9: SPOT-4|VEGETATION||SPOT-5|VEGETATION | AZ9: Global | BA9: 1 | BC9: 10 | BD9: 0.05 for FPAR<0.2; 15% for FPAR<0.2 | BI9: yes | BK9: Terra | BL9: MODIS | BM9: Terra|MODIS||Aqua|MODIS||Envisat|MERIS||OrbView-2|SeaWiFS | BN9: no | BO9: no | BS9: helpdesk@geoland2.eu | BT9: both | BU9: HDF | BV9: Open Access | BW9: FTP | BZ9: 1 | CA9: 1505 | CB9: 2014-02-24T20:44:00 | CC9: 7CDAC4DB-C86E-4C71-AE84-B69B940374F2 | CF9: MAPS OF THE FRACTION OF ABSORBED PHOTOSYNTHETICALLY ACTIVE RADIATION | CG9: FAPAR | CI9: yes | CJ9: Aqua | CY9: 14.91666667 | CZ9: 0.75 | DA9: 0.3333333333 | DB9: 0.5714285714 | DC9: 0.5 | DD9: 0.5 | DE9: 1 | DF9: 1 | DG9: 0.8571428571 | DH9: 1 | DI9: 1 | DJ9: 0 | DK9: 0.6666666667 | DL9: 0.681547619 | DM9: 1 | DN9: 0 | DO9: 10 | DP9: 0.05 for FPAR<0.2; 15% for FPAR<0.2 | DQ9: 0 | DR9: 0.4 | DS9: 1 | DT9: Land Surface - Carbon Cycle - Water Cycle | DU9: =SUM(CY9/30,DL9,DR9,DS9) -> 2.578769841
A10: Current | B10: Marc Leroy | C10: marc.leroy@cnes.fr | D10: Global FAPAR NOAA/AVHRR | E10: EC | H10: no | K10: yes | L10: yes | N10: Land Surface - Carbon Cycle - Water Cycle | O10: CDR_ECV24_4 | P10: NOAA | Q10: NOAA | R10: NASA | S10: NASA | T10: EC | U10: EC | V10: not selected | W10: CNES | X10: EC | Y10: EC | Z10: 1981-07-01 | AA10: 2000-12-01 | AB10: 2014-11-30 | AC10: FRACTIONALLY ABSORBED PAR (FPAR) | AD10: not selected | AE10: NOAA-7 | AF10: AVHRR/2 | AH10: Yes | AI10: NOAA-9 | AJ10: AVHRR/2 | AL10: NOAA-11 | AM10: AVHRR/2 | AO10: NOAA-14 | AP10: AVHRR/2 | AY10: NOAA-7|AVHRR/2||NOAA-9|AVHRR/2||NOAA-11|AVHRR/2||NOAA-14|AVHRR/2 | AZ10: Global | BA10: 5 | BC10: 10 | BD10: 0.05 for FAPAR<0.2; 15% for FAPAR>0.2 | BI10: no | BK10: SPOT-4 | BL10: VEGATATION | BM10: SPOT-4|VEGETATION | BN10: no | BO10: no | BS10: helpdesk@geoland2.eu | BT10: both | BU10: HDF | BV10: Open Access | BW10: FTP | BZ10: 1 | CA10: 1506 | CB10: 2014-02-24T20:44:00 | CC10: 26650C73-1A90-47DE-BB56-EA73ED300CCB | CF10: MAPS OF THE FRACTION OF ABSORBED PHOTOSYNTHETICALLY ACTIVE RADIATION | CG10: FAPAR | CY10: 19.41666667 | CZ10: 0.75 | DA10: 0.3333333333 | DB10: 0.5714285714 | DC10: 0.5 | DD10: 0.5 | DE10: 1 | DF10: 1 | DG10: 0.8571428571 | DH10: 1 | DI10: 1 | DJ10: 0 | DK10: 0.6666666667 | DL10: 0.681547619 | DM10: 5 | DN10: 0 | DO10: 10 | DP10: 0.05 for FAPAR<0.2; 15% for FAPAR>0.2 | DQ10: 0 | DR10: 0.4 | DS10: 1 | DT10: Land Surface - Carbon Cycle - Water Cycle | DU10: =SUM(CY10/30,DL10,DR10,DS10) -> 2.728769841
A11: Current | B11: Marc Leroy | C11: marc.leroy@cnes.fr | D11: Global FAPAR AVHRR VGT | E11: EC | H11: no | K11: yes | L11: yes | N11: Land Surface - Carbon Cycle - Water Cycle | O11: CDR_ECV24_5 | P11: NOAA | Q11: Others (TBD) | R11: Others (TBD) | S11: Others (TBD) | T11: EC | U11: EC | V11: not selected | W11: CNES | X11: EC | Y11: EC | Z11: 1981-07-01 | AA11: 2012-07-01 | AB11: 2014-07-12 | AC11: FRACTIONALLY ABSORBED PAR (FPAR) | AD11: not selected | AE11: NOAA-7 | AF11: AVHRR/2 | AH11: Yes | AI11: NOAA-9 | AJ11: AVHRR/2 | AL11: NOAA-11 | AM11: AVHRR/2 | AO11: NOAA-14 | AP11: AVHRR/2 | AR11: SPOT-4 | AS11: VEGETATION | AU11: SPOT-5 | AV11: VEGETATION | AY11: NOAA-7/AVHRR-2 & NOAA-9/AVHRR-2 & NOAA-11/AVHRR-2 & NOAA-14/AVHRR-2 & SPOT-4/VEGETATION & SPOT-5/VEGETATION | AZ11: Global | BA11: 50 | BC11: 10 | BD11: 0.05 for FAPAR<0.2; 15% for FAPAR>0.2 | BI11: no | BK11: NOAA-14 | BL11: AVHRR-2 | BM11: NOAA-14|AVHRR/2||SPOT-4|VEGETATION | BN11: no | BO11: no | BS11: helpdesk@geoland2.eu | BT11: both | BU11: HDF | BV11: Open Access | BW11: FTP | BZ11: 6 | CA11: 1507 | CB11: 2014-02-24T20:44:00 | CC11: A2EEF700-79B4-4EB1-A79A-C0FAEBB74285 | CF11: MAPS OF THE FRACTION OF ABSORBED PHOTOSYNTHETICALLY ACTIVE RADIATION | CG11: FAPAR | CY11: 31 | CZ11: 0.75 | DA11: 0.3333333333 | DB11: 0.5714285714 | DC11: 0.5 | DD11: 0.5 | DE11: 1 | DF11: 1 | DG11: 0.8571428571 | DH11: 1 | DI11: 1 | DJ11: 0 | DK11: 0.6666666667 | DL11: 0.681547619 | DM11: 50 | DN11: 0 | DO11: 10 | DP11: 0.05 for FAPAR<0.2; 15% for FAPAR>0.2 | DQ11: 0 | DR11: 0.6 | DS11: 1 | DT11: Land Surface - Carbon Cycle - Water Cycle | DU11: =SUM(CY11/30,DL11,DR11,DS11) -> 3.314880952
A12: Current | B12: Roselyne Lacaze | C12: rl@hygeos.com | D12: Global LAI SPOT/VGT | E12: EC | H12: no | K12: yes | L12: yes | N12: Land Surface - Carbon Cycle - Water Cycle | O12: CDR_ECV25_2 | P12: CNES | Q12: CNES | R12: CNES | S12: CNES | T12: EC | U12: EC | V12: EC | W12: Others (TBD) | X12: EC | Y12: EC | Z12: 1999-01-01 | AA12: 2013-12-01 | AB12: 2014-12-13 | AC12: LEAF AREA INDEX (LAI) | AD12: not selected | AE12: SPOT-4 | AF12: VEGETATION | AH12: Yes | AI12: SPOT-5 | AJ12: VEGETATION | AY12: SPOT-4|VEGETATION||SPOT-5|VEGETATION | AZ12: Global | BA12: 1 | BC12: 10 | BD12: 0.5 for LAI<1; 20% for LAI>1 | BI12: yes | BK12: Terra | BL12: MODIS | BM12: Terra|MODIS||Aqua|MODIS | BN12: no | BO12: no | BS12: helpdesk@geoland2.eu | BT12: both | BU12: HDF | BV12: Open Access | BW12: FTP | BZ12: 1 | CA12: 1510 | CB12: 2014-02-24T20:44:00 | CC12: 17344575-2985-4B4E-811A-CE25AC13F3A5 | CF12: MAPS OF LEAF AREA INDEX | CG12: LAI | CI12: yes | CJ12: Aqua | CY12: 14.91666667 | CZ12: 0.75 | DA12: 0.3333333333 | DB12: 0.5714285714 | DC12: 0.5 | DD12: 0.5 | DE12: 1 | DF12: 1 | DG12: 0.8571428571 | DH12: 1 | DI12: 1 | DJ12: 0 | DK12: 0.6666666667 | DL12: 0.681547619 | DM12: 1 | DN12: 0 | DO12: 10 | DP12: 0.5 for LAI<1; 20% for LAI>1 | DQ12: 0 | DR12: 0.6 | DS12: 1 | DT12: Land Surface - Carbon Cycle - Water Cycle | DU12: =SUM(CY12/30,DL12,DR12,DS12) -> 2.778769841
A13: Current | B13: Marc Leroy | C13: marc.leroy@cnes.fr | D13: Global LAI NOAA/AVHRR | E13: EC | H13: no | K13: yes | L13: yes | N13: Land Surface - Carbon Cycle - Water Cycle | O13: CDR_ECV25_3 | P13: NOAA | Q13: NOAA | R13: NASA | S13: NASA | T13: EC | U13: EC | V13: not selected | W13: CNES | X13: EC | Y13: EC | Z13: 1981-07-01 | AA13: 2012-12-01 | AB13: 2014-11-30 | AC13: LEAF AREA INDEX (LAI) | AD13: not selected | AE13: NOAA-7 | AF13: AVHRR/2 | AH13: Yes | AI13: NOAA-9 | AJ13: AVHRR/2 | AL13: NOAA-11 | AM13: AVHRR/2 | AO13: NOAA-14 | AP13: AVHRR/2 | AY13: NOAA-7|AVHRR/2||NOAA-9|AVHRR/2||NOAA-11|AVHRR/2||NOAA-14|AVHRR/2 | AZ13: Global | BA13: 5 | BC13: 10 | BD13: 0.5 for LAI<1; 20% for LAI>1 | BI13: no | BK13: SPOT-4 | BL13: VEGATATION | BM13: SPOT-4|VEGETATION | BN13: no | BO13: no | BS13: helpdesk@geoland2.eu | BT13: both | BU13: HDF | BV13: Open Access | BW13: FTP | BZ13: 1 | CA13: 1511 | CB13: 2014-02-24T20:44:00 | CC13: 7F9E5B8E-CB9C-4247-9638-98B429C6E4DA | CF13: MAPS OF LEAF AREA INDEX | CG13: LAI | CY13: 31.41666667 | CZ13: 0.75 | DA13: 0.3333333333 | DB13: 0.5714285714 | DC13: 0.5 | DD13: 0.5 | DE13: 1 | DF13: 1 | DG13: 0.8571428571 | DH13: 1 | DI13: 1 | DJ13: 0 | DK13: 0.6666666667 | DL13: 0.681547619 | DM13: 5 | DN13: 0 | DO13: 10 | DP13: 0.5 for LAI<1; 20% for LAI>1 | DQ13: 0 | DR13: 0.6 | DS13: 1 | DT13: Land Surface - Carbon Cycle - Water Cycle | DU13: =SUM(CY13/30,DL13,DR13,DS13) -> 3.328769841
A14: Current | B14: Marc Leroy | C14: marc.leroy@cnes.fr | D14: GCM LAI AVHRR VGT | E14: EC | H14: no | K14: yes | L14: yes | N14: Land Surface - Carbon Cycle - Water Cycle | O14: CDR_ECV25_4 | P14: NOAA | Q14: Others (TBD) | R14: Others (TBD) | S14: Others (TBD) | T14: EC | U14: EC | V14: not selected | W14: CNES | X14: EC | Y14: EC | Z14: 1981-07-01 | AA14: 2012-07-01 | AB14: 2014-07-12 | AC14: LEAF AREA INDEX (LAI) | AD14: not selected | AE14: NOAA-7 | AF14: AVHRR/2 | AH14: Yes | AI14: NOAA-9 | AJ14: AVHRR/2 | AL14: NOAA-11 | AM14: AVHRR/2 | AO14: NOAA-14 | AP14: AVHRR/2 | AR14: SPOT-4 | AS14: VEGETATION | AU14: SPOT-5 | AV14: VEGETATION | AY14: NOAA7/AVHRR2 & NOAA9/AVHRR2 & NOAA11/AVHRR2 & NOAA14/AVHRR2 & SPOT4/VEGETATION & SPOT5/VEGETATION | AZ14: Global | BA14: 50 | BC14: 10 | BD14: 0.5 for LAI<1; 20% for LAI>1 | BI14: no | BK14: NOAA-14 | BL14: AVHRR-2 | BM14: NOAA-14|AVHRR/2||SPOT-4|VEGETATION | BN14: no | BO14: no | BS14: helpdesk@geoland2.eu | BT14: both | BU14: HDF | BV14: Open Access | BW14: FTP | BZ14: 6 | CA14: 1512 | CB14: 2014-02-24T20:44:00 | CC14: 9A7B1A1F-5A01-4F8C-9C31-75D8C382F0FD | CF14: MAPS OF LEAF AREA INDEX | CG14: LAI | CY14: 31 | CZ14: 0.75 | DA14: 0.3333333333 | DB14: 0.5714285714 | DC14: 0.5 | DD14: 0.5 | DE14: 1 | DF14: 1 | DG14: 0.8571428571 | DH14: 1 | DI14: 1 | DJ14: 0 | DK14: 0.6666666667 | DL14: 0.681547619 | DM14: 50 | DN14: 0 | DO14: 10 | DP14: 0.5 for LAI<1; 20% for LAI>1 | DQ14: 0 | DR14: 0.6 | DS14: 1 | DT14: Land Surface - Carbon Cycle - Water Cycle | DU14: =SUM(CY14/30,DL14,DR14,DS14) -> 3.314880952
A15: Current | B15: Roselyne Lacaze | C15: rl@hygeos.com | D15: Global SPOT/VGT Burnt Area | E15: EC | H15: no | K15: yes | L15: yes | N15: Land Surface - Carbon Cycle | O15: CDR_ECV27_1 | P15: CNES | Q15: CNES | R15: CNES | S15: CNES | T15: EC | U15: EC | V15: ESA | W15: Others (TBD) | X15: EC | Y15: EC | Z15: 1999-04-01 | AA15: 2013-12-01 | AB15: 2014-12-13 | AC15: FIRE AREA | AD15: not selected | AE15: SPOT-4 | AF15: VEGETATION | AH15: Yes | AI15: SPOT-5 | AJ15: VEGETATION | AY15: SPOT-4|VEGETATION||SPOT-5|VEGETATION | AZ15: Global | BA15: 1 | BC15: 10 | BD15: under definition | BE15: under definition | BI15: no | BN15: no | BO15: no | BS15: helpdesk@geoland2.eu | BT15: both | BU15: HDF | BV15: Open Access | BW15: ftp, Eumetcast | BZ15: 2 | CA15: 2004-02-22 | CB15: Feb 24 2014 8:44PM | CC15: D5FE2E1B-A87B-4B59-B4A6-9270A17D78A7 | CF15: MAPS OF BURNT AREA | CG15: FIRE DISTURBANCE | CY15: 14.66666667 | CZ15: 0.75 | DA15: 0.3333333333 | DB15: 0.7142857143 | DC15: 0.5 | DD15: 0.5 | DE15: 1 | DF15: 1 | DG15: 0.8571428571 | DH15: 1 | DI15: 1 | DJ15: 0 | DK15: 0.6666666667 | DL15: 0.693452381 | DM15: 1 | DN15: 0 | DO15: 10 | DP15: under definition | DQ15: under definition | DR15: 0.4 | DS15: 1 | DT15: Land Surface - Carbon Cycle | DU15: =SUM(CY15/30,DL15,DR15,DS15) -> 2.58234127
A16: Future | B16: Rainer Hollmann | C16: rainer.hollmann@dwd.de | E16: ESA | H16: no | K16: no | L16: no | N16: Cloud Feedback, Radiation Budget Studies; Energy And Water Cycle | O16: CDR_ECV04_32 | P16: DWD | Q16: not selected | R16: not selected | S16: not selected | T16: DWD | U16: not selected | V16: not selected | W16: not selected | X16: not selected | Y16: not selected | Z16: 1982-01-01 | AA16: 2014-12-01 | AC16: CLOUD COVER | AD16: not selected | AE16: NOAA-9 | AF16: AVHRR/2 | AH16: Yes | AI16: NOAA-10 | AJ16: AVHRR/2 | AL16: NOAA-11 | AM16: AVHRR/2 | AO16: NOAA-12 | AP16: AVHRR/2 | AR16: NOAA-13 | AU16: NOAA-14 | AY16: not selected|not selectedNOAA-9/AVHRR/2 NOAA-10/AVHRR/2 NOAA-11/AVHRR/2 NOAA-12/AVHRR/2NOAA-13 to NOAA-19, METOP-A, METOP-B (AVHRR/2, AVHRR/3), EOS-TERRA MODIS, EOS AQUA MODIS, ENVISAT/AATSR, ERS/ATSR | AZ16: Global | BA16: 0.5 x 0.5 | BC16: daily and monthly | BD16: 20% bias | BE16: 5% per decade | BI16: no | BN16: no | BO16: no | BT16: no | BU16: not selected | BV16: Open Access | CA16: 1378 | CB16: Feb 24 2014 8:44PM | CC16: 7F0E3773-6447-478E-A24C-64DE8530F3C7 | CF16: CLOUD AMOUNT | CG16: CLOUD PROPERTIES | CY16: 32.91666667 | CZ16: 0.75 | DA16: 0.3333333333 | DB16: 0.7142857143 | DC16: 0.5 | DD16: 0.5 | DE16: 1 | DF16: 1 | DG16: 0.2857142857 | DH16: 0 | DI16: 1 | DJ16: 0 | DK16: 0.6666666667 | DL16: 0.5625 | DM16: 0.5 x 0.5 | DN16: 0 | DO16: daily and monthly | DP16: 20% bias | DQ16: 5% per decade | DR16: 0.8 | DS16: 1 | DT16: Cloud Feedback, Radiation Budget Studies; Energy And Water Cycle | DU16: =SUM(CY16/30,DL16,DR16,DS16) -> 3.459722222
A17: Current | B17: Rainer Hollmann | C17: rainer.hollmann@dwd.de | D17: cloud cover | E17: ESA | H17: no | K17: no | L17: no | N17: Cloud Feedback, Radiation Budget Studies; Energy And Water Cycle | O17: CDR_ECV04_33 | P17: DWD | Q17: NOAA | R17: ESA | S17: NOAA | T17: DWD | U17: not selected | V17: not selected | W17: not selected | X17: not selected | Y17: not selected | Z17: 2002-12-01 | AA17: 2014-12-01 | AC17: CLOUD COVER | AD17: not selected | AE17: NOAA-9 | AF17: AVHRR/2 | AH17: Yes | AI17: NOAA-10 | AJ17: AVHRR/2 | AL17: NOAA-11 | AM17: AVHRR/2 | AO17: NOAA-12 | AP17: AVHRR/2 | AR17: NOAA-13 | AU17: NOAA-14 | AY17: not selected|not selectedNOAA-9/AVHRR/2 NOAA-10/AVHRR/2 NOAA-11/AVHRR/2 NOAA-12/AVHRR/2NOAA-13 to NOAA-19, METOP-A, METOP-B (AVHRR/2, AVHRR/3), EOS-TERRA MODIS, EOS AQUA MODIS, ENVISAT/AATSR, ERS/ATSR | AZ17: Global | BA17: 0.5 x 0.5 | BB17: none | BC17: daily and monthly | BD17: 20% bias | BE17: 5% per decade | BI17: no | BL17: MODIS | BN17: no | BO17: no | BS17: rainer.hollmann@dwd.de | BT17: both | BU17: netcdf | BV17: Open Access | BW17: FTP | CA17: 1379 | CB17: Feb 24 2014 8:44PM | CC17: 66052EDF-CACA-48FB-8432-FABF0CF96E41 | CF17: CLOUD AMOUNT | CG17: CLOUD PROPERTIES | CK17: AATSR | CY17: 12 | CZ17: 0.75 | DA17: 0.3333333333 | DB17: 0.8571428571 | DC17: 0.5 | DD17: 0.5 | DE17: 1 | DF17: 1 | DG17: 0.8571428571 | DH17: 0 | DI17: 1 | DJ17: 0 | DK17: 0.6666666667 | DL17: 0.6220238095 | DM17: 0.5 x 0.5 | DN17: none | DO17: daily and monthly | DP17: 20% bias | DQ17: 5% per decade | DR17: 0.8 | DS17: 1 | DT17: Cloud Feedback, Radiation Budget Studies; Energy And Water Cycle | DU17: =SUM(CY17/30,DL17,DR17,DS17) -> 2.82202381
A18: Current | B18: Rainer Hollmann | C18: rainer.hollmann@dwd.de | D18: yes, planned | E18: ESA | H18: no | K18: no | L18: no | N18: Cloud Feedback Studies, Energy And Water Cycle, Climate Modelling | O18: CDR_ECV04_34 | P18: DWD | Q18: NOAA | R18: ESA | S18: NOAA | T18: DWD | U18: not selected | V18: not selected | W18: not selected | X18: not selected | Y18: not selected | Z18: 1982-01-01 | AA18: 2014-12-01 | AC18: CLOUD TOP HEIGHT | AD18: not selected | AE18: NOAA-10 | AF18: AVHRR/2 | AH18: Yes | AI18: NOAA-11 | AJ18: AVHRR/2 | AL18: NOAA-12 | AM18: AVHRR/2 | AO18: NOAA-13 | AR18: NOAA-14 | AS18: AVHRR/2 | AU18: NOAA-15 | AY18: not selected|not selectedNOAA-10/AVHRR/2 NOAA-11/AVHRR/2 NOAA-12/AVHRR/2 NOAA-14/AVHRR/2NOAA-13 to NOAA-19, METOP-A, METOP-B (AVHRR/2, AVHRR/3), EOS-TERRA MODIS, EOS AQUA MODIS, ENVISAT/AATSR, ERS/ATSR | AZ18: Global | BA18: 0.5 x 0.5 | BB18: none | BC18: daily and monthly | BD18: tbd | BE18: tbd | BI18: no | BL18: MODIS | BN18: no | BO18: no | BS18: rainer.hollmann@dwd.de | BT18: no | BU18: HDF | BV18: Open Access | BW18: ftp, download, disk | CA18: 1380 | CB18: Feb 24 2014 8:44PM | CC18: A81913C3-92FD-4500-9714-48863507EFC2 | CF18: CLOUD TOP PRESSURE AND TEMPERATURE | CG18: CLOUD PROPERTIES | CK18: AATSR | CY18: 32.91666667 | CZ18: 0.75 | DA18: 0.3333333333 | DB18: 0.8571428571 | DC18: 0.5 | DD18: 0.5 | DE18: 1 | DF18: 1 | DG18: 0.7142857143 | DH18: 0 | DI18: 1 | DJ18: 0 | DK18: 0.6666666667 | DL18: 0.6101190476 | DM18: 0.5 x 0.5 | DN18: none | DO18: daily and monthly | DP18: tbd | DQ18: tbd | DR18: 0.6 | DS18: 1 | DT18: Cloud Feedback Studies, Energy And Water Cycle, Climate Modelling | DU18: =SUM(CY18/30,DL18,DR18,DS18) -> 3.30734127
A19: Current | B19: Rainer Hollmann | C19: rainer.hollmann@dwd.de | D19: yes, planned | E19: ESA | H19: no | K19: no | L19: no | N19: Climate Modelling, Cloud Feedback Studies | O19: CDR_ECV04_35 | P19: DWD | Q19: NOAA | R19: ESA | S19: NOAA | T19: DWD | U19: not selected | V19: not selected | W19: not selected | X19: not selected | Y19: not selected | Z19: 1982-01-01 | AA19: 2014-12-01 | AC19: CLOUD OPTICAL DEPTH | AD19: not selected | AE19: NOAA-10 | AF19: AVHRR/2 | AH19: Yes | AI19: NOAA-11 | AJ19: AVHRR/2 | AL19: NOAA-13 | AM19: AVHRR/2 | AO19: NOAA-14 | AP19: AVHRR/2 | AR19: NOAA-15 | AS19: AVHRR/2 | AU19: NOAA-16 | AY19: not selected|not selectedNOAA-11/AVHRR/2 NOAA-10/AVHRR/2 NOAA-14/AVHRR/2 NOAA-15/AVHRR/2NOAA-13 to NOAA-19, METOP-A, METOP-B (AVHRR/2, AVHRR/3), EOS-TERRA MODIS, EOS AQUA MODIS, ENVISAT/AATSR, ERS/ATSR | AZ19: Global | BA19: 0.5 x 0.5 deg | BB19: none | BC19: daily & monthly | BD19: tbd | BE19: tbd | BI19: no | BK19: Terra | BL19: MODIS | BM19: not selected|not selected | BN19: no | BO19: no | BS19: rainer.hollmann@dwd.de | BT19: no | BU19: HDF | BV19: Open Access | BW19: ftp, download, disk | CA19: 1381 | CB19: Feb 24 2014 8:44PM | CC19: C5378DC1-7E32-4366-A9E1-415A40E58847 | CF19: CLOUD OPTICAL DEPTH | CG19: CLOUD PROPERTIES | CY19: 32.91666667 | CZ19: 0.75 | DA19: 0.3333333333 | DB19: 0.8571428571 | DC19: 0.5 | DD19: 0.5 | DE19: 1 | DF19: 1 | DG19: 0.7142857143 | DH19: 0 | DI19: 1 | DJ19: 0 | DL19: 0.5545634921 | DM19: =BA19 -> 0.5 x 0.5 deg | DN19: =BB19 -> none | DP19: =BD19 -> tbd | DQ19: =BE19 -> tbd | DR19: 0.4 | DS19: 1 | DT19: Climate Modelling, Cloud Feedback Studies | DU19: =SUM(CY19/30,DL19,DR19,DS19) -> 3.051785714
A20: Current | B20: Rainer Hollmann | C20: rainer.hollmann@dwd.de | D20: yes, planned | E20: ESA | H20: no | K20: no | L20: no | N20: Climate Research, Cloud Physics | O20: CDR_ECV04_36 | P20: DWD | Q20: NOAA | R20: ESA | S20: NOAA | T20: DWD | U20: not selected | V20: not selected | W20: not selected | X20: not selected | Y20: not selected | Z20: 1982-01-01 | AA20: 2013-12-01 | AC20: CLOUD LIQUID WATER (COLUMN/PROFILE) | AD20: not selected | AE20: NOAA-9 | AF20: AVHRR/2 | AH20: Yes | AI20: NOAA-10 | AJ20: AVHRR/2 | AL20: NOAA-11 | AM20: AVHRR/2 | AO20: NOAA-12 | AP20: AVHRR/2 | AR20: NOAA-13 | AU20: NOAA-14 | AY20: not selected|not selectedNOAA-9/AVHRR/2 NOAA-10/AVHRR/2 NOAA-11/AVHRR/2 NOAA-12/AVHRR/2NOAA-13 to NOAA-19, METOP-A, METOP-B (AVHRR/2, AVHRR/3), EOS-TERRA MODIS, EOS AQUA MODIS, ENVISAT/AATSR, ERS/ATSR | AZ20: Global | BA20: 0.5 x 0.5 deg | BB20: none | BC20: daily, monthly | BD20: tbd | BE20: tbd | BI20: no | BL20: MODIS | BN20: no | BO20: no | BS20: rainer.hollmann@dwd.de | BT20: no | BU20: HDF | BV20: Open Access | BW20: ftp, disk | CA20: 1382 | CB20: Feb 24 2014 8:44PM | CC20: AF537600-65DE-4996-A257-CA693A8A606B | CF20: CLOUD WATER PATH | CG20: CLOUD PROPERTIES | CK20: AATSR | CY20: 31.91666667 | CZ20: 0.75 | DA20: 0.3333333333 | DB20: 0.8571428571 | DC20: 0.5 | DD20: 0.5 | DE20: 1 | DF20: 1 | DG20: 0.7142857143 | DH20: 0 | DI20: 1 | DJ20: 0 | DK20: =(COUNTIF(U20,"*")+COUNTIF(W20,"*")+COUNTIF(BO20,"y*"))/3 -> 0.6666666667 | DL20: 0.6101190476 | DM20: =BA20 -> 0.5 x 0.5 deg | DN20: none | DO20: daily, monthly | DP20: tbd | DQ20: tbd | DR20: 0.4 | DS20: =COUNTIF(N20,"*") -> 1 | DT20: Climate Research, Cloud Physics | DU20: =SUM(CY20/30,DL20,DR20,DS20) -> 3.074007937
A21: Current | B21: Rainer Hollmann | C21: rainer.hollmann@dwd.de | D21: Yes, planned | E21: ESA | H21: no | K21: no | L21: no | N21: Cloud Feedback, Radiation Budget Studies, Energy And Water Cycle | O21: CDR_ECV04_37 | P21: DWD | Q21: NOAA | R21: ESA | S21: NOAA | T21: DWD | U21: not selected | V21: not selected | W21: not selected | X21: not selected | Y21: not selected | Z21: 1982-01-01 | AA21: 2013-12-01 | AC21: CLOUD TOP TEMPERATURE | AD21: degrees Kelvin | AE21: NOAA-9 | AF21: AVHRR/2 | AH21: Yes | AI21: NOAA-10 | AJ21: AVHRR/2 | AL21: NOAA-11 | AM21: AVHRR/2 | AO21: NOAA-12 | AP21: AVHRR/2 | AR21: NOAA-13 | AU21: NOAA-14 | AY21: not selected|not selectedNOAA-9/AVHRR/2 NOAA-10/AVHRR/2 NOAA-11/AVHRR/2 NOAA-12/AVHRR/2NOAA-13 to NOAA-19, METOP-A, METOP-B (AVHRR/2, AVHRR/3), EOS-TERRA MODIS, EOS AQUA MODIS, ENVISAT/AATSR, ERS/ATSR | AZ21: Global | BA21: 0.5 deg x 0.5 deg | BB21: none | BC21: daily and monthly | BD21: tbd | BE21: tbd | BI21: no | BL21: MODIS | BN21: no | BO21: no | BS21: rainer.hollmann@dwd.de | BT21: no | BU21: netcdf | BV21: Open Access | BW21: FTP | CA21: 1383 | CB21: Feb 24 2014 8:44PM | CC21: F72E1BC9-F00C-4B2E-856B-C68A8BD18938 | CF21: CLOUD TOP PRESSURE AND TEMPERATURE | CG21: CLOUD PROPERTIES | CK21: AATSR | CY21: 31.91666667 | CZ21: 0.75 | DA21: 0.3333333333 | DB21: 0.8571428571 | DC21: 0.5 | DD21: 0.5 | DE21: 1 | DF21: 1 | DG21: 0.7142857143 | DH21: 0 | DI21: 1 | DJ21: 0 | DK21: 0.6666666667 | DL21: 0.6101190476 | DM21: 0.5 deg x 0.5 deg | DN21: none | DO21: daily and monthly | DP21: tbd | DQ21: tbd | DR21: 0.4 | DS21: 1 | DT21: Cloud Feedback, Radiation Budget Studies, Energy And Water Cycle | DU21: =SUM(CY21/30,DL21,DR21,DS21) -> 3.074007937
A22: Current | B22: Rainer Hollmann | C22: rainer.hollmann@dwd.de | D22: new release | E22: ESA | H22: no | K22: no | L22: no | N22: Cloud Feedback Studies, Climate Modelling | O22: CDR_ECV04_41 | P22: ESA | Q22: ESA | R22: ESA | S22: ESA | T22: ESA | U22: not selected | V22: not selected | W22: not selected | X22: not selected | Y22: not selected | Z22: 2002-01-01 | AA22: 2012-04-01 | AC22: CLOUD TOP HEIGHT | AD22: not selected | AE22: Envisat | AF22: AATSR | AH22: Yes | AI22: Envisat | AJ22: MERIS | AY22: Envisat|AATSR||Envisat|MERIS | AZ22: Global | BA22: 0.5 deg x 0.5 deg | BB22: none | BC22: daily, monthly | BD22: tbd | BE22: tbd | BI22: no | BL22: AATSR | BN22: no | BO22: no | BS22: rainer.hollmann@dwd.de | BT22: no | BU22: netcdf | BV22: Open Access | BW22: FTP | CA22: 1387 | CB22: Feb 24 2014 8:44PM | CC22: 9A6F33D6-0CFF-4179-87DA-3DA535693C55 | CF22: CLOUD TOP PRESSURE AND TEMPERATURE | CG22: CLOUD PROPERTIES | CK22: MERIS | CY22: 10.25 | CZ22: 0.75 | DA22: 0.3333333333 | DB22: 0.8571428571 | DC22: 0.5 | DD22: 0.5 | DE22: 1 | DF22: 1 | DG22: 0.7142857143 | DH22: 0 | DI22: 1 | DJ22: 0 | DK22: 0.6666666667 | DL22: 0.6101190476 | DM22: 0.5 deg x 0.5 deg | DN22: none | DO22: daily, monthly | DP22: tbd | DQ22: tbd | DR22: 0.4 | DS22: 1 | DT22: Cloud Feedback Studies, Climate Modelling | DU22: =SUM(CY22/30,DL22,DR22,DS22) -> 2.351785714
A23: Current | B23: Rainer Hollmann | C23: rainer.hollmann@dwd.de | D23: new release | E23: ESA | H23: no | K23: no | L23: no | N23: Cloud Feedback, Radiation, Climate Modelling | O23: CDR_ECV04_42 | P23: ESA | Q23: ESA | R23: ESA | S23: ESA | T23: ESA | U23: ESA | V23: not selected | W23: not selected | X23: not selected | Y23: not selected | Z23: 2002-02-01 | AA23: 2012-04-01 | AC23: CLOUD COVER | AD23: not selected | AE23: Envisat | AF23: AATSR | AH23: Yes | AI23: Envisat | AJ23: MERIS | AY23: Envisat|AATSR||Envisat|MERIS | AZ23: Global | BA23: 0.5 deg x 0.5 deg | BB23: none | BC23: daily, monthly | BD23: 20 % bias | BE23: 5% per decade | BI23: no | BL23: AATSR | BN23: no | BO23: no | BS23: rainer.hollmann@dwd.de | BT23: no | BU23: netcdf | BV23: Open Access | BW23: FTP | CA23: 1388 | CB23: Feb 24 2014 8:44PM | CC23: EBCAC2DA-3387-460D-B818-BC6BB9961128 | CF23: CLOUD AMOUNT | CG23: CLOUD PROPERTIES | CK23: MERIS | CY23: 10.16666667 | CZ23: 0.75 | DA23: 0.3333333333 | DB23: 0.8571428571 | DC23: 0.5 | DD23: 0.5 | DE23: 1 | DF23: 1 | DG23: 0.7142857143 | DH23: 0 | DI23: 1 | DJ23: 0 | DK23: 0.6666666667 | DL23: 0.6101190476 | DM23: 0.5 deg x 0.5 deg | DN23: none | DO23: daily, monthly | DP23: 20 % bias | DQ23: 5% per decade | DR23: 0.8 | DS23: 1 | DT23: Cloud Feedback, Radiation, Climate Modelling | DU23: =SUM(CY23/30,DL23,DR23,DS23) -> 2.749007937
A24: Current | B24: Thomas Holzer-Popp | C24: thomas.holzer-popp@dlr.de | D24: no | E24: ESA | H24: no | K24: no | L24: no | N24: Aerosol Monitoring | O24: CDR_ECV09_5 | P24: DLR | Q24: ESA | R24: Others (TBD) | S24: Others (TBD) | T24: EUMETSAT | U24: Others (TBD) | V24: Others (TBD) | W24: CNES | X24: DLR | Y24: DLR | Z24: 1995-05-01 | AA24: 2012-04-01 | AC24: AEROSOL OPTICAL DEPTH (COLUMN/PROFILE) | AD24: not selected | AE24: ERS-2 | AF24: ATSR-2 | AH24: Yes | AI24: Envisat | AJ24: AATSR | AY24: ERS-2|ATSR-2||Envisat|AATSR | AZ24: Global | BA24: 10 km | BB24: n/a | BC24: daily / 512 km swath | BD24: rmse 0.08 | BE24: not yet assessed | BI24: no | BN24: no | BO24: no | BT24: TCDR | BU24: not selected | BV24: Open Access | CA24: 1447 | CB24: 2014-02-24T20:44:00 | CC24: 94BECFF6-4CAC-4F16-B49C-79A66AA87CCD | CF24: AEROSOL OPTICAL DEPTH | CG24: AEROSOL PROPERTIES | CY24: 16.91666667 | CZ24: 0.75 | DA24: 0.3333333333 | DB24: 0.8571428571 | DC24: 0.5 | DD24: 0.5 | DE24: 1 | DF24: 1 | DG24: 0.4285714286 | DH24: 0 | DI24: 1 | DJ24: 0 | DK24: 0.6666666667 | DL24: 0.5863095238 | DM24: 10 km | DN24: n/a | DO24: daily / 512 km swath | DP24: rmse 0.08 | DQ24: not yet assessed | DR24: 0.8 | DS24: 1 | DT24: Aerosol Monitoring | DU24: =SUM(CY24/30,DL24,DR24,DS24) -> 2.950198413
A25: Current | B25: Olivier Lauret | C25: olauret@cls.fr | D25: Monthly averaged sea level anomalies | E25: ESA | H25: no | K25: no | L25: no | N25: Past Ocean Variability | O25: CDR_ECV13_5 | P25: CNES | Q25: CNES | R25: CNES | S25: CNES | T25: CNES | U25: ESA | V25: ESA | W25: CNES | X25: CNES | Y25: CNES | Z25: 1993-01-01 | AA25: 2010-12-01 | AC25: SEA LEVEL | AD25: m | AE25: Envisat | AF25: RA-2 | AH25: Yes | AI25: ERS-1 | AJ25: RA | AL25: ERS-2 | AM25: RA | AO25: Jason-1 | AP25: POSEIDON-2 (SSALT-2) | AY25: Envisat|RA-2Merged%20dataset||ERS-1|RA||ERS-2|RA||Jason-1|POSEIDON-2 (SSALT-2) | AZ25: Global | BC25: 1 month | BI25: no | BN25: no | BO25: no | BS25: aviso@cls.fr | BT25: both | BU25: netcdf | BV25: Constrained Access | BW25: FTP | CA25: 1467 | CB25: 2014-02-24T20:44:00 | CC25: 1A436DBA-CBE1-47B0-B681-D278028C49C9 | CF25: SEA-LEVEL | CG25: SEA LEVEL | CY25: 17.91666667 | CZ25: 0.75 | DA25: 0.3333333333 | DB25: 0.2857142857 | DC25: 0.5 | DD25: 0.5 | DE25: 1 | DF25: 1 | DG25: 0.8571428571 | DH25: 0 | DI25: 1 | DJ25: 0 | DK25: 0.6666666667 | DL25: 0.5744047619 | DM25: 0 | DN25: 0 | DO25: 1 month | DP25: 0 | DQ25: 0 | DR25: 0.2 | DS25: 1 | DT25: Past Ocean Variability | DU25: =SUM(CY25/30,DL25,DR25,DS25) -> 2.371626984
A26: Current | B26: Olivier Lauret | C26: olauret@cls.fr | D26: Mean Sea Level temporal variations | E26: ESA | H26: no | K26: no | L26: no | N26: Climate Changes | O26: CDR_ECV13_6 | P26: CNES | Q26: CNES | R26: CNES | S26: CNES | T26: CNES | U26: ESA | V26: ESA | W26: CNES | X26: CNES | Y26: CNES | Z26: 1993-01-01 | AA26: 2010-12-01 | AC26: SEA LEVEL | AD26: m | AE26: ERS-1 | AF26: RA-2 | AH26: Yes | AI26: ERS-2 | AJ26: RA | AL26: Envisat | AM26: RA-2 | AO26: Jason-1 | AP26: POSEIDON-2 (SSALT-2) | AY26: ERS-1|RA||ERS-2|RA||Envisat|RA-2||Jason-1|POSEIDON-2 (SSALT-2) | AZ26: not selected | BC26: 1 month | BI26: no | BN26: no | BO26: no | BS26: aviso@cls.fr | BT26: both | BU26: netcdf | BV26: Constrained Access | BW26: FTP | CA26: 1468 | CB26: 2014-02-24T20:44:00 | CC26: CAB0230C-3EF2-4C72-B35E-99B565EF2E79 | CF26: SEA-LEVEL | CG26: SEA LEVEL | CY26: 17.91666667 | CZ26: 0.75 | DA26: 0.3333333333 | DB26: 0.2857142857 | DC26: 0.5 | DD26: 0.5 | DE26: 1 | DF26: 1 | DG26: 0.8571428571 | DH26: 0 | DI26: 1 | DJ26: 0 | DK26: 0.6666666667 | DL26: 0.5744047619 | DM26: 0 | DN26: 0 | DO26: 1 month | DP26: 0 | DQ26: 0 | DR26: 0.2 | DS26: 1 | DT26: Climate Changes | DU26: =SUM(CY26/30,DL26,DR26,DS26) -> 2.371626984
A27: Current | B27: Olivier Lauret | C27: olauret@cls.fr | D27: Mean Sea Level changes geographic distribution | E27: ESA | H27: no | K27: no | L27: no | N27: Climate Changes | O27: CDR_ECV13_7 | P27: CNES | Q27: CNES | R27: CNES | S27: CNES | T27: CNES | U27: ESA | V27: ESA | W27: CNES | X27: CNES | Y27: CNES | Z27: 1993-01-01 | AA27: 2010-12-01 | AC27: SEA LEVEL | AD27: m | AE27: ERS-1 | AF27: RA-2 | AH27: Yes | AI27: ERS-2 | AJ27: RA | AL27: Envisat | AM27: RA-2 | AO27: Jason-1 | AP27: POSEIDON-2 (SSALT-2) | AY27: ERS-1|RA||ERS-2|RA||Envisat|RA-2||Jason-1|POSEIDON-2 (SSALT-2) | AZ27: Global | BC27: 1 month | BI27: no | BN27: no | BO27: no | BT27: no | BU27: netcdf | BV27: Constrained Access | BW27: FTP | CA27: 1469 | CB27: 2014-02-24T20:44:00 | CC27: CC8B008F-A6F4-4249-B540-55F3078630E2 | CF27: SEA-LEVEL | CG27: SEA LEVEL | CY27: 17.91666667 | CZ27: 0.75 | DA27: 0.3333333333 | DB27: 0.2857142857 | DC27: 0.5 | DD27: 0.5 | DE27: 1 | DF27: 1 | DG27: 0.5714285714 | DH27: 0 | DI27: 1 | DJ27: 0 | DK27: 0.6666666667 | DL27: 0.5505952381 | DM27: 0 | DN27: 0 | DO27: 1 month | DP27: 0 | DQ27: 0 | DR27: 0.2 | DS27: 1 | DT27: Climate Changes | DU27: =SUM(CY27/30,DL27,DR27,DS27) -> 2.34781746
A28: Current | B28: Olivier Lauret | C28: olauret@cls.fr | D28: Mean Sea Level changes amplitude and phases | E28: ESA | H28: no | K28: no | L28: no | N28: Climate Changes | O28: CDR_ECV13_8 | P28: CNES | Q28: CNES | R28: CNES | S28: CNES | T28: CNES | U28: ESA | V28: ESA | W28: CNES | X28: CNSA | Y28: CNES | Z28: 1993-01-01 | AA28: 2010-12-01 | AC28: SEA LEVEL | AD28: m | AE28: ERS-1 | AF28: RA-2 | AH28: Yes | AI28: ERS-2 | AJ28: RA | AL28: Envisat | AM28: RA-2 | AO28: Jason-1 | AP28: POSEIDON-2 (SSALT-2) | AY28: ERS-1|RA||ERS-2|RA||Envisat|RA-2||Jason-1|POSEIDON-2 (SSALT-2) | AZ28: Global | BC28: 1 month | BI28: no | BN28: no | BO28: no | BS28: aviso@cls.fr | BT28: no | BU28: netcdf | BV28: Constrained Access | BW28: FTP | CA28: 1470 | CB28: 2014-02-24T20:44:00 | CC28: 610B2E50-5C0D-4910-AC83-7F1A97ED0483 | CF28: SEA-LEVEL | CG28: SEA LEVEL | CY28: 17.91666667 | CZ28: 0.75 | DA28: 0.3333333333 | DB28: 0.2857142857 | DC28: 0.5 | DD28: 0.5 | DE28: 1 | DF28: 1 | DG28: 0.7142857143 | DH28: 0 | DI28: 1 | DJ28: 0 | DK28: 0.6666666667 | DL28: 0.5625 | DM28: 0 | DN28: 0 | DO28: 1 month | DP28: 0 | DQ28: 0 | DR28: 0.2 | DS28: 1 | DT28: Climate Changes | DU28: =SUM(CY28/30,DL28,DR28,DS28) -> 2.359722222
A29: Current | B29: Dr Christopher J Merchant | C29: c.merchant@ed.ac.uk | D29: New dataset | E29: ESA | H29: no | K29: no | L29: no | N29: Climate And Ocean Model Evaluation. Climate Change Detection And Attribution. Prescription Of Fields For Climate Model Simulations. Re-analysis. | O29: CDR_ECV14_6 | P29: ESA | Q29: Others (TBD) | R29: Others (TBD) | S29: Others (TBD) | T29: ESA | U29: ESA | V29: ESA | W29: ESA | X29: ESA | Y29: ESA | Z29: 1991-08-01 | AA29: 2010-12-01 | AC29: SEA SURFACE TEMPERATURE | AD29: not selected | AE29: ERS-1 | AF29: ATSR | AH29: Yes | AI29: ERS-2 | AJ29: ATSRS-2 | AL29: Envisat | AM29: AATSR | AO29: NOAA-12 | AP29: AVHRR/3 | AR29: NOAA-14 | AU29: NOAA-15 | AY29: ERS-1|ATSR||ERS-2|ATSR-2||Envisat|AATSR||NOAA-12|AVHRR/3NOAA14 to NOAA19 and Metop A | AZ29: Global | BA29: 5 km | BB29: N/A | BC29: 1 to 3 days | BD29: 0.1 K | BE29: 5 mK/yr (after 1993) | BI29: no | BN29: no | BO29: no | BT29: no | BU29: not selected | BV29: Open Access | CA29: 1476 | CB29: 2014-02-24T20:44:00 | CC29: 351E55BA-947E-43B6-8E46-9D0F7FBD3B24 | CF29: SEA-SURFACE TEMPERATURE | CG29: SEA SURFACE TEMPERATURE | CY29: 19.33333333 | CZ29: 0.75 | DA29: 0.3333333333 | DB29: 0.8571428571 | DC29: 0.5 | DD29: 0.5 | DE29: 1 | DF29: 1 | DG29: 0.2857142857 | DH29: 0 | DI29: 1 | DJ29: 0 | DK29: 0.6666666667 | DL29: 0.5744047619 | DM29: 5 km | DN29: N/A | DO29: 1 to 3 days | DP29: 0.1 K | DQ29: 5 mK/yr (after 1993) | DR29: 0.8 | DS29: 1 | DT29: Climate And Ocean Model Evaluation. Climate Change Detection And Attribution. Prescription Of Fields For Climate Model Simulations. Re-analysis. | DU29: =SUM(CY29/30,DL29,DR29,DS29) -> 3.018849206
A30: Current | B30: Dr. Shubha Sathyendranath | C30: shubha@dal.ca | E30: ESA | H30: no | K30: yes | L30: yes | O30: CDR_ECV15_3 | P30: ESA | Q30: ESA | R30: ESA | S30: ESA | T30: ESA | U30: ESA | V30: ESA | W30: ESA | X30: ESA | Y30: ESA | Z30: 1997-01-01 | AA30: 2012-12-01 | AC30: OCEAN CHLOROPHYLL CONCENTRATION | AD30: mg-m-3 | AE30: Envisat | AF30: MERIS | AH30: Yes | AI30: OrbView-2 | AJ30: SeaWiFS | AL30: Aqua | AM30: Modis | AY30: Envisat|MERIS||OrbView-2|SeaWiFS||Aqua|MODIS | AZ30: Global | BA30: 4km | BB30: n/a | BC30: daily | BI30: yes | BN30: yes | BO30: yes | BS30: shubha@dal.ca | BT30: both | BU30: netcdf | BV30: Open Access | BW30: FTP | BZ30: 2014-05-13 | CA30: 1479 | CB30: 2014-02-24T20:44:00 | CC30: 123BEFE1-81F7-41A7-8D32-FCB9A1112E61 | CF30: OCEAN CHLOROPHYLL | CG30: OCEAN CHLOROPHYLL | CY30: 15.91666667 | CZ30: 0.75 | DA30: 0.3333333333 | DB30: 0.7142857143 | DC30: 0.5 | DD30: 0.5 | DE30: 1 | DF30: 1 | DG30: 0.8571428571 | DH30: 1 | DI30: 1 | DJ30: 0 | DK30: 1 | DL30: 0.7212301587 | DM30: 4km | DN30: n/a | DO30: daily | DP30: 0 | DQ30: 0 | DR30: 0.6 | DS30: 0 | DT30: 0 | DU30: =SUM(CY30/30,DL30,DR30,DS30) -> 1.851785714
A31: Current | B31: Dr. Shubha Sathyendranath | C31: shubha@dal.ca | E31: ESA | H31: no | K31: yes | L31: yes | O31: CDR_ECV15_4 | P31: ESA | Q31: ESA | R31: ESA | S31: ESA | T31: ESA | U31: ESA | V31: ESA | W31: ESA | X31: ESA | Y31: ESA | Z31: 1997-01-01 | AA31: 2012-12-01 | AC31: NOT SELECTED | AD31: not selected | AE31: Envisat | AF31: MERIS | AH31: Yes | AI31: OrbView-2 | AJ31: SeaWiFS | AL31: Aqua | AM31: Modis | AY31: Envisat|MERIS||OrbView-2|SeaWiFS||Aqua|MODIS | AZ31: Global | BA31: 4km | BB31: n/a | BC31: daily | BI31: yes | BN31: yes | BO31: yes | BS31: shubha@dal.ca | BT31: no | BU31: netcdf | BV31: Open Access | BW31: FTP | BZ31: 2014-05-13 | CA31: 1480 | CB31: 2014-02-24T20:44:00 | CC31: 6370247E-CC47-4908-B00F-75CB53BD5C13 | CF31: OCEAN COLOUR RADIOMETRY - WATER LEAVING RADIANCE | CG31: OCEAN COLOR | CY31: 15.91666667 | CZ31: 0.75 | DA31: 0.3333333333 | DB31: 0.7142857143 | DC31: 0.5 | DD31: 0.5 | DE31: 1 | DF31: 1 | DG31: 0.7142857143 | DH31: 1 | DI31: 1 | DJ31: 0 | DK31: 1 | DL31: 0.7093253968 | DM31: 4km | DN31: n/a | DO31: daily | DP31: 0 | DQ31: 0 | DR31: 0.6 | DS31: 0 | DT31: 0 | DU31: =SUM(CY31/30,DL31,DR31,DS31) -> 1.839880952
A32: Future | B32: Rene Forsberg | C32: rf@space.dtu.dk | D32: New | E32: ESA | H32: no | K32: no | L32: no | N32: Climate Modelling Ice Sheet Monitoring | O32: CDR_ECV20_3 | P32: ESA | Q32: Others (TBD) | R32: Others (TBD) | S32: Others (TBD) | T32: ESA | U32: ESA | V32: ESA | W32: ESA | X32: ESA | Y32: ESA | Z32: 1992-01-01 | AA32: 2014-12-01 | AC32: GLACIER COVER | AD32: not selected | AE32: Envisat | AF32: MERIS | AH32: Yes | AI32: Landsat | AJ32: MERIS | AL32: Sentinel-2 | AM32: ASTER | AY32: Envisat|MERISLandsat, MERIS, ASTER, Sentinel-2 | AZ32: Regional | BA32: 100 m | BB32: n/a | BC32: 365 (most glaciers) | BD32: 100 m | BE32: 20 m | BI32: no | BN32: no | BO32: no | BT32: both | BU32: not selected | BV32: Open Access | CA32: 1485 | CB32: Feb 24 2014 8:44PM | CC32: 13A1AE46-4A44-4B57-94E7-8B28DFF13B4E | CF32: 2D VECTOR OUTLINES OF GLACIERS AND ICE CAPS (DELINEATING GLACIER AREA) | CG32: GLACIERS AND ICE CAPS | CY32: 22.91666667 | CZ32: 0.75 | DA32: 0.3333333333 | DB32: 0.8571428571 | DC32: 0.5 | DD32: 0.5 | DE32: 1 | DF32: 1 | DG32: 0.4285714286 | DH32: 0 | DI32: 1 | DJ32: 0 | DK32: 0.6666666667 | DL32: 0.5863095238 | DM32: 100 m | DN32: n/a | DO32: 365 (most glaciers) | DP32: 100 m | DQ32: 20 m | DR32: 1 | DS32: 1 | DT32: Climate Modelling Ice Sheet Monitoring | DU32: =SUM(CY32/30,DL32,DR32,DS32) -> 3.350198413
A33: Future | B33: Pierre Defourny | C33: pierre.defourny@uclouvain.be | D33: No, this is a new dataset | E33: ESA | H33: no | K33: no | L33: no | O33: CDR_ECV23_4 | P33: ESA | Q33: ESA | R33: ESA | S33: ESA | T33: ESA | U33: Others (TBD) | V33: not selected | W33: Others (TBD) | X33: Others (TBD) | Y33: Others (TBD) | Z33: 1998-01-01 | AA33: 2012-12-01 | AC33: NOT SELECTED | AD33: not selected | AE33: Envisat | AF33: MERIS | AH33: Yes | AI33: SPOT-4 | AJ33: VEGETATION | AL33: SPOT-5 | AM33: VEGETATION | AY33: Envisat|MERIS||SPOT-4|VEGETATION||SPOT-5|VEGETATION | AZ33: Global | BA33: 300m | BB33: Not applicable | BC33: Every 5 years | BD33: Spatially Variable - specific accuracy information will only be available after June 2014 | BE33: Spatially Variable - specific accuracy information will only be available after June 2014 | BI33: no | BN33: no | BO33: no | BT33: no | BU33: HDF-EOS | BV33: not selected | CA33: 2004-02-10 | CB33: Feb 24 2014 8:44PM | CC33: 23F7894C-DA85-4570-B28E-A7F42CF9540F | CF33: MODERATE-RESOLUTION MAPS OF LAND-COVER TYPE | CG33: LAND COVER | CY33: 14.91666667 | CZ33: 0.75 | DA33: 0.3333333333 | DB33: 0.8571428571 | DC33: 0.5 | DD33: 0.5 | DE33: 1 | DF33: 1 | DG33: 0.2857142857 | DH33: 0 | DI33: 1 | DJ33: 0 | DK33: 0.6666666667 | DL33: 0.5744047619 | DM33: 300m | DN33: Not applicable | DO33: Every 5 years | DP33: Spatially Variable - specific accuracy information will only be available after June 2014 | DQ33: Spatially Variable - specific accuracy information will only be available after June 2014 | DR33: 1 | DS33: 0 | DT33: 0 | DU33: =SUM(CY33/30,DL33,DR33,DS33) -> 2.071626984
A34: Current | B34: Nadine Gobron | C34: nadine.gobron@jrc.ec.europa.eu | D34: JRC-ESA MERIS | E34: ESA | H34: no | K34: yes | L34: yes | N34: Carbon Cycle - Land Surface Dynamics - Drought | O34: CDR_ECV24_2 | P34: ESA | Q34: ESA | R34: ESA | S34: ESA | T34: ESA | U34: EC | V34: EC | W34: ESA | X34: ESA | Y34: EC | Z34: 2002-04-01 | AA34: 2012-05-01 | AB34: 2014-05-12 | AC34: FRACTIONALLY ABSORBED PAR (FPAR) | AD34: not selected | AE34: Envisat | AF34: MERIS | AH34: No | AY34: Envisat|MERIS | AZ34: Global | BA34: 1.2 | BC34: 1; 10; 30 | BD34: 0.1 | BE34: n/a | BI34: yes | BK34: OrbView-2 | BL34: SeaWiFS | BM34: OrbView-2|not selected | BN34: yes | BO34: yes | BS34: nadine.gobron@jrc.ec.europa.eu | BT34: both | BU34: HDF | BV34: Open Access | BW34: web page | BZ34: 0.3 | CA34: 1504 | CB34: 2014-02-24T20:44:00 | CC34: EB206A93-F1DF-4143-A1F2-497864788303 | CF34: MAPS OF THE FRACTION OF ABSORBED PHOTOSYNTHETICALLY ACTIVE RADIATION | CG34: FAPAR | CY34: 10.08333333 | CZ34: 0.75 | DA34: 0.3333333333 | DB34: 0.8571428571 | DC34: 0.5 | DD34: 0.5 | DE34: 1 | DF34: 1 | DG34: 0.8571428571 | DH34: 1 | DI34: 1 | DJ34: 0 | DK34: 1 | DL34: 0.7331349206 | DM34: 1.2 | DN34: 0 | DO34: 1; 10; 30 | DP34: 0.1 | DQ34: n/a | DR34: 0.6 | DS34: 1 | DT34: Carbon Cycle - Land Surface Dynamics - Drought | DU34: =SUM(CY34/30,DL34,DR34,DS34) -> 2.669246032
A35: Current | B35: L. Gutierrez | C35: lgutierrez@gmv.com | E35: ESA | H35: no | K35: no | L35: no | N35: Fire Disturbance | O35: CDR_ECV27_5 | P35: ESA | Q35: ESA | R35: not selected | S35: ESA | T35: ESA | U35: not selected | V35: not selected | W35: ESA | X35: not selected | Y35: not selected | Z35: 1995-01-01 | AA35: 2010-12-01 | AC35: NOT SELECTED | AD35: not selected | AE35: Envisat | AF35: AATSR | AH35: Yes | AI35: ERS-2 | AJ35: ATSR-2 | AL35: Envisat | AM35: MERIS | AO35: SPOT-5 | AP35: VEGETATION | AY35: Envisat|AATSR||ERS-2|ATSR-2||Envisat|MERIS||SPOT-5|VEGETATION | AZ35: Global | BI35: no | BN35: no | BO35: no | BT35: both | BU35: HDF | BV35: not selected | CA35: 1515 | CB35: 2014-02-24T20:44:00 | CC35: FFA35B1C-A06F-467B-8C15-6A3F87C4BB8C | CF35: MAPS OF BURNT AREA | CG35: FIRE DISTURBANCE | CY35: 15.91666667 | CZ35: 0.75 | DA35: 0.3333333333 | DB35: 0.1428571429 | DC35: 0.5 | DD35: 0.5 | DE35: 1 | DF35: 1 | DG35: 0.4285714286 | DH35: 0 | DI35: 1 | DJ35: 0 | DK35: 0.6666666667 | DL35: 0.5267857143 | DM35: 0 | DN35: 0 | DO35: 0 | DP35: 0 | DQ35: 0 | DR35: 0 | DS35: 1 | DT35: Fire Disturbance | DU35: =SUM(CY35/30,DL35,DR35,DS35) -> 2.05734127
A36: Current | B36: L. Gutierrez | C36: lgutierrez@gmv.com | E36: ESA | H36: no | K36: no | L36: no | N36: Fire Disturbance | O36: CDR_ECV27_6 | P36: ESA | Q36: ESA | R36: not selected | S36: not selected | T36: not selected | U36: not selected | V36: not selected | W36: not selected | X36: not selected | Y36: not selected | Z36: 1995-01-01 | AA36: 2010-12-01 | AC36: FIRE AREA | AD36: not selected | AE36: ERS-2 | AF36: ATSR-2 | AH36: Yes | AI36: Envisat | AJ36: AATSR | AL36: Envisat | AM36: MERIS | AO36: SPOT-5 | AP36: VEGETATION | AY36: ERS-2|ATSR-2||Envisat|AATSR||Envisat|MERIS||SPOT-5|VEGETATION | AZ36: Global | BI36: no | BN36: no | BO36: no | BT36: both | BU36: HDF | BV36: not selected | CA36: 1516 | CB36: 2014-02-24T20:44:00 | CC36: 8158C062-A5C0-4C7F-9F48-C7E5029A84C4 | CF36: MAPS OF BURNT AREA | CG36: FIRE DISTURBANCE | CY36: 15.91666667 | CZ36: 0.75 | DA36: 0.3333333333 | DB36: 0.1428571429 | DC36: 0.5 | DD36: 0.5 | DE36: 1 | DF36: 1 | DG36: 0.4285714286 | DH36: 0 | DI36: 1 | DJ36: 0 | DK36: 0.6666666667 | DL36: 0.5267857143 | DM36: 0 | DN36: 0 | DO36: 0 | DP36: 0 | DQ36: 0 | DR36: 0 | DS36: 1 | DT36: Fire Disturbance | DU36: =SUM(CY36/30,DL36,DR36,DS36) -> 2.05734127
A37: Future | B37: Wouter Dorigo | C37: wd@ipf.tuwien.ac.at | D37: No, TCDR is a new dataset | E37: ESA | H37: no | K37: no | L37: no | N37: Water Cycle, Energy Cycle, Numerical Weather Prediction, Climatological Extremes, Trend Analysis, Hydrological And Agricultural Processes I.E. Runoff Generation, Drought Development, And Irrigation. | O37: CDR_ECV28_1 | P37: TU Wien | Q37: Others (TBD) | R37: Others (TBD) | S37: Others (TBD) | T37: TU Wien | U37: ESA | V37: ESA | W37: ESA | X37: Others (TBD) | Y37: Others (TBD) | Z37: 1978-11-01 | AA37: 2010-12-01 | AC37: SOIL MOISTURE AT THE SURFACE | AD37: not selected | AE37: NIMBUS-7 | AF37: SMMR | AH37: Yes | AI37: DMSP F-8 | AJ37: SSM/I | AL37: DMSP F-10 | AM37: SSM/I | AO37: DMSP F-11 | AP37: SSM/I | AR37: DMSP F-13 | AS37: SSM/I | AU37: DMSP F-14 | AV37: SSM/I | AY37: NIMBUS-7|not selectedSMMR||DMSP F-8|SSM/ISSM/I onboard DMSP F8, F10, F11, F13, F14 and F15||TRMM|TMI||ERS-1|AMI/ScatterometerNeed to include more satellite/senor pairings. The following are used to generate the data | AZ37: Global | BA37: Variable - between 25km and 150km | BB37: Not Applicable | BC37: Variable - between 1 and 3 days | BD37: Spatially Variable - specific accuracy information will only be available after August 2014 | BE37: Spatially Variable - specific stability information will only be available after August 2014 | BI37: no | BN37: no | BO37: no | BT37: both | BU37: not selected | BV37: Open Access | CA37: 1517 | CB37: Feb 24 2014 8:44PM | CC37: C1FD41A4-4B98-4D06-A778-20698B2B538F | CF37: SOIL-MOISTURE MAP (UP TO 10CM SOIL DEPTH) | CG37: SOIL MOISTURE | CY37: 32.08333333 | CZ37: 0.75 | DA37: 0.3333333333 | DB37: 0.8571428571 | DC37: 0.5 | DD37: 0.5 | DE37: 1 | DF37: 1 | DG37: 0.4285714286 | DH37: 0 | DI37: 1 | DJ37: 0 | DL37: 0.5307539683 | DM37: =BA37 -> Variable - between 25km and 150km | DN37: =BB37 -> Not Applicable | DP37: =BD37 -> Spatially Variable - specific accuracy information will only be available after August 2014 | DQ37: =BE37 -> Spatially Variable - specific stability information will only be available after August 2014 | DR37: 0.8 | DS37: 1 | DT37: Water Cycle, Energy Cycle, Numerical Weather Prediction, Climatological Extremes, Trend Analysis, Hydrological And Agricultural Processes I.E. Runoff Generation, Drought Development, And Irrigation. | DU37: =SUM(CY37/30,DL37,DR37,DS37) -> 3.400198413
A38: Future | B38: Rene Forsberg DTU-Space Denmark | C38: rf@space.dtu.dk | D38: New | E38: ESA | H38: no | K38: no | L38: no | N38: Climate Modelling Monitoring Ice Changes | O38: CDR_ECV33_1 | P38: ESA | Q38: ESA | R38: ESA | S38: Others (TBD) | T38: ESA | U38: ESA | V38: ESA | W38: ESA | X38: ESA | Y38: ESA | Z38: 1992-01-01 | AA38: 2014-12-01 | AC38: ICE SHEET TOPOGRAPHY | AD38: not selected | AE38: Envisat | AF38: RA-2 | AH38: Yes | AI38: ERS | AL38: CryoSat | AO38: Sentinel-3 | AY38: Envisat|RA-2Will use multiple satellites: ERS, Envisat, CryoSat, Sentinel-3 | AZ38: Regional | BA38: 5 | BB38: 0.001 | BC38: 4/yr | BD38: 0.002-0.005 | BE38: 0.001 | BI38: no | BN38: no | BO38: no | BT38: both | BU38: not selected | BV38: Open Access | CA38: 1521 | CB38: Feb 24 2014 8:44PM | CC38: BAEC62F2-3AED-4247-BACF-857AAD5513EF | CF38: ICE-SHEET ELEVATION CHANGES | CG38: ICE SHEETS | CY38: 22.91666667 | CZ38: 0.75 | DA38: 0.3333333333 | DB38: 0.8571428571 | DC38: 0.5 | DD38: 0.5 | DE38: 1 | DF38: 1 | DG38: 0.4285714286 | DH38: 0 | DI38: 1 | DJ38: 0 | DK38: =(COUNTIF(U38,"*")+COUNTIF(W38,"*")+COUNTIF(BO38,"y*"))/3 -> 0.6666666667 | DL38: 0.5863095238 | DM38: =BA38 -> 5 | DN38: 0.001 | DO38: 4/yr | DP38: 0.002-0.005 | DQ38: 0.001 | DR38: 1 | DS38: 1 | DT38: Climate Modelling Monitoring Ice Changes | DU38: =SUM(CY38/30,DL38,DR38,DS38) -> 3.350198413
A39: Current | B39: Rene Forsberg | C39: rf@space.dtu.dk | D39: ESA IceSheet (Greenland)ECV | E39: ESA | H39: no | K39: no | L39: no | N39: Ice Sheet Modelling And Monitoring | O39: CDR_ECV33_2 | P39: ESA | Q39: Others (TBD) | R39: Others (TBD) | S39: Others (TBD) | T39: ESA | U39: ESA | V39: ESA | W39: ESA | X39: ESA | Y39: ESA | Z39: 1991-04-01 | AA39: 2014-12-01 | AC39: GLACIER MOTION | AD39: m/s | AE39: Envisat | AF39: ASAR | AH39: Yes | AI39: ERS | AL39: Sentinel-1 | AM39: PALSAR | AY39: Envisat|ASARERS, Envisat, Sentinel-1, PALSAR | AZ39: Regional | BA39: 0.5 | BB39: N/A | BC39: 365 (1/yr) | BD39: 10-30 m/yr | BE39: 2 m/yr | BI39: no | BN39: no | BO39: no | BT39: both | BU39: netcdf | BV39: Open Access | CA39: 1522 | CB39: Feb 24 2014 8:44PM | CC39: 6E3F8022-1308-4DF7-95BE-2DD6E2BAA0AC | CF39: ICE VELOCITY | CG39: ICE SHEETS | CY39: 23.66666667 | CZ39: 0.75 | DA39: 0.3333333333 | DB39: 0.8571428571 | DC39: 0.5 | DD39: 0.5 | DE39: 1 | DF39: 1 | DG39: 0.5714285714 | DH39: 0 | DI39: 1 | DJ39: 0 | DK39: 0.6666666667 | DL39: 0.5982142857 | DM39: 0.5 | DN39: N/A | DO39: 365 (1/yr) | DP39: 10-30 m/yr | DQ39: 2 m/yr | DR39: 1 | DS39: 1 | DT39: Ice Sheet Modelling And Monitoring | DU39: =SUM(CY39/30,DL39,DR39,DS39) -> 3.387103175
A40: Current | B40: Thomas Lavergne | C40: thomas.lavergne@met.no | D40: ESA_CCI_SeaIce_SeaIceConcentration_L4_SSMI | E40: Others (TBD) | F40: no | H40: no | K40: no | L40: no | N40: High-latitude climate | O40: CDR_ECV12_1529 | P40: NASA | Q40: EUMETSAT | R40: EUMETSAT | S40: EUMETSAT | T40: Others (TBD) | U40: Others (TBD) | Z40: 1987-07-01 | AA40: 2008-12-01 | AE40: DMSP F-8 | AF40: SSM/I | AH40: Yes | AI40: DMSP F-10 | AJ40: SSM/I | AL40: DMSP F-13 | AM40: SSM/I | AO40: DMSP F-11 | AP40: SSM/I | AR40: DMSP F-14 | AS40: SSM/I | AU40: DMSP F-15 | AV40: SSM/I | AZ40: Global | BA40: 25km | BB40: n/a | BC40: 1 day | BD40: about 5% in Winter, more uncertain in presence of melt-ponds | BI40: no | BK40: DMSP F-13 | BL40: SSM/I | BN40: no | BO40: no | BQ40: no | BS40: thomas.lavergne@met.no | BT40: both | BU40: netcdf | BV40: Open Access | BW40: FTP | CA40: 877 | CB40: 2014-09-23T10:06:00 | CC40: CA0954E9-CC5B-493F-BE2C-9A5FD7623609 | CF40: SEA-ICE CONCENTRATION/EXTENT/EDGE | CG40: SEA ICE | CI40: no | CY40: 21.41666667 | CZ40: 0.75 | DA40: 0.3333333333 | DB40: 0.7142857143 | DC40: 0 | DD40: 0 | DE40: 1 | DF40: 0 | DG40: 0.7142857143 | DH40: 0 | DI40: 0 | DJ40: 0 | DK40: 0.3333333333 | DL40: =SUM(CZ40:DK40)/12 -> 0.3204365079 | DM40: 25km | DN40: n/a | DO40: 1 day | DP40: about 5% in Winter, more uncertain in presence of melt-ponds | DQ40: 0 | DR40: 0.8 | DS40: 1 | DT40: High-latitude climate | DU40: =SUM(CY40/30,DL40,DR40,DS40) -> 2.834325397
A41: Current | B41: Eero Rinne | C41: eero.rinne@fmi.fi | D41: ESA_CCI_SeaIce_SeaIceThickness | E41: FMI | F41: no | H41: no | K41: no | L41: no | N41: High-latitude climate | O41: CDR_ECV12_1530 | P41: ESA | S41: FMI | T41: FMI | Z41: 2003-05-01 | AA41: 2012-04-01 | AC41: SEA-ICE THICKNESS | AE41: Envisat | AF41: RA-2 | AH41: Yes | AI41: DMSP F-15 | AJ41: SSM/I | AK41: Special Sensor Microwave Imager | AZ41: lat/long coordinates | BA41: 100km | BB41: n/a | BC41: 1 calendar month | BD41: about 5% in Winter, more uncertain in presence of melt-ponds | BI41: no | BN41: no | BO41: no | BQ41: no | BS41: eero.rinne@fmi.fi | BT41: both | BU41: netcdf | BV41: Open Access | BW41: FTP | CA41: 878 | CB41: 2014-09-23T10:06:00 | CC41: EDDE8792-DF34-47E2-A289-D16238C72A7D | CF41: SEA-ICE THICKNESS | CG41: SEA ICE | CI41: no | CY41: 8.916666667 | CZ41: 0.75 | DA41: 0 | DB41: 0.5714285714 | DC41: 0 | DD41: 0 | DE41: 1 | DF41: 0 | DG41: 0.7142857143 | DH41: 0 | DI41: 0 | DJ41: 0 | DK41: 0 | DL41: 0.2529761905 | DM41: 100km | DN41: n/a | DO41: 1 calendar month | DP41: about 5% in Winter, more uncertain in presence of melt-ponds | DQ41: 0 | DR41: 0.8 | DS41: 1 | DT41: High-latitude climate | DU41: =SUM(CY41/30,DL41,DR41,DS41) -> 2.350198413
A42: Current | B42: Carsten Brockmann | C42: carsten.brockmann@brockmann-consult.de | D42: No, this is a new dataset | E42: ESA | F42: no | H42: no | K42: no | L42: no | N42: Climate and carbon modelling, weather prediction (NWP), global circulation models and regional climate models, global and regional Earth system models, carbon cycle models and dynamic vegetation and hydrology models, climate change mitigation | O42: CDR_ECV23_ | P42: ESA | Q42: ESA | R42: ESA | S42: ESA | T42: ESA | U42: ESA | W42: ESA | X42: Others (TBD) | Z42: 2003-01-01 | AA42: 2012-03-01 | AE42: Envisat | AF42: MERIS | AH42: No | AZ42: Global | BA42: 300m and 1000m | BB42: n/a | BC42: Every 7 days | BD42: Spatial accuracy below one pixel | BE42: Will be result of validation and is reported in the PVIR | BF42: http://www.esa-landcover-cci.org/ | BH42: http://www.esa-landcover-cci.org/ | BI42: no | BK42: SPOT-4 | BL42: VEGETATION | BN42: no | BO42: no | BQ42: no | BS42: carsten.brockmann@brockmann-consult.de | BT42: FCDR | BU42: netcdf | BV42: Open Access | BW42: FTP | BX42: http://www.esa-landcover-cci.org/ | BY42: http://www.esa-landcover-cci.org/ | CA42: 879 | CB42: 2014-09-23T10:06:00 | CC42: 45CB4B2E-43A6-49A0-BBBA-FA1CAC1DD705 | CF42: MODERATE-RESOLUTION MAPS OF LAND-COVER TYPE | CG42: LAND COVER | CI42: yes | CJ42: SPOT-5 | CK42: VEGETATION | CY42: 9.166666667 | CZ42: 0.75 | DA42: 0.3333333333 | DB42: 0.8571428571 | DC42: 0.5 | DD42: 0.5 | DE42: 1 | DF42: 1 | DG42: 1 | DH42: 0 | DI42: 0 | DJ42: 0 | DK42: 0.6666666667 | DL42: 0.5505952381 | DM42: 300m and 1000m | DN42: n/a | DO42: Every 7 days | DP42: Spatial accuracy below one pixel | DQ42: Will be result of validation and is reported in the PVIR | DR42: 1 | DS42: 1 | DT42: Climate and carbon modelling, weather prediction (NWP), global circulation models and regional climate models, global and regional Earth system models, carbon cycle models and dynamic vegetation and hydrology models, climate change mitigation | DU42: =SUM(CY42/30,DL42,DR42,DS42) -> 2.856150794
A43: Current | B43: Maurizio Santoro | C43: santoro@gamma-rs.ch | D43: No, this is a new dataset | E43: ESA | F43: no | H43: no | K43: no | L43: no | N43: Climate and carbon modelling, weather prediction (NWP), global circulation models and regional climate models, global and regional Earth system models, carbon cycle models and dynamic vegetation and hydrology models, climate change mitigation | O43: CDR_ECV_ | P43: ESA | Q43: ESA | R43: ESA | S43: ESA | T43: ESA | U43: ESA | V43: Others (TBD) | W43: ESA | X43: Others (TBD) | Z43: 2005-01-01 | AA43: 2012-04-01 | AC43: Land cover | AE43: Envisat | AF43: ASAR | AH43: No | AZ43: Global | BA43: 300m | BB43: n/a | BC43: one-time data product | BD43: Spatially Variable - specific accuracy information will only be available after June 2014 | BE43: n/a | BF43: http://www.esa-landcover-cci.org/ | BH43: http://www.esa-landcover-cci.org/ | BI43: no | BN43: no | BO43: no | BQ43: no | BS43: santoro@gamma-rs.ch | BT43: no | BU43: HDF-EOS | BV43: Open Access | BW43: FTP | BX43: http://www.esa-landcover-cci.org/ | CA43: 880 | CB43: 2014-09-23T10:06:00 | CC43: AF87AF1F-78CE-4C3F-B32E-3C09E3CBC379 | CI43: no | CY43: 7.25 | CZ43: 0.75 | DA43: 0.3333333333 | DB43: 0.8571428571 | DC43: 1 | DD43: 1 | DE43: 1 | DF43: 1 | DG43: 0.8571428571 | DH43: 0 | DI43: 0 | DJ43: 0 | DK43: 0.6666666667 | DL43: 0.6220238095 | DM43: 300m | DN43: n/a | DO43: one-time data product | DP43: Spatially Variable - specific accuracy information will only be available after June 2014 | DQ43: n/a | DR43: 0.8 | DS43: 1 | DT43: Climate and carbon modelling, weather prediction (NWP), global circulation models and regional climate models, global and regional Earth system models, carbon cycle models and dynamic vegetation and hydrology models, climate change mitigation | DU43: =SUM(CY43/30,DL43,DR43,DS43) -> 2.663690476
A44: Current | B44: Pierre Defourny | C44: pierre.defourny@uclouvain.be | D44: No, this is a new dataset | E44: ESA | F44: no | H44: no | K44: no | L44: no | N44: Climate and carbon modelling, weather prediction (NWP), global circulation models and regional climate models, global and regional Earth system models, carbon cycle models and dynamic vegetation and hydrology models, climate change mitigation | O44: CDR_ECV_ | P44: ESA | Q44: ESA | R44: ESA | S44: ESA | T44: ESA | U44: ESA | W44: ESA | X44: Others (TBD) | Y44: Others (TBD) | Z44: 1999-01-01 | AA44: 2011-12-01 | AC44: Normalized Differential Vegetation Index (NDVI) | AE44: SPOT-4 | AF44: VEGETATION | AH44: Yes | AI44: SPOT-5 | AJ44: VEGETATION | AZ44: Global | BA44: 1000m | BB44: n/a | BC44: one-time data product | BF44: http://www.esa-landcover-cci.org/ | BH44: http://www.esa-landcover-cci.org/ | BI44: no | BN44: no | BO44: no | BQ44: no | BS44: pierre.defourny@uclouvain.be | BT44: no | BU44: netcdf | BV44: Open Access | BW44: FTP | BX44: http://www.esa-landcover-cci.org/ | CA44: 881 | CB44: 2014-09-23T10:06:00 | CC44: 9880FC90-83FA-4882-853E-E073DCC706D8 | CI44: no | CY44: 12.91666667 | CZ44: 0.75 | DA44: 0.3333333333 | DB44: 0.5714285714 | DC44: 0.5 | DD44: 0.5 | DE44: 1 | DF44: 1 | DG44: 0.8571428571 | DH44: 0 | DI44: 1 | DJ44: 0 | DK44: 0.6666666667 | DL44: 0.5982142857 | DM44: 1000m | DN44: n/a | DO44: one-time data product | DP44: 0 | DQ44: 0 | DR44: 0.6 | DS44: 1 | DT44: Climate and carbon modelling, weather prediction (NWP), global circulation models and regional climate models, global and regional Earth system models, carbon cycle models and dynamic vegetation and hydrology models, climate change mitigation | DU44: =SUM(CY44/30,DL44,DR44,DS44) -> 2.628769841
A45: Current | B45: Pierre Defourny | C45: pierre.defourny@uclouvain.be | D45: No, this is a new dataset | E45: ESA | F45: no | H45: no | K45: no | L45: no | N45: Climate and carbon modelling, weather prediction (NWP), global circulation models and regional climate models, global and regional Earth system models, carbon cycle models and dynamic vegetation and hydrology models, climate change mitigation | O45: CDR_ECV_ | P45: ESA | Q45: ESA | R45: ESA | S45: ESA | T45: ESA | U45: ESA | W45: ESA | X45: Others (TBD) | Y45: Others (TBD) | Z45: 2000-11-01 | AA45: 2012-12-01 | AE45: Aqua | AF45: MODIS | AH45: Yes | AI45: Terra | AJ45: MODIS | AZ45: Global | BA45: 500m | BB45: n/a | BC45: One-time data product | BF45: http://www.esa-landcover-cci.org/ | BH45: http://www.esa-landcover-cci.org/ | BI45: no | BN45: no | BO45: no | BQ45: no | BS45: pierre.defourny@uclouvain.be | BT45: no | BV45: Open Access | BW45: FTP | BX45: http://www.esa-landcover-cci.org/ | CA45: 882 | CB45: 2014-09-23T10:06:00 | CC45: 9FF7FF7B-7896-4595-8A60-72BEB61B3DA5 | CI45: no | CY45: 12.08333333 | CZ45: 0.75 | DA45: 0.3333333333 | DB45: 0.5714285714 | DC45: 0.5 | DD45: 0.5 | DE45: 1 | DF45: 1 | DG45: 0.7142857143 | DH45: 0 | DI45: 1 | DJ45: 0 | DK45: 0.6666666667 | DL45: 0.5863095238 | DM45: 500m | DN45: n/a | DO45: One-time data product | DP45: 0 | DQ45: 0 | DR45: 0.6 | DS45: 1 | DT45: Climate and carbon modelling, weather prediction (NWP), global circulation models and regional climate models, global and regional Earth system models, carbon cycle models and dynamic vegetation and hydrology models, climate change mitigation | DU45: =SUM(CY45/30,DL45,DR45,DS45) -> 2.589087302
A46: Current | B46: Pierre Defourny | C46: pierre.defourny@uclouvain.be | D46: No, this is a new dataset | E46: ESA | F46: no | H46: no | K46: no | L46: no | N46: Climate and carbon modelling, weather prediction (NWP), global circulation models and regional climate models, global and regional Earth system models, carbon cycle models and dynamic vegetation and hydrology models, climate change mitigation | O46: CDR_ECV_ | P46: ESA | Q46: ESA | R46: ESA | S46: ESA | T46: ESA | U46: ESA | W46: ESA | X46: Others (TBD) | Y46: Others (TBD) | Z46: 2000-02-01 | AA46: 2012-12-01 | AE46: Aqua | AF46: MODIS | AH46: Yes | AI46: Terra | AJ46: MODIS | AZ46: Global | BA46: 500m | BB46: n/a | BC46: One-time data product | BF46: http://www.esa-landcover-cci.org/ | BH46: http://www.esa-landcover-cci.org/ | BI46: no | BN46: no | BO46: no | BQ46: no | BS46: pierre.defourny@uclouvain.be | BT46: no | BV46: Open Access | BW46: FTP | BX46: http://www.esa-landcover-cci.org/ | CA46: 883 | CB46: 2014-09-23T10:06:00 | CC46: 6B234CF8-5287-4ABD-9263-54B9D1FC3C96 | CI46: no | CY46: 12.83333333 | CZ46: 0.75 | DA46: 0.3333333333 | DB46: 0.5714285714 | DC46: 0.5 | DD46: 0.5 | DE46: 1 | DF46: 1 | DG46: 0.7142857143 | DH46: 0 | DI46: 1 | DJ46: 0 | DK46: 0.6666666667 | DL46: 0.5863095238 | DM46: 500m | DN46: n/a | DO46: One-time data product | DP46: 0 | DQ46: 0 | DR46: 0.6 | DS46: 1 | DT46: Climate and carbon modelling, weather prediction (NWP), global circulation models and regional climate models, global and regional Earth system models, carbon cycle models and dynamic vegetation and hydrology models, climate change mitigation | DU46: =SUM(CY46/30,DL46,DR46,DS46) -> 2.614087302
A47: Current | B47: Rainer Hollmann | C47: rainer.hollmann@dwd.de | D47: HOAPS | E47: EUMETSAT | H47: no | K47: no | L47: no | N47: Ocean Fluxes, Validation Of Ocean Modelling | O47: CDR_ECV01_17 | P47: DoD (USA) | Q47: DoD (USA) | R47: DoD (USA) | S47: EUMETSAT | T47: EUMETSAT | U47: EUMETSAT | V47: EUMETSAT | W47: EUMETSAT | X47: EUMETSAT | Y47: EUMETSAT | Z47: 1987-07-01 | AA47: 2008-12-01 | AC47: WIND VECTOR OVER SEA SURFACE (HORIZONTAL) | AD47: m/s | AE47: DMSP F-10 | AF47: SSM/I | AH47: Yes | AI47: DMSP F-11 | AJ47: SSM/I | AL47: DMSP F-12 | AM47: SSM/I | AO47: DMSP F-13 | AP47: SSM/I | AY47: DMSP F-10|SSM/I||DMSP F-11|SSM/I||DMSP F-12|SSM/I||DMSP F-13|SSM/I more DSMP Satellite and SSMI Instruments | AZ47: Global | BA47: 0.5 x 0.5 deg | BB47: n/A | BC47: monthly | BD47: 0.24 m/s bias, 0.15 m/s rms | BE47: 0.09 m/s | BI47: yes | BK47: DMSP F-11 | BL47: SSM/I | BM47: DMSP F-11|SSM/I | BN47: no | BO47: no | BS47: contact.cmsaf@dwd.de | BT47: both | BU47: HDF | BV47: Open Access | BW47: ftp, disk | BZ47: none | CA47: 1321 | CB47: Feb 24 2014 8:44PM | CC47: 27B6C048-5139-4AB9-9022-69ED3F9712DD | CF47: SURFACE WIND | CG47: SURFACE WIND SPEED AND DIRECTION | CY47: 21.41666667 | CZ47: 0.75 | DA47: 0.3333333333 | DB47: 0.8571428571 | DC47: 0.5 | DD47: 0.5 | DE47: 1 | DF47: 1 | DG47: 0.8571428571 | DH47: 2 | DI47: 1 | DJ47: 0 | DK47: 0.6666666667 | DL47: 0.7886904762 | DM47: 0.5 x 0.5 deg | DN47: n/A | DO47: monthly | DP47: 0.24 m/s bias, 0.15 m/s rms | DQ47: 0.09 m/s | DR47: 1 | DS47: 1 | DT47: Ocean Fluxes, Validation Of Ocean Modelling | DU47: =SUM(CY47/30,DL47,DR47,DS47) -> 3.502579365
A48: Current | B48: Rainer Hollmann | C48: rainer.hollmann@dwd.de | D48: Yes, new release of Near Surface Wind Speed TCDR R2 | E48: EUMETSAT | H48: no | K48: no | L48: no | N48: Energy Budget | O48: CDR_ECV01_19 | P48: DoD (USA) | Q48: DoD (USA) | R48: DoD (USA) | S48: EUMETSAT | T48: EUMETSAT | U48: EUMETSAT | V48: EUMETSAT | W48: EUMETSAT | X48: EUMETSAT | Y48: EUMETSAT | Z48: 1987-01-01 | AA48: 2012-12-01 | AC48: WIND SPEED OVER SEA SURFACE (HORIZONTAL) | AD48: m/s | AE48: DMSP F-8 | AF48: SSM/I, SSMI/S | AH48: Yes | AI48: DMSP-F-9 | AJ48: SSM/I, SSMI/S | AL48: DMSP F-10 | AM48: SSM/I, SSMI/S | AO48: DMSP F-11 | AP48: SSM/I, SSMI/S | AR48: DMSP F-12 | AS48: SSM/I, SSMI/S | AU48: DMSP F-13 | AV48: SSM/I, SSMI/S | AY48: DMSP F-8 to DMSP F-18, all SSM/I; SSMI/S | AZ48: Global | BA48: 0.5x0.5 deg | BC48: monthly | BD48: 1 m/s | BE48: 0.2 m/s | BI48: no | BK48: DMSP F-11 | BL48: SSM/I | BN48: no | BO48: no | BS48: rainer.hollmann@dwd.de | BT48: both | BU48: HDF | BV48: Open Access | BW48: FTP | CA48: 1323 | CB48: Feb 24 2014 8:44PM | CC48: DC9CCC1F-615B-43E2-BE08-5E3233949A8E | CF48: SURFACE WIND | CG48: SURFACE WIND SPEED AND DIRECTION | CY48: 25.91666667 | CZ48: 0.75 | DA48: 0.3333333333 | DB48: 0.7142857143 | DC48: 0.5 | DD48: 0.5 | DE48: 1 | DF48: 1 | DG48: 0.8571428571 | DH48: 0 | DI48: 1 | DJ48: 0 | DK48: 0.6666666667 | DL48: 0.6101190476 | DM48: 0.5x0.5 deg | DN48: 0 | DO48: monthly | DP48: 1 m/s | DQ48: 0.2 m/s | DR48: 0.8 | DS48: 1 | DT48: Energy Budget | DU48: =SUM(CY48/30,DL48,DR48,DS48) -> 3.274007937
A49: Current | B49: Rainer Hollmann | C49: rainer.hollmann@dwd.de | D49: Yes, new release of Near Surface Wind Speed TCDR R3 | E49: EUMETSAT | H49: no | K49: no | L49: no | N49: Surface Energy Budget | O49: CDR_ECV01_20 | P49: DoD (USA) | Q49: DoD (USA) | R49: DoD (USA) | S49: EUMETSAT | T49: EUMETSAT | U49: EUMETSAT | V49: EUMETSAT | W49: EUMETSAT | X49: EUMETSAT | Y49: EUMETSAT | Z49: 1987-01-01 | AA49: 2014-12-01 | AC49: WIND SPEED OVER SEA SURFACE (HORIZONTAL) | AD49: m/s | AE49: DMSP F-8 | AF49: SSM/I | AH49: Yes | AI49: DMSP F-10 | AJ49: SSM/I | AL49: DMSP F-11 | AM49: SSM/I | AO49: DMSP F-13 | AP49: SSM/I | AR49: DMSP F-14 | AS49: SSM/I | AU49: DMSP F-15 | AV49: SSM/I | AY49: DMSP F-8|SSM/I||DMSP F-10|SSM/I||DMSP F-11|SSM/I||DMSP F-13|SSM/IDMSP F-14/SSM/I and DMSP F-15/SSM/I | AZ49: Global | BA49: 0.5x0.5 deg | BC49: monthly | BD49: 1 m/s | BE49: 0.2 m/s | BI49: no | BK49: DMSP F-11 | BL49: SSM/I | BM49: DMSP F-11|SSM/I | BN49: no | BO49: no | BS49: rainer.hollmann@dwd.de | BT49: both | BU49: HDF | BV49: Open Access | BW49: FTP | CA49: 2003-08-16 | CB49: Feb 24 2014 8:44PM | CC49: 45B6C112-07F0-4528-9C7D-2AAA7B28059A | CF49: SURFACE WIND | CG49: SURFACE WIND SPEED AND DIRECTION | CY49: 27.91666667 | CZ49: 0.75 | DA49: 0.3333333333 | DB49: 0.7142857143 | DC49: 0.5 | DD49: 0.5 | DE49: 1 | DF49: 1 | DG49: 0.8571428571 | DH49: 0 | DI49: 1 | DJ49: 0 | DK49: 0.6666666667 | DL49: 0.6101190476 | DM49: 0.5x0.5 deg | DN49: 0 | DO49: monthly | DP49: 1 m/s | DQ49: 0.2 m/s | DR49: 0.8 | DS49: 1 | DT49: Surface Energy Budget | DU49: =SUM(CY49/30,DL49,DR49,DS49) -> 3.340674603
A50: Future | B50: Rainer Hollmann | C50: rainer.hollmann@dwd.de | D50: Yes, new release of Vertically Integrated Water Vapour TCDR R2 | E50: EUMETSAT | H50: no | K50: no | L50: no | N50: Energy And Water Cycle | O50: CDR_ECV03_11 | P50: DoD (USA) | Q50: DoD (USA) | R50: DoD (USA) | S50: EUMETSAT | T50: EUMETSAT | U50: EUMETSAT | V50: EUMETSAT | W50: EUMETSAT | X50: EUMETSAT | Y50: EUMETSAT | Z50: 1987-01-01 | AA50: 2012-12-01 | AC50: NOT SELECTED | AD50: not selected | AH50: No | AZ50: Global | BC50: monthly | BD50: 3 kg/m2 | BE50: 0.01 | BI50: no | BN50: no | BO50: no | BT50: both | BU50: not selected | BV50: Open Access | CA50: 2003-08-30 | CB50: Feb 24 2014 8:44PM | CC50: 4347E848-5EFA-48E5-9AAD-A0DD784A8A40 | CF50: TOTAL COLUMN WATER VAPOR | CG50: WATER VAPOUR | CY50: 25.91666667 | CZ50: 0.5 | DA50: 0.3333333333 | DB50: 0.5714285714 | DC50: 0.5 | DD50: 0.5 | DE50: 1 | DF50: 1 | DG50: 0.4285714286 | DH50: 0 | DI50: 1 | DJ50: 0 | DK50: 0.6666666667 | DL50: 0.5416666667 | DM50: 0 | DN50: 0 | DO50: monthly | DP50: 3 kg/m2 | DQ50: 0.01 | DR50: 0.6 | DS50: 1 | DT50: Energy And Water Cycle | DU50: =SUM(CY50/30,DL50,DR50,DS50) -> 3.005555556
A51: Future | B51: Rainer Hollmann | C51: rainer.hollmann@dwd.de | D51: Yes, new release of Veritcally Integrated Water Vapour TCDR R3 | E51: EUMETSAT | H51: no | K51: no | L51: no | N51: Energy And Water Cycle | O51: CDR_ECV03_12 | P51: DoD (USA) | Q51: DoD (USA) | R51: DoD (USA) | S51: EUMETSAT | T51: EUMETSAT | U51: EUMETSAT | V51: EUMETSAT | W51: EUMETSAT | X51: EUMETSAT | Y51: EUMETSAT | Z51: 1987-01-01 | AA51: 2014-12-01 | AC51: NOT SELECTED | AD51: not selected | AH51: No | AZ51: Global | BC51: monthly | BD51: 3 kg/m2 | BE51: 0.01 | BI51: no | BN51: no | BO51: no | BT51: both | BU51: not selected | BV51: Open Access | CA51: 2003-08-31 | CB51: Feb 24 2014 8:44PM | CC51: 8E8E3713-D522-4946-BA2D-3D33B8720086 | CF51: TOTAL COLUMN WATER VAPOR | CG51: WATER VAPOUR | CY51: 27.91666667 | CZ51: 0.5 | DA51: 0.3333333333 | DB51: 0.5714285714 | DC51: 0.5 | DD51: 0.5 | DE51: 1 | DF51: 1 | DG51: 0.4285714286 | DH51: 0 | DI51: 1 | DJ51: 0 | DK51: 0.6666666667 | DL51: 0.5416666667 | DM51: 0 | DN51: 0 | DO51: monthly | DP51: 3 kg/m2 | DQ51: 0.01 | DR51: 0.6 | DS51: 1 | DT51: Energy And Water Cycle | DU51: =SUM(CY51/30,DL51,DR51,DS51) -> 3.072222222
A52: Current | B52: Rainer Hollmann | C52: rainer.hollmann@dwd.de | D52: planned Meteosat Free Tropospheric Humidity Edition 2 (CM-23721) | E52: EUMETSAT | H52: no | K52: no | L52: no | N52: Climate Modelling; Water Vapour Transport Studies | O52: CDR_ECV03_13 | P52: EUMETSAT | Q52: EUMETSAT | R52: EUMETSAT | S52: EUMETSAT | T52: EUMETSAT | U52: EUMETSAT | V52: EUMETSAT | W52: EUMETSAT | X52: EUMETSAT | Y52: EUMETSAT | Z52: 1983-01-01 | AA52: 2013-12-01 | AC52: ATMOSPHERIC SPECIFIC HUMIDITY (COLUMN/PROFILE) | AD52: % | AE52: Meteosat-1 | AF52: MVIRI | AH52: Yes | AI52: Meteosat-2 | AJ52: MVIRI | AL52: Meteosat-3 | AM52: MVIRI | AO52: Meteosat-4 | AP52: MVIRI | AR52: Meteosat-5 | AS52: MVIRI | AU52: Meteosat-7 | AV52: MVIRI, SEVERI | AY52: Meteosat-1|MVIRIMeteosat-2|MVIRI||Meteosat-3|MVIRI||Meteosat-4|MVIRI||Meteosat-5|MVIRI|Meteosat 7- 10; MVIRI, SEVIRI | AZ52: Regional | BA52: 0.25x0.25 deg | BB52: n/a | BC52: hourly and monthly | BD52: 0.15 | BE52: 0.02 | BI52: no | BN52: no | BO52: no | BS52: rainer.hollmann@dwd.de | BT52: both | BU52: not selected | BV52: Open Access | CA52: 1340 | CB52: Feb 24 2014 8:44PM | CC52: 2B230CAC-6F9A-4A61-A7D5-9307C5580BEA | CF52: UPPER TROPOSPHERIC HUMIDITY | CG52: WATER VAPOUR | CY52: 30.91666667 | CZ52: 0.75 | DA52: 0.3333333333 | DB52: 0.8571428571 | DC52: 0.5 | DD52: 0.5 | DE52: 1 | DF52: 1 | DG52: 0.5714285714 | DH52: 0 | DI52: 1 | DJ52: 0 | DK52: 0.6666666667 | DL52: 0.5982142857 | DM52: 0.25x0.25 deg | DN52: n/a | DO52: hourly and monthly | DP52: 0.15 | DQ52: 0.02 | DR52: 1 | DS52: 1 | DT52: Climate Modelling; Water Vapour Transport Studies | DU52: =SUM(CY52/30,DL52,DR52,DS52) -> 3.628769841
A53: Current | B53: Joerg Schulz | C53: joerg.schulz@eumetsat.int | D53: EO:EUM:DAT:MFG:UTH1 | E53: EUMETSAT | H53: no | K53: no | L53: no | N53: Water Vapor Feedback, Tropical Convection Studies, Tropical Waves Studies | O53: CDR_ECV03_14 | P53: EUMETSAT | Q53: EUMETSAT | R53: EUMETSAT | S53: EUMETSAT | T53: EUMETSAT | U53: EUMETSAT | V53: EUMETSAT | W53: EUMETSAT | X53: EUMETSAT | Y53: EUMETSAT | Z53: 1982-05-01 | AA53: 2000-12-01 | AC53: WATER VAPOUR IMAGERY | AD53: % | AE53: Meteosat-2 | AF53: MVIRI | AH53: Yes | AI53: Meteosat-7 | AJ53: MVIRI | AY53: Meteosat-2|MVIRI||Meteosat-7|MVIRI | AZ53: lat/long coordinates | BA53: N/A | BB53: N/A | BC53: hourly | BD53: rms 15-25% | BE53: unknown | BI53: no | BN53: no | BO53: no | BS53: ops@eumetsat.int | BT53: no | BU53: not selected | BV53: Open Access | BW53: ftp, media | BZ53: N/A | CA53: 1341 | CB53: Feb 24 2014 8:44PM | CC53: 994ADF0F-3734-4043-A390-908E5C9AB56B | CF53: UPPER TROPOSPHERIC HUMIDITY | CG53: WATER VAPOUR | CY53: 18.58333333 | CZ53: 0.75 | DA53: 0.3333333333 | DB53: 0.8571428571 | DC53: 0.5 | DD53: 0.5 | DE53: 1 | DF53: 1 | DG53: 0.5714285714 | DH53: 2 | DI53: 1 | DJ53: 0 | DK53: 0.6666666667 | DL53: 0.7648809524 | DM53: N/A | DN53: N/A | DO53: hourly | DP53: rms 15-25% | DQ53: unknown | DR53: 0.4 | DS53: 1 | DT53: Water Vapor Feedback, Tropical Convection Studies, Tropical Waves Studies | DU53: =SUM(CY53/30,DL53,DR53,DS53) -> 2.784325397
A54: Current | B54: Rainer Hollmann | C54: rainer.hollmann@dwd.de | D54: DOI:10.5676/EUM_SAF_CM/HTW_SSMI/V001 | E54: EUMETSAT | H54: no | K54: no | L54: yes | N54: Climate Model And Reanalysis Evaluation, Trend Analysis | O54: CDR_ECV03_3 | P54: DoD (USA) | Q54: DoD (USA) | R54: EUMETSAT | S54: EUMETSAT | T54: EUMETSAT | U54: EUMETSAT | V54: EUMETSAT | W54: EUMETSAT | X54: EUMETSAT | Y54: EUMETSAT | Z54: 1987-07-01 | AA54: 2006-08-01 | AC54: ATMOSPHERIC SPECIFIC HUMIDITY (COLUMN/PROFILE) | AD54: not selected | AE54: DMSP F-8 | AF54: SSMI/I | AH54: Yes | AI54: DMSP F-10 | AJ54: SSMI/I | AL54: DMSP F-11 | AM54: SSM/I | AO54: DMSP F-13 | AP54: SSM/I | AR54: DMSP-14 | AU54: DMSP-15 | AY54: DMSP F-8|SSM/I||DMSP F-10|SSM/I||DMSP F-11|SSM/I||DMSP F-13|SSM/IDMSP F14, DMSP F15 | AZ54: Global | BA54: 0.5 x 0.5 deg | BB54: N/A | BC54: daily and monthly | BD54: < 1 kg/m-2 bias 3-4 kg/m-2 rms | BE54: better than 0.2 %/decade | BI54: no | BK54: DMSP F-11 | BL54: SSM/I | BM54: DMSP F-11|SSM/I | BN54: no | BO54: no | BS54: contact.cmsaf@dwd.de | BT54: no | BU54: netcdf | BV54: Open Access | BW54: ftp, media | BZ54: none | CA54: 1346 | CB54: Feb 24 2014 8:44PM | CC54: 8E9D6E0D-5C82-42B2-8DE7-0B64AA87565C | CF54: TOTAL COLUMN WATER VAPOR | CG54: WATER VAPOUR | CY54: 19.08333333 | CZ54: 0.75 | DA54: 0.3333333333 | DB54: 0.8571428571 | DC54: 0.5 | DD54: 0.5 | DE54: 1 | DF54: 1 | DG54: 0.7142857143 | DH54: 2 | DI54: 1 | DJ54: 0 | DK54: 0.6666666667 | DL54: 0.7767857143 | DM54: 0.5 x 0.5 deg | DN54: N/A | DO54: daily and monthly | DP54: < 1 kg/m-2 bias 3-4 kg/m-2 rms | DQ54: better than 0.2 %/decade | DR54: 1 | DS54: 1 | DT54: Climate Model And Reanalysis Evaluation, Trend Analysis | DU54: =SUM(CY54/30,DL54,DR54,DS54) -> 3.412896825
A55: Current | B55: Rainer Hollmann | C55: rainer.hollmann@dwd.de | D55: ATOVS Ed 1 | E55: EUMETSAT | H55: no | K55: no | L55: no | N55: Climate Modelling, Water Budget | O55: CDR_ECV03_6 | P55: NOAA | Q55: NOAA | R55: EUMETSAT | S55: NOAA | T55: EUMETSAT | U55: EUMETSAT | V55: EUMETSAT | W55: EUMETSAT | X55: EUMETSAT | Y55: EUMETSAT | Z55: 1998-01-01 | AA55: 2009-12-01 | AC55: ATMOSPHERIC SPECIFIC HUMIDITY (COLUMN/PROFILE) | AD55: degrees Kelvin | AE55: NOAA-15 | AF55: ATOVS (HIRS/3 AMSU AVHRR/3) | AH55: Yes | AI55: NOAA-17 | AJ55: ATOVS (HIRS/3 AMSU AVHRR/3) | AL55: NOAA-18 | AM55: ATOVS (HIRS/3 AMSU AVHRR/3) | AO55: NOAA-19 | AP55: ATOVS (HIRS/3 AMSU AVHRR/3) | AR55: NOAA-16 | AS55: ATOVS (HIRS/3 AMSU AVHRR/3) | AY55: NOAA-15|ATOVS (HIRS/3 AMSU AVHRR/3)||NOAA-17|ATOVS (HIRS/3 AMSU AVHRR/3)||NOAA-18|ATOVS (HIRS/3 AMSU AVHRR/3)||NOAA-19|ATOVS (HIRS/3 AMSU AVHRR/3) NOAA-16, ATOVS | AZ55: Global | BA55: 0.5 x 0.5 deg | BB55: 6 levels | BC55: daily, monthly | BD55: 1.5 K, 1.25 K, 0.75 K, 0.5 K, 0.5 K, 0.5 K (from sfc to highest level) | BE55: 0.5 K /dec | BI55: no | BN55: no | BO55: no | BS55: contact.cmsaf@dwd.de | BT55: no | BU55: HDF | BV55: Open Access | BW55: ftp, download, disk | BZ55: none | CA55: 1349 | CB55: Feb 24 2014 8:44PM | CC55: 01EB8901-D732-4D00-B227-F4A4C8AD9443 | CF55: PROFILES OF WATER VAPOR | CG55: WATER VAPOUR | CY55: 11.91666667 | CZ55: 0.75 | DA55: 0.3333333333 | DB55: 0.8571428571 | DC55: 0.5 | DD55: 0.5 | DE55: 1 | DF55: 1 | DG55: 0.7142857143 | DH55: 2 | DI55: 1 | DJ55: 0 | DK55: 0.6666666667 | DL55: 0.7767857143 | DM55: 0.5 x 0.5 deg | DN55: 6 levels | DO55: daily, monthly | DP55: 1.5 K, 1.25 K, 0.75 K, 0.5 K, 0.5 K, 0.5 K (from sfc to highest level) | DQ55: 0.5 K /dec | DR55: 1 | DS55: 1 | DT55: Climate Modelling, Water Budget | DU55: =SUM(CY55/30,DL55,DR55,DS55) -> 3.174007937
A56: Current | B56: Rainer Hollmann | C56: rainer.hollmann@dwd.de | D56: Meteosat Free Tropospheric Humidity Edition 1 | E56: EUMETSAT | H56: no | K56: no | L56: no | N56: Climate Modelling; Water Vapour Transport Studies | O56: CDR_ECV03_7 | P56: EUMETSAT | Q56: EUMETSAT | R56: EUMETSAT | S56: EUMETSAT | T56: EUMETSAT | U56: EUMETSAT | V56: EUMETSAT | W56: EUMETSAT | X56: EUMETSAT | Y56: EUMETSAT | Z56: 1983-07-01 | AA56: 2009-12-01 | AC56: ATMOSPHERIC SPECIFIC HUMIDITY (COLUMN/PROFILE) | AD56: % | AE56: Meteosat-2 | AF56: MVIRI | AH56: Yes | AI56: Meteosat-3 | AJ56: MVIRI | AL56: Meteosat-4 | AM56: MVIRI | AO56: Meteosat-5 | AP56: MVIRI | AR56: Meteosat-7 | AS56: MVIRI | AU56: Meteosat-8 | AV56: SEVIRI | AY56: Meteosat-2|MVIRI||Meteosat-3|MVIRI||Meteosat-4|MVIRI||Meteosat-5|MVIRIMeteosat-2|MVIRI||Meteosat-3|MVIRI||Meteosat-4|MVIRI||Meteosat-5|MVIRI Meteosat 7- 8; MVIRI, SEVIRI | AZ56: Regional | BA56: 0.625 x 0.625 deg | BB56: n/a | BC56: 3-hourly, monthly | BD56: bias: -2.9%, rmsd: 15.5% | BI56: yes | BK56: Meteosat-5 | BL56: MVIRI | BM56: Meteosat-5|MVIRI | BN56: no | BO56: no | BS56: contact.cmsaf@dwd.de | BT56: no | BU56: HDF | BV56: Open Access | BW56: ftp, disk | BZ56: none | CA56: 1350 | CB56: Feb 24 2014 8:44PM | CC56: 27F76C7A-35D5-4441-9C18-EA2C8F59E59B | CF56: UPPER TROPOSPHERIC HUMIDITY | CG56: WATER VAPOUR | CY56: 26.41666667 | CZ56: 0.75 | DA56: 0.3333333333 | DB56: 0.7142857143 | DC56: 0.5 | DD56: 0.5 | DE56: 1 | DF56: 1 | DG56: 0.7142857143 | DH56: 2 | DI56: 1 | DJ56: 0 | DK56: 0.6666666667 | DL56: 0.7648809524 | DM56: 0.625 x 0.625 deg | DN56: n/a | DO56: 3-hourly, monthly | DP56: bias: -2.9%, rmsd: 15.5% | DQ56: 0 | DR56: 0.8 | DS56: 1 | DT56: Climate Modelling; Water Vapour Transport Studies | DU56: =SUM(CY56/30,DL56,DR56,DS56) -> 3.445436508
A57: Current | B57: Rainer Hollmann | C57: rainer.hollmann@dwd.de | D57: CM SAF ATOVS Edition 1 | E57: EUMETSAT | H57: no | K57: no | L57: no | N57: Climate Modelling, Feedback Studies | O57: CDR_ECV03_8 | P57: NOAA | Q57: NOAA | R57: NOAA | S57: NOAA | T57: EUMETSAT | U57: EUMETSAT | V57: EUMETSAT | W57: EUMETSAT | X57: EUMETSAT | Y57: EUMETSAT | Z57: 1998-01-01 | AA57: 2009-12-01 | AC57: ATMOSPHERIC SPECIFIC HUMIDITY (COLUMN/PROFILE) | AD57: kW-m-2 | AE57: NOAA-16 | AF57: ATOVS (HIRS/3 AMSU AVHRR/3) | AH57: Yes | AI57: NOAA-15 | AJ57: ATOVS (HIRS/3 AMSU AVHRR/3) | AL57: NOAA-17 | AM57: ATOVS (HIRS/3 AMSU AVHRR/3) | AO57: NOAA-18 | AP57: ATOVS (HIRS/3 AMSU AVHRR/3) | AY57: NOAA-16|ATOVS (HIRS/3 AMSU AVHRR/3)||NOAA-15|ATOVS (HIRS/3 AMSU AVHRR/3)||NOAA-17|ATOVS (HIRS/3 AMSU AVHRR/3)||NOAA-18|ATOVS (HIRS/3 AMSU AVHRR/3) | AZ57: Global | BA57: 90 km x 90 km | BB57: n/a | BC57: daily and monthly | BD57: 5 kg m-2 rms | BE57: 4% per decade | BI57: no | BN57: no | BO57: no | BS57: contact.cmsaf@dwd.de | BT57: no | BU57: HDF | BV57: Open Access | BW57: ftp, disk | BZ57: none | CA57: 1351 | CB57: Feb 24 2014 8:44PM | CC57: 9D125FFF-3749-4FE6-A1AE-130544317FCF | CF57: TOTAL COLUMN WATER VAPOR | CG57: WATER VAPOUR | CY57: 11.91666667 | CZ57: 0.75 | DA57: 0.3333333333 | DB57: 0.8571428571 | DC57: 0.5 | DD57: 0.5 | DE57: 1 | DF57: 1 | DG57: 0.7142857143 | DH57: 2 | DI57: 1 | DJ57: 0 | DK57: 0.6666666667 | DL57: 0.7767857143 | DM57: 90 km x 90 km | DN57: n/a | DO57: daily and monthly | DP57: 5 kg m-2 rms | DQ57: 4% per decade | DR57: 1 | DS57: 1 | DT57: Climate Modelling, Feedback Studies | DU57: =SUM(CY57/30,DL57,DR57,DS57) -> 3.174007937
A58: Current | B58: Rainer Hollmann | C58: rainer.hollmann@dwd.de | D58: yes, new release of cloud cover | E58: EUMETSAT | H58: no | K58: no | L58: no | N58: Cloud Feedback, Radiation Budget Studies; Energy And Water Cycle | O58: CDR_ECV04_14 | P58: NOAA | Q58: NOAA | R58: EUMETSAT | S58: NOAA | T58: EUMETSAT | U58: EUMETSAT | V58: EUMETSAT | W58: EUMETSAT | X58: EUMETSAT | Y58: EUMETSAT | Z58: 1982-01-01 | AA58: 2015-12-01 | AC58: CLOUD COVER | AD58: not selected | AE58: NOAA-9 | AF58: AVHRR/2 | AH58: Yes | AI58: NOAA-10 | AJ58: AVHRR/2 | AL58: NOAA-11 | AM58: AVHRR/2 | AO58: NOAA-12 | AP58: AVHRR/2 | AR58: NOAA-13 | AU58: NOAA-14 | AY58: NOAA-9|AVHRR/2||NOAA-10|AVHRR/2||NOAA-11|AVHRR/2||NOAA-12|AVHRR/2NOAA-13 to NOAA-19, METOP-A, METOP-B (AVHRR/2, AVHRR/3) | AZ58: Global | BA58: 0.25 x 0.25 | BB58: n/a | BC58: daily and monthly | BD58: 20% bias | BE58: 5% per decade | BI58: no | BM58: DMSP, TRMM, Aqua, Coriolis. SSM/I, TMI, AMSR-E, WindSat | BN58: no | BO58: no | BS58: rainer.hollmann@dwd.de | BT58: both | BU58: not selected | BV58: Open Access | CA58: 1358 | CB58: Feb 24 2014 8:44PM | CC58: E84A58D6-B961-488B-8FC0-3420E21EED00 | CF58: CLOUD AMOUNT | CG58: CLOUD PROPERTIES | CY58: 33.91666667 | CZ58: 0.75 | DA58: 0.3333333333 | DB58: 0.8571428571 | DC58: 0.5 | DD58: 0.5 | DE58: 1 | DF58: 1 | DG58: 0.5714285714 | DH58: 0 | DI58: 1 | DJ58: 0 | DK58: 0.6666666667 | DL58: 0.5982142857 | DM58: 0.25 x 0.25 | DN58: n/a | DO58: daily and monthly | DP58: 20% bias | DQ58: 5% per decade | DR58: 1 | DS58: 1 | DT58: Cloud Feedback, Radiation Budget Studies; Energy And Water Cycle | DU58: =SUM(CY58/30,DL58,DR58,DS58) -> 3.728769841
A59: Current | B59: Rainer Hollmann | C59: rainer.hollmann@dwd.de | D59: AVHRR CLARA A1 | E59: EUMETSAT | H59: no | K59: no | L59: no | N59: Cloud Feedback Studies, Energy And Water Cycle, Climate Modelling | O59: CDR_ECV04_15 | P59: NOAA | Q59: NOAA | R59: EUMETSAT | S59: NOAA | T59: EUMETSAT | U59: EUMETSAT | V59: EUMETSAT | W59: EUMETSAT | X59: EUMETSAT | Y59: EUMETSAT | Z59: 1982-01-01 | AA59: 2009-12-01 | AC59: CLOUD TOP HEIGHT | AD59: not selected | AE59: NOAA-10 | AF59: AVHRR/2 | AH59: Yes | AI59: NOAA-11 | AJ59: AVHRR/2 | AL59: NOAA-12 | AM59: AVHRR/2 | AO59: NOAA-14 | AP59: AVHRR/2 | AR59: NOAA-9 | AS59: AVHRR/2 | AU59: NOAA-15 | AY59: NOAA-10|AVHRR/2||NOAA-11|AVHRR/2||NOAA-12|AVHRR/2||NOAA-14|AVHRR/2 NOAA-9, AVHRR/2, NOAA-15 to NOAA-19, METOP A, AVHRR/2 and AVHRR/3 | AZ59: Global | BA59: 0.5 x 0.5 deg | BB59: n/a | BC59: daily and monthly | BI59: no | BL59: MODIS | BN59: no | BO59: no | BS59: contact.cmsaf@dwd.de | BT59: no | BU59: HDF | BV59: Open Access | BW59: ftp, download, disk | BZ59: none | CA59: 1359 | CB59: Feb 24 2014 8:44PM | CC59: 6563502A-5ADF-4CA6-9BB2-CAA35265EC68 | CF59: CLOUD TOP PRESSURE AND TEMPERATURE | CG59: CLOUD PROPERTIES | CY59: 27.91666667 | CZ59: 0.75 | DA59: 0.3333333333 | DB59: 0.5714285714 | DC59: 0.5 | DD59: 0.5 | DE59: 1 | DF59: 1 | DG59: 0.7142857143 | DH59: 2 | DI59: 1 | DJ59: 0 | DK59: 0.6666666667 | DL59: 0.7529761905 | DM59: 0.5 x 0.5 deg | DN59: n/a | DO59: daily and monthly | DP59: 0 | DQ59: 0 | DR59: 0.6 | DS59: 1 | DT59: Cloud Feedback Studies, Energy And Water Cycle, Climate Modelling | DU59: =SUM(CY59/30,DL59,DR59,DS59) -> 3.283531746
A60: Current | B60: Rainer Hollmann | C60: rainer.hollmann@dwd.de | D60: CLARA A1 | E60: EUMETSAT | H60: no | K60: no | L60: no | N60: Climate Modelling, Cloud Feedback Studies | O60: CDR_ECV04_16 | P60: NOAA | Q60: NOAA | R60: EUMETSAT | S60: EUMETSAT | T60: EUMETSAT | U60: EUMETSAT | V60: EUMETSAT | W60: EUMETSAT | X60: EUMETSAT | Y60: EUMETSAT | Z60: 1982-01-01 | AA60: 2009-12-01 | AC60: CLOUD OPTICAL DEPTH | AD60: not selected | AE60: NOAA-11 | AF60: AVHRR/2 | AH60: Yes | AI60: NOAA-10 | AJ60: AVHRR/2 | AL60: NOAA-14 | AM60: AVHRR/2 | AO60: NOAA-15 | AP60: AVHRR/2 | AR60: METop A | AS60: AVHRR/2, AVHRR/3 | AY60: NOAA-11|AVHRR/2||NOAA-10|AVHRR/2||NOAA-14|AVHRR/2||NOAA-15|AVHRR/2 further NOAA's and METop A, AVHRR/2, AVHRR/3 | AZ60: Global | BA60: 0.5 x 0.5 deg | BB60: n/a | BC60: daily & monthly | BI60: no | BK60: Terra | BL60: MODIS | BM60: Terra|MODIS | BN60: no | BO60: no | BS60: contact.cmsaf@dwd.de | BT60: no | BU60: HDF | BV60: Open Access | BW60: ftp, download, disk | BZ60: none | CA60: 1360 | CB60: Feb 24 2014 8:44PM | CC60: A3089C9A-27B5-4451-AC77-55DF8B7ECFF1 | CF60: CLOUD OPTICAL DEPTH | CG60: CLOUD PROPERTIES | CY60: 27.91666667 | CZ60: 0.75 | DA60: 0.3333333333 | DB60: 0.5714285714 | DC60: 0.5 | DD60: 0.5 | DE60: 1 | DF60: 1 | DG60: 0.7142857143 | DH60: 2 | DI60: 1 | DJ60: 0 | DK60: 0.6666666667 | DL60: 0.7529761905 | DM60: 0.5 x 0.5 deg | DN60: n/a | DO60: daily & monthly | DP60: 0 | DQ60: 0 | DR60: 0.6 | DS60: 1 | DT60: Climate Modelling, Cloud Feedback Studies | DU60: =SUM(CY60/30,DL60,DR60,DS60) -> 3.283531746
A61: Current | B61: Rainer Hollmann | C61: rainer.hollmann@dwd.de | D61: AVHRR CLARA edition 1 | E61: EUMETSAT | H61: no | K61: no | L61: no | N61: Cloud Feedback, Climate Modelling | O61: CDR_ECV04_21 | P61: NOAA | Q61: NOAA | R61: NOAA | S61: NOAA | T61: EUMETSAT | U61: EUMETSAT | V61: EUMETSAT | W61: EUMETSAT | X61: EUMETSAT | Y61: EUMETSAT | Z61: 1982-01-01 | AA61: 2009-12-01 | AC61: CLOUD LIQUID WATER (COLUMN/PROFILE) | AD61: % | AE61: NOAA-12 | AF61: AVHRR/2 | AH61: Yes | AI61: NOAA-10 | AJ61: AVHRR/2 | AL61: NOAA-11 | AM61: AVHRR/2 | AO61: NOAA-14 | AP61: AVHRR/2 | AR61: Metop A | AS61: AVHRR/3 | AY61: NOAA-12|AVHRR/2||NOAA-10|AVHRR/2||NOAA-11|AVHRR/2||NOAA-14|AVHRR/2and other NOAA satellites from NOAA-9 to NOAA-19, METop A/AVHRR/3 | AZ61: Global | BA61: 0.25 x 0.25 deg | BB61: n/a | BC61: daily, monthly | BD61: tbd | BE61: tbd | BI61: no | BK61: Terra | BL61: MODIS | BM61: Terra|MODIS | BN61: no | BO61: no | BS61: contact.cmsaf@dwd.de | BT61: no | BU61: HDF | BV61: Open Access | BW61: ftp, disk | BZ61: none | CA61: 1366 | CB61: Feb 24 2014 8:44PM | CC61: F6BC80BB-7B78-43CA-8C9B-B5F68AF69AA4 | CF61: CLOUD WATER PATH | CG61: CLOUD PROPERTIES | CY61: 27.91666667 | CZ61: 0.75 | DA61: 0.3333333333 | DB61: 0.8571428571 | DC61: 0.5 | DD61: 0.5 | DE61: 1 | DF61: 1 | DG61: 0.7142857143 | DH61: 2 | DI61: 1 | DJ61: 0 | DK61: 0.6666666667 | DL61: 0.7767857143 | DM61: 0.25 x 0.25 deg | DN61: n/a | DO61: daily, monthly | DP61: tbd | DQ61: tbd | DR61: 0.6 | DS61: 1 | DT61: Cloud Feedback, Climate Modelling | DU61: =SUM(CY61/30,DL61,DR61,DS61) -> 3.30734127
A62: Current | B62: Rainer Hollmann | C62: rainer.hollmann@dwd.de | D62: CM SAF CLAAS, edition 1: Cloud Water path | E62: EUMETSAT | H62: no | K62: no | L62: no | N62: Climate Research, Cloud Physics | O62: CDR_ECV04_22 | P62: EUMETSAT | Q62: EUMETSAT | R62: EUMETSAT | S62: EUMETSAT | T62: EUMETSAT | U62: EUMETSAT | V62: EUMETSAT | W62: EUMETSAT | X62: EUMETSAT | Y62: EUMETSAT | Z62: 2004-01-01 | AA62: 2011-12-01 | AC62: CLOUD LIQUID WATER (COLUMN/PROFILE) | AD62: not selected | AE62: Meteosat-9 | AF62: SEVIRI | AH62: Yes | AI62: Meteosat-8 | AJ62: SEVIRI | AY62: Meteosat-9|SEVIRI||Meteosat-8|SEVIRI | AZ62: Regional | BA62: 0.05 x 0.05 deg | BB62: n/a | BC62: hourly, daily, monthly | BD62: bias: -1.7%, rms: 33.6% | BE62: n/a | BI62: no | BK62: Meteosat-8 | BM62: Meteosat-8|not selected | BN62: no | BO62: no | BS62: contact.cmsaf@dwd.de | BT62: no | BU62: HDF | BV62: Open Access | BW62: ftp, disk | BZ62: none | CA62: 1367 | CB62: Feb 24 2014 8:44PM | CC62: ED1A7262-E39F-4678-B156-610646858F19 | CF62: CLOUD WATER PATH | CG62: CLOUD PROPERTIES | CY62: 7.916666667 | CZ62: 0.75 | DA62: 0.3333333333 | DB62: 0.8571428571 | DC62: 0.5 | DD62: 0.5 | DE62: 1 | DF62: 1 | DG62: 0.7142857143 | DH62: 2 | DI62: 1 | DJ62: 0 | DL62: 0.7212301587 | DM62: =BA62 -> 0.05 x 0.05 deg | DN62: =BB62 -> n/a | DP62: =BD62 -> bias: -1.7%, rms: 33.6% | DQ62: =BE62 -> n/a | DR62: 0.6 | DS62: 1 | DT62: Climate Research, Cloud Physics | DU62: =SUM(CY62/30,DL62,DR62,DS62) -> 2.585119048
A63: Current | B63: Rainer Hollmann | C63: rainer.hollmann@dwd.de | D63: Yes, new release of Cloud Top Level | E63: EUMETSAT | H63: no | K63: no | L63: no | N63: Cloud Feedback, Radiation Budget Studies, Energy And Water Cycle | O63: CDR_ECV04_23 | P63: NOAA | Q63: NOAA | R63: NOAA | S63: NOAA | T63: EUMETSAT | U63: EUMETSAT | V63: EUMETSAT | W63: EUMETSAT | X63: EUMETSAT | Y63: EUMETSAT | Z63: 1982-01-01 | AA63: 2013-12-01 | AC63: CLOUD TOP TEMPERATURE | AD63: not selected | AE63: NOAA-9 | AF63: AVHRR/2 | AH63: Yes | AI63: NOAA-10 | AJ63: AVHRR/2 | AL63: NOAA-12 | AM63: AVHRR/2 | AO63: NOAA-13 | AR63: NOAA-14 | AU63: NOAA-15 | AY63: not selected|not selectedNOAA-9/AVHRR/2 NOAA-10/AVHRR/2 NOAA-12/AVHRR/2NOAA-13 to NOAA-19, METOP-A, METOP-B (AVHRR/2, AVHRR/3) | AZ63: Global | BA63: 0.25 x 0.25 | BC63: daily and monthly | BI63: no | BN63: no | BO63: no | BT63: both | BU63: netcdf | BV63: Open Access | BW63: FTP | CA63: 1368 | CB63: Feb 24 2014 8:44PM | CC63: 4A6A8B67-B193-48A3-A504-3E49798E711A | CF63: CLOUD TOP PRESSURE AND TEMPERATURE | CG63: CLOUD PROPERTIES | CY63: 31.91666667 | CZ63: 0.75 | DA63: 0.3333333333 | DB63: 0.4285714286 | DC63: 0.5 | DD63: 0.5 | DE63: 1 | DF63: 1 | DG63: 0.7142857143 | DH63: 0 | DI63: 1 | DJ63: 0 | DK63: =(COUNTIF(U63,"*")+COUNTIF(W63,"*")+COUNTIF(BO63,"y*"))/3 -> 0.6666666667 | DL63: 0.5744047619 | DM63: =BA63 -> 0.25 x 0.25 | DN63: 0 | DO63: daily and monthly | DP63: 0 | DQ63: 0 | DR63: 0.4 | DS63: 1 | DT63: Cloud Feedback, Radiation Budget Studies, Energy And Water Cycle | DU63: =SUM(CY63/30,DL63,DR63,DS63) -> 3.038293651
A64: Future | B64: Rainer Hollmann | C64: rainer.hollmann@dwd.de | D64: Yes, new release of Cloud Top Level | E64: EUMETSAT | H64: no | K64: no | L64: no | N64: Cloud Feedback, Radiation Budget Studies, Energy And Water Cycle | O64: CDR_ECV04_24 | P64: NOAA | Q64: NOAA | R64: EUMETSAT | S64: NOAA | T64: EUMETSAT | U64: EUMETSAT | V64: EUMETSAT | W64: EUMETSAT | X64: EUMETSAT | Y64: EUMETSAT | Z64: 1982-01-01 | AA64: 2015-12-01 | AC64: CLOUD COVER | AD64: not selected | AE64: NOAA-9 | AF64: AVHRR/2 | AH64: Yes | AI64: NOAA-10 | AJ64: AVHRR/2 | AL64: NOAA-12 | AM64: AVHRR/2 | AO64: NOAA-13 | AR64: NOAA-14 | AU64: NOAA-15 | AY64: not selected|not selectedNOAA-9/AVHRR/2 NOAA-10/AVHRR/2 NOAA-12/AVHRR/2NOAA-13 to NOAA-19, METOP-A, METOP-B (AVHRR/2, AVHRR/3) | AZ64: Global | BA64: 0.25 x 0.25 | BC64: daily and monthly | BI64: no | BN64: no | BO64: no | BT64: both | BU64: not selected | BV64: Open Access | CA64: 1369 | CB64: Feb 24 2014 8:44PM | CC64: 9E7F5DB6-99B6-4069-A56B-CC85CC27128E | CF64: CLOUD TOP PRESSURE AND TEMPERATURE | CG64: CLOUD PROPERTIES | CY64: 33.91666667 | CZ64: 0.75 | DA64: 0.3333333333 | DB64: 0.4285714286 | DC64: 0.5 | DD64: 0.5 | DE64: 1 | DF64: 1 | DG64: 0.4285714286 | DH64: 0 | DI64: 1 | DJ64: 0 | DK64: 0.6666666667 | DL64: 0.5505952381 | DM64: 0.25 x 0.25 | DN64: 0 | DO64: daily and monthly | DP64: 0 | DQ64: 0 | DR64: 0.4 | DS64: 1 | DT64: Cloud Feedback, Radiation Budget Studies, Energy And Water Cycle | DU64: =SUM(CY64/30,DL64,DR64,DS64) -> 3.081150794
A65: Future | B65: Rainer Hollmann | C65: rainer.hollmann@dwd.de | D65: Yes, new release of Liquid Water Path | E65: EUMETSAT | H65: no | K65: no | L65: no | N65: Cloud Feedback, Radiation Budget Studies, Energy And Water Cycle | O65: CDR_ECV04_25 | P65: NOAA | Q65: NOAA | R65: EUMETSAT | S65: NOAA | T65: EUMETSAT | U65: EUMETSAT | V65: EUMETSAT | W65: EUMETSAT | X65: EUMETSAT | Y65: EUMETSAT | Z65: 1982-01-01 | AA65: 2013-12-01 | AC65: CLOUD COVER | AD65: not selected | AE65: NOAA-9 | AF65: AVHRR/2 | AH65: Yes | AI65: NOAA-10 | AJ65: AVHRR/2 | AL65: NOAA-12 | AM65: AVHRR/2 | AO65: NOAA-13 | AR65: NOAA-14 | AU65: NOAA-15 | AY65: not selected|not selectedNOAA-9/AVHRR/2 NOAA-10/AVHRR/2 NOAA-12/AVHRR/2NOAA-13 to NOAA-19, METOP-A, METOP-B (AVHRR/2, AVHRR/3) | AZ65: Global | BA65: 0.25 x 0.25 | BC65: daily and monthly | BD65: 25 | BE65: 10 | BI65: no | BN65: no | BO65: no | BT65: both | BU65: not selected | BV65: Open Access | CA65: 1370 | CB65: Feb 24 2014 8:44PM | CC65: 7843113C-2412-445C-9795-2C7A98C365E7 | CF65: CLOUD WATER PATH | CG65: CLOUD PROPERTIES | CY65: 31.91666667 | CZ65: 0.75 | DA65: 0.3333333333 | DB65: 0.7142857143 | DC65: 0.5 | DD65: 0.5 | DE65: 1 | DF65: 1 | DG65: 0.4285714286 | DH65: 0 | DI65: 1 | DJ65: 0 | DK65: 0.6666666667 | DL65: 0.5744047619 | DM65: 0.25 x 0.25 | DN65: 0 | DO65: daily and monthly | DP65: 25 | DQ65: 10 | DR65: 0.8 | DS65: 1 | DT65: Cloud Feedback, Radiation Budget Studies, Energy And Water Cycle | DU65: =SUM(CY65/30,DL65,DR65,DS65) -> 3.438293651
A66: Future | B66: Rainer Hollmann | C66: rainer.hollmann@dwd.de | D66: Yes, a new release of Liquid Water Path | E66: EUMETSAT | H66: no | K66: no | L66: no | N66: Cloud Feedback, Radiation Budget Studies, Energy And Water Cycle | O66: CDR_ECV04_26 | P66: NOAA | Q66: NOAA | R66: EUMETSAT | S66: NOAA | T66: EUMETSAT | U66: EUMETSAT | V66: EUMETSAT | W66: EUMETSAT | X66: EUMETSAT | Y66: EUMETSAT | Z66: 1982-01-01 | AA66: 2015-12-01 | AC66: CLOUD COVER | AD66: not selected | AE66: NOAA-9 | AF66: AVHRR/2 | AH66: Yes | AI66: NOAA-10 | AJ66: AVHRR/2 | AL66: NOAA-12 | AM66: AVHRR/2 | AO66: NOAA-13 | AR66: NOAA-14 | AU66: NOAA-15 | AY66: not selected|not selectedNOAA-9/AVHRR/2 NOAA-10/AVHRR/2 NOAA-12/AVHRR/2NOAA-13 to NOAA-19, METOP-A, METOP-B (AVHRR/2, AVHRR/3) | AZ66: Global | BA66: 0.25 x 0.25 | BC66: daily and monthly | BI66: no | BN66: no | BO66: no | BT66: both | BU66: not selected | BV66: Open Access | CA66: 1371 | CB66: Feb 24 2014 8:44PM | CC66: 323D1270-1A38-4007-BE8A-EF42DA84015D | CF66: CLOUD WATER PATH | CG66: CLOUD PROPERTIES | CY66: 33.91666667 | CZ66: 0.75 | DA66: 0.3333333333 | DB66: 0.4285714286 | DC66: 0.5 | DD66: 0.5 | DE66: 1 | DF66: 1 | DG66: 0.4285714286 | DH66: 0 | DI66: 1 | DJ66: 0 | DK66: 0.6666666667 | DL66: 0.5505952381 | DM66: 0.25 x 0.25 | DN66: 0 | DO66: daily and monthly | DP66: 0 | DQ66: 0 | DR66: 0.4 | DS66: 1 | DT66: Cloud Feedback, Radiation Budget Studies, Energy And Water Cycle | DU66: =SUM(CY66/30,DL66,DR66,DS66) -> 3.081150794
A67: Future | B67: Rainer Hollmann | C67: rainer.hollmann@dwd.de | D67: Yes, a new release of Ice Water Path | E67: EUMETSAT | H67: no | K67: no | L67: no | N67: Cloud Feedback, Radiation Budget Studies, Energy And Water Cycle | O67: CDR_ECV04_27 | P67: NOAA | Q67: NOAA | R67: EUMETSAT | S67: NOAA | T67: EUMETSAT | U67: EUMETSAT | V67: EUMETSAT | W67: EUMETSAT | X67: EUMETSAT | Y67: EUMETSAT | Z67: 1982-01-01 | AA67: 2013-12-01 | AC67: CLOUD COVER | AD67: not selected | AE67: NOAA-9 | AF67: AVHRR/2 | AH67: Yes | AI67: NOAA-10 | AJ67: AVHRR/2 | AL67: NOAA-12 | AM67: AVHRR/2 | AO67: NOAA-13 | AR67: NOAA-14 | AU67: NOAA-15 | AY67: not selected|not selectedNOAA-9/AVHRR/2 NOAA-10/AVHRR/2 NOAA-12/AVHRR/2NOAA-13 to NOAA-19, METOP-A, METOP-B (AVHRR/2, AVHRR/3) | AZ67: Global | BA67: 0.25 x 0.25 | BC67: daily and monthly | BI67: no | BN67: no | BO67: no | BT67: both | BU67: not selected | BV67: Open Access | CA67: 1372 | CB67: Feb 24 2014 8:44PM | CC67: 3EEE6F4B-FF6B-491C-AD35-9BCAEC824185 | CF67: CLOUD WATER PATH | CG67: CLOUD PROPERTIES | CY67: 31.91666667 | CZ67: 0.75 | DA67: 0.3333333333 | DB67: 0.4285714286 | DC67: 0.5 | DD67: 0.5 | DE67: 1 | DF67: 1 | DG67: 0.4285714286 | DH67: 0 | DI67: 1 | DJ67: 0 | DK67: 0.6666666667 | DL67: 0.5505952381 | DM67: 0.25 x 0.25 | DN67: 0 | DO67: daily and monthly | DP67: 0 | DQ67: 0 | DR67: 0.4 | DS67: 1 | DT67: Cloud Feedback, Radiation Budget Studies, Energy And Water Cycle | DU67: =SUM(CY67/30,DL67,DR67,DS67) -> 3.014484127
A68: Future | B68: Rainer Hollmann | C68: rainer.hollmann@dwd.de | D68: Yes, new release of Ice Water Path | E68: EUMETSAT | H68: no | K68: no | L68: no | N68: Cloud Feedback, Radiation Budget Studies, Energy And Water Cycle | O68: CDR_ECV04_28 | P68: NOAA | Q68: NOAA | R68: EUMETSAT | S68: NOAA | T68: EUMETSAT | U68: EUMETSAT | V68: EUMETSAT | W68: EUMETSAT | X68: EUMETSAT | Y68: EUMETSAT | Z68: 1982-01-01 | AA68: 2015-12-01 | AC68: CLOUD COVER | AD68: not selected | AE68: NOAA-9 | AF68: AVHRR/2 | AH68: Yes | AI68: NOAA-10 | AJ68: AVHRR/2 | AL68: NOAA-12 | AM68: AVHRR/2 | AO68: NOAA-13 | AR68: NOAA-14 | AU68: NOAA-15 | AY68: not selected|not selectedNOAA-9/AVHRR/2 NOAA-10/AVHRR/2 NOAA-12/AVHRR/2NOAA-13 to NOAA-19, METOP-A, METOP-B (AVHRR/2, AVHRR/3) | AZ68: Global | BA68: 0.25 x 0.25 | BC68: daily and monthly | BI68: no | BN68: no | BO68: no | BT68: both | BU68: not selected | BV68: Open Access | CA68: 1373 | CB68: Feb 24 2014 8:44PM | CC68: 6461915C-6769-4E26-A723-3322928A141A | CF68: CLOUD WATER PATH | CG68: CLOUD PROPERTIES | CY68: 33.91666667 | CZ68: 0.75 | DA68: 0.3333333333 | DB68: 0.4285714286 | DC68: 0.5 | DD68: 0.5 | DE68: 1 | DF68: 1 | DG68: 0.4285714286 | DH68: 0 | DI68: 1 | DJ68: 0 | DK68: 0.6666666667 | DL68: 0.5505952381 | DM68: 0.25 x 0.25 | DN68: 0 | DO68: daily and monthly | DP68: 0 | DQ68: 0 | DR68: 0.4 | DS68: 1 | DT68: Cloud Feedback, Radiation Budget Studies, Energy And Water Cycle | DU68: =SUM(CY68/30,DL68,DR68,DS68) -> 3.081150794
A69: Current | B69: Rainer Hollmann | C69: rainer.hollmann@dwd.de | D69: Yes, new release of High Cirrus Cloud Amount TCDR R1 | E69: EUMETSAT | H69: no | K69: no | L69: no | N69: Cloud Feedback, Radiation Budget Studies, Energy And Water Cycle | O69: CDR_ECV04_29 | P69: NOAA | Q69: NOAA | R69: NOAA | S69: NOAA | T69: EUMETSAT | U69: EUMETSAT | V69: EUMETSAT | W69: EUMETSAT | X69: EUMETSAT | Y69: EUMETSAT | Z69: 1984-01-01 | AA69: 2009-12-01 | AC69: CLOUD COVER | AD69: not selected | AE69: NOAA-9 | AF69: TOVS (HIRS/2 MSU SSU) | AH69: Yes | AI69: NOAA-10 | AJ69: TOVS (HIRS/2 MSU SSU) | AL69: NOAA-11 | AM69: TOVS (HIRS/2 MSU SSU) | AO69: NOAA-12 | AP69: TOVS (HIRS/2 MSU SSU) | AR69: NOAA-14 | AS69: TOVS (HIRS/2 MSU SSU) | AU69: NOAA-15 | AV69: TOVS (HIRS/2 MSU SSU) | AY69: NOAA-9|TOVS (HIRS/2 MSU SSU)||NOAA-10|TOVS (HIRS/2 MSU SSU)||NOAA-11|TOVS (HIRS/2 MSU SSU)||NOAA-12|TOVS (HIRS/2 MSU SSU)NOAA-14 to NOAA-19/(A)TOVS (HIRS/2 MSU SSU) | AZ69: Global | BA69: 0.25 x 0.25 | BC69: daily and monthly | BD69: 0.2 | BE69: 0.05 | BI69: no | BN69: no | BO69: no | BS69: rainer.hollmann@dwd.de | BT69: both | BU69: HDF | BV69: Open Access | BW69: FTP | CA69: 1374 | CB69: Feb 24 2014 8:44PM | CC69: B4BA8337-6D98-4118-A669-A666179AC339 | CF69: CLOUD AMOUNT | CG69: CLOUD PROPERTIES | CY69: 25.91666667 | CZ69: 0.75 | DA69: 0.3333333333 | DB69: 0.7142857143 | DC69: 0.5 | DD69: 0.5 | DE69: 1 | DF69: 1 | DG69: 0.8571428571 | DH69: 0 | DI69: 1 | DJ69: 0 | DK69: 0.6666666667 | DL69: 0.6101190476 | DM69: 0.25 x 0.25 | DN69: 0 | DO69: daily and monthly | DP69: 0.2 | DQ69: 0.05 | DR69: 0.8 | DS69: 1 | DT69: Cloud Feedback, Radiation Budget Studies, Energy And Water Cycle | DU69: =SUM(CY69/30,DL69,DR69,DS69) -> 3.274007937
A70: Current | B70: Rainer Hollmann | C70: rainer.hollmann@dwd.de | D70: Yes, new release of Sounding Cloud Top Level TCDR R1 | E70: EUMETSAT | H70: no | K70: no | L70: no | N70: Cloud Feedback, Radiation Budget Studies, Energy And Water Cycle | O70: CDR_ECV04_30 | P70: NOAA | Q70: NOAA | R70: NOAA | S70: NOAA | T70: EUMETSAT | U70: EUMETSAT | V70: EUMETSAT | W70: EUMETSAT | X70: EUMETSAT | Y70: EUMETSAT | Z70: 1984-01-01 | AA70: 2009-12-01 | AC70: CLOUD TOP HEIGHT | AD70: m | AE70: NOAA-9 | AF70: TOVS (HIRS/2 MSU SSU) | AH70: Yes | AI70: NOAA-10 | AJ70: TOVS (HIRS/2 MSU SSU) | AL70: NOAA-11 | AM70: TOVS (HIRS/2 MSU SSU) | AO70: NOAA-12 | AP70: TOVS (HIRS/2 MSU SSU) | AY70: NOAA-9/TOVS (HIRS/2 MSU SSU) NOAA-10/TOVS (HIRS/2 MSU SSU) NOAA-11/TOVS (HIRS/2 MSU SSU) NOAA-12/TOVS (HIRS/2 MSU SSU) NOAA-14 to NOAA-19/(A)TOVS (HIRS/2 MSU SSU) | AZ70: Global | BA70: 0.25 x 0.25 | BC70: daily and monthly | BD70: 60 hPa | BE70: 30 hPa | BI70: no | BN70: no | BO70: no | BS70: rainer.hollmann@dwd.de | BT70: both | BU70: HDF | BV70: Open Access | BW70: FTP | CA70: 1376 | CB70: Feb 24 2014 8:44PM | CC70: 9C5ED9DF-1A5A-4474-B9CB-2589D445EA76 | CF70: CLOUD TOP PRESSURE AND TEMPERATURE | CG70: CLOUD PROPERTIES | CY70: 25.91666667 | CZ70: 0.75 | DA70: 0.3333333333 | DB70: 0.7142857143 | DC70: 0.5 | DD70: 0.5 | DE70: 1 | DF70: 1 | DG70: 0.8571428571 | DH70: 0 | DI70: 1 | DJ70: 0 | DK70: 0.6666666667 | DL70: 0.6101190476 | DM70: 0.25 x 0.25 | DN70: 0 | DO70: daily and monthly | DP70: 60 hPa | DQ70: 30 hPa | DR70: 0.8 | DS70: 1 | DT70: Cloud Feedback, Radiation Budget Studies, Energy And Water Cycle | DU70: =SUM(CY70/30,DL70,DR70,DS70) -> 3.274007937
A71: Current | B71: Rainer Hollmann | C71: rainer.hollmann@dwd.de | D71: planned release of Meteosat Fractional Cloud Cover TCDR (CM-23011) | E71: EUMETSAT | H71: no | K71: no | L71: no | N71: Cloud Feedback, Radiation Budget Studies, Energy & Water Cycle | O71: CDR_ECV04_31 | P71: EUMETSAT | Q71: EUMETSAT | R71: EUMETSAT | S71: EUMETSAT | T71: EUMETSAT | U71: EUMETSAT | V71: EUMETSAT | W71: EUMETSAT | X71: EUMETSAT | Y71: EUMETSAT | Z71: 1983-01-01 | AA71: 2015-12-01 | AC71: CLOUD COVER | AD71: % | AE71: Meteosat-2 | AF71: MVIRI | AH71: Yes | AI71: Meteosat-3 | AJ71: MVIRI | AL71: Meteosat-4 | AM71: MVIRI | AO71: Meteosat-5 | AP71: MVIRI | AR71: Meteosat-6 | AS71: MVIRI | AU71: Meteosat-7 | AV71: MVIRI | AY71: Meteosat-2|MVIRI||Meteosat-3|MVIRI||Meteosat-4|MVIRI||Meteosat-5|MVIRIMeteosat-6/MVIRI; Meteosat-7/MVIRI; Meteosat-8/SEVIRI; Meteosat-9/SEVIRI; Meteosat-10/SEVIRI; | AZ71: Regional | BA71: 0.05 x 0.05 deg | BB71: n/a | BC71: hourly, daily and monthly | BI71: no | BN71: no | BO71: no | BS71: rainer.hollmann@dwd.de | BT71: both | BU71: HDF | BV71: Open Access | BW71: ftp, disk | CA71: 1377 | CB71: Feb 24 2014 8:44PM | CC71: 6813C00F-C60E-4025-A6D9-DB01C9899357 | CF71: CLOUD AMOUNT | CG71: CLOUD PROPERTIES | CY71: 32.91666667 | CZ71: 0.75 | DA71: 0.3333333333 | DB71: 0.5714285714 | DC71: 0.5 | DD71: 0.5 | DE71: 1 | DF71: 1 | DG71: 0.8571428571 | DH71: 0 | DI71: 1 | DJ71: 0 | DK71: 0.6666666667 | DL71: 0.5982142857 | DM71: 0.05 x 0.05 deg | DN71: n/a | DO71: hourly, daily and monthly | DP71: 0 | DQ71: 0 | DR71: 0.4 | DS71: 1 | DT71: Cloud Feedback, Radiation Budget Studies, Energy & Water Cycle | DU71: =SUM(CY71/30,DL71,DR71,DS71) -> 3.095436508
A72: Current | B72: Rainer Hollmann | C72: rainer.hollmann@dwd.de | D72: Yes, new release of CM SAF (CM-05) | E72: EUMETSAT | H72: no | K72: no | L72: no | N72: Cloud Feedback, Radiation Budget | O72: CDR_ECV04_7 | P72: NOAA | Q72: NOAA | R72: NOAA | S72: NOAA | T72: EUMETSAT | U72: EUMETSAT | V72: EUMETSAT | W72: EUMETSAT | X72: EUMETSAT | Y72: EUMETSAT | Z72: 1982-01-01 | AA72: 2013-12-01 | AC72: CLOUD COVER | AD72: not selected | AE72: NOAA-7 | AF72: AVHRR/2 | AH72: Yes | AI72: NOAA-8 | AJ72: AVHRR/2 | AL72: NOAA-9 | AM72: AVHRR/2 | AO72: NOAA-10 | AP72: AVHRR/2 | AR72: NOAA-11 | AS72: AVHRR/2 | AU72: NOAA-12 | AV72: AVHRR/2 | AY72: NOAA-7 to NOAA-19 (AVHRR/2 and AVHRR/3); Metop-A AVHRR/2 and AVHRR/3 | AZ72: Global | BA72: 0.25 x 0.25 deg | BB72: N/A | BC72: daily and monthly | BD72: 10% bias 20% bias corrected rms | BE72: 2%/decade | BI72: no | BK72: Terra | BL72: MODIS | BM72: Terra|MODIS | BN72: no | BO72: no | BS72: contact.cmsaf@dwd.de | BT72: both | BU72: not selected | BV72: Open Access | CA72: 1391 | CB72: Feb 24 2014 8:44PM | CC72: F19AAA6F-CA14-48C7-8450-61BAC1B7CCCF | CF72: CLOUD AMOUNT | CG72: CLOUD PROPERTIES | CY72: 31.91666667 | CZ72: 0.75 | DA72: 0.3333333333 | DB72: 0.8571428571 | DC72: 0.5 | DD72: 0.5 | DE72: 1 | DF72: 1 | DG72: 0.5714285714 | DH72: 0 | DI72: 1 | DJ72: 0 | DK72: 0.6666666667 | DL72: 0.5982142857 | DM72: 0.25 x 0.25 deg | DN72: N/A | DO72: daily and monthly | DP72: 10% bias 20% bias corrected rms | DQ72: 2%/decade | DR72: 1 | DS72: 1 | DT72: Cloud Feedback, Radiation Budget | DU72: =SUM(CY72/30,DL72,DR72,DS72) -> 3.662103175
A73: Current | B73: Rainer Hollmann | C73: rainer.hollmann@dwd.de | D73: http://dx.doi.org/10.5676/EUM_SAF_CM/HOAPS/V001 | E73: EUMETSAT | H73: no | K73: no | L73: no | N73: Air Sea Interaction, Fluxes, Climate Modelling | O73: CDR_ECV05_3 | P73: DoD (USA) | Q73: DoD (USA) | R73: EUMETSAT | S73: EUMETSAT | T73: EUMETSAT | U73: EUMETSAT | V73: EUMETSAT | W73: EUMETSAT | X73: EUMETSAT | Y73: EUMETSAT | Z73: 1987-07-01 | AA73: 2008-12-01 | AC73: PRECIPITATION RATE (LIQUID) AT THE SURFACE | AD73: mm | AE73: DMSP F-10 | AF73: SSM/I | AH73: Yes | AI73: DMSP F-11 | AJ73: SSM/I | AL73: DMSP F-12 | AM73: SSM/I | AO73: DMSP F-13 | AP73: SSM/I | AR73: DMSP F-14 | AS73: SSM/I | AU73: DMSP-15 | AV73: SSM/I | AY73: DMSP F-10|SSM/I||DMSP F-11|SSM/I||DMSP F-12|SSM/I||DMSP F-13|SSM/IDSMP-F-14/SSMI, DMSP-F-15/SSMI | AZ73: Global | BA73: 0.5 x 0.5 deg | BB73: n/a | BC73: monthly, pentad composite | BI73: yes | BN73: no | BO73: no | BS73: contact.cmsaf@dwd.de | BT73: both | BU73: HDF | BV73: Open Access | BW73: ftp, disk | BZ73: none | CA73: 1395 | CB73: Feb 24 2014 8:44PM | CC73: 20CA3CB0-4C30-4A29-BEBF-697E52C1C8BE | CF73: LIQUID PRECIPITATION | CG73: PRECIPITATION | CY73: 21.41666667 | CZ73: =(COUNTIF(S73,"*")+COUNTIF(T73,"*")+COUNTIF(AE73,"*")+COUNTIF(BG73,"*"))/4 -> 0.75 | DA73: =(COUNTIF(Q73,"*")+COUNTIF(I73,"*")+COUNTIF(BR73,"y*"))/3 -> 0.3333333333 | DB73: =(COUNTIF(U73,"*")+COUNTA(BA73)+COUNTA(BB73)+COUNTA(BC73)+COUNTA(BD73)+COUNTA(BE73)+COUNTIF(BN73,"y*"))/7 -> 0.5714285714 | DC73: =(COUNTIF(V73,"*")+COUNTIF(BH73,"*"))/2 -> 0.5 | DD73: =(COUNTIF(V73,"*")+COUNTIF(BF73,"*"))/2 -> 0.5 | DE73: =COUNTIF(AZ73,"*") -> 1 | DF73: =COUNTIF(W73,"*") -> 1 | DG73: =(COUNTIF(X73,"*")+COUNTIF(BS73,"*")+COUNTIF(BT73,"*")+COUNTIF(BU73,"*")+COUNTIF(BV73,"*")+COUNTIF(BW73,"*")+COUNTIF(BX73,"*")-COUNTIF(BT73,"no*")-COUNTIF(BU73,"no*")-COUNTIF(BV73,"no*"))/7 -> 0.8571428571 | DH73: =COUNTIF(BZ73,"*")+COUNTA(BZ73) -> 2 | DI73: =COUNTIF(Y73,"*") -> 1 | DJ73: =COUNTIF(BR73,"y*") -> 0 | DK73: 0.6666666667 | DL73: =SUM(CZ73:DK73)/12 -> 0.7648809524 | DM73: 0.5 x 0.5 deg | DN73: n/a | DO73: monthly, pentad composite | DP73: 0 | DQ73: 0 | DR73: 0.6 | DS73: 1 | DT73: =N73 -> Air Sea Interaction, Fluxes, Climate Modelling | DU73: =SUM(CY73/30,DL73,DR73,DS73) -> 3.078769841
A74: Future | B74: Rainer Hollmann | C74: rainer.hollmann@dwd.de | D74: Yes, new release of Precipitation Intensity TCDR R2 | E74: EUMETSAT | H74: no | K74: no | L74: no | O74: CDR_ECV05_5 | P74: DoD (USA) | Q74: DoD (USA) | R74: DoD (USA) | S74: EUMETSAT | T74: EUMETSAT | U74: EUMETSAT | V74: EUMETSAT | W74: EUMETSAT | X74: EUMETSAT | Y74: EUMETSAT | Z74: 1987-01-01 | AA74: 2012-12-01 | AC74: NOT SELECTED | AD74: not selected | AH74: No | AZ74: Global | BD74: 1.6 mm/d | BE74: 0.03 mm/d | BI74: no | BN74: no | BO74: no | BT74: both | BU74: not selected | BV74: Open Access | CA74: 2003-10-28 | CB74: Feb 24 2014 8:44PM | CC74: 87FC2992-A005-41E8-9D9E-D9A4C3C08CB5 | CF74: LIQUID PRECIPITATION | CG74: PRECIPITATION | CY74: =YEARFRAC(Z74,AA74) -> 25.91666667 | CZ74: 0.5 | DA74: 0.3333333333 | DB74: 0.4285714286 | DC74: 0.5 | DD74: 0.5 | DE74: 1 | DF74: 1 | DG74: 0.4285714286 | DH74: 0 | DI74: 1 | DJ74: 0 | DK74: 0.6666666667 | DL74: 0.5297619048 | DM74: 0 | DN74: 0 | DO74: 0 | DP74: 1.6 mm/d | DQ74: 0.03 mm/d | DR74: 0.4 | DS74: 0 | DT74: 0 | DU74: =SUM(CY74/30,DL74,DR74,DS74) -> 1.793650794
A75: Future | B75: Rainer Hollmann | C75: rainer.hollmann@dwd.de | D75: Yes, new release of Precipitation Intensity TCDR R3 | E75: EUMETSAT | H75: no | K75: no | L75: no | O75: CDR_ECV05_6 | P75: DoD (USA) | Q75: DoD (USA) | R75: DoD (USA) | S75: EUMETSAT | T75: EUMETSAT | U75: EUMETSAT | V75: EUMETSAT | W75: EUMETSAT | X75: EUMETSAT | Y75: EUMETSAT | Z75: 1987-01-01 | AA75: 2014-12-01 | AC75: NOT SELECTED | AD75: not selected | AH75: No | AZ75: Global | BC75: monthly | BD75: 1.6 mm/d | BE75: 0.03 mm/d | BI75: no | BN75: no | BO75: no | BT75: both | BU75: not selected | BV75: Open Access | CA75: 2003-10-29 | CB75: Feb 24 2014 8:44PM | CC75: 2C7BF787-9FB1-4CC1-B015-DA918FE95BD6 | CF75: LIQUID PRECIPITATION | CG75: PRECIPITATION | CY75: 27.91666667 | CZ75: 0.5 | DA75: 0.3333333333 | DB75: 0.5714285714 | DC75: 0.5 | DD75: 0.5 | DE75: 1 | DF75: 1 | DG75: 0.4285714286 | DH75: 0 | DI75: 1 | DJ75: 0 | DK75: 0.6666666667 | DL75: 0.5416666667 | DM75: 0 | DN75: 0 | DO75: monthly | DP75: 1.6 mm/d | DQ75: 0.03 mm/d | DR75: 0.6 | DS75: 0 | DT75: 0 | DU75: =SUM(CY75/30,DL75,DR75,DS75) -> 2.072222222
A76: Current | B76: Rainer Hollmann | C76: rainer.hollmann@dwd.de | D76: CM SAF MSG surface Radiation Edition 1 | E76: EUMETSAT | H76: no | K76: no | L76: no | N76: Climate Research, Climate Model Validation And Evaluation, Solar Energy | O76: CDR_ECV06_10 | P76: EUMETSAT | Q76: EUMETSAT | R76: EUMETSAT | S76: EUMETSAT | T76: EUMETSAT | U76: EUMETSAT | V76: EUMETSAT | W76: EUMETSAT | X76: EUMETSAT | Y76: EUMETSAT | Z76: 2006-01-01 | AA76: 2011-12-01 | AC76: DOWNWELLING SHORT-WAVE RADIATION AT THE EARTH SURFACE | AD76: W/m2 | AE76: Meteosat-8 | AF76: SEVIRI | AH76: Yes | AI76: Meteosat-9 | AJ76: SEVIRI | AY76: Meteosat-8|SEVIRI||Meteosat-9|SEVIRI | AZ76: Regional | BA76: 0.05 x 0.05 deg | BB76: n/a | BC76: daily, monthly | BD76: bias: 1.6 W/m_; absolute bias: 8 W/m_ | BE76: n/a | BI76: no | BK76: Meteosat-8 | BL76: SEVIRI | BM76: Meteosat-8|SEVIRI | BN76: no | BO76: no | BS76: contact.cmsaf@dwd.de | BT76: no | BU76: HDF | BV76: Open Access | BW76: ftp, disk | BZ76: none | CA76: 1403 | CB76: Feb 24 2014 8:44PM | CC76: AF64FE6F-9AC3-421C-A382-140BEE22F5CC | CF76: EARTH RADIATION BUDGET (TOP-OF-ATMOSPHERE AND SURFACE) | CG76: EARTH RADIATION BUDGET | CY76: 5.916666667 | CZ76: 0.75 | DA76: 0.3333333333 | DB76: 0.8571428571 | DC76: 0.5 | DD76: 0.5 | DE76: 1 | DF76: 1 | DG76: 0.7142857143 | DH76: 2 | DI76: 1 | DJ76: 0 | DK76: 0.6666666667 | DL76: 0.7767857143 | DM76: 0.05 x 0.05 deg | DN76: n/a | DO76: daily, monthly | DP76: bias: 1.6 W/m_; absolute bias: 8 W/m_ | DQ76: n/a | DR76: 0.8 | DS76: 1 | DT76: Climate Research, Climate Model Validation And Evaluation, Solar Energy | DU76: =SUM(CY76/30,DL76,DR76,DS76) -> 2.774007937
A77: Future | B77: Rainer Hollmann | C77: rainer.hollmann@dwd.de | D77: Yes, new release of Surface Incoming Solar Radiation | E77: EUMETSAT | H77: no | K77: no | L77: no | O77: CDR_ECV06_11 | P77: DoD (USA) | Q77: DoD (USA) | R77: DoD (USA) | S77: EUMETSAT | T77: EUMETSAT | U77: EUMETSAT | V77: EUMETSAT | W77: EUMETSAT | X77: EUMETSAT | Y77: EUMETSAT | Z77: 1982-01-01 | AA77: 2015-12-01 | AC77: NOT SELECTED | AD77: not selected | AH77: No | AZ77: Global | BC77: monthly means | BD77: 15 W/m2 | BE77: 4 W/m2 | BI77: no | BN77: no | BO77: no | BT77: both | BU77: not selected | BV77: Open Access | CA77: 2003-11-04 | CB77: Feb 24 2014 8:44PM | CC77: B7A2119B-71D7-4F57-A7EA-041874C5F761 | CF77: EARTH RADIATION BUDGET (TOP-OF-ATMOSPHERE AND SURFACE) | CG77: EARTH RADIATION BUDGET | CY77: 33.91666667 | CZ77: 0.5 | DA77: 0.3333333333 | DB77: 0.5714285714 | DC77: 0.5 | DD77: 0.5 | DE77: 1 | DF77: 1 | DG77: 0.4285714286 | DH77: 0 | DI77: 1 | DJ77: 0 | DK77: 0.6666666667 | DL77: 0.5416666667 | DM77: 0 | DN77: 0 | DO77: monthly means | DP77: 15 W/m2 | DQ77: 4 W/m2 | DR77: 0.6 | DS77: 0 | DT77: 0 | DU77: =SUM(CY77/30,DL77,DR77,DS77) -> 2.272222222
A78: Future | B78: Rainer Hollmann | C78: rainer.hollmann@dwd.de | D78: Yes, new release of Surface Outgoing Longwave Radiation | E78: EUMETSAT | H78: no | K78: no | L78: no | N78: Radiation Budget | O78: CDR_ECV06_12 | P78: DoD (USA) | Q78: DoD (USA) | R78: DoD (USA) | S78: EUMETSAT | T78: EUMETSAT | U78: EUMETSAT | V78: EUMETSAT | W78: EUMETSAT | X78: EUMETSAT | Y78: EUMETSAT | Z78: 1982-01-01 | AA78: 2015-12-01 | AC78: NOT SELECTED | AD78: not selected | AH78: No | AZ78: Global | BA78: 0.25 x 0.25 | BC78: monthly means | BD78: 15 W/m2 | BE78: 5 W/m2 | BI78: no | BN78: no | BO78: no | BT78: both | BU78: not selected | BV78: Open Access | CA78: 2003-11-05 | CB78: Feb 24 2014 8:44PM | CC78: 9C992443-0805-4245-B551-2DABA656FBF7 | CF78: EARTH RADIATION BUDGET (TOP-OF-ATMOSPHERE AND SURFACE) | CG78: EARTH RADIATION BUDGET | CY78: 33.91666667 | CZ78: 0.5 | DA78: 0.3333333333 | DB78: 0.7142857143 | DC78: 0.5 | DD78: 0.5 | DE78: 1 | DF78: 1 | DG78: 0.4285714286 | DH78: 0 | DI78: 1 | DJ78: 0 | DK78: 0.6666666667 | DL78: 0.5535714286 | DM78: 0.25 x 0.25 | DN78: 0 | DO78: monthly means | DP78: 15 W/m2 | DQ78: 5 W/m2 | DR78: 0.8 | DS78: 1 | DT78: Radiation Budget | DU78: =SUM(CY78/30,DL78,DR78,DS78) -> 3.484126984
A79: Future | B79: Rainer Hollmann | C79: rainer.hollmann@dwd.de | D79: Yes, new release of Surface Downwelling Longwave Radiation | E79: EUMETSAT | H79: no | K79: no | L79: no | N79: Radiation Budget Studies | O79: CDR_ECV06_13 | P79: NOAA | Q79: NOAA | R79: EUMETSAT | S79: NOAA | T79: EUMETSAT | U79: EUMETSAT | V79: EUMETSAT | W79: EUMETSAT | X79: EUMETSAT | Y79: EUMETSAT | Z79: 1982-01-01 | AA79: 2015-12-01 | AC79: NOT SELECTED | AD79: not selected | AE79: NOAA-9 | AF79: AVHRR/2 | AH79: Yes | AI79: NOAA-10 | AJ79: AVHRR/2 | AL79: NOAA-12 | AM79: AVHRR/2 | AO79: NOAA-13 | AR79: NOAA-14 | AU79: NOAA-15 | AY79: not selected|not selectedNOAA-9/AVHRR/2 NOAA-10/AVHRR/2 NOAA-12/AVHRR/2NOAA-13 to NOAA-19, METOP-A, METOP-B (AVHRR/2, AVHRR/3) | AZ79: Global | BA79: 0.25 x 0.25 | BC79: monthly means | BD79: 15 W/m2 | BE79: 5 W/m2 | BI79: no | BN79: no | BO79: no | BT79: both | BU79: not selected | BV79: Open Access | CA79: 1406 | CB79: Feb 24 2014 8:44PM | CC79: A7283B08-4788-430B-9D10-AA0E8A0B78CF | CF79: EARTH RADIATION BUDGET (TOP-OF-ATMOSPHERE AND SURFACE) | CG79: EARTH RADIATION BUDGET | CY79: 33.91666667 | CZ79: 0.75 | DA79: 0.3333333333 | DB79: 0.7142857143 | DC79: 0.5 | DD79: 0.5 | DE79: 1 | DF79: 1 | DG79: 0.4285714286 | DH79: 0 | DI79: 1 | DJ79: 0 | DK79: 0.6666666667 | DL79: 0.5744047619 | DM79: 0.25 x 0.25 | DN79: 0 | DO79: monthly means | DP79: 15 W/m2 | DQ79: 5 W/m2 | DR79: 0.8 | DS79: 1 | DT79: Radiation Budget Studies | DU79: =SUM(CY79/30,DL79,DR79,DS79) -> 3.504960317
A80: Future | B80: Rainer Hollmann | C80: rainer.hollmann@dwd.de | D80: Yes, new release of Microwave Radiance FCDR | E80: EUMETSAT | H80: no | K80: no | L80: no | N80: Radiation Budget Studies | O80: CDR_ECV06_14 | P80: DoD (USA) | Q80: DoD (USA) | R80: DoD (USA) | S80: EUMETSAT | T80: EUMETSAT | U80: EUMETSAT | V80: EUMETSAT | W80: EUMETSAT | X80: EUMETSAT | Y80: EUMETSAT | Z80: 1987-01-01 | AA80: 2012-12-01 | AC80: NOT SELECTED | AD80: not selected | AH80: No | AZ80: Global | BD80: 1,25 K | BE80: 0.2 K | BI80: no | BN80: no | BO80: no | BT80: both | BU80: not selected | BV80: Open Access | CA80: 1407 | CB80: Feb 24 2014 8:44PM | CC80: 8F3CC127-243F-49BE-851F-5FB5E85F9A17 | CF80: EARTH RADIATION BUDGET (TOP-OF-ATMOSPHERE AND SURFACE) | CG80: EARTH RADIATION BUDGET | CY80: 25.91666667 | CZ80: 0.5 | DA80: 0.3333333333 | DB80: 0.4285714286 | DC80: 0.5 | DD80: 0.5 | DE80: 1 | DF80: 1 | DG80: 0.4285714286 | DH80: 0 | DI80: 1 | DJ80: 0 | DL80: 0.4742063492 | DM80: =BA80 -> 0 | DN80: =BB80 -> 0 | DP80: =BD80 -> 1,25 K | DQ80: =BE80 -> 0.2 K | DR80: 0.4 | DS80: 1 | DT80: Radiation Budget Studies | DU80: =SUM(CY80/30,DL80,DR80,DS80) -> 2.738095238
A81: Current | B81: Rainer Hollmann | C81: rainer.hollmann@dwd.de | D81: Yes, new release of Microwave Radiance FCDR | E81: EUMETSAT | H81: no | K81: no | L81: no | N81: Radiation Budget Studies | O81: CDR_ECV06_15 | P81: DoD (USA) | Q81: DoD (USA) | R81: DoD (USA) | S81: EUMETSAT | T81: EUMETSAT | U81: EUMETSAT | V81: EUMETSAT | W81: EUMETSAT | X81: EUMETSAT | Y81: EUMETSAT | Z81: 1979-01-01 | AA81: 2014-12-01 | AC81: NOT SELECTED | AD81: not selected | AH81: No | AZ81: Global | BD81: 1.25 K | BE81: 0.2 K | BI81: no | BN81: no | BO81: no | BT81: both | BU81: not selected | BV81: Open Access | CA81: 2003-11-08 | CB81: Feb 24 2014 8:44PM | CC81: F20D105B-A0BC-4E6B-962D-14DF5A638CAE | CF81: EARTH RADIATION BUDGET (TOP-OF-ATMOSPHERE AND SURFACE) | CG81: EARTH RADIATION BUDGET | CY81: 35.91666667 | CZ81: 0.5 | DA81: 0.3333333333 | DB81: 0.4285714286 | DC81: 0.5 | DD81: 0.5 | DE81: 1 | DF81: 1 | DG81: 0.4285714286 | DH81: 0 | DI81: 1 | DJ81: 0 | DK81: =(COUNTIF(U81,"*")+COUNTIF(W81,"*")+COUNTIF(BO81,"y*"))/3 -> 0.6666666667 | DL81: 0.5297619048 | DM81: =BA81 -> 0 | DN81: 0 | DO81: 0 | DP81: 1.25 K | DQ81: 0.2 K | DR81: 0.4 | DS81: 1 | DT81: Radiation Budget Studies | DU81: =SUM(CY81/30,DL81,DR81,DS81) -> 3.126984127
A82: Future | B82: Rainer Hollmann | C82: rainer.hollmann@dwd.de | D82: planned CM SAF MSG TOA Reflected solar Radiative Flux Edition 2 (CM-21301) | E82: EUMETSAT | H82: no | K82: no | L82: no | N82: Radiation Budget Studies | O82: CDR_ECV06_16 | P82: EUMETSAT | Q82: EUMETSAT | R82: EUMETSAT | S82: EUMETSAT | T82: EUMETSAT | U82: EUMETSAT | V82: EUMETSAT | W82: EUMETSAT | X82: EUMETSAT | Y82: EUMETSAT | Z82: 2004-01-01 | AA82: 2014-12-01 | AC82: OUTGOING SHORT-WAVE RADIATION AT TOA | AD82: W/m2 | AE82: Meteosat-8 | AF82: GERB | AH82: Yes | AI82: Meteosat-9 | AJ82: GERB | AL82: Meteosat-10 | AM82: GERB | AY82: Meteosat-8|GERB||Meteosat-9|GERB||Meteosat-10|GERB | AZ82: Regional | BA82: 45x45 Km | BB82: n/a | BC82: daily and monthly | BD82: 8 W/m2 | BE82: < 4 W/m2/decade | BI82: no | BN82: no | BO82: no | BS82: rainer.hollmann@dwd.de | BT82: both | BU82: HDF | BV82: Open Access | BW82: ftp, disk | CA82: 2003-11-09 | CB82: Feb 24 2014 8:44PM | CC82: F2248FEA-1BCD-40D7-BEA8-AAE53189DA7D | CF82: EARTH RADIATION BUDGET (TOP-OF-ATMOSPHERE AND SURFACE) | CG82: EARTH RADIATION BUDGET | CY82: 10.91666667 | CZ82: 0.75 | DA82: 0.3333333333 | DB82: 0.8571428571 | DC82: 0.5 | DD82: 0.5 | DE82: 1 | DF82: 1 | DG82: 0.8571428571 | DH82: 0 | DI82: 1 | DJ82: 0 | DK82: 0.6666666667 | DL82: 0.6220238095 | DM82: 45x45 Km | DN82: n/a | DO82: daily and monthly | DP82: 8 W/m2 | DQ82: < 4 W/m2/decade | DR82: 1 | DS82: 1 | DT82: Radiation Budget Studies | DU82: =SUM(CY82/30,DL82,DR82,DS82) -> 2.985912698
A83: Current | B83: Rainer Hollmann | C83: rainer.hollmann@dwd.de | D83: planned release of Reflected Solar Clear-Sky Radiative Fluxes (CM-21321) | E83: EUMETSAT | H83: no | K83: no | L83: no | N83: Radiation Budget Studies | O83: CDR_ECV06_17 | P83: EUMETSAT | Q83: EUMETSAT | R83: EUMETSAT | S83: EUMETSAT | T83: EUMETSAT | U83: EUMETSAT | V83: EUMETSAT | W83: EUMETSAT | X83: EUMETSAT | Y83: EUMETSAT | Z83: 2004-01-01 | AA83: 2014-12-01 | AC83: OUTGOING SHORT-WAVE RADIATION AT TOA | AD83: W/m2 | AE83: Meteosat-8 | AF83: GERB, SEVIRI | AH83: Yes | AI83: Meteosat-9 | AJ83: GERB, SEVIRI | AL83: Meteosat-10 | AM83: GERB, SEVIRI | AY83: Meteosat-8|GERB||Meteosat-9|GERB||Meteosat-10|GERB||Meteosat-8|SEVIRIMeteosat-9 and Meteosat-10/SEVIRI | AZ83: Regional | BA83: 9x9 Km | BB83: n/a | BC83: daily and monthly | BD83: 8 W/m_ | BE83: < 4 W/m2/decade | BI83: no | BN83: no | BO83: no | BS83: rainer.hollmann@dwd.de | BT83: both | BU83: HDF | BV83: Open Access | BW83: ftp, disk | CA83: 1410 | CB83: Feb 24 2014 8:44PM | CC83: F08516BF-ED7F-4012-AE38-364A790711D4 | CF83: EARTH RADIATION BUDGET (TOP-OF-ATMOSPHERE AND SURFACE) | CG83: EARTH RADIATION BUDGET | CY83: 10.91666667 | CZ83: 0.75 | DA83: 0.3333333333 | DB83: 0.8571428571 | DC83: 0.5 | DD83: 0.5 | DE83: 1 | DF83: 1 | DG83: 0.8571428571 | DH83: 0 | DI83: 1 | DJ83: 0 | DK83: 0.6666666667 | DL83: 0.6220238095 | DM83: 9x9 Km | DN83: n/a | DO83: daily and monthly | DP83: 8 W/m_ | DQ83: < 4 W/m2/decade | DR83: 1 | DS83: 1 | DT83: Radiation Budget Studies | DU83: =SUM(CY83/30,DL83,DR83,DS83) -> 2.985912698
A84: Current | B84: Rainer Hollmann | C84: rainer.hollmann@dwd.de | D84: CM SAF MSG TOA radiation edition 2 (CM-21331) | E84: EUMETSAT | H84: no | K84: no | L84: no | N84: Radiation Budget Studies | O84: CDR_ECV06_18 | P84: EUMETSAT | Q84: EUMETSAT | R84: EUMETSAT | S84: EUMETSAT | T84: EUMETSAT | U84: EUMETSAT | V84: EUMETSAT | W84: EUMETSAT | X84: EUMETSAT | Y84: EUMETSAT | Z84: 2004-01-01 | AA84: 2014-12-01 | AC84: OUTGOING LONG-WAVE RADIATION AT TOA | AD84: W/m2 | AE84: Meteosat-8 | AF84: GERB | AH84: Yes | AI84: Meteosat-9 | AJ84: GERB | AL84: Meteosat-10 | AM84: GERB | AY84: Meteosat-8|GERB||Meteosat-9|GERB||Meteosat-10|GERB | AZ84: Regional | BA84: 45x45 Km | BB84: n/a | BC84: daily and monthly | BD84: 4 W/m_ | BE84: < 4W/m_/decade | BI84: no | BN84: no | BO84: no | BS84: rainer.hollmann@dwd.de | BT84: both | BU84: HDF | BV84: Open Access | BW84: ftp, disk | CA84: 2003-11-11 | CB84: Feb 24 2014 8:44PM | CC84: AA12BAB3-56E6-4E7F-8DF1-ABC8B79AA0DE | CF84: EARTH RADIATION BUDGET (TOP-OF-ATMOSPHERE AND SURFACE) | CG84: EARTH RADIATION BUDGET | CY84: 10.91666667 | CZ84: 0.75 | DA84: 0.3333333333 | DB84: 0.8571428571 | DC84: 0.5 | DD84: 0.5 | DE84: 1 | DF84: 1 | DG84: 0.8571428571 | DH84: 0 | DI84: 1 | DJ84: 0 | DK84: 0.6666666667 | DL84: 0.6220238095 | DM84: 45x45 Km | DN84: n/a | DO84: daily and monthly | DP84: 4 W/m_ | DQ84: < 4W/m_/decade | DR84: 1 | DS84: 1 | DT84: Radiation Budget Studies | DU84: =SUM(CY84/30,DL84,DR84,DS84) -> 2.985912698
A85: Current | B85: Rainer Hollmann | C85: rainer.hollmann@dwd.de | D85: planned release of Emitted Thermal Clear-Sky Radiative Flux (CM-21351) | E85: EUMETSAT | H85: no | K85: no | L85: no | N85: Radiation Budget Studies | O85: CDR_ECV06_19 | P85: EUMETSAT | Q85: EUMETSAT | R85: EUMETSAT | S85: EUMETSAT | T85: EUMETSAT | U85: EUMETSAT | V85: EUMETSAT | W85: EUMETSAT | X85: EUMETSAT | Y85: EUMETSAT | Z85: 2004-01-01 | AA85: 2014-12-01 | AC85: OUTGOING LONG-WAVE RADIATION AT TOA | AD85: W/m2 | AE85: Meteosat-8 | AF85: GERB, SEVIRI | AH85: Yes | AI85: Meteosat-9 | AJ85: GERB, SEVIRI | AL85: Meteosat-10 | AM85: GERB, SEVIRI | AY85: Meteosat-8|GERB||Meteosat-9|GERB||Meteosat-10|GERB||Meteosat-8|SEVIRIMeteosat-9/SEVIRI; Meteosat-10/SEVIRI | AZ85: Regional | BA85: 9x9 Km | BB85: n/a | BC85: daily and monthly | BD85: 4 W/m_ | BE85: < 4W/m_/decade | BI85: no | BN85: no | BO85: no | BS85: rainer.hollmann@dwd.de | BT85: both | BU85: HDF | BV85: Open Access | BW85: ftp, disk | CA85: 1412 | CB85: Feb 24 2014 8:44PM | CC85: FADC47CF-0E06-46F9-BD2B-C09BB25BCCF1 | CF85: EARTH RADIATION BUDGET (TOP-OF-ATMOSPHERE AND SURFACE) | CG85: EARTH RADIATION BUDGET | CY85: 10.91666667 | CZ85: 0.75 | DA85: 0.3333333333 | DB85: 0.8571428571 | DC85: 0.5 | DD85: 0.5 | DE85: 1 | DF85: 1 | DG85: 0.8571428571 | DH85: 0 | DI85: 1 | DJ85: 0 | DK85: 0.6666666667 | DL85: 0.6220238095 | DM85: 9x9 Km | DN85: n/a | DO85: daily and monthly | DP85: 4 W/m_ | DQ85: < 4W/m_/decade | DR85: 1 | DS85: 1 | DT85: Radiation Budget Studies | DU85: =SUM(CY85/30,DL85,DR85,DS85) -> 2.985912698
A86: Current | B86: Rainer Hollmann | C86: rainer.hollmann@dwd.de | D86: planned release of Meteosat Solar Surface Radiation TCDR (CM-23201) | E86: EUMETSAT | H86: no | K86: no | L86: no | N86: Radiation Budget Studies, Solar Energy, Model Validation | O86: CDR_ECV06_20 | P86: EUMETSAT | Q86: EUMETSAT | R86: EUMETSAT | S86: EUMETSAT | T86: EUMETSAT | U86: EUMETSAT | V86: EUMETSAT | W86: EUMETSAT | X86: EUMETSAT | Y86: EUMETSAT | Z86: 1983-01-01 | AA86: 2012-12-01 | AC86: DOWNWELLING SHORT-WAVE RADIATION AT THE EARTH SURFACE | AD86: W/m2 | AE86: Meteosat-2 | AF86: MVIRI | AH86: Yes | AI86: Meteosat-3 | AJ86: MVIRI | AL86: Meteosat-4 | AM86: MVIRI | AO86: Meteosat-5 | AP86: MVIRI | AR86: Meteosat-6 | AS86: MVIRI | AU86: Meteosat-7 | AV86: MVIRI | AY86: Meteosat-2|MVIRI||Meteosat-3|MVIRI||Meteosat-4|MVIRI||Meteosat-5|MVIRIMeteosat-6/MVIRI; Meteosat-7/MVIRI; Meteosat-8/SEVIRI; Meteosat-9/SEVIRI; Meteosat-10/SEVIRI; | AZ86: Regional | BA86: 0.05x0.05 deg | BB86: n/a | BC86: hourly, daily and monthly | BD86: absolute bias: 15 W/m_ | BE86: 0.4 (mm) | BI86: no | BN86: no | BO86: no | BS86: rainer.hollmann@dwd.de | BT86: both | BU86: HDF | BV86: Open Access | BW86: ftp, disk | CA86: 1414 | CB86: Feb 24 2014 8:44PM | CC86: 909E7FE7-23BA-4466-85F0-DEEAE4FBDF51 | CF86: EARTH RADIATION BUDGET (TOP-OF-ATMOSPHERE AND SURFACE) | CG86: EARTH RADIATION BUDGET | CY86: 29.91666667 | CZ86: 0.75 | DA86: 0.3333333333 | DB86: 0.8571428571 | DC86: 0.5 | DD86: 0.5 | DE86: 1 | DF86: 1 | DG86: 0.8571428571 | DH86: 0 | DI86: 1 | DJ86: 0 | DK86: 0.6666666667 | DL86: 0.6220238095 | DM86: 0.05x0.05 deg | DN86: n/a | DO86: hourly, daily and monthly | DP86: absolute bias: 15 W/m_ | DQ86: 0.4 (mm) | DR86: 1 | DS86: 1 | DT86: Radiation Budget Studies, Solar Energy, Model Validation | DU86: =SUM(CY86/30,DL86,DR86,DS86) -> 3.619246032
A87: Current | B87: Rainer Hollmann | C87: rainer.hollmann@dwd.de | D87: planned 2nd release of Meteosat Solar Surface Radiation TCDR (CM-23202) | E87: EUMETSAT | H87: no | K87: no | L87: no | N87: Radiation Budget Studies, Solar Energy, Model Validation | O87: CDR_ECV06_21 | P87: EUMETSAT | Q87: EUMETSAT | R87: EUMETSAT | S87: EUMETSAT | T87: EUMETSAT | U87: EUMETSAT | V87: EUMETSAT | W87: EUMETSAT | X87: EUMETSAT | Y87: EUMETSAT | Z87: 1983-01-01 | AA87: 2015-12-01 | AC87: DOWNWELLING SHORT-WAVE RADIATION AT THE EARTH SURFACE | AD87: W/m2 | AE87: Meteosat-2 | AF87: MVIRI | AH87: Yes | AI87: Meteosat-3 | AJ87: MVIRI | AL87: Meteosat-4 | AM87: MVIRI | AO87: Meteosat-5 | AP87: MVIRI | AR87: Meteosat-6 | AS87: MVIRI | AU87: Meteosat-7 | AV87: MVIRI | AY87: Meteosat-2|MVIRI||Meteosat-3|MVIRI||Meteosat-4|MVIRI||Meteosat-5|MVIRIMeteosat-6/MVIRI; Meteosat-7/MVIRI; Meteosat-8/SEVIRI; Meteosat-9/SEVIRI; Meteosat-10/SEVIRI; | AZ87: Regional | BA87: 0.05x0.05 deg | BB87: n/a | BC87: hourly, daily and monthly | BD87: absolute bias: 15 W/m_ | BE87: 3 W/m_/decade | BI87: no | BN87: no | BO87: no | BS87: rainer.hollmann@dwd.de | BT87: both | BU87: HDF | BV87: Open Access | BW87: ftp, disk | CA87: 1415 | CB87: Feb 24 2014 8:44PM | CC87: 1CB6087E-E391-4FA0-81BB-F531CF76B6EA | CF87: EARTH RADIATION BUDGET (TOP-OF-ATMOSPHERE AND SURFACE) | CG87: EARTH RADIATION BUDGET | CY87: 32.91666667 | CZ87: 0.75 | DA87: 0.3333333333 | DB87: 0.8571428571 | DC87: 0.5 | DD87: 0.5 | DE87: 1 | DF87: 1 | DG87: 0.8571428571 | DH87: 0 | DI87: 1 | DJ87: 0 | DK87: 0.6666666667 | DL87: 0.6220238095 | DM87: 0.05x0.05 deg | DN87: n/a | DO87: hourly, daily and monthly | DP87: absolute bias: 15 W/m_ | DQ87: 3 W/m_/decade | DR87: 1 | DS87: 1 | DT87: Radiation Budget Studies, Solar Energy, Model Validation | DU87: =SUM(CY87/30,DL87,DR87,DS87) -> 3.719246032
A88: Current | B88: Rainer Hollmann | C88: rainer.hollmann@dwd.de | D88: planned release of Meteosat TOA Reflected Solar All-Sky Radiative Flux (CM-23311) | E88: EUMETSAT | H88: no | K88: no | L88: no | N88: Radiation Budget Studies | O88: CDR_ECV06_22 | P88: EUMETSAT | Q88: EUMETSAT | R88: EUMETSAT | S88: EUMETSAT | T88: EUMETSAT | U88: EUMETSAT | V88: EUMETSAT | W88: EUMETSAT | X88: EUMETSAT | Y88: EUMETSAT | Z88: 1982-01-01 | AA88: 2014-12-01 | AC88: OUTGOING SHORT-WAVE RADIATION AT TOA | AD88: W/m2 | AE88: Meteosat-2 | AF88: MVIRI | AH88: Yes | AI88: Meteosat-3 | AJ88: MVIRI | AL88: Meteosat-4 | AM88: MVIRI | AO88: Meteosat-5 | AP88: MVIRI | AR88: Meteosat-6 | AS88: MVIRI | AU88: Meteosat-7 | AV88: MVIRI | AY88: Meteosat-2|MVIRI||Meteosat-3|MVIRI||Meteosat-4|MVIRI||Meteosat-5|MVIRIMeteosat-6/MVIRI; Meteosat-7/MVIRI; Meteosat-8/SEVIRI; Meteosat-9/SEVIRI; Meteosat-10/SEVIRI; | AZ88: Regional | BA88: 0.05x0.05 deg | BB88: n/a | BC88: daily and monthly | BD88: 8 W/m2 | BE88: < 4 W/m_/decade | BI88: no | BN88: no | BO88: no | BS88: rainer.hollmann@dwd.de | BT88: both | BU88: HDF | BV88: Open Access | BW88: FTP | CA88: 1416 | CB88: 2014-02-24T20:44:00 | CC88: 7A670076-7003-44E7-9D03-60628CEEF1C1 | CF88: EARTH RADIATION BUDGET (TOP-OF-ATMOSPHERE AND SURFACE) | CG88: EARTH RADIATION BUDGET | CY88: 32.91666667 | CZ88: 0.75 | DA88: 0.3333333333 | DB88: 0.8571428571 | DC88: 0.5 | DD88: 0.5 | DE88: 1 | DF88: 1 | DG88: 0.8571428571 | DH88: 0 | DI88: 1 | DJ88: 0 | DK88: 0.6666666667 | DL88: 0.6220238095 | DM88: 0.05x0.05 deg | DN88: n/a | DO88: daily and monthly | DP88: 8 W/m2 | DQ88: < 4 W/m_/decade | DR88: 1 | DS88: 1 | DT88: Radiation Budget Studies | DU88: =SUM(CY88/30,DL88,DR88,DS88) -> 3.719246032
A89: Current | B89: Rainer Hollmann | C89: rainer.hollmann@dwd.de | D89: planned release of TOA Emitted Thermal All-Sky Radiative Flux (CM-23341) | E89: EUMETSAT | H89: no | K89: no | L89: no | N89: Radiation Budget Studies | O89: CDR_ECV06_23 | P89: EUMETSAT | Q89: EUMETSAT | R89: EUMETSAT | S89: EUMETSAT | T89: EUMETSAT | U89: EUMETSAT | V89: EUMETSAT | W89: EUMETSAT | X89: EUMETSAT | Y89: EUMETSAT | Z89: 1982-01-01 | AA89: 2014-12-01 | AC89: OUTGOING LONG-WAVE RADIATION AT TOA | AD89: W/m2 | AE89: Meteosat-2 | AF89: MVIRI | AH89: Yes | AI89: Meteosat-3 | AJ89: MVIRI | AL89: Meteosat-4 | AM89: MVIRI | AO89: Meteosat-5 | AP89: MVIRI | AR89: Meteosat-6 | AS89: MVIRI | AU89: Meteosat-7 | AV89: MVIRI | AY89: Meteosat-2|MVIRI||Meteosat-3|MVIRI||Meteosat-4|MVIRI||Meteosat-5|MVIRIMeteosat-5/MVIRI; Meteosat-6/MVIRI; Meteosat-7/MVIRI; Meteosat-8/SEVIRI; Meteosat-9/SEVIRI; Meteosat-10/SEVIRI; | AZ89: Regional | BA89: 0.05x0.05 deg | BB89: n/a | BC89: daily and monthly | BD89: 4W/m2 | BE89: < 4W/m_/decade | BI89: no | BN89: no | BO89: no | BS89: rainer.hollmann@dwd.de | BT89: both | BU89: HDF | BV89: Open Access | BW89: FTP | CA89: 1417 | CB89: 2014-02-24T20:44:00 | CC89: FFFFC410-E8B4-4904-868F-BB3A6B8E4846 | CF89: EARTH RADIATION BUDGET (TOP-OF-ATMOSPHERE AND SURFACE) | CG89: EARTH RADIATION BUDGET | CY89: 32.91666667 | CZ89: 0.75 | DA89: 0.3333333333 | DB89: 0.8571428571 | DC89: 0.5 | DD89: 0.5 | DE89: 1 | DF89: 1 | DG89: 0.8571428571 | DH89: 0 | DI89: 1 | DJ89: 0 | DK89: 0.6666666667 | DL89: 0.6220238095 | DM89: 0.05x0.05 deg | DN89: n/a | DO89: daily and monthly | DP89: 4W/m2 | DQ89: < 4W/m_/decade | DR89: 1 | DS89: 1 | DT89: Radiation Budget Studies | DU89: =SUM(CY89/30,DL89,DR89,DS89) -> 3.719246032
A90: Current | B90: Rainer Hollmann | C90: rainer.hollmann@dwd.de | E90: EUMETSAT | H90: no | K90: yes | L90: no | O90: CDR_ECV06_3 | P90: EUMETSAT | Q90: EUMETSAT | R90: EUMETSAT | S90: EUMETSAT | T90: EUMETSAT | U90: not selected | V90: not selected | W90: not selected | X90: not selected | Y90: not selected | Z90: 1900-01-01 | AC90: NOT SELECTED | AD90: W/m2 | AH90: No | AZ90: Regional | BI90: no | BN90: no | BO90: no | BS90: contact.cmsaf@dwd.de | BT90: no | BU90: netcdf | BV90: Open Access | BW90: ftp, disk | BZ90: none | CA90: 2003-11-19 | CB90: Feb 24 2014 8:44PM | CC90: 4FCF892E-F1DF-4765-9F93-E0D32F0BB89C | CF90: EARTH RADIATION BUDGET (TOP-OF-ATMOSPHERE AND SURFACE) | CG90: EARTH RADIATION BUDGET | CY90: 0.002777777778 | CZ90: 0.5 | DA90: 0.3333333333 | DB90: 0.1428571429 | DC90: 0.5 | DD90: 0.5 | DE90: 1 | DF90: 1 | DG90: 0.7142857143 | DH90: 2 | DI90: 1 | DJ90: 0 | DK90: 0.6666666667 | DL90: 0.6964285714 | DM90: 0 | DN90: 0 | DO90: 0 | DP90: 0 | DQ90: 0 | DR90: 0 | DS90: 0 | DT90: 0 | DU90: =SUM(CY90/30,DL90,DR90,DS90) -> 0.696521164
A91: Current | B91: Rainer Hollmann | C91: rainer.hollmann@dwd.de | D91: CM SAF MSG TOA radiation Edition 1 | E91: EUMETSAT | H91: no | K91: no | L91: no | N91: Climate Research, Model Evaluation | O91: CDR_ECV06_4 | P91: EUMETSAT | Q91: EUMETSAT | R91: EUMETSAT | S91: EUMETSAT | T91: EUMETSAT | U91: EUMETSAT | V91: EUMETSAT | W91: EUMETSAT | X91: EUMETSAT | Y91: EUMETSAT | Z91: 2004-02-01 | AA91: 2011-01-01 | AC91: OUTGOING LONG-WAVE RADIATION AT TOA | AD91: W/m2 | AE91: Meteosat-8 | AF91: GERB | AH91: Yes | AI91: Meteosat-9 | AJ91: GERB | AL91: Meteosat-8 | AM91: SEVIRI | AO91: Meteosat-9 | AP91: SEVIRI | AY91: Meteosat-8|GERB||Meteosat-9|GERB SEVIRI on both satellites. | AZ91: Regional | BA91: 45 km x 45 km | BB91: n/a | BC91: daily, monthly, monthly mean diurnal cycle | BD91: monthly (rms): 2 W/m_ daily (rms): 3.6 W/m_",n/a" | BH91: no | BJ91: Meteosat-9 | BK91: 259 | BL91: 303 | BM91: no | BN91: no | BR91: contact.cmsaf@dwd.de | BS91: both | BT91: HDF | BU91: 10 | BV91: 1 | BY91: none | BZ91: 1420 | CA91: Feb 24 2014 8:44PM | CB91: E7811A23-1E69-4807-A483-774F5F369409 | CE91: 13 | CF91: 6 | CY91: 6.916666667 | CZ91: 0.75 | DA91: 0.3333333333 | DB91: 0.7142857143 | DC91: 1 | DD91: 0.5 | DE91: 1 | DF91: 1 | DG91: 0.4285714286 | DH91: 1 | DI91: 1 | DJ91: 0 | DK91: 0.6666666667 | DL91: 0.6994047619 | DM91: 45 km x 45 km | DN91: n/a | DO91: daily, monthly, monthly mean diurnal cycle | DP91: monthly (rms): 2 W/m_ daily (rms): 3.6 W/m_",n/a" | DQ91: 0 | DR91: 0.8 | DS91: =COUNTIF(N91,"*") -> 1 | DT91: Climate Research, Model Evaluation | DU91: =SUM(CY91/30,DL91,DR91,DS91) -> 2.729960317
A92: Current | B92: Rainer Hollmann | C92: rainer.hollmann@dwd.de | D92: CM SAF MSG TOA radiation Edition 1 | E92: EUMETSAT | H92: no | K92: no | L92: no | N92: Climate Research, Model Evaluation | O92: CDR_ECV06_5 | P92: EUMETSAT | Q92: EUMETSAT | R92: EUMETSAT | S92: EUMETSAT | T92: EUMETSAT | U92: EUMETSAT | V92: EUMETSAT | W92: EUMETSAT | X92: EUMETSAT | Y92: EUMETSAT | Z92: 2004-02-01 | AA92: 2011-01-01 | AC92: OUTGOING SHORT-WAVE RADIATION AT TOA | AD92: W/m2 | AE92: Meteosat-8 | AF92: GERB | AH92: Yes | AI92: Meteosat-9 | AJ92: GERB | AY92: Meteosat-8|GERB||Meteosat-9|GERB | AZ92: Regional | BA92: 45 km x 45 km | BB92: n/a | BC92: daily, monthly meand diurnal cycle, monthly | BD92: monthly (rms): 3 W/m_ daily (rms): 5.5 W/m_ | BE92: n/A | BI92: no | BK92: Meteosat-8 | BL92: GERB | BM92: Meteosat-8|GERB | BN92: no | BO92: no | BS92: contact.cmsaf@dwd.de | BT92: both | BU92: HDF | BV92: Open Access | BW92: ftp, disk | BZ92: none | CA92: 1421 | CB92: Feb 24 2014 8:44PM | CC92: FE86BCE4-A8D4-44FE-B4F4-EDF5B9D21E65 | CF92: EARTH RADIATION BUDGET (TOP-OF-ATMOSPHERE AND SURFACE) | CG92: EARTH RADIATION BUDGET | CY92: 6.916666667 | CZ92: 0.75 | DA92: 0.3333333333 | DB92: 0.8571428571 | DC92: 0.5 | DD92: 0.5 | DE92: 1 | DF92: 1 | DG92: 0.8571428571 | DH92: 2 | DI92: 1 | DJ92: 0 | DK92: 0.6666666667 | DL92: 0.7886904762 | DM92: 45 km x 45 km | DN92: n/a | DO92: daily, monthly meand diurnal cycle, monthly | DP92: monthly (rms): 3 W/m_ daily (rms): 5.5 W/m_ | DQ92: n/A | DR92: 0.8 | DS92: 1 | DT92: Climate Research, Model Evaluation | DU92: =SUM(CY92/30,DL92,DR92,DS92) -> 2.819246032
A93: Current | B93: Rainer Hollmann | C93: rainer.hollmann@dwd.de | D93: CM SAF MSG surface Radiation Edition 1 | E93: EUMETSAT | H93: no | K93: no | L93: no | N93: Climate Research, Climate Model Validation And Evaluation | O93: CDR_ECV06_6 | P93: EUMETSAT | Q93: EUMETSAT | R93: EUMETSAT | S93: EUMETSAT | T93: EUMETSAT | U93: EUMETSAT | V93: EUMETSAT | W93: EUMETSAT | X93: EUMETSAT | Y93: EUMETSAT | Z93: 2006-01-01 | AA93: 2011-12-01 | AC93: DOWNWELLING LONG-WAVE RADIATION AT THE EARTH SURFACE | AD93: W/m2 | AE93: Meteosat-8 | AF93: SEVIRI | AH93: Yes | AI93: Meteosat-9 | AJ93: SEVIRI | AY93: Meteosat-8|SEVIRI||Meteosat-9|SEVIRI | AZ93: Regional | BA93: 0.05 x 0.05 deg | BB93: n/a | BC93: monthly | BD93: bias: 9.6 W/m-2 | BE93: n/a | BI93: no | BK93: Meteosat-8 | BL93: SEVIRI | BM93: Meteosat-8|SEVIRI | BN93: no | BO93: no | BS93: contact.cmsaf@dwd.de | BT93: no | BU93: HDF | BV93: Open Access | BW93: ftp, disk | BZ93: none | CA93: 1422 | CB93: Feb 24 2014 8:44PM | CC93: A097C32F-B0F0-4A91-BA9E-BB21C92726FD | CF93: EARTH RADIATION BUDGET (TOP-OF-ATMOSPHERE AND SURFACE) | CG93: EARTH RADIATION BUDGET | CY93: 5.916666667 | CZ93: 0.75 | DA93: 0.3333333333 | DB93: 0.8571428571 | DC93: 0.5 | DD93: 0.5 | DE93: 1 | DF93: 1 | DG93: 0.7142857143 | DH93: 2 | DI93: 1 | DJ93: 0 | DK93: 0.6666666667 | DL93: 0.7767857143 | DM93: 0.05 x 0.05 deg | DN93: n/a | DO93: monthly | DP93: bias: 9.6 W/m-2 | DQ93: n/a | DR93: 0.8 | DS93: 1 | DT93: Climate Research, Climate Model Validation And Evaluation | DU93: =SUM(CY93/30,DL93,DR93,DS93) -> 2.774007937
A94: Current | B94: Rainer Hollmann | C94: rainer.hollmann@dwd.de | D94: CLARA A1 Edition 1 | E94: EUMETSAT | H94: no | K94: no | L94: no | N94: Climate Research | O94: CDR_ECV06_7 | P94: NOAA | Q94: NOAA | R94: NOAA | S94: NOAA | T94: EUMETSAT | U94: EUMETSAT | V94: EUMETSAT | W94: EUMETSAT | X94: EUMETSAT | Y94: EUMETSAT | Z94: 1982-01-01 | AA94: 2009-12-01 | AC94: DOWNWELLING LONG-WAVE RADIATION AT THE EARTH SURFACE | AD94: W/m2 | AE94: NOAA-11 | AF94: AVHRR/2 | AH94: Yes | AI94: NOAA-10 | AJ94: AVHRR/2 | AL94: NOAA-14 | AM94: AVHRR/2 | AO94: NOAA-15 | AP94: AVHRR/2 | AR94: Metop A | AS94: AVHRR/2, AVHRR/3 | AY94: NOAA-11|AVHRR/2||NOAA-10|AVHRR/2||NOAA-14|AVHRR/2||NOAA-15|AVHRR/2 more NOAA-Satellites, MEtop A AVHRR/3 and AVHRR/2 | AZ94: Global | BA94: 0.25 x 0.25 deg | BB94: n/a | BC94: monthly | BD94: 10 W/m-2 | BE94: tbd | BI94: no | BK94: Terra | BL94: MODIS | BM94: Terra|MODIS | BN94: no | BO94: no | BS94: contact.cmsaf@dwd.de | BT94: no | BU94: HDF | BV94: Open Access | BW94: ftp, disk | BZ94: none | CA94: 1423 | CB94: Feb 24 2014 8:44PM | CC94: 4888BA4A-4D45-4D5A-A7BB-C41419899F6F | CF94: EARTH RADIATION BUDGET (TOP-OF-ATMOSPHERE AND SURFACE) | CG94: EARTH RADIATION BUDGET | CY94: 27.91666667 | CZ94: 0.75 | DA94: 0.3333333333 | DB94: 0.8571428571 | DC94: 0.5 | DD94: 0.5 | DE94: 1 | DF94: 1 | DG94: 0.7142857143 | DH94: 2 | DI94: 1 | DJ94: 0 | DK94: 0.6666666667 | DL94: 0.7767857143 | DM94: 0.25 x 0.25 deg | DN94: n/a | DO94: monthly | DP94: 10 W/m-2 | DQ94: tbd | DR94: 0.8 | DS94: 1 | DT94: Climate Research | DU94: =SUM(CY94/30,DL94,DR94,DS94) -> 3.50734127
A95: Current | B95: Rainer Hollmann | C95: rainer.hollmann@dwd.de | D95: CLARA A1 edition 1 | E95: EUMETSAT | H95: no | K95: no | L95: no | N95: Climate Research | O95: CDR_ECV06_8 | P95: NOAA | Q95: NOAA | R95: NOAA | S95: NOAA | T95: EUMETSAT | U95: EUMETSAT | V95: EUMETSAT | W95: EUMETSAT | X95: EUMETSAT | Y95: EUMETSAT | Z95: 1982-01-01 | AA95: 2009-12-01 | AC95: EARTH SURFACE ALBEDO | AD95: % | AE95: NOAA-12 | AF95: AVHRR/2 | AH95: Yes | AI95: NOAA-10 | AJ95: AVHRR/2 | AL95: NOAA-15 | AM95: AVHRR/2 | AO95: NOAA-17 | AP95: AVHRR/2 | AR95: Metop A | AS95: AVHRR/2, AVHRR/3 | AY95: NOAA-12|AVHRR/2||NOAA-10|AVHRR/2||NOAA-15|AVHRR/2||NOAA-17|AVHRR/2and more NOAA MEtop Satellites equipped with aVHRR/2 AVHRR/3 | AZ95: Global | BA95: 0.25 x 0.25 deg | BB95: n/a | BC95: pentad, monthly | BD95: 24% relative | BE95: 5 % per decade | BI95: no | BK95: Terra | BL95: MODIS | BM95: Terra|MODIS | BN95: no | BO95: no | BS95: contact.cmsaf@dwd.de | BT95: no | BU95: HDF | BV95: Open Access | BW95: ftp, disk | BZ95: none | CA95: 1424 | CB95: Feb 24 2014 8:44PM | CC95: EBA574B1-F607-46BD-9BA6-503912CD0181 | CF95: EARTH RADIATION BUDGET (TOP-OF-ATMOSPHERE AND SURFACE) | CG95: EARTH RADIATION BUDGET | CY95: 27.91666667 | CZ95: 0.75 | DA95: 0.3333333333 | DB95: 0.8571428571 | DC95: 0.5 | DD95: 0.5 | DE95: 1 | DF95: 1 | DG95: 0.7142857143 | DH95: 2 | DI95: 1 | DJ95: 0 | DK95: 0.6666666667 | DL95: 0.7767857143 | DM95: 0.25 x 0.25 deg | DN95: n/a | DO95: pentad, monthly | DP95: 24% relative | DQ95: 5 % per decade | DR95: 1 | DS95: 1 | DT95: Climate Research | DU95: =SUM(CY95/30,DL95,DR95,DS95) -> 3.70734127
A96: Current | B96: Rainer Hollmann | C96: rainer.hollmann@dwd.de | D96: CM SAF Surface Radiation MVIRI Data Set Edition 1.0 | E96: EUMETSAT | H96: no | K96: no | L96: no | N96: Climate Monitoring, Solar Radiation Application, Climate Research | O96: CDR_ECV06_9 | P96: EUMETSAT | Q96: EUMETSAT | R96: EUMETSAT | S96: EUMETSAT | T96: EUMETSAT | U96: EUMETSAT | V96: EUMETSAT | W96: EUMETSAT | X96: EUMETSAT | Y96: EUMETSAT | Z96: 1983-01-01 | AA96: 2005-12-01 | AC96: DOWNWELLING SHORT-WAVE RADIATION AT THE EARTH SURFACE | AD96: W/m2 | AE96: Meteosat-4 | AF96: MVIRI | AH96: Yes | AI96: Meteosat-2 | AJ96: MVIRI | AL96: Meteosat-3 | AM96: MVIRI | AO96: Meteosat-5 | AP96: MVIRI | AR96: Meteosat-6 | AS96: MVIRI | AU96: Meteosat-7 | AV96: MVIRI | AY96: Meteosat-4|MVIRI||Meteosat-2|MVIRI||Meteosat-3|MVIRI||Meteosat-5|MVIRI METEOSAT 6 & 7 MVIRI | AZ96: Regional | BA96: 0.03 x 0.03 deg | BB96: n/a | BC96: daily, monthly | BD96: 4.24 W/m-2 vs. BSRN sites | BE96: vs.GEBA: -1.76 W/m_/decade | BI96: no | BK96: Meteosat-8 | BL96: SEVIRI | BM96: Meteosat-8|SEVIRI | BN96: no | BO96: no | BS96: contact.cmsaf@dwd.de | BT96: no | BU96: HDF | BV96: Open Access | BW96: ftp, disk | BZ96: none | CA96: 1425 | CB96: Feb 24 2014 8:44PM | CC96: 047EE44D-93BB-4189-8054-E8937F2EB1F0 | CF96: EARTH RADIATION BUDGET (TOP-OF-ATMOSPHERE AND SURFACE) | CG96: EARTH RADIATION BUDGET | CY96: 22.91666667 | CZ96: 0.75 | DA96: 0.3333333333 | DB96: 0.8571428571 | DC96: 0.5 | DD96: 0.5 | DE96: 1 | DF96: 1 | DG96: 0.7142857143 | DH96: 2 | DI96: 1 | DJ96: 0 | DK96: 0.6666666667 | DL96: 0.7767857143 | DM96: 0.03 x 0.03 deg | DN96: n/a | DO96: daily, monthly | DP96: 4.24 W/m-2 vs. BSRN sites | DQ96: vs.GEBA: -1.76 W/m_/decade | DR96: 1 | DS96: 1 | DT96: Climate Monitoring, Solar Radiation Application, Climate Research | DU96: =SUM(CY96/30,DL96,DR96,DS96) -> 3.540674603
A97: Current | B97: Rainer Hollmann | C97: rainer.hollmann@dwd.de | D97: CM SAF MSG SEVIRI Aerosol edition 1 | E97: EUMETSAT | H97: no | K97: no | L97: no | N97: Climate Research, Cloud-aerosol Interactions | O97: CDR_ECV09_11 | P97: EUMETSAT | Q97: EUMETSAT | R97: EUMETSAT | S97: EUMETSAT | T97: EUMETSAT | U97: EUMETSAT | V97: EUMETSAT | W97: EUMETSAT | X97: EUMETSAT | Y97: EUMETSAT | Z97: 2004-02-01 | AA97: 2011-01-01 | AC97: AEROSOL OPTICAL DEPTH (COLUMN/PROFILE) | AD97: not selected | AE97: Meteosat-8 | AF97: SEVIRI | AH97: Yes | AI97: Meteosat-9 | AJ97: SEVIRI | AY97: Meteosat-8|SEVIRI||Meteosat-9|SEVIRI | AZ97: Regional | BA97: 0.05 x 0.05 deg | BB97: n/a | BC97: daily, monthly | BD97: 0.15 | BE97: n/a | BI97: no | BN97: no | BO97: no | BS97: rainer.hollmann@dwd.de | BT97: no | BU97: HDF | BV97: Open Access | BW97: ftp, disk | BZ97: none | CA97: 1441 | CB97: Feb 24 2014 8:44PM | CC97: 0B7531C7-8475-4D2C-AEDE-2563BBF9E528 | CF97: AEROSOL OPTICAL DEPTH | CG97: AEROSOL PROPERTIES | CY97: 6.916666667 | CZ97: 0.75 | DA97: 0.3333333333 | DB97: 0.8571428571 | DC97: 0.5 | DD97: 0.5 | DE97: 1 | DF97: 1 | DG97: 0.7142857143 | DH97: 2 | DI97: 1 | DJ97: 0 | DK97: 0.6666666667 | DL97: 0.7767857143 | DM97: 0.05 x 0.05 deg | DN97: n/a | DO97: daily, monthly | DP97: 0.15 | DQ97: n/a | DR97: 0.8 | DS97: 1 | DT97: Climate Research, Cloud-aerosol Interactions | DU97: =SUM(CY97/30,DL97,DR97,DS97) -> 2.80734127
A98: Current | B98: Rainer Hollmann | C98: rainer.hollmann@dwd.de | D98: planned release of Meteosat Aerosol Optical Depth (CM-23101) | E98: EUMETSAT | H98: no | K98: no | L98: no | N98: Climate Research, Cloud-aerosol Interactions | O98: CDR_ECV09_12 | P98: EUMETSAT | Q98: EUMETSAT | R98: EUMETSAT | S98: EUMETSAT | T98: EUMETSAT | U98: EUMETSAT | V98: EUMETSAT | W98: EUMETSAT | X98: EUMETSAT | Y98: EUMETSAT | Z98: 1982-01-01 | AA98: 2014-12-01 | AC98: AEROSOL OPTICAL DEPTH (COLUMN/PROFILE) | AD98: not selected | AE98: Meteosat-2 | AF98: MVIRI | AH98: Yes | AI98: Meteosat-3 | AJ98: MVIRI | AL98: Meteosat-4 | AM98: MVIRI | AO98: Meteosat-5 | AP98: MVIRI | AR98: Meteosat-6 | AS98: MVIRI | AU98: Meteosat-7 | AV98: MVIRI | AY98: Meteosat-2|MVIRI||Meteosat-3|MVIRI||Meteosat-4|MVIRI||Meteosat-5|MVIRIMeteosat-6/MVIRI; Meteosat-7/MVIRI; Meteosat-8/SEVIRI; Meteosat-9/SEVIRI; Meteosat-10/SEVIRI; | AZ98: Regional | BA98: 0.05 x 0.05 deg | BB98: n/a | BC98: monthly | BD98: 0.1 | BE98: < 0.2/decade | BI98: no | BN98: no | BO98: no | BS98: rainer.hollmann@dwd.de | BT98: no | BU98: HDF | BV98: Open Access | BW98: ftp, disk | CA98: 1442 | CB98: Feb 24 2014 8:44PM | CC98: AADA217F-31BD-4772-99AA-538662C29A11 | CF98: AEROSOL OPTICAL DEPTH | CG98: AEROSOL PROPERTIES | CY98: 32.91666667 | CZ98: 0.75 | DA98: 0.3333333333 | DB98: 0.8571428571 | DC98: 0.5 | DD98: 0.5 | DE98: 1 | DF98: 1 | DG98: 0.7142857143 | DH98: 0 | DI98: 1 | DJ98: 0 | DL98: 0.5545634921 | DM98: =BA98 -> 0.05 x 0.05 deg | DN98: =BB98 -> n/a | DP98: =BD98 -> 0.1 | DQ98: =BE98 -> < 0.2/decade | DR98: 0.8 | DS98: 1 | DT98: Climate Research, Cloud-aerosol Interactions | DU98: =SUM(CY98/30,DL98,DR98,DS98) -> 3.451785714
A99: Current | B99: Joerg Schulz | C99: joerg.schulz@eumetsat.int | D99: EO:EUM:DAT:MFG:CMW1 | E99: EUMETSAT | H99: no | K99: no | L99: no | N99: Nwp Model Based Reanalysis | O99: CDR_ECV11_2 | P99: EUMETSAT | Q99: EUMETSAT | R99: EUMETSAT | S99: EUMETSAT | T99: EUMETSAT | U99: EUMETSAT | V99: EUMETSAT | W99: EUMETSAT | X99: EUMETSAT | Y99: EUMETSAT | Z99: 1982-05-01 | AA99: 1999-12-01 | AC99: NOT SELECTED | AD99: m/s | AH99: No | AZ99: lat/long coordinates | BA99: 0.5 deg | BB99: N/A | BC99: 6 hourly at synoptic times | BD99: N/A | BE99: never studied | BI99: no | BN99: no | BO99: no | BS99: ops@eumetsat.int | BT99: no | BU99: not selected | BV99: Open Access | BW99: ftp, media | BZ99: N/A | CA99: 2003-12-24 | CB99: Feb 24 2014 8:44PM | CC99: 5001C8EC-9DB2-400D-85A9-C6E4239B19F7 | CF99: UPPER-AIR WIND | CG99: UPPER-AIR WIND | CY99: 17.58333333 | CZ99: 0.5 | DA99: 0.3333333333 | DB99: 0.8571428571 | DC99: 0.5 | DD99: 0.5 | DE99: 1 | DF99: 1 | DG99: 0.5714285714 | DH99: 2 | DI99: 1 | DJ99: 0 | DK99: =(COUNTIF(U99,"*")+COUNTIF(W99,"*")+COUNTIF(BO99,"y*"))/3 -> 0.6666666667 | DL99: 0.744047619 | DM99: =BA99 -> 0.5 deg | DN99: N/A | DO99: 6 hourly at synoptic times | DP99: N/A | DQ99: never studied | DR99: 0.6 | DS99: 1 | DT99: Nwp Model Based Reanalysis | DU99: =SUM(CY99/30,DL99,DR99,DS99) -> 2.93015873
A100: Current | B100: Joerg Schulz | C100: joerg.schulz@eumetsat.int | D100: EO:EUM:DAT:MFG:CMW1-IODC | E100: EUMETSAT | H100: no | K100: no | L100: no | N100: Nwp Model Based Reanalysis | O100: CDR_ECV11_3 | P100: EUMETSAT | Q100: EUMETSAT | R100: EUMETSAT | S100: EUMETSAT | T100: EUMETSAT | U100: EUMETSAT | V100: EUMETSAT | W100: EUMETSAT | X100: EUMETSAT | Y100: EUMETSAT | Z100: 1998-06-01 | AA100: 2001-01-01 | AC100: NOT SELECTED | AD100: m/s | AE100: Meteosat-5 | AF100: MVIRI | AH100: No | AY100: Meteosat-5|MVIRI | AZ100: lat/long coordinates | BA100: 0.5 deg | BB100: N/A | BC100: 6 hourly at synoptic times | BD100: unknown | BE100: unknown | BI100: no | BN100: no | BO100: no | BS100: ops@eumetsat.int | BT100: no | BU100: not selected | BV100: Open Access | BW100: ftp, media | BZ100: N/A | CA100: 1455 | CB100: Feb 24 2014 8:44PM | CC100: 214D16F5-5546-41C8-A4CE-420009F7EB18 | CF100: UPPER-AIR WIND | CG100: UPPER-AIR WIND | CY100: 2.583333333 | CZ100: 0.75 | DA100: 0.3333333333 | DB100: 0.8571428571 | DC100: 0.5 | DD100: 0.5 | DE100: 1 | DF100: 1 | DG100: 0.5714285714 | DH100: 2 | DI100: 1 | DJ100: 0 | DK100: 0.6666666667 | DL100: 0.7648809524 | DM100: 0.5 deg | DN100: N/A | DO100: 6 hourly at synoptic times | DP100: unknown | DQ100: unknown | DR100: 0.6 | DS100: 1 | DT100: Nwp Model Based Reanalysis | DU100: =SUM(CY100/30,DL100,DR100,DS100) -> 2.450992063
A101: Current | B101: Joerg Schulz | C101: joerg.schulz@eumetsat.int | D101: OSI 409 | E101: EUMETSAT | H101: no | K101: no | L101: no | N101: Sea Ice Extent Monitoring | O101: CDR_ECV12_7 | P101: DoD (USA) | Q101: not selected | R101: not selected | S101: NOAA | T101: EUMETSAT | U101: EUMETSAT | V101: EUMETSAT | W101: EUMETSAT | X101: EUMETSAT | Y101: EUMETSAT | Z101: 1978-10-01 | AA101: 2009-10-01 | AC101: SEA-ICE COVER | AD101: % | AH101: No | AZ101: Regional | BA101: 12.5 km | BB101: N/A | BC101: daily | BD101: 7% for SMMR 1-6% for SSM/I | BE101: not studied | BI101: no | BN101: no | BO101: no | BS101: osisaf-manager@met.no. | BT101: both | BU101: netcdf | BV101: Open Access | BW101: FTP | BZ101: N/A | CA101: 1462 | CB101: 2014-02-24T20:44:00 | CC101: 480522CF-1469-4D8F-A446-D0106525ACC2 | CF101: SEA-ICE CONCENTRATION/EXTENT/EDGE | CG101: SEA ICE | CY101: 31 | CZ101: 0.5 | DA101: 0.3333333333 | DB101: 0.8571428571 | DC101: 0.5 | DD101: 0.5 | DE101: 1 | DF101: 1 | DG101: 0.8571428571 | DH101: 2 | DI101: 1 | DJ101: 0 | DK101: 0.6666666667 | DL101: 0.7678571429 | DM101: 12.5 km | DN101: N/A | DO101: daily | DP101: 7% for SMMR 1-6% for SSM/I | DQ101: not studied | DR101: 0.8 | DS101: 1 | DT101: Sea Ice Extent Monitoring | DU101: =SUM(CY101/30,DL101,DR101,DS101) -> 3.601190476
A102: Current | B102: Joerg Schulz | C102: joerg.schulz@eumetsat.int | D102: EO:EUM:DAT:MFG:MSA1-IODC | E102: EUMETSAT | H102: no | K102: no | L102: yes | N102: Boundary Condition For Climate Models, Direct Climate Analysis Such As Impact Of Desertification On African Climate, Impact Of Fires On Surface Reflectance, Surface Reflectance Changes As Response To Precipitation Variability And Change. | O102: CDR_ECV22_1 | P102: EUMETSAT | Q102: EUMETSAT | R102: EUMETSAT | S102: EUMETSAT | T102: EUMETSAT | U102: EUMETSAT | V102: EUMETSAT | W102: EUMETSAT | X102: EUMETSAT | Y102: EUMETSAT | Z102: 1998-07-01 | AA102: 2011-12-01 | AC102: EARTH SURFACE ALBEDO | AD102: not selected | AE102: Meteosat-5 | AF102: MVIRI | AH102: Yes | AI102: Meteosat-7 | AJ102: MVIRI | AY102: Meteosat-5|MVIRI||Meteosat-7|MVIRI | AZ102: lat/long coordinates | BB102: N/A | BC102: 10-day composite | BD102: Approximately 10%, value estimated from a limited comparison to MODIS data. | BE102: 0.007 per decade for the selected desert targets | BI102: yes | BN102: no | BO102: no | BS102: ops@eumetsat.int | BT102: TCDR | BU102: HDF | BV102: Open Access | BW102: media or ftp | BZ102: none | CA102: 1492 | CB102: Feb 24 2014 8:44PM | CC102: 9F0F0D35-4D97-406E-A5C4-563B7855AD49 | CF102: BLACK-SKY AND WHITE-SKY ALBEDO | CG102: ALBEDO | CY102: 13.41666667 | CZ102: 0.75 | DA102: 0.3333333333 | DB102: 0.7142857143 | DC102: 0.5 | DD102: 0.5 | DE102: 1 | DF102: 1 | DG102: 0.8571428571 | DH102: 2 | DI102: 1 | DJ102: 0 | DK102: 0.6666666667 | DL102: 0.7767857143 | DM102: 0 | DN102: N/A | DO102: 10-day composite | DP102: Approximately 10%, value estimated from a limited comparison to MODIS data. | DQ102: 0.007 per decade for the selected desert targets | DR102: 0.8 | DS102: 1 | DT102: Boundary Condition For Climate Models, Direct Climate Analysis Such As Impact Of Desertification On African Climate, Impact Of Fires On Surface Reflectance, Surface Reflectance Changes As Response To Precipitation Variability And Change. | DU102: =SUM(CY102/30,DL102,DR102,DS102) -> 3.024007937
A103: Current | B103: Joerg Schulz | C103: joerg.schulz@eumetsat.int | D103: EO:EUM:DAT:MFG:MSA1 | E103: EUMETSAT | H103: no | K103: no | L103: yes | O103: CDR_ECV22_3 | P103: EUMETSAT | Q103: EUMETSAT | R103: EUMETSAT | S103: EUMETSAT | T103: EUMETSAT | U103: EUMETSAT | V103: EUMETSAT | W103: EUMETSAT | X103: EUMETSAT | Y103: EUMETSAT | Z103: 1981-08-01 | AA103: 2006-07-01 | AC103: EARTH SURFACE ALBEDO | AD103: not selected | AH103: No | AZ103: lat/long coordinates | BB103: N/A | BC103: 10 day composite i.e., the albedo estimate with the least uncertainty within a 10-day period represents the whole period. | BD103: Approximately 10%, value estimated from a limited comparison to MODIS data. | BE103: The estimated long term temporal trends are smaller than 0.007 per decade for the selected targets. | BI103: no | BN103: no | BO103: no | BS103: ops@eumetsat.int | BT103: no | BU103: HDF | BV103: Open Access | BW103: FTP Media | BZ103: none | CA103: 1494 | CB103: Feb 24 2014 8:44PM | CC103: 943A7F19-255D-46DF-BD75-332BBAD20DEB | CF103: BLACK-SKY AND WHITE-SKY ALBEDO | CG103: ALBEDO | CY103: 24.91666667 | CZ103: 0.5 | DA103: 0.3333333333 | DB103: 0.7142857143 | DC103: 0.5 | DD103: 0.5 | DE103: 1 | DF103: 1 | DG103: 0.7142857143 | DH103: 2 | DI103: 1 | DJ103: 0 | DK103: 0.6666666667 | DL103: 0.744047619 | DM103: 0 | DN103: N/A | DO103: 10 day composite i.e., the albedo estimate with the least uncertainty within a 10-day period represents the whole period. | DP103: Approximately 10%, value estimated from a limited comparison to MODIS data. | DQ103: The estimated long term temporal trends are smaller than 0.007 per decade for the selected targets. | DR103: 0.8 | DS103: 0 | DT103: 0 | DU103: =SUM(CY103/30,DL103,DR103,DS103) -> 2.374603175
A104: Current | B104: Rainer Hollmann | C104: rainer.hollmann@dwd.de | D104: AVHRR CLARA Edition 1 | E104: EUMETSAT | H104: no | K104: no | L104: no | N104: Climate Modelling, Desertification On Climate | O104: CDR_ECV22_4 | P104: NOAA | Q104: NOAA | R104: NOAA | S104: NOAA | T104: EUMETSAT | U104: EUMETSAT | V104: EUMETSAT | W104: EUMETSAT | X104: EUMETSAT | Y104: EUMETSAT | Z104: 1982-01-01 | AA104: 2009-12-01 | AC104: EARTH SURFACE ALBEDO | AD104: not selected | AE104: NOAA-11 | AF104: AVHRR/2 | AH104: Yes | AI104: NOAA-10 | AJ104: AVHRR/2 | AL104: NOAA-16 | AM104: AVHRR/3 | AO104: NOAA-18 | AP104: AVHRR/3 | AR104: METop A | AS104: AVHRR/3 | AY104: NOAA-11|AVHRR/2||NOAA-10|AVHRR/2||NOAA-16|AVHRR/3||NOAA-18|AVHRR/3and more AVHRR/2 and AVHRR/3 from NOAA-9 to NOAA-18, Metop-A/AVHRR/3 | AZ104: Global | BA104: 0.25 x 0.25 deg | BB104: n/A | BC104: pentad, monthly | BD104: tbd | BE104: tbd | BI104: no | BK104: Terra | BL104: MODIS | BM104: Terra|MODIS | BN104: no | BO104: no | BS104: contact.cmsaf@dwd.de | BT104: no | BU104: HDF | BV104: Open Access | BW104: ftp, disk, download | BZ104: none | CA104: 1495 | CB104: Feb 24 2014 8:44PM | CC104: 41F1D959-6CF8-4DB9-8F44-A9CCCC49F4D8 | CF104: BLACK-SKY AND WHITE-SKY ALBEDO | CG104: ALBEDO | CY104: 27.91666667 | CZ104: 0.75 | DA104: 0.3333333333 | DB104: 0.8571428571 | DC104: 0.5 | DD104: 0.5 | DE104: 1 | DF104: 1 | DG104: 0.7142857143 | DH104: 2 | DI104: 1 | DJ104: 0 | DK104: 0.6666666667 | DL104: 0.7767857143 | DM104: 0.25 x 0.25 deg | DN104: n/A | DO104: pentad, monthly | DP104: tbd | DQ104: tbd | DR104: 0.6 | DS104: 1 | DT104: Climate Modelling, Desertification On Climate | DU104: =SUM(CY104/30,DL104,DR104,DS104) -> 3.30734127
A105: Current | B105: Rainer Hollmann | C105: rainer.hollmann@dwd.de | D105: CM SAF CLAAS, edition 1: Surface Albedo | E105: EUMETSAT | H105: no | K105: no | L105: no | N105: Climate Modelling, Climate Research | O105: CDR_ECV22_5 | P105: EUMETSAT | Q105: EUMETSAT | R105: EUMETSAT | S105: EUMETSAT | T105: EUMETSAT | U105: EUMETSAT | V105: EUMETSAT | W105: EUMETSAT | X105: EUMETSAT | Y105: EUMETSAT | Z105: 2004-01-01 | AA105: 2011-12-01 | AC105: EARTH SURFACE ALBEDO | AD105: not selected | AE105: Meteosat-9 | AF105: SEVIRI | AH105: Yes | AI105: Meteosat-8 | AJ105: SEVIRI | AY105: Meteosat-9|SEVIRI||Meteosat-8|SEVIRI | AZ105: Regional | BA105: 0.05 x 0.05 deg | BB105: n/a | BC105: pentad, monthly | BD105: rmse: 0.046 | BE105: n/a | BI105: no | BK105: Meteosat-8 | BM105: Meteosat-8|not selected | BN105: no | BO105: no | BS105: contact.cmsaf@dwd.de | BT105: no | BU105: HDF | BV105: Open Access | BW105: ftp, disk | BZ105: none | CA105: 1496 | CB105: Feb 24 2014 8:44PM | CC105: 96FBF19E-C588-4BCB-A4A5-D9E5FB646633 | CF105: BLACK-SKY AND WHITE-SKY ALBEDO | CG105: ALBEDO | CY105: 7.916666667 | CZ105: 0.75 | DA105: 0.3333333333 | DB105: 0.8571428571 | DC105: 0.5 | DD105: 0.5 | DE105: 1 | DF105: 1 | DG105: 0.7142857143 | DH105: 2 | DI105: 1 | DJ105: 0 | DK105: 0.6666666667 | DL105: 0.7767857143 | DM105: 0.05 x 0.05 deg | DN105: n/a | DO105: pentad, monthly | DP105: rmse: 0.046 | DQ105: n/a | DR105: 0.8 | DS105: 1 | DT105: Climate Modelling, Climate Research | DU105: =SUM(CY105/30,DL105,DR105,DS105) -> 2.840674603
A106: Future | B106: Rainer Hollmann | C106: rainer.hollmann@dwd.de | D106: Yes, new release of Surface Albedo | E106: EUMETSAT | H106: no | K106: no | L106: no | O106: CDR_ECV22_6 | P106: DoD (USA) | Q106: DoD (USA) | R106: DoD (USA) | S106: EUMETSAT | T106: EUMETSAT | U106: EUMETSAT | V106: EUMETSAT | W106: EUMETSAT | X106: EUMETSAT | Y106: EUMETSAT | Z106: 1982-01-01 | AA106: 2013-12-01 | AC106: NOT SELECTED | AD106: not selected | AH106: No | AZ106: Global | BA106: 0.25 x 0.25 | BC106: weekly and monthly mean | BD106: 40 | BE106: 25 | BI106: no | BN106: no | BO106: no | BT106: both | BU106: not selected | BV106: Open Access | CA106: 2004-02-05 | CB106: Feb 24 2014 8:44PM | CC106: A0E3ECCA-B8C3-4FD6-89E8-FFF45C0FD143 | CF106: BLACK-SKY AND WHITE-SKY ALBEDO | CG106: ALBEDO | CY106: 31.91666667 | CZ106: 0.5 | DA106: 0.3333333333 | DB106: 0.7142857143 | DC106: 0.5 | DD106: 0.5 | DE106: 1 | DF106: 1 | DG106: 0.4285714286 | DH106: 0 | DI106: 1 | DJ106: 0 | DK106: 0.6666666667 | DL106: 0.5535714286 | DM106: 0.25 x 0.25 | DN106: 0 | DO106: weekly and monthly mean | DP106: 40 | DQ106: 25 | DR106: 0.8 | DS106: 0 | DT106: 0 | DU106: =SUM(CY106/30,DL106,DR106,DS106) -> 2.417460317
A107: Future | B107: Rainer Hollmann | C107: rainer.hollmann@dwd.de | D107: Yes, new release of Surface Albedo | E107: EUMETSAT | H107: no | K107: no | L107: no | O107: CDR_ECV22_7 | P107: DoD (USA) | Q107: DoD (USA) | R107: DoD (USA) | S107: EUMETSAT | T107: EUMETSAT | U107: EUMETSAT | V107: EUMETSAT | W107: EUMETSAT | X107: EUMETSAT | Y107: EUMETSAT | Z107: 1982-01-01 | AA107: 2015-12-01 | AC107: NOT SELECTED | AD107: not selected | AH107: No | AZ107: Global | BA107: 0.25 x 0.25 | BC107: Pentad and monthly meam | BD107: 30 | BE107: 20 | BI107: no | BN107: no | BO107: no | BT107: both | BU107: not selected | BV107: Open Access | CA107: 2004-02-06 | CB107: Feb 24 2014 8:44PM | CC107: 70113654-1FA7-4CE5-BA94-776C80FDE526 | CF107: BLACK-SKY AND WHITE-SKY ALBEDO | CG107: ALBEDO | CY107: 33.91666667 | CZ107: 0.5 | DA107: 0.3333333333 | DB107: 0.7142857143 | DC107: 0.5 | DD107: 0.5 | DE107: 1 | DF107: 1 | DG107: 0.4285714286 | DH107: 0 | DI107: 1 | DJ107: 0 | DK107: 0.6666666667 | DL107: 0.5535714286 | DM107: 0.25 x 0.25 | DN107: 0 | DO107: Pentad and monthly meam | DP107: 30 | DQ107: 20 | DR107: 0.8 | DS107: 0 | DT107: 0 | DU107: =SUM(CY107/30,DL107,DR107,DS107) -> 2.484126984
A108: Future | B108: Rainer Hollmann | C108: rainer.hollmann@dwd.de | D108: planned release of Meteosat Land Surface Temperature (CM-23921) | E108: EUMETSAT | H108: no | K108: no | L108: no | N108: Climate Modelling; Land Surface Flux Closure Studies | O108: CDR_ECV34_3 | P108: EUMETSAT | Q108: EUMETSAT | R108: EUMETSAT | S108: EUMETSAT | T108: EUMETSAT | U108: EUMETSAT | V108: EUMETSAT | W108: EUMETSAT | X108: EUMETSAT | Y108: EUMETSAT | Z108: 1983-01-01 | AA108: 2015-12-01 | AC108: LAND SURFACE TEMPERATURE | AD108: not selected | AE108: Meteosat-2 | AF108: MVIRI | AH108: Yes | AI108: Meteosat-3 | AJ108: MVIRI | AL108: Meteosat-4 | AM108: MVIRI | AO108: Meteosat-5 | AP108: MVIRI | AR108: Meteosat-7 | AS108: MVIRI | AU108: Meteosat-8 | AV108: SEVERI | AY108: Meteosat-2|MVIRIMeteosat-3|MVIRI||Meteosat-4|MVIRI||Meteosat-5|MVIRI|Meteosat 7 MVIRI; Meteosat 8- 10: SEVIRI | AZ108: Regional | BA108: 0.05 x 0.05 deg | BB108: n/a | BC108: hourly, daily and monthly | BD108: rms 3.0 K bias 1.5 K | BE108: 0.5 K/decade | BI108: no | BN108: no | BO108: no | BS108: rainer.hollmann@dwd.de | BT108: both | BU108: not selected | BV108: Open Access | CA108: 2004-03-04 | CB108: Feb 24 2014 8:44PM | CC108: AB695227-D53E-4776-896C-BA33A45412ED | CF108: LAND-SURFACE TEMPERATURE RECORDS | CG108: LAND-SURFACE TEMPERATURE | CY108: 32.91666667 | CZ108: 0.75 | DA108: 0.3333333333 | DB108: 0.8571428571 | DC108: 0.5 | DD108: 0.5 | DE108: 1 | DF108: 1 | DG108: 0.5714285714 | DH108: 0 | DI108: 1 | DJ108: 0 | DK108: 0.6666666667 | DL108: 0.5982142857 | DM108: 0.05 x 0.05 deg | DN108: n/a | DO108: hourly, daily and monthly | DP108: rms 3.0 K bias 1.5 K | DQ108: 0.5 K/decade | DR108: 1 | DS108: 1 | DT108: Climate Modelling; Land Surface Flux Closure Studies | DU108: =SUM(CY108/30,DL108,DR108,DS108) -> 3.695436508
A109: Current | B109: Keiji IMAOKA | C109: imaoka.keiji@jaxa.jp | D109: Sea surface wind speed | E109: JAXA | H109: no | K109: yes | L109: yes | N109: Model Input, Gsmap, Etc. | O109: CDR_ECV01_3 | P109: JAXA | Q109: JAXA | R109: JAXA | S109: JAXA | T109: JAXA | U109: JAXA | V109: JAXA | W109: JAXA | X109: JAXA | Y109: JAXA | Z109: 2012-09-01 | AC109: WIND SPEED OVER SEA SURFACE (HORIZONTAL) | AD109: m/s | AE109: GCOM-W1 | AF109: AMSR-2 | AH109: No | AY109: GCOM-W1|AMSR-2 | AZ109: Global | BA109: 15km | BB109: N/A | BC109: 2days | BE109: TBD | BI109: yes | BK109: Aqua | BL109: AMSR-E | BM109: Aqua|AMSR-E | BN109: no | BO109: no | BS109: Z-GCOM_QA@jaxa.jp | BT109: both | BU109: HDF | BV109: Constrained Access | BW109: via the internet | BZ109: 1month | CA109: 1326 | CB109: Feb 24 2014 8:44PM | CC109: BAA84873-C770-45F7-882C-2E872B94040D | CF109: SURFACE WIND | CG109: SURFACE WIND SPEED AND DIRECTION | CY109: 112.6694444 | CZ109: 0.75 | DA109: 0.3333333333 | DB109: 0.7142857143 | DC109: 0.5 | DD109: 0.5 | DE109: 1 | DF109: 1 | DG109: 0.8571428571 | DH109: 2 | DI109: 1 | DJ109: 0 | DK109: 0.6666666667 | DL109: 0.7767857143 | DM109: 15km | DN109: N/A | DO109: 2days | DP109: 0 | DQ109: TBD | DR109: 0.6 | DS109: 1 | DT109: Model Input, Gsmap, Etc. | DU109: =SUM(CY109/30,DL109,DR109,DS109) -> 6.132433862
A110: Current | B110: Keiji IMAOKA | C110: imaoka.keiji@jaxa.jp | D110: Integrated water vapor | E110: JAXA | H110: no | K110: yes | L110: yes | N110: Model Input, Gsmap, Etc. | O110: CDR_ECV03_4 | P110: JAXA | Q110: JAXA | R110: JAXA | S110: JAXA | T110: JAXA | U110: JAXA | V110: JAXA | W110: JAXA | X110: JAXA | Y110: JAXA | Z110: 2012-09-01 | AC110: WATER VAPOUR IMAGERY | AD110: not selected | AE110: GCOM-W1 | AF110: AMSR-2 | AH110: No | AY110: GCOM-W1|AMSR-2 | AZ110: Global | BA110: 15km | BB110: N/A | BC110: 2days | BE110: TBD | BI110: yes | BK110: Aqua | BL110: AMSR-E | BM110: Aqua|AMSR-E | BN110: no | BO110: no | BS110: Z-GCOM_QA@jaxa.jp | BT110: both | BU110: HDF | BV110: Constrained Access | BW110: via the internet | BZ110: 1month | CA110: 1347 | CB110: Feb 24 2014 8:44PM | CC110: 29F6A6CC-6E9E-4BD3-87E3-8D9DABFC8E63 | CF110: PROFILES OF WATER VAPOR | CG110: WATER VAPOUR | CY110: 112.6694444 | CZ110: 0.75 | DA110: 0.3333333333 | DB110: 0.7142857143 | DC110: 0.5 | DD110: 0.5 | DE110: 1 | DF110: 1 | DG110: 0.8571428571 | DH110: 2 | DI110: 1 | DJ110: 0 | DK110: 0.6666666667 | DL110: 0.7767857143 | DM110: 15km | DN110: N/A | DO110: 2days | DP110: 0 | DQ110: TBD | DR110: 0.6 | DS110: 1 | DT110: Model Input, Gsmap, Etc. | DU110: =SUM(CY110/30,DL110,DR110,DS110) -> 6.132433862
A111: Current | B111: Keiji Imaoka | C111: imaoka.keiji@jaxa.jp | D111: new release | E111: JAXA | H111: no | K111: no | L111: no | N111: Input Modelling | O111: CDR_ECV04_10 | P111: JAXA | Q111: JAXA | R111: JAXA | S111: JAXA | T111: JAXA | U111: JAXA | V111: JAXA | W111: JAXA | X111: JAXA | Y111: JAXA | Z111: 2017-01-01 | AA111: 2022-01-01 | AC111: CLOUD TOP TEMPERATURE | AD111: not selected | AE111: GCOM-C1 | AF111: SGLI | AH111: No | AY111: GCOM-C1|SGLI | AZ111: Global | BA111: 1km | BB111: N/A | BC111: 2days | BD111: Standard accuracy: 3K/2km Target accuracy: 1.5K/1km | BE111: TBD | BI111: no | BN111: no | BO111: no | BT111: both | BU111: not selected | BV111: Open Access | CA111: 1354 | CB111: 2014-02-24T20:44:00 | CC111: 97BEA80B-FE9A-4753-B9A8-A2060E3A1A7F | CF111: CLOUD TOP PRESSURE AND TEMPERATURE | CG111: CLOUD PROPERTIES | CY111: 5 | CZ111: 0.75 | DA111: 0.3333333333 | DB111: 0.8571428571 | DC111: 0.5 | DD111: 0.5 | DE111: 1 | DF111: 1 | DG111: 0.4285714286 | DH111: 0 | DI111: 1 | DJ111: 0 | DK111: 0.6666666667 | DL111: 0.5863095238 | DM111: 1km | DN111: N/A | DO111: 2days | DP111: Standard accuracy: 3K/2km Target accuracy: 1.5K/1km | DQ111: TBD | DR111: 0.8 | DS111: 1 | DT111: Input Modelling | DU111: =SUM(CY111/30,DL111,DR111,DS111) -> 2.55297619
A112: Future | B112: Keiji Imaoka | C112: imaoka.keiji@jaxa.jp | D112: new release | E112: JAXA | H112: no | K112: no | L112: no | N112: Input Modelling | O112: CDR_ECV04_11 | P112: JAXA | Q112: JAXA | R112: JAXA | S112: JAXA | T112: JAXA | U112: JAXA | V112: JAXA | W112: JAXA | X112: JAXA | Y112: JAXA | Z112: 2017-01-01 | AA112: 2022-01-01 | AC112: CLOUD DROP SIZE (AT CLOUD TOP) | AD112: not selected | AE112: GCOM-C1 | AF112: SGPS | AH112: No | AY112: GCOM-C1|SGPS | AZ112: Global | BA112: 1km | BB112: N/A | BC112: 2days | BD112: Standard accuracy: 100% Target accuracy: 50%/20% | BE112: TBD | BI112: no | BN112: no | BO112: no | BT112: both | BU112: not selected | BV112: Open Access | CA112: 1355 | CB112: 2014-02-24T20:44:00 | CC112: 32C247E7-D7FA-49F4-B549-47FF7074AF60 | CF112: CLOUD EFFECTIVE PARTICLE RADIUS | CG112: CLOUD PROPERTIES | CY112: 5 | CZ112: 0.75 | DA112: 0.3333333333 | DB112: 0.8571428571 | DC112: 0.5 | DD112: 0.5 | DE112: 1 | DF112: 1 | DG112: 0.4285714286 | DH112: 0 | DI112: 1 | DJ112: 0 | DK112: 0.6666666667 | DL112: 0.5863095238 | DM112: 1km | DN112: N/A | DO112: 2days | DP112: Standard accuracy: 100% Target accuracy: 50%/20% | DQ112: TBD | DR112: 0.8 | DS112: 1 | DT112: Input Modelling | DU112: =SUM(CY112/30,DL112,DR112,DS112) -> 2.55297619
A113: Current | B113: Keiji IMAOKA | C113: imaoka.keiji@jaxa.jp | D113: Integrated cloud liquid water | E113: JAXA | H113: no | K113: yes | L113: yes | N113: Model Input, Gsmap, Etc. | O113: CDR_ECV04_12 | P113: JAXA | Q113: JAXA | R113: JAXA | S113: JAXA | T113: JAXA | U113: JAXA | V113: JAXA | W113: JAXA | X113: JAXA | Y113: JAXA | Z113: 2012-09-01 | AC113: CLOUD LIQUID WATER (COLUMN/PROFILE) | AD113: not selected | AE113: GCOM-W1 | AF113: AMSR-2 | AH113: No | AY113: GCOM-W1|AMSR-2 | AZ113: Global | BA113: 15km | BB113: N/A | BC113: 2days | BE113: TBD | BI113: yes | BK113: Aqua | BL113: AMSR-E | BM113: Aqua|AMSR-E | BN113: no | BO113: no | BS113: Z-GCOM_QA@jaxa.jp | BT113: both | BU113: HDF | BV113: Constrained Access | BW113: via the internet | BZ113: 1month | CA113: 1356 | CB113: Feb 24 2014 8:44PM | CC113: B1A30929-F4B1-462C-9348-8429BD40687C | CF113: CLOUD AMOUNT | CG113: CLOUD PROPERTIES | CY113: 112.6694444 | CZ113: 0.75 | DA113: 0.3333333333 | DB113: 0.7142857143 | DC113: 0.5 | DD113: 0.5 | DE113: 1 | DF113: 1 | DG113: 0.8571428571 | DH113: 2 | DI113: 1 | DJ113: 0 | DK113: 0.6666666667 | DL113: 0.7767857143 | DM113: 15km | DN113: N/A | DO113: 2days | DP113: 0 | DQ113: TBD | DR113: 0.6 | DS113: 1 | DT113: Model Input, Gsmap, Etc. | DU113: =SUM(CY113/30,DL113,DR113,DS113) -> 6.132433862
A114: Current | B114: Keiji Imaoka | C114: imaoka.keiji@jaxa.jp | D114: new release | E114: JAXA | H114: no | K114: no | L114: no | N114: Input Modelling | O114: CDR_ECV04_13 | P114: JAXA | Q114: JAXA | R114: JAXA | S114: JAXA | T114: JAXA | U114: JAXA | V114: JAXA | W114: JAXA | X114: JAXA | Y114: JAXA | Z114: 2017-01-01 | AA114: 2022-01-01 | AC114: CLOUD OPTICAL DEPTH | AD114: not selected | AE114: GCOM-C1 | AF114: SGLI | AH114: No | AY114: GCOM-C1|SGLI | AZ114: Global | BA114: 1km | BB114: N/A | BC114: 2days | BD114: Standard accuracy: 70% Target accuracy: 20% | BE114: TBD | BI114: no | BN114: no | BO114: no | BT114: both | BU114: not selected | BV114: Open Access | CA114: 1357 | CB114: 2014-02-24T20:44:00 | CC114: 093CB434-382F-4FDB-A4D8-85F51F666169 | CF114: CLOUD OPTICAL DEPTH | CG114: CLOUD PROPERTIES | CY114: 5 | CZ114: 0.75 | DA114: 0.3333333333 | DB114: 0.8571428571 | DC114: 0.5 | DD114: 0.5 | DE114: 1 | DF114: 1 | DG114: 0.4285714286 | DH114: 0 | DI114: 1 | DJ114: 0 | DK114: 0.6666666667 | DL114: 0.5863095238 | DM114: 1km | DN114: N/A | DO114: 2days | DP114: Standard accuracy: 70% Target accuracy: 20% | DQ114: TBD | DR114: 0.8 | DS114: 1 | DT114: Input Modelling | DU114: =SUM(CY114/30,DL114,DR114,DS114) -> 2.55297619
A115: Current | B115: Keiji Imaoka | C115: imaoka.keiji@jaxa.jp | D115: new release | E115: JAXA | H115: no | K115: no | L115: no | N115: Input Modelling | O115: CDR_ECV04_9 | P115: JAXA | Q115: JAXA | R115: JAXA | S115: JAXA | T115: JAXA | U115: JAXA | V115: JAXA | W115: JAXA | X115: JAXA | Y115: JAXA | Z115: 2017-01-01 | AA115: 2022-01-01 | AC115: CLOUD IMAGERY | AD115: not selected | AE115: GCOM-C1 | AF115: SGLI | AH115: No | AY115: GCOM-C1|SGLI | AZ115: Global | BA115: 1km | BB115: N/A | BC115: 2days | BD115: Standard accuracy 15% Target accuracy: 10% | BE115: TBD | BI115: no | BN115: no | BO115: no | BT115: both | BU115: not selected | BV115: Open Access | CA115: 1392 | CB115: 2014-02-24T20:44:00 | CC115: 6FE0FDDE-7AA9-4DC7-9A77-184DF84D41E5 | CF115: CLOUD AMOUNT | CG115: CLOUD PROPERTIES | CY115: 5 | CZ115: 0.75 | DA115: 0.3333333333 | DB115: 0.8571428571 | DC115: 0.5 | DD115: 0.5 | DE115: 1 | DF115: 1 | DG115: 0.4285714286 | DH115: 0 | DI115: 1 | DJ115: 0 | DK115: 0.6666666667 | DL115: 0.5863095238 | DM115: 1km | DN115: N/A | DO115: 2days | DP115: Standard accuracy 15% Target accuracy: 10% | DQ115: TBD | DR115: 0.8 | DS115: 1 | DT115: Input Modelling | DU115: =SUM(CY115/30,DL115,DR115,DS115) -> 2.55297619
A116: Current | B116: Keiji IMAOKA | C116: imaoka.keiji@jaxa.jp | D116: Precipitation | E116: JAXA | H116: no | K116: yes | L116: yes | N116: Model Input, Gsmap, Tec. | O116: CDR_ECV05_2 | P116: JAXA | Q116: JAXA | R116: JAXA | S116: JAXA | T116: JAXA | U116: JAXA | V116: JAXA | W116: JAXA | X116: JAXA | Y116: JAXA | Z116: 2012-09-01 | AC116: PRECIPITATION RATE (LIQUID) AT THE SURFACE | AD116: not selected | AE116: GCOM-W1 | AF116: AMSR-2 | AH116: No | AY116: GCOM-W1|AMSR-2 | AZ116: Global | BA116: 15km | BB116: N/A | BC116: 2days | BE116: TBD | BI116: yes | BK116: Aqua | BL116: AMSR-E | BM116: Aqua|AMSR-E | BN116: no | BO116: no | BS116: Z-GCOM_QA@jaxa.jp | BT116: both | BU116: HDF | BV116: Constrained Access | BW116: via the internet | BZ116: 1month | CA116: 1394 | CB116: Feb 24 2014 8:44PM | CC116: 09D14653-C07F-406A-9842-C43FC2ED9233 | CF116: LIQUID PRECIPITATION | CG116: PRECIPITATION | CY116: 112.6694444 | CZ116: 0.75 | DA116: 0.3333333333 | DB116: 0.7142857143 | DC116: 0.5 | DD116: 0.5 | DE116: 1 | DF116: 1 | DG116: 0.8571428571 | DH116: 2 | DI116: 1 | DJ116: 0 | DL116: 0.7212301587 | DM116: =BA116 -> 15km | DN116: =BB116 -> N/A | DP116: =BD116 -> 0 | DQ116: =BE116 -> TBD | DR116: 0.4 | DS116: 1 | DT116: Model Input, Gsmap, Tec. | DU116: =SUM(CY116/30,DL116,DR116,DS116) -> 5.876878307
A117: Current | E117: JAXA | H117: no | K117: no | L117: no | O117: CDR_ECV09_2 | P117: JAXA | Q117: JAXA | R117: JAXA | S117: JAXA | T117: JAXA | U117: JAXA | V117: JAXA | W117: JAXA | X117: JAXA | Y117: JAXA | Z117: 2017-01-01 | AA117: 2022-01-01 | AC117: AEROSOL EXTINCTION / BACKSCATTER (COLUMN/PROFILE) | AD117: not selected | AE117: GCOM-C1 | AF117: SGLI | AH117: No | AY117: GCOM-C1|SGLI | AZ117: Global | BA117: 1km | BB117: N/A | BC117: 2days | BD117: Standard accuracy: 0.1 (scene ta_670,865) Target accuracy: 0.05 (Scene ta_670865) | BE117: TBD | BI117: no | BN117: no | BO117: no | BT117: both | BU117: not selected | BV117: Open Access | CA117: 2003-12-14 | CB117: Feb 24 2014 8:44PM | CC117: 7462DB58-B7C1-4AE9-98B7-25672769E561 | CF117: AEROSOL SINGLE SCATTERING ALBEDO | CG117: AEROSOL PROPERTIES | CY117: 5 | CZ117: 0.75 | DA117: 0.3333333333 | DB117: 0.8571428571 | DC117: 0.5 | DD117: 0.5 | DE117: 1 | DF117: 1 | DG117: 0.4285714286 | DH117: 0 | DI117: 1 | DJ117: 0 | DK117: =(COUNTIF(U117,"*")+COUNTIF(W117,"*")+COUNTIF(BO117,"y*"))/3 -> 0.6666666667 | DL117: 0.5863095238 | DM117: =BA117 -> 1km | DN117: N/A | DO117: 2days | DP117: Standard accuracy: 0.1 (scene ta_670,865) Target accuracy: 0.05 (Scene ta_670865) | DQ117: TBD | DR117: 0.8 | DS117: 0 | DT117: 0 | DU117: =SUM(CY117/30,DL117,DR117,DS117) -> 1.55297619
A118: Future | B118: Keiji Imaoka | C118: imaoka.keiji@jaxa.jp | D118: new release | E118: JAXA | H118: no | K118: no | L118: no | N118: Input Modelling | O118: CDR_ECV09_3 | P118: JAXA | Q118: JAXA | R118: JAXA | S118: JAXA | T118: JAXA | U118: JAXA | V118: JAXA | W118: JAXA | X118: JAXA | Y118: JAXA | Z118: 2017-01-01 | AA118: 2022-01-01 | AC118: AEROSOL EXTINCTION / BACKSCATTER (COLUMN/PROFILE) | AD118: not selected | AE118: GCOM-C1 | AF118: SGLI | AH118: No | AY118: GCOM-C1|SGLI | AZ118: Global | BA118: 1km | BB118: N/A | BC118: 2days | BD118: Standard accuracy 0.15(scene ta_380) Target accuracy: 0.1(scene ta_380) | BE118: TBD | BI118: no | BN118: no | BO118: no | BT118: both | BU118: not selected | BV118: Open Access | CA118: 1445 | CB118: 2014-02-24T20:44:00 | CC118: 7B1ABE81-8988-44FB-A929-B0A54396D2C7 | CF118: AEROSOL EXTINCTION PROFILES | CG118: AEROSOL PROPERTIES | CY118: 5 | CZ118: 0.75 | DA118: 0.3333333333 | DB118: 0.8571428571 | DC118: 0.5 | DD118: 0.5 | DE118: 1 | DF118: 1 | DG118: 0.4285714286 | DH118: 0 | DI118: 1 | DJ118: 0 | DK118: 0.6666666667 | DL118: 0.5863095238 | DM118: 1km | DN118: N/A | DO118: 2days | DP118: Standard accuracy 0.15(scene ta_380) Target accuracy: 0.1(scene ta_380) | DQ118: TBD | DR118: 0.8 | DS118: 1 | DT118: Input Modelling | DU118: =SUM(CY118/30,DL118,DR118,DS118) -> 2.55297619
A119: Future | B119: Keiji Imaoka | C119: imaoka.keiji@jaxa.jp | D119: new release | E119: JAXA | H119: no | K119: no | L119: no | N119: Input Modelling | O119: CDR_ECV09_4 | P119: JAXA | Q119: JAXA | R119: JAXA | S119: JAXA | T119: JAXA | U119: JAXA | V119: JAXA | W119: JAXA | X119: JAXA | Y119: JAXA | Z119: 2017-01-01 | AA119: 2022-01-01 | AC119: AEROSOL EXTINCTION / BACKSCATTER (COLUMN/PROFILE) | AD119: not selected | AE119: GCOM-C1 | AF119: SGLI | AH119: No | AY119: GCOM-C1|SGLI | AZ119: Global | BA119: 1km | BB119: N/A | BC119: 2days | BD119: Standard accuracy: 0.15(scene ta_670865) Target accuracy: 0.1(scene ta_670865) | BE119: TBD | BI119: no | BN119: no | BO119: no | BT119: both | BU119: not selected | BV119: Open Access | CA119: 1446 | CB119: 2014-02-24T20:44:00 | CC119: E388DB38-263F-4BCD-BA2C-65109D0D927A | CF119: AEROSOL EXTINCTION PROFILES | CG119: AEROSOL PROPERTIES | CY119: 5 | CZ119: 0.75 | DA119: 0.3333333333 | DB119: 0.8571428571 | DC119: 0.5 | DD119: 0.5 | DE119: 1 | DF119: 1 | DG119: 0.4285714286 | DH119: 0 | DI119: 1 | DJ119: 0 | DK119: 0.6666666667 | DL119: 0.5863095238 | DM119: 1km | DN119: N/A | DO119: 2days | DP119: Standard accuracy: 0.15(scene ta_670865) Target accuracy: 0.1(scene ta_670865) | DQ119: TBD | DR119: 0.8 | DS119: 1 | DT119: Input Modelling | DU119: =SUM(CY119/30,DL119,DR119,DS119) -> 2.55297619
A120: Current | B120: Keiji IMAOKA | C120: imaoka.keiji@jaxa.jp | D120: Sea ice concentration | E120: JAXA | H120: no | K120: yes | L120: yes | N120: Model Input, Gsmap, Etc. | O120: CDR_ECV12_2 | P120: JAXA | Q120: JAXA | R120: JAXA | S120: JAXA | T120: JAXA | U120: JAXA | V120: JAXA | W120: JAXA | X120: JAXA | Y120: JAXA | Z120: 2012-09-01 | AC120: SEA-ICE COVER | AD120: % | AE120: GCOM-W1 | AF120: AMSR-2 | AH120: No | AY120: GCOM-W1|AMSR-2 | AZ120: Global | BA120: 15km | BB120: N/A | BC120: 2days | BE120: TBD | BI120: yes | BK120: Aqua | BL120: AMSR-E | BM120: Aqua|AMSR-E | BN120: no | BO120: no | BS120: Z-GCOM_QA@jaxa.jp | BT120: both | BU120: HDF | BV120: Constrained Access | BW120: via the internet | BZ120: 1month | CA120: 1457 | CB120: Feb 24 2014 8:44PM | CC120: 8378FCC9-9B74-45EE-8AF0-DF003CD48C05 | CF120: SEA-ICE CONCENTRATION/EXTENT/EDGE | CG120: SEA ICE | CY120: 112.6694444 | CZ120: 0.75 | DA120: 0.3333333333 | DB120: 0.7142857143 | DC120: 0.5 | DD120: 0.5 | DE120: 1 | DF120: 1 | DG120: 0.8571428571 | DH120: 2 | DI120: 1 | DJ120: 0 | DK120: 0.6666666667 | DL120: 0.7767857143 | DM120: 15km | DN120: N/A | DO120: 2days | DP120: 0 | DQ120: TBD | DR120: 0.6 | DS120: 1 | DT120: Model Input, Gsmap, Etc. | DU120: =SUM(CY120/30,DL120,DR120,DS120) -> 6.132433862
A121: Future | B121: Keiji Imaoka | C121: imaoka.keiji@jaxa.jp | D121: new release | E121: JAXA | H121: no | K121: no | L121: no | N121: Near Real Time Monitoring | O121: CDR_ECV12_3 | P121: JAXA | Q121: JAXA | R121: JAXA | S121: JAXA | T121: JAXA | U121: JAXA | V121: JAXA | W121: JAXA | X121: JAXA | Y121: JAXA | Z121: 2017-01-01 | AA121: 2022-01-01 | AC121: SEA-ICE COVER | AD121: not selected | AE121: GCOM-C1 | AF121: SGLI | AH121: No | AY121: GCOM-C1|SGLI | AZ121: Regional | BA121: 250m | BB121: N/A | BC121: 2days | BD121: Standard accuracy 5% Target accuracy 3% | BE121: TBD | BI121: no | BN121: no | BO121: no | BT121: both | BU121: not selected | BV121: Open Access | CA121: 1458 | CB121: 2014-02-24T20:44:00 | CC121: 2C28BAD8-558E-4EF0-92F3-A608D17A6E97 | CF121: SEA-ICE CONCENTRATION/EXTENT/EDGE | CG121: SEA ICE | CY121: 5 | CZ121: 0.75 | DA121: 0.3333333333 | DB121: 0.8571428571 | DC121: 0.5 | DD121: 0.5 | DE121: 1 | DF121: 1 | DG121: 0.4285714286 | DH121: 0 | DI121: 1 | DJ121: 0 | DK121: 0.6666666667 | DL121: 0.5863095238 | DM121: 250m | DN121: N/A | DO121: 2days | DP121: Standard accuracy 5% Target accuracy 3% | DQ121: TBD | DR121: 0.8 | DS121: 1 | DT121: Near Real Time Monitoring | DU121: =SUM(CY121/30,DL121,DR121,DS121) -> 2.55297619
A122: Current | B122: Keiji IMAOKA | C122: imaoka.keiji@jaxa.jp | D122: Sea surface temperature | E122: JAXA | H122: no | K122: yes | L122: yes | N122: Model Input, Gsmap, Etc. | O122: CDR_ECV14_2 | P122: JAXA | Q122: JAXA | R122: JAXA | S122: JAXA | T122: JAXA | U122: JAXA | V122: JAXA | W122: JAXA | X122: JAXA | Y122: JAXA | Z122: 2012-09-01 | AC122: SEA SURFACE TEMPERATURE | AD122: degrees C | AE122: GCOM-W1 | AF122: AMSR-2 | AH122: No | AY122: GCOM-W1|AMSR-2 | AZ122: Global | BA122: 50km | BB122: N/A | BC122: 2days | BE122: TBD | BI122: yes | BK122: Aqua | BL122: AMSR-E | BM122: Aqua|AMSR-E | BN122: no | BO122: no | BS122: Z-GCOM_QA@jaxa.jp | BT122: both | BU122: HDF | BV122: Constrained Access | BW122: via the internet | BZ122: 1month | CA122: 1472 | CB122: Feb 24 2014 8:44PM | CC122: 31BDB5E6-9E32-45C2-8A6D-C1FBECC55D07 | CF122: SEA-SURFACE TEMPERATURE | CG122: SEA SURFACE TEMPERATURE | CY122: 112.6694444 | CZ122: 0.75 | DA122: 0.3333333333 | DB122: 0.7142857143 | DC122: 0.5 | DD122: 0.5 | DE122: 1 | DF122: 1 | DG122: 0.8571428571 | DH122: 2 | DI122: 1 | DJ122: 0 | DK122: 0.6666666667 | DL122: 0.7767857143 | DM122: 50km | DN122: N/A | DO122: 2days | DP122: 0 | DQ122: TBD | DR122: 0.6 | DS122: 1 | DT122: Model Input, Gsmap, Etc. | DU122: =SUM(CY122/30,DL122,DR122,DS122) -> 6.132433862
A123: Future | B123: Keiji Imaoka | C123: imaoka.keiji@jaxa.jp | D123: new release | E123: JAXA | H123: no | K123: no | L123: no | N123: Input Modelling | O123: CDR_ECV14_3 | P123: JAXA | Q123: JAXA | R123: JAXA | S123: JAXA | T123: JAXA | U123: JAXA | V123: JAXA | W123: JAXA | X123: JAXA | Y123: JAXA | Z123: 2017-01-01 | AA123: 2022-01-01 | AC123: SEA SURFACE TEMPERATURE | AD123: not selected | AE123: GCOM-C1 | AF123: SGLI | AH123: No | AY123: GCOM-C1|SGLI | AZ123: Global | BA123: 500m (coast) 1km (offshore) 4-9km (global) | BB123: N/A | BC123: 2days | BD123: Standard accuracy: 0.8K (day&night) Target accuracy: 0.6K (day&night) | BE123: TBD | BI123: no | BN123: no | BO123: no | BT123: both | BU123: not selected | BV123: Open Access | CA123: 1473 | CB123: 2014-02-24T20:44:00 | CC123: F2E2D78B-8D1B-4A75-80C1-0B98F4B83E0C | CF123: SEA-SURFACE TEMPERATURE | CG123: SEA SURFACE TEMPERATURE | CY123: 5 | CZ123: 0.75 | DA123: 0.3333333333 | DB123: 0.8571428571 | DC123: 0.5 | DD123: 0.5 | DE123: 1 | DF123: 1 | DG123: 0.4285714286 | DH123: 0 | DI123: 1 | DJ123: 0 | DK123: 0.6666666667 | DL123: 0.5863095238 | DM123: 500m (coast) 1km (offshore) 4-9km (global) | DN123: N/A | DO123: 2days | DP123: Standard accuracy: 0.8K (day&night) Target accuracy: 0.6K (day&night) | DQ123: TBD | DR123: 0.8 | DS123: 1 | DT123: Input Modelling | DU123: =SUM(CY123/30,DL123,DR123,DS123) -> 2.55297619
A124: Future | B124: Keiji Imaoka | C124: imaoka.keiji@jaxa.jp | D124: new release | E124: JAXA | H124: no | K124: no | L124: no | N124: Input Modelling | O124: CDR_ECV15_1 | P124: JAXA | Q124: JAXA | R124: JAXA | S124: JAXA | T124: JAXA | U124: JAXA | V124: JAXA | W124: JAXA | X124: JAXA | Y124: JAXA | Z124: 2017-01-01 | AA124: 2022-01-01 | AC124: OCEAN IMAGERY | AD124: not selected | AE124: GCOM-C1 | AF124: SGLI | AH124: No | AY124: GCOM-C1|SGLI | AZ124: Global | BA124: 250m(coast) 1km(offshore) 4-9km(global) | BB124: N/A | BC124: 2days | BD124: Standard accuracy: 50%(<600nm) 0.5W/m2/str/um(>600nm) Target accuracy: 30%(<600nm) 0.25W/m2/str/um(>600nm) | BE124: TBD | BI124: no | BN124: no | BO124: no | BT124: both | BU124: not selected | BV124: Open Access | CA124: 1477 | CB124: 2014-02-24T20:44:00 | CC124: 8077E1D8-EB79-44F6-8288-4D845F5ADBA4 | CF124: OCEAN COLOUR RADIOMETRY - WATER LEAVING RADIANCE | CG124: OCEAN COLOR | CY124: 5 | CZ124: 0.75 | DA124: 0.3333333333 | DB124: 0.8571428571 | DC124: 0.5 | DD124: 0.5 | DE124: 1 | DF124: 1 | DG124: 0.4285714286 | DH124: 0 | DI124: 1 | DJ124: 0 | DK124: 0.6666666667 | DL124: 0.5863095238 | DM124: 250m(coast) 1km(offshore) 4-9km(global) | DN124: N/A | DO124: 2days | DP124: Standard accuracy: 50%(<600nm) 0.5W/m2/str/um(>600nm) Target accuracy: 30%(<600nm) 0.25W/m2/str/um(>600nm) | DQ124: TBD | DR124: 0.8 | DS124: 1 | DT124: Input Modelling | DU124: =SUM(CY124/30,DL124,DR124,DS124) -> 2.55297619
A125: Future | B125: Keiji Imaoka | C125: imaoka.keiji@jaxa.jp | D125: new release | E125: JAXA | H125: no | K125: no | L125: no | N125: Input Modelling | O125: CDR_ECV15_2 | P125: JAXA | Q125: JAXA | R125: JAXA | S125: JAXA | T125: JAXA | U125: JAXA | V125: JAXA | W125: JAXA | X125: JAXA | Y125: JAXA | Z125: 2017-01-01 | AA125: 2022-01-01 | AC125: OCEAN CHLOROPHYLL CONCENTRATION | AD125: not selected | AE125: GCOM-C1 | AF125: SGLI | AH125: No | AY125: GCOM-C1|SGLI | AZ125: Global | BA125: 250m (coast) 1km (offshore) 4-9km (global) | BB125: N/A | BC125: 2days | BD125: Standard accuracy: -60- 150% Target accuracy: -35- 50% (offshore) -50- 100% (coast) | BE125: TBD | BI125: no | BN125: no | BO125: no | BT125: both | BU125: not selected | BV125: Open Access | CA125: 1478 | CB125: 2014-02-24T20:44:00 | CC125: 6DF374B5-D548-4849-AA41-53965611E221 | CF125: OCEAN CHLOROPHYLL | CG125: OCEAN CHLOROPHYLL | CY125: 5 | CZ125: 0.75 | DA125: 0.3333333333 | DB125: 0.8571428571 | DC125: 0.5 | DD125: 0.5 | DE125: 1 | DF125: 1 | DG125: 0.4285714286 | DH125: 0 | DI125: 1 | DJ125: 0 | DK125: 0.6666666667 | DL125: 0.5863095238 | DM125: 250m (coast) 1km (offshore) 4-9km (global) | DN125: N/A | DO125: 2days | DP125: Standard accuracy: -60- 150% Target accuracy: -35- 50% (offshore) -50- 100% (coast) | DQ125: TBD | DR125: 0.8 | DS125: 1 | DT125: Input Modelling | DU125: =SUM(CY125/30,DL125,DR125,DS125) -> 2.55297619
A126: Current | B126: Keiji IMAOKA | C126: imaoka.keiji@jaxa.jp | D126: Snow depth | E126: JAXA | H126: no | K126: yes | L126: yes | N126: Model Input, Gsmap, Etc. | O126: CDR_ECV21_1 | P126: JAXA | Q126: JAXA | R126: JAXA | S126: JAXA | T126: JAXA | U126: JAXA | V126: JAXA | W126: JAXA | X126: JAXA | Y126: JAXA | Z126: 2012-09-01 | AC126: SNOW COVER | AD126: cm | AE126: GCOM-W1 | AF126: AMSR-2 | AH126: No | AY126: GCOM-W1|AMSR-2 | AZ126: Global | BA126: 30km | BB126: N/A | BC126: 2days | BE126: TBD | BI126: yes | BK126: Aqua | BL126: AMSR-E | BM126: Aqua|AMSR-E | BN126: no | BO126: no | BS126: Z-GCOM_QA@jaxa.jp | BT126: both | BU126: HDF | BV126: Constrained Access | BW126: via the internet | BZ126: 1month | CA126: 1487 | CB126: Feb 24 2014 8:44PM | CC126: E18569F5-107B-4E0D-B5D6-C8EE58A66FEB | CF126: SNOW AREAL EXTENT | CG126: SNOW COVER | CY126: 112.6694444 | CZ126: 0.75 | DA126: 0.3333333333 | DB126: 0.7142857143 | DC126: 0.5 | DD126: 0.5 | DE126: 1 | DF126: 1 | DG126: 0.8571428571 | DH126: 2 | DI126: 1 | DJ126: 0 | DK126: 0.6666666667 | DL126: 0.7767857143 | DM126: 30km | DN126: N/A | DO126: 2days | DP126: 0 | DQ126: TBD | DR126: 0.6 | DS126: 1 | DT126: Model Input, Gsmap, Etc. | DU126: =SUM(CY126/30,DL126,DR126,DS126) -> 6.132433862
A127: Future | B127: Keiji Imaoka | C127: imaoka.keiji@jaxa.jp | D127: new release | E127: JAXA | H127: no | K127: no | L127: no | N127: Input Modelling | O127: CDR_ECV21_2 | P127: JAXA | Q127: JAXA | R127: JAXA | S127: JAXA | T127: JAXA | U127: JAXA | V127: JAXA | W127: JAXA | X127: JAXA | Y127: JAXA | Z127: 2017-01-01 | AA127: 2022-01-01 | AC127: SNOW COVER | AD127: not selected | AE127: GCOM-C1 | AF127: SGLI | AH127: No | AY127: GCOM-C1|SGLI | AZ127: Global | BA127: 250m (scene) 1km (global) | BB127: N/A | BC127: 2days | BD127: Standard accuracy 7% Target accuracy 5% | BE127: TBD | BI127: no | BN127: no | BO127: no | BT127: both | BU127: not selected | BV127: Open Access | CA127: 1488 | CB127: 2014-02-24T20:44:00 | CC127: 3AFE25ED-9B0E-48F5-937F-D14284E901E7 | CF127: SNOW AREAL EXTENT | CG127: SNOW COVER | CY127: 5 | CZ127: 0.75 | DA127: 0.3333333333 | DB127: 0.8571428571 | DC127: 0.5 | DD127: 0.5 | DE127: 1 | DF127: 1 | DG127: 0.4285714286 | DH127: 0 | DI127: 1 | DJ127: 0 | DK127: 0.6666666667 | DL127: 0.5863095238 | DM127: 250m (scene) 1km (global) | DN127: N/A | DO127: 2days | DP127: Standard accuracy 7% Target accuracy 5% | DQ127: TBD | DR127: 0.8 | DS127: 1 | DT127: Input Modelling | DU127: =SUM(CY127/30,DL127,DR127,DS127) -> 2.55297619
A128: Current | B128: Keiji Imaoka | C128: imaoka.keiji@jaxa.jp | D128: Heritage from MODIS | E128: JAXA | H128: no | K128: no | L128: no | N128: Input For Modelling | O128: CDR_ECV23_2 | P128: JAXA | Q128: JAXA | R128: JAXA | S128: JAXA | T128: JAXA | U128: JAXA | V128: JAXA | W128: JAXA | X128: JAXA | Y128: JAXA | Z128: 2017-01-01 | AA128: 2027-01-01 | AC128: LAND COVER | AD128: not selected | AE128: GCOM-C2 | AF128: SGLI | AH128: Yes | AI128: GCOM-C1 | AJ128: SGLI | AL128: GCOM-C3 | AM128: SGLI | AY128: GCOM-C2|SGLI||GCOM-C1|SGLI||GCOM-C3|SGLI | AZ128: Global | BA128: 1km | BB128: NA | BC128: 2days | BI128: no | BN128: no | BO128: no | BS128: keiji.imaoka@jaxa.jp, ochiai.osamu@jaxa.jp | BT128: both | BU128: HDF | BV128: Open Access | CA128: 2004-02-08 | CB128: Feb 24 2014 8:44PM | CC128: 416651B8-4368-4636-8C29-618496C61325 | CF128: MODERATE-RESOLUTION MAPS OF LAND-COVER TYPE | CG128: LAND COVER | CY128: 10 | CZ128: 0.75 | DA128: 0.3333333333 | DB128: 0.5714285714 | DC128: 0.5 | DD128: 0.5 | DE128: 1 | DF128: 1 | DG128: 0.7142857143 | DH128: 0 | DI128: 1 | DJ128: 0 | DK128: 0.6666666667 | DL128: 0.5863095238 | DM128: 1km | DN128: NA | DO128: 2days | DP128: 0 | DQ128: 0 | DR128: 0.6 | DS128: 1 | DT128: Input For Modelling | DU128: =SUM(CY128/30,DL128,DR128,DS128) -> 2.519642857
A129: Future | B129: Keiji Imaoka | C129: imaoka.keiji@jaxa.jp | D129: new release | E129: JAXA | H129: no | K129: no | L129: no | N129: Input Modelling | O129: CDR_ECV24_6 | P129: JAXA | Q129: JAXA | R129: JAXA | S129: JAXA | T129: JAXA | U129: JAXA | V129: JAXA | W129: JAXA | X129: JAXA | Y129: JAXA | Z129: 2017-01-01 | AA129: 2022-01-01 | AC129: FRACTIONALLY ABSORBED PAR (FPAR) | AD129: not selected | AE129: GCOM-C1 | AF129: SGLI | AH129: No | AY129: GCOM-C1|SGLI | AZ129: Global | BA129: 250m | BB129: N/A | BC129: 2days | BD129: Standard accuracy: Grass 30%, forest 20% Target accuracy: Grass 20%, Forest 10% | BE129: TBD | BI129: no | BN129: no | BO129: no | BT129: both | BU129: not selected | BV129: Open Access | CA129: 1508 | CB129: Feb 24 2014 8:44PM | CC129: 61A2D109-F240-4AB4-9A32-513DA5797AEF | CF129: MAPS OF THE FRACTION OF ABSORBED PHOTOSYNTHETICALLY ACTIVE RADIATION | CG129: FAPAR | CY129: 5 | CZ129: 0.75 | DA129: 0.3333333333 | DB129: 0.8571428571 | DC129: 0.5 | DD129: 0.5 | DE129: 1 | DF129: 1 | DG129: 0.4285714286 | DH129: 0 | DI129: 1 | DJ129: 0 | DK129: 0.6666666667 | DL129: 0.5863095238 | DM129: 250m | DN129: N/A | DO129: 2days | DP129: Standard accuracy: Grass 30%, forest 20% Target accuracy: Grass 20%, Forest 10% | DQ129: TBD | DR129: 0.8 | DS129: 1 | DT129: Input Modelling | DU129: =SUM(CY129/30,DL129,DR129,DS129) -> 2.55297619
A130: Future | B130: Keiji Imaoka | C130: imaoka.keiji@jaxa.jp | D130: new release | E130: JAXA | H130: no | K130: no | L130: no | N130: Input Modelling | O130: CDR_ECV25_5 | P130: JAXA | Q130: JAXA | R130: JAXA | S130: JAXA | T130: JAXA | U130: JAXA | V130: JAXA | W130: JAXA | X130: JAXA | Y130: JAXA | Z130: 2017-01-01 | AA130: 2022-01-01 | AC130: LEAF AREA INDEX (LAI) | AD130: not selected | AE130: GCOM-C1 | AF130: SGLI | AH130: No | AY130: GCOM-C1|SGLI | AZ130: Global | BA130: 250m | BB130: N/A | BC130: 2days | BD130: Standard accuracy: Grass 30%, Forest 30% Target accuracy: Grass 20%, Forest 20% | BE130: TBD | BI130: no | BN130: no | BO130: no | BT130: both | BU130: not selected | BV130: Open Access | CA130: 1513 | CB130: Feb 24 2014 8:44PM | CC130: 48E236CA-4AD0-44F3-B03B-A9BDB550E13D | CF130: MAPS OF LEAF AREA INDEX | CG130: LAI | CY130: 5 | CZ130: 0.75 | DA130: 0.3333333333 | DB130: 0.8571428571 | DC130: 0.5 | DD130: 0.5 | DE130: 1 | DF130: 1 | DG130: 0.4285714286 | DH130: 0 | DI130: 1 | DJ130: 0 | DK130: 0.6666666667 | DL130: 0.5863095238 | DM130: 250m | DN130: N/A | DO130: 2days | DP130: Standard accuracy: Grass 30%, Forest 30% Target accuracy: Grass 20%, Forest 20% | DQ130: TBD | DR130: 0.8 | DS130: 1 | DT130: Input Modelling | DU130: =SUM(CY130/30,DL130,DR130,DS130) -> 2.55297619
A131: Current | B131: Keiji IMAOKA | C131: imaoka.keiji@jaxa.jp | D131: Soil moisture | E131: JAXA | H131: no | K131: yes | L131: yes | N131: Model Input, Gsmap, Etc. | O131: CDR_ECV28_2 | P131: JAXA | Q131: JAXA | R131: JAXA | S131: JAXA | T131: JAXA | U131: JAXA | V131: JAXA | W131: JAXA | X131: JAXA | Y131: JAXA | Z131: 2012-09-01 | AC131: SOIL MOISTURE IN THE ROOTS REGION | AD131: % | AE131: GCOM-W1 | AF131: AMSR-2 | AH131: No | AY131: GCOM-W1|AMSR-2 | AZ131: Global | BA131: 50km | BB131: N/A | BC131: 2days | BE131: TBD | BI131: yes | BK131: Aqua | BL131: AMSR-E | BM131: Aqua|AMSR-E | BN131: no | BO131: no | BS131: Z-GCOM_QA@jaxa.jp | BT131: both | BU131: HDF | BV131: Constrained Access | BW131: via the internet | BZ131: 1month | CA131: 1518 | CB131: Feb 24 2014 8:44PM | CC131: E295D2BE-15AE-4EBD-B851-AE0CC0A42766 | CF131: SOIL-MOISTURE MAP (UP TO 10CM SOIL DEPTH) | CG131: SOIL MOISTURE | CY131: 112.6694444 | CZ131: 0.75 | DA131: 0.3333333333 | DB131: 0.7142857143 | DC131: 0.5 | DD131: 0.5 | DE131: 1 | DF131: 1 | DG131: 0.8571428571 | DH131: 2 | DI131: 1 | DJ131: 0 | DK131: 0.6666666667 | DL131: 0.7767857143 | DM131: 50km | DN131: N/A | DO131: 2days | DP131: 0 | DQ131: TBD | DR131: 0.6 | DS131: 1 | DT131: Model Input, Gsmap, Etc. | DU131: =SUM(CY131/30,DL131,DR131,DS131) -> 6.132433862
A132: Future | B132: Keiji Imaoka | C132: imaoka.keiji@jaxa.jp | D132: new release | E132: JAXA | H132: no | K132: no | L132: no | N132: Input Modelling | O132: CDR_ECV34_1 | P132: JAXA | Q132: JAXA | R132: JAXA | S132: JAXA | T132: JAXA | U132: JAXA | V132: JAXA | W132: JAXA | X132: JAXA | Y132: JAXA | Z132: 2017-01-01 | AA132: 2022-01-01 | AC132: LAND SURFACE TEMPERATURE | AD132: not selected | AE132: GCOM-C1 | AF132: SGLI | AH132: No | AY132: GCOM-C1|SGLI | AZ132: Global | BA132: 500m | BB132: N/A | BC132: 2days | BD132: Standard accuracy <2.5K Target accuracy <1.5K | BE132: TBD | BI132: no | BN132: no | BO132: no | BT132: both | BU132: not selected | BV132: Open Access | CA132: 1523 | CB132: 2014-02-24T20:44:00 | CC132: 9E5DC901-19B8-4A99-B16E-608A7BF1B125 | CF132: LAND-SURFACE TEMPERATURE RECORDS | CG132: LAND-SURFACE TEMPERATURE | CY132: 5 | CZ132: 0.75 | DA132: 0.3333333333 | DB132: 0.8571428571 | DC132: 0.5 | DD132: 0.5 | DE132: 1 | DF132: 1 | DG132: 0.4285714286 | DH132: 0 | DI132: 1 | DJ132: 0 | DK132: 0.6666666667 | DL132: 0.5863095238 | DM132: 500m | DN132: N/A | DO132: 2days | DP132: Standard accuracy <2.5K Target accuracy <1.5K | DQ132: TBD | DR132: 0.8 | DS132: 1 | DT132: Input Modelling | DU132: =SUM(CY132/30,DL132,DR132,DS132) -> 2.55297619
A133: Current | B133: Yasushi Izumikawa | C133: yasizumi@gmail.com | D133: CSR | E133: JMA | H133: no | K133: no | L133: no | N133: Jra55 | O133: CDR_ECV03_5 | P133: JMA | Q133: JMA | R133: JMA | S133: JMA | T133: JMA | U133: not selected | V133: not selected | W133: JMA | X133: JMA | Y133: JMA | Z133: 1995-06-01 | AA133: 2009-12-01 | AC133: ATMOSPHERIC SPECIFIC HUMIDITY (COLUMN/PROFILE) | AD133: not selected | AE133: GMS-5 | AF133: VISSR (GMS-5) | AH133: Yes | AI133: GOES-9 | AL133: MTSAT-2 | AM133: Imager | AY133: GMS-5|VISSR (GMS-5)||GOES-9|not selected||MTSAT-2|Imager | AZ133: lat/long coordinates | BA133: 60km - 80km | BC133: 1hourly | BI133: no | BN133: no | BO133: no | BT133: no | BU133: not selected | BV133: not selected | CA133: 1348 | CB133: 2014-02-24T20:44:00 | CC133: AFF5CC18-3630-4E74-B930-E5A6EB468C6E | CF133: UPPER TROPOSPHERIC HUMIDITY | CG133: WATER VAPOUR | CY133: 14.5 | CZ133: 0.75 | DA133: 0.3333333333 | DB133: 0.4285714286 | DC133: 0.5 | DD133: 0.5 | DE133: 1 | DF133: 1 | DG133: 0.1428571429 | DH133: 0 | DI133: 1 | DJ133: 0 | DK133: 0.6666666667 | DL133: 0.5267857143 | DM133: 60km - 80km | DN133: 0 | DO133: 1hourly | DP133: 0 | DQ133: 0 | DR133: 0.4 | DS133: 1 | DT133: Jra55 | DU133: =SUM(CY133/30,DL133,DR133,DS133) -> 2.410119048
A134: Current | B134: Yasushi Izumikawa | C134: yasizumi@gmail.com | D134: AMV | E134: JMA | H134: no | K134: no | L134: no | N134: Jra55 | O134: CDR_ECV11_1 | P134: JMA | Q134: JMA | R134: JMA | S134: JMA | T134: JMA | U134: not selected | V134: not selected | W134: JMA | X134: JMA | Y134: JMA | Z134: 1979-01-01 | AA134: 2009-09-01 | AC134: NOT SELECTED | AD134: m/s | AE134: GMS-4 | AF134: VISSR (GMS-4) | AH134: Yes | AI134: GMS-5 | AJ134: VISSR (GMS-5) | AL134: MTSAT-1R | AM134: JAMI/MTSAT-1R | AO134: MTSAT-2 | AP134: Imager | AY134: GMS-4|VISSR (GMS-4)||GMS-5|VISSR (GMS-5)||MTSAT-1R|JAMI/MTSAT-1R||MTSAT-2|Imager | AZ134: lat/long coordinates | BA134: 0.5degree | BB134: N/A | BC134: 6hourly | BD134: N/A | BE134: N/A | BI134: no | BN134: no | BO134: no | BT134: no | BU134: not selected | BV134: not selected | CA134: 1453 | CB134: 2014-02-24T20:44:00 | CC134: 88A3F0AA-5C3B-456E-91FD-F7CF7827145C | CF134: UPPER-AIR WIND | CG134: UPPER-AIR WIND | CY134: 30.66666667 | CZ134: 0.75 | DA134: 0.3333333333 | DB134: 0.8571428571 | DC134: 0.5 | DD134: 0.5 | DE134: 1 | DF134: 1 | DG134: 0.1428571429 | DH134: 0 | DI134: 1 | DJ134: 0 | DL134: 0.5069444444 | DM134: =BA134 -> 0.5degree | DN134: =BB134 -> N/A | DP134: =BD134 -> N/A | DQ134: =BE134 -> N/A | DR134: 0.4 | DS134: 1 | DT134: Jra55 | DU134: =SUM(CY134/30,DL134,DR134,DS134) -> 2.929166667
A135: Current | B135: Ron Kwok | C135: ron.kwok@jpl.nasa.gov | D135: Sea-ice drift | E135: JPL | H135: no | K135: no | L135: no | N135: Ocean And Ice | O135: CDR_ECV05_7 | P135: CSA | Q135: NASA | R135: NASA | S135: NASA | T135: NASA | U135: NASA | V135: NASA | W135: NASA | X135: NASA | Y135: NASA | Z135: 1996-11-01 | AA135: 2008-05-01 | AC135: SEA-ICE COVER | AD135: not selected | AE135: RADARSAT-1 | AF135: SAR (RADARSAT) | AH135: No | AY135: RADARSAT-1 and SAR (RADARSAT) | AZ135: Regional | BA135: 10 | BC135: 3 | BD135: 0.01 m/s | BI135: no | BN135: no | BO135: no | BS135: ron.kwok@jpl.nasa.gov | BT135: both | BU135: not selected | BV135: Open Access | BW135: FTP | BZ135: N/A | CA135: 1399 | CB135: 2014-02-24T20:44:00 | CC135: 1929CF59-279A-4FE5-80F7-256833AF0EDD | CF135: SOLID PRECIPITATION | CG135: PRECIPITATION | CY135: 11.5 | CZ135: 0.75 | DA135: 0.3333333333 | DB135: 0.5714285714 | DC135: 0.5 | DD135: 0.5 | DE135: 1 | DF135: 1 | DG135: 0.7142857143 | DH135: 2 | DI135: 1 | DJ135: 0 | DK135: =(COUNTIF(U135,"*")+COUNTIF(W135,"*")+COUNTIF(BO135,"y*"))/3 -> 0.6666666667 | DL135: 0.7529761905 | DM135: =BA135 -> 10 | DN135: 0 | DO135: 3 | DP135: 0.01 m/s | DQ135: 0 | DR135: 0.6 | DS135: 1 | DT135: Ocean And Ice | DU135: =SUM(CY135/30,DL135,DR135,DS135) -> 2.736309524
A136: Current | B136: H. K. Ramapriyan | C136: Rama.Ramapriyan@nasa.gov | D136: CCMP_MEASURES_ATLAS_L3_OW_L2_5_SSMI_F10_WIND_VECTORS_FLK | E136: NASA | H136: no | K136: no | L136: no | O136: CDR_ECV01_10 | P136: NOAA | Q136: NASA | R136: NASA | S136: NASA | T136: NASA | U136: NASA | V136: NASA | W136: NASA | X136: NASA | Y136: NASA | Z136: 1990-12-01 | AA136: 1997-11-01 | AC136: NOT SELECTED | AD136: m/s | AE136: DMSP F-10 | AF136: SSM/1 | AH136: No | AY136: DMSP-F10/SSM/I | AZ136: Global | BA136: 27.75 km at equator | BB136: 10 m | BC136: 12 Hours | BD136: 0.5 m/s | BE136: 0.05 m/s | BI136: no | BK136: Aqua | BL136: AMSR-E | BN136: no | BO136: no | BS136: podaac@podaac.jpl.nasa.gov | BT136: no | BU136: not selected | BV136: Open Access | BW136: FTP | BZ136: 6 months | CA136: 1314 | CB136: 2014-02-24T20:44:00 | CC136: C66B526A-81DB-4A16-973E-CCC60F0C3AEB | CF136: SURFACE WIND | CG136: SURFACE WIND SPEED AND DIRECTION | CY136: 6.916666667 | CZ136: 0.75 | DA136: 0.3333333333 | DB136: 0.8571428571 | DC136: 0.5 | DD136: 0.5 | DE136: 1 | DF136: 1 | DG136: 0.5714285714 | DH136: 2 | DI136: 1 | DJ136: 0 | DK136: 0.6666666667 | DL136: 0.7648809524 | DM136: 27.75 km at equator | DN136: 10 m | DO136: 12 Hours | DP136: 0.5 m/s | DQ136: 0.05 m/s | DR136: 1 | DS136: 0 | DT136: 0 | DU136: =SUM(CY136/30,DL136,DR136,DS136) -> 1.995436508
A137: Current | B137: H. K. Ramapriyan | C137: Rama.Ramapriyan@nasa.gov | D137: CCMP_MEASURES_ATLAS_L3_OW_L2_5_WINDSAT_WIND_VECTORS_FLK | E137: NASA | H137: no | K137: no | L137: no | O137: CDR_ECV01_11 | P137: DoD (USA) | Q137: NASA | R137: NASA | S137: NASA | T137: NASA | U137: NASA | V137: NASA | W137: NASA | X137: NASA | Y137: NASA | Z137: 2009-12-01 | AA137: 2011-12-01 | AC137: NOT SELECTED | AD137: m/s | AE137: Coriolis | AF137: WindSat | AH137: No | AY137: Coriolis/WindSat | AZ137: Global | BA137: 27.75 km at equator | BB137: 10 m | BC137: 12 Hours | BD137: 0.5 m/s | BE137: 0.05 m/s | BI137: no | BK137: Aqua | BL137: AMSR-E | BN137: no | BO137: no | BS137: podaac@podaac.jpl.nasa.gov | BT137: no | BU137: not selected | BV137: Open Access | BW137: FTP | BZ137: 6 months | CA137: 1315 | CB137: 2014-02-24T20:44:00 | CC137: DA212AD4-71EF-4297-8CB8-2542071CC803 | CF137: SURFACE WIND | CG137: SURFACE WIND SPEED AND DIRECTION | CY137: 2 | CZ137: =(COUNTIF(S137,"*")+COUNTIF(T137,"*")+COUNTIF(AE137,"*")+COUNTIF(BG137,"*"))/4 -> 0.75 | DA137: =(COUNTIF(Q137,"*")+COUNTIF(I137,"*")+COUNTIF(BR137,"y*"))/3 -> 0.3333333333 | DB137: =(COUNTIF(U137,"*")+COUNTA(BA137)+COUNTA(BB137)+COUNTA(BC137)+COUNTA(BD137)+COUNTA(BE137)+COUNTIF(BN137,"y*"))/7 -> 0.8571428571 | DC137: =(COUNTIF(V137,"*")+COUNTIF(BH137,"*"))/2 -> 0.5 | DD137: =(COUNTIF(V137,"*")+COUNTIF(BF137,"*"))/2 -> 0.5 | DE137: =COUNTIF(AZ137,"*") -> 1 | DF137: =COUNTIF(W137,"*") -> 1 | DG137: =(COUNTIF(X137,"*")+COUNTIF(BS137,"*")+COUNTIF(BT137,"*")+COUNTIF(BU137,"*")+COUNTIF(BV137,"*")+COUNTIF(BW137,"*")+COUNTIF(BX137,"*")-COUNTIF(BT137,"no*")-COUNTIF(BU137,"no*")-COUNTIF(BV137,"no*"))/7 -> 0.5714285714 | DH137: =COUNTIF(BZ137,"*")+COUNTA(BZ137) -> 2 | DI137: =COUNTIF(Y137,"*") -> 1 | DJ137: =COUNTIF(BR137,"y*") -> 0 | DK137: 0.6666666667 | DL137: =SUM(CZ137:DK137)/12 -> 0.7648809524 | DM137: 27.75 km at equator | DN137: 10 m | DO137: 12 Hours | DP137: 0.5 m/s | DQ137: 0.05 m/s | DR137: 1 | DS137: 0 | DT137: =N137 -> 0 | DU137: =SUM(CY137/30,DL137,DR137,DS137) -> 1.831547619
A138: Current | B138: H. K. Ramapriyan | C138: Rama.Ramapriyan@nasa.gov | D138: CCMP_MEASURES_ATLAS_L3_OW_L2_5_SSMI_F14_WIND_VECTORS_FLK | E138: NASA | H138: no | K138: no | L138: no | O138: CDR_ECV01_12 | P138: NOAA | Q138: NASA | R138: NASA | S138: NASA | T138: NASA | U138: NASA | V138: NASA | W138: NASA | X138: NASA | Y138: NASA | Z138: 1997-05-01 | AA138: 2008-08-01 | AC138: NOT SELECTED | AD138: m/s | AE138: DMSP F-14 | AF138: SSM/1 | AH138: No | AY138: DMSP-F14/SSM/I | AZ138: Global | BA138: 27.75 km at equator | BB138: 10 m | BC138: 12 Hours | BD138: 0.5 m/s | BE138: 0.05 m/s | BI138: no | BK138: Aqua | BL138: AMSR-E | BN138: no | BO138: no | BS138: podaac@podaac.jpl.nasa.gov | BT138: no | BU138: not selected | BV138: Open Access | BW138: FTP | BZ138: 6 months | CA138: 1316 | CB138: 2014-02-24T20:44:00 | CC138: 015F63F0-4C54-48C9-AF27-EA5ECAB1FAC4 | CF138: SURFACE WIND | CG138: SURFACE WIND SPEED AND DIRECTION | CY138: =YEARFRAC(Z138,AA138) -> 11.25 | CZ138: 0.75 | DA138: 0.3333333333 | DB138: 0.8571428571 | DC138: 0.5 | DD138: 0.5 | DE138: 1 | DF138: 1 | DG138: 0.5714285714 | DH138: 2 | DI138: 1 | DJ138: 0 | DK138: 0.6666666667 | DL138: 0.7648809524 | DM138: 27.75 km at equator | DN138: 10 m | DO138: 12 Hours | DP138: 0.5 m/s | DQ138: 0.05 m/s | DR138: 1 | DS138: 0 | DT138: 0 | DU138: =SUM(CY138/30,DL138,DR138,DS138) -> 2.139880952
A139: Current | B139: H. K. Ramapriyan | C139: Rama.Ramapriyan@nasa.gov | D139: CCMP_MEASURES_ATLAS_L4_OW_L3_0_WIND_VECTORS_FLK | E139: NASA | H139: no | K139: no | L139: no | O139: CDR_ECV01_13 | P139: NASA | Q139: NASA | R139: NASA | S139: NASA | T139: NASA | U139: NASA | V139: NASA | W139: NASA | X139: NASA | Y139: NASA | Z139: 1987-07-01 | AA139: 2011-12-01 | AC139: NOT SELECTED | AD139: m/s | AE139: Aqua | AF139: AMSR-E | AH139: Yes | AI139: TRMM | AJ139: TMI | AL139: QuikSCAT | AM139: SEAWINDS | AO139: ADEOS-II | AP139: SEAWINDS | AR139: DMSP F-8 | AS139: SSM/I | AU139: DMSP F-10 | AV139: SSM/I | AY139: AQUA/AMSR-E, TRMM/TMI, QUIKSCAT/SEAWINDS, ADEOS-II/SEAWINDS, DMSP-F08/SSM/I, DMSP-F10/SSM/I, DMSP-F13/SSM/I, DMSP-F11/SSM/I, DMSP-F14/SSM/I, DMSP-F15/SSM/I, Coriolis/WindSat, DMSP-F17/SSMIS | AZ139: Global | BA139: 27.75 km at equator | BB139: 10 m | BC139: 6 Hours | BD139: 0.5 m/s | BE139: 0.05 m/s | BI139: no | BK139: Aqua | BL139: AMSR-E | BN139: no | BO139: no | BS139: podaac@podaac.jpl.nasa.gov | BT139: no | BU139: netcdf | BV139: Open Access | BW139: FTP | BZ139: 6 months | CA139: 1317 | CB139: Feb 24 2014 8:44PM | CC139: 4B85E731-F069-4798-90E5-3F1D19E17C02 | CF139: SURFACE WIND | CG139: SURFACE WIND SPEED AND DIRECTION | CY139: 24.41666667 | CZ139: 0.75 | DA139: 0.3333333333 | DB139: 0.8571428571 | DC139: 0.5 | DD139: 0.5 | DE139: 1 | DF139: 1 | DG139: 0.7142857143 | DH139: 2 | DI139: 1 | DJ139: 0 | DK139: 0.6666666667 | DL139: 0.7767857143 | DM139: 27.75 km at equator | DN139: 10 m | DO139: 6 Hours | DP139: 0.5 m/s | DQ139: 0.05 m/s | DR139: 1 | DS139: 0 | DT139: 0 | DU139: =SUM(CY139/30,DL139,DR139,DS139) -> 2.590674603
A140: Current | B140: H. K. Ramapriyan | C140: Rama.Ramapriyan@nasa.gov | D140: CCMP_MEASURES_ATLAS_L3_OW_L2_5_SSMI_F13_WIND_VECTORS_FLK | E140: NASA | H140: no | K140: no | L140: no | O140: CDR_ECV01_14 | P140: NOAA | Q140: NASA | R140: NASA | S140: NASA | T140: NASA | U140: NASA | V140: NASA | W140: NASA | X140: NASA | Y140: NASA | Z140: 1995-05-01 | AA140: 2009-11-01 | AC140: NOT SELECTED | AD140: m/s | AE140: DMSP F-13 | AF140: SSM/I | AH140: No | AY140: DMSP-F13/SSM/I | AZ140: Global | BA140: 27.75 km at equator | BB140: 10 m | BC140: 12 Hours | BD140: 0.5 m/s | BE140: 0.05 m/s | BI140: no | BK140: Aqua | BL140: AMSR-E | BN140: no | BO140: no | BS140: podaac@podaac.jpl.nasa.gov | BT140: no | BU140: not selected | BV140: Open Access | BW140: FTP | BZ140: 6 months | CA140: 1318 | CB140: 2014-02-24T20:44:00 | CC140: 561FCC3E-D288-4D3B-94F2-1BE0547185A5 | CF140: SURFACE WIND | CG140: SURFACE WIND SPEED AND DIRECTION | CY140: 14.5 | CZ140: 0.75 | DA140: 0.3333333333 | DB140: 0.8571428571 | DC140: 0.5 | DD140: 0.5 | DE140: 1 | DF140: 1 | DG140: 0.5714285714 | DH140: 2 | DI140: 1 | DJ140: 0 | DK140: 0.6666666667 | DL140: 0.7648809524 | DM140: 27.75 km at equator | DN140: 10 m | DO140: 12 Hours | DP140: 0.5 m/s | DQ140: 0.05 m/s | DR140: 1 | DS140: 0 | DT140: 0 | DU140: =SUM(CY140/30,DL140,DR140,DS140) -> 2.248214286
A141: Current | B141: H. K. Ramapriyan | C141: Rama.Ramapriyan@nasa.gov | D141: CCMP_MEASURES_ATLAS_L3_OW_L2_5_AMSRE_WIND_VECTORS_FLK | E141: NASA | H141: no | K141: no | L141: no | O141: CDR_ECV01_15 | P141: NASA | Q141: JAXA | R141: NASA | S141: NASA | T141: NASA | U141: NASA | V141: NASA | W141: NASA | X141: NASA | Y141: NASA | Z141: 2002-06-01 | AA141: 2011-10-01 | AC141: NOT SELECTED | AD141: m/s | AE141: Aqua | AF141: AMSR-E | AH141: No | AY141: AQUA/AMSR-E | AZ141: Global | BA141: 27.75 km at equator | BB141: 10 m | BC141: 12 Hours | BD141: 0.5 m/s | BE141: 0.05 m/sss | BI141: no | BK141: Aqua | BL141: AMSR-E | BN141: no | BO141: no | BS141: podaac@podaac.jpl.nasa.gov | BT141: no | BU141: not selected | BV141: Open Access | BW141: FTP | BZ141: 6 months | CA141: 1319 | CB141: 2014-02-24T20:44:00 | CC141: 6B696B17-BDFE-40D8-B4E1-7FF01663AE94 | CF141: SURFACE WIND | CG141: SURFACE WIND SPEED AND DIRECTION | CY141: 9.333333333 | CZ141: 0.75 | DA141: 0.3333333333 | DB141: 0.8571428571 | DC141: 0.5 | DD141: 0.5 | DE141: 1 | DF141: 1 | DG141: 0.5714285714 | DH141: 2 | DI141: 1 | DJ141: 0 | DK141: 0.6666666667 | DL141: 0.7648809524 | DM141: 27.75 km at equator | DN141: 10 m | DO141: 12 Hours | DP141: 0.5 m/s | DQ141: 0.05 m/sss | DR141: 1 | DS141: 0 | DT141: 0 | DU141: =SUM(CY141/30,DL141,DR141,DS141) -> 2.075992063
A142: Current | B142: H. K. Ramapriyan | C142: Rama.Ramapriyan@nasa.gov | D142: CCMP_MEASURES_ATLAS_L4_OW_L3_5A_5DAY_WIND_VECTORS_FLK | E142: NASA | H142: no | K142: no | L142: no | O142: CDR_ECV01_16 | P142: NASA | Q142: NASA | R142: NASA | S142: NASA | T142: NASA | U142: NASA | V142: NASA | W142: NASA | X142: NASA | Y142: NASA | Z142: 1987-07-01 | AA142: 2011-12-01 | AC142: NOT SELECTED | AD142: m/s | AE142: Aqua | AF142: AMSR-E | AH142: Yes | AI142: TRMM | AJ142: TMI | AL142: QuikSCAT | AM142: SEAWINDS | AO142: ADEOS-II | AP142: SEAWINDS | AR142: DMSP F-8 | AS142: SSM/I | AU142: DMSP F-10 | AV142: SSM/I | AY142: AQUA/AMSR-E, TRMM/TMI, QUIKSCAT/SEAWINDS, ADEOS-II/SEAWINDS, DMSP-F08/SSM/I, DMSP-F10/SSM/I, DMSP-F13/SSM/I, DMSP-F11/SSM/I, DMSP-F14/SSM/I, DMSP-F15/SSM/I, Coriolis/WindSat, DMSP-F17/SSMIS | AZ142: Global | BA142: 27.75 km at equator | BB142: 10 m | BC142: 5 days | BD142: 0.5 m/s | BE142: 0.05 m/sssss | BI142: no | BK142: Aqua | BL142: AMSR-E | BN142: no | BO142: no | BS142: podaac@podaac.jpl.nasa.gov | BT142: no | BU142: netcdf | BV142: Open Access | BW142: FTP | BZ142: 6 months | CA142: 1320 | CB142: Feb 24 2014 8:44PM | CC142: 26838D05-700E-4E5C-9EA1-5D533EC451CC | CF142: SURFACE WIND | CG142: SURFACE WIND SPEED AND DIRECTION | CY142: 24.41666667 | CZ142: 0.75 | DA142: 0.3333333333 | DB142: 0.8571428571 | DC142: 0.5 | DD142: 0.5 | DE142: 1 | DF142: 1 | DG142: 0.7142857143 | DH142: 2 | DI142: 1 | DJ142: 0 | DK142: 0.6666666667 | DL142: 0.7767857143 | DM142: 27.75 km at equator | DN142: 10 m | DO142: 5 days | DP142: 0.5 m/s | DQ142: 0.05 m/sssss | DR142: 1 | DS142: 0 | DT142: 0 | DU142: =SUM(CY142/30,DL142,DR142,DS142) -> 2.590674603
A143: Current | B143: H. K. Ramapriyan | C143: Rama.Ramapriyan@nasa.gov | D143: SSMI and SSMIS netCDF Data Products | E143: NASA | H143: no | K143: no | L143: no | N143: Climate Trend Detection, Model Uncertainty Quantification, Climate Regime Shifts, Impact Of Climate Change On Hurricanes | O143: CDR_ECV01_18 | P143: DoD (USA) | Q143: NASA | R143: NASA | S143: NASA | T143: NASA | U143: NASA | V143: NASA | W143: NASA | X143: NASA | Y143: NASA | Z143: 1987-07-01 | AA143: 2012-12-01 | AC143: WIND SPEED OVER SEA SURFACE (HORIZONTAL) | AD143: m/s | AE143: DMSP F-8 | AF143: SSM/I | AH143: Yes | AI143: DMSP F-10 | AJ143: SSM/I | AL143: DMSP F-11 | AM143: SSM/I | AO143: DMSP F-13 | AP143: SSM/I, SSM/IS | AR143: DMSP F-14 | AS143: SSM/I, SSM/IS | AU143: DMSP F-15 | AV143: SSM/I, SSM/IS | AY143: DMSP F-8|SSM/I||DMSP F-10|SSM/I||DMSP F-11|SSM/IDMSP%2520F-13%2520through%2520F-17%2520as%2520well||not selected|not selectedDMSP F-13, DMSP F-14, DMSP F-15, DMSP F-16, DMSP F-17. Instruments SSM/I and SSM/IS. | AZ143: Global | BA143: 25 km | BB143: 0 | BC143: 1 | BD143: 1.0 m/s | BE143: ~0.05 m/s/decade | BI143: yes | BK143: DMSP | BL143: SSMI | BN143: no | BO143: no | BS143: ghrcdaac@itsc.uah.edu | BT143: both | BU143: netcdf | BV143: Open Access | BW143: FTP,OpenDAP,WGET | BZ143: 0.15 months | CA143: 1322 | CB143: Feb 24 2014 8:44PM | CC143: 5529899E-4847-4349-B107-839B54951A87 | CF143: SURFACE WIND | CG143: SURFACE WIND SPEED AND DIRECTION | CI143: yes | CJ143: Aqua | CK143: SSMIS | CL143: Coriolis | CM143: AMSR-E | CO143: WindSat | CY143: 25.41666667 | CZ143: 0.75 | DA143: 0.3333333333 | DB143: 0.8571428571 | DC143: 0.5 | DD143: 0.5 | DE143: 1 | DF143: 1 | DG143: 0.8571428571 | DH143: 2 | DI143: 1 | DJ143: 0 | DK143: 0.6666666667 | DL143: 0.7886904762 | DM143: 25 km | DN143: 0 | DO143: 1 | DP143: 1.0 m/s | DQ143: ~0.05 m/s/decade | DR143: 0.8 | DS143: 1 | DT143: Climate Trend Detection, Model Uncertainty Quantification, Climate Regime Shifts, Impact Of Climate Change On Hurricanes | DU143: =SUM(CY143/30,DL143,DR143,DS143) -> 3.435912698
A144: Current | B144: Lucien Froidevaux | C144: Lucien.Froidevaux@jpl.nasa.gov | E144: NASA | H144: no | K144: no | L144: no | N144: Impact On Radiative Forcing And Ozone | O144: CDR_ECV01_21 | P144: NASA | Q144: NASA | R144: NASA | S144: NASA | T144: NASA | U144: NASA | V144: NASA | W144: NASA | X144: NASA | Y144: NASA | Z144: 1991-10-01 | AA144: 2012-12-01 | AB144: 2014-06-13 | AC144: ATMOSPHERIC SPECIFIC HUMIDITY (COLUMN/PROFILE) | AD144: not selected | AE144: UARS | AF144: MLS | AH144: Yes | AI144: UARS | AJ144: HALOE | AL144: SCISAT-1 | AM144: ACE-FTS | AO144: Aura | AP144: MLS (EOA-Aura) | AY144: UARS/MLS, UARS/HALOE, SCISAT-1/ACE-FTS, Aura/MLS(EOS-Aura) | AZ144: Global | BA144: 1000 | BB144: 3 | BC144: 30 | BD144: 0.1 | BE144: <0.5%/yr (but still being studied) | BI144: no | BN144: no | BO144: no | BT144: no | BU144: not selected | BV144: Open Access | BW144: FTP | BZ144: Available now | CA144: 1325 | CB144: Feb 24 2014 8:44PM | CC144: CA843A63-8EA4-4F05-899C-C0ED130BBF7B | CF144: PROFILES OF WATER VAPOR | CG144: WATER VAPOUR | CY144: 21.16666667 | CZ144: 0.75 | DA144: 0.3333333333 | DB144: 0.8571428571 | DC144: 0.5 | DD144: 0.5 | DE144: 1 | DF144: 1 | DG144: 0.4285714286 | DH144: 2 | DI144: 1 | DJ144: 0 | DK144: 0.6666666667 | DL144: 0.7529761905 | DM144: 1000 | DN144: 3 | DO144: 30 | DP144: 0.1 | DQ144: <0.5%/yr (but still being studied) | DR144: 1 | DS144: 1 | DT144: Impact On Radiative Forcing And Ozone | DU144: =SUM(CY144/30,DL144,DR144,DS144) -> 3.458531746
A145: Current | B145: H. K. Ramapriyan | C145: Rama.Ramapriyan@nasa.gov | D145: CCMP_MEASURES_ATLAS_L3_OW_L2_5_SSMI_F8_WIND_VECTORS_FLK | E145: NASA | H145: no | K145: no | L145: no | O145: CDR_ECV01_4 | P145: NOAA | Q145: NASA | R145: NASA | S145: NASA | T145: NASA | U145: NASA | V145: NASA | W145: NASA | X145: NASA | Y145: NASA | Z145: 1987-07-01 | AA145: 1991-12-01 | AC145: NOT SELECTED | AD145: m/s | AE145: DMSP F-8 | AF145: SSM/I | AH145: No | AY145: DMSP-F08/SSM/I | AZ145: Global | BA145: 27.75 km at equator | BB145: 10 m | BC145: 12 hours | BD145: 0.5 m/s | BE145: 0.05 m/s | BI145: no | BK145: Aqua | BL145: AMSR-E | BN145: no | BO145: no | BS145: podaac@podaac.jpl.nasa.gov | BT145: no | BU145: not selected | BV145: Open Access | BW145: FTP | BZ145: 6 months | CA145: 1327 | CB145: 2014-02-24T20:44:00 | CC145: 66AC65D9-13F4-4BA9-BC0D-E7F91BDE156B | CF145: SURFACE WIND | CG145: SURFACE WIND SPEED AND DIRECTION | CY145: 4.416666667 | CZ145: 0.75 | DA145: 0.3333333333 | DB145: 0.8571428571 | DC145: 0.5 | DD145: 0.5 | DE145: 1 | DF145: 1 | DG145: 0.5714285714 | DH145: 2 | DI145: 1 | DJ145: 0 | DK145: 0.6666666667 | DL145: 0.7648809524 | DM145: 27.75 km at equator | DN145: 10 m | DO145: 12 hours | DP145: 0.5 m/s | DQ145: 0.05 m/s | DR145: 1 | DS145: 0 | DT145: 0 | DU145: =SUM(CY145/30,DL145,DR145,DS145) -> 1.912103175
A146: Current | B146: H. K. Ramapriyan | C146: Rama.Ramapriyan@nasa.gov | D146: CCMP_MEASURES_ATLAS_L3_OW_L2_5_SSMI_F11_WIND_VECTORS_FLK | E146: NASA | H146: no | K146: no | L146: no | O146: CDR_ECV01_5 | P146: NOAA | Q146: NASA | R146: NASA | S146: NASA | T146: NASA | U146: NASA | V146: NASA | W146: NASA | X146: NASA | Y146: NASA | Z146: 1991-12-01 | AA146: 2000-05-01 | AC146: NOT SELECTED | AD146: m/s | AE146: DMSP F-11 | AF146: SSM/I | AH146: No | AY146: DMSP-F11/SSM/I | AZ146: Global | BA146: 22.75 km at equator | BB146: 10 m | BC146: 12 Hours | BD146: 0.5 m/s | BE146: 0.05 m/s | BI146: no | BK146: Aqua | BL146: AMSR-E | BN146: no | BO146: no | BS146: podaac@podaac.jpl.nasa.gov | BT146: no | BU146: not selected | BV146: Open Access | BW146: FTP | BZ146: 6 months | CA146: 1328 | CB146: 2014-02-24T20:44:00 | CC146: ADDFC59F-F4EE-422D-8265-1874E168D978 | CF146: SURFACE WIND | CG146: SURFACE WIND SPEED AND DIRECTION | CY146: 8.416666667 | CZ146: 0.75 | DA146: 0.3333333333 | DB146: 0.8571428571 | DC146: 0.5 | DD146: 0.5 | DE146: 1 | DF146: 1 | DG146: 0.5714285714 | DH146: 2 | DI146: 1 | DJ146: 0 | DK146: 0.6666666667 | DL146: 0.7648809524 | DM146: 22.75 km at equator | DN146: 10 m | DO146: 12 Hours | DP146: 0.5 m/s | DQ146: 0.05 m/s | DR146: 1 | DS146: 0 | DT146: 0 | DU146: =SUM(CY146/30,DL146,DR146,DS146) -> 2.045436508
A147: Current | B147: H. K. Ramapriyan | C147: Rama.Ramapriyan@nasa.gov | D147: CCMP_MEASURES_ATLAS_L3_OW_L2_5_SSMI_F15_WIND_VECTORS_FLK | E147: NASA | H147: no | K147: no | L147: no | O147: CDR_ECV01_6 | P147: NOAA | Q147: NASA | R147: NASA | S147: NASA | T147: NASA | U147: NASA | V147: NASA | W147: NASA | X147: NASA | Y147: NASA | Z147: 1999-12-01 | AA147: 2006-08-01 | AC147: NOT SELECTED | AD147: m/s | AE147: DMSP F-15 | AF147: SSM/I | AH147: No | AY147: DMSP-F15/SSM/I | AZ147: Global | BA147: 27.75 km at equator | BB147: 10 m | BC147: 12 Hours | BD147: 0.5 m/s | BE147: 0.05 m/s | BI147: no | BK147: Aqua | BL147: AMSR-E | BN147: no | BO147: no | BS147: podaac@podaac.jpl.nasa.gov | BT147: no | BU147: not selected | BV147: Open Access | BW147: FTP | BZ147: 6 months | CA147: 1329 | CB147: 2014-02-24T20:44:00 | CC147: 67A7E424-D8B6-4A69-AB7E-52F08A07C8CB | CF147: SURFACE WIND | CG147: SURFACE WIND SPEED AND DIRECTION | CY147: 6.666666667 | CZ147: 0.75 | DA147: 0.3333333333 | DB147: 0.8571428571 | DC147: 0.5 | DD147: 0.5 | DE147: 1 | DF147: 1 | DG147: 0.5714285714 | DH147: 2 | DI147: 1 | DJ147: 0 | DK147: 0.6666666667 | DL147: 0.7648809524 | DM147: 27.75 km at equator | DN147: 10 m | DO147: 12 Hours | DP147: 0.5 m/s | DQ147: 0.05 m/s | DR147: 1 | DS147: 0 | DT147: 0 | DU147: =SUM(CY147/30,DL147,DR147,DS147) -> 1.987103175
A148: Current | B148: H. K. Ramapriyan | C148: Rama.Ramapriyan@nasa.gov | D148: CCMP_MEASURES_ATLAS_L3_OW_L2_5_SSMIS_F17_WIND_VECTORS_FLK | E148: NASA | H148: no | K148: no | L148: no | O148: CDR_ECV01_7 | P148: NOAA | Q148: NASA | R148: NASA | S148: NASA | T148: NASA | U148: NASA | V148: NASA | W148: NASA | X148: NASA | Y148: NASA | Z148: 2009-12-01 | AA148: 2011-12-01 | AC148: NOT SELECTED | AD148: m/s | AE148: DMSP F-17 | AF148: SSM/IS | AH148: No | AY148: DMSP-F17/SSM/IS | AZ148: Global | BA148: 27.75 km at equator | BB148: 10 m | BC148: 12 Hours | BD148: 0.5 m/s | BE148: 0.05 m/s | BI148: no | BK148: Aqua | BL148: AMSR-E | BN148: no | BO148: no | BS148: podaac@podaac.jpl.nasa.gov | BT148: no | BU148: not selected | BV148: Open Access | BW148: FTP | BZ148: 6 months | CA148: 1330 | CB148: 2014-02-24T20:44:00 | CC148: 99B2221D-8576-4D99-AB88-FF0DC323CEEE | CF148: SURFACE WIND | CG148: SURFACE WIND SPEED AND DIRECTION | CY148: 2 | CZ148: 0.75 | DA148: 0.3333333333 | DB148: 0.8571428571 | DC148: 0.5 | DD148: 0.5 | DE148: 1 | DF148: 1 | DG148: 0.5714285714 | DH148: 2 | DI148: 1 | DJ148: 0 | DK148: 0.6666666667 | DL148: 0.7648809524 | DM148: 27.75 km at equator | DN148: 10 m | DO148: 12 Hours | DP148: 0.5 m/s | DQ148: 0.05 m/s | DR148: 1 | DS148: 0 | DT148: 0 | DU148: =SUM(CY148/30,DL148,DR148,DS148) -> 1.831547619
A149: Current | B149: H. K. Ramapriyan | C149: Rama.Ramapriyan@nasa.gov | D149: CCMP_MEASURES_ATLAS_L4_OW_L3_5A_MONTHLY_WIND_VECTORS_FLK | E149: NASA | H149: no | K149: no | L149: no | O149: CDR_ECV01_8 | P149: NOAA | Q149: NASA | R149: NASA | S149: NASA | T149: NASA | U149: NASA | V149: NASA | W149: NASA | X149: NASA | Y149: NASA | Z149: 1987-07-01 | AA149: 2011-12-01 | AC149: NOT SELECTED | AD149: m/s | AE149: Aqua | AF149: AMSR-E | AH149: Yes | AI149: TRMM | AJ149: TMI | AL149: QuikSCAT | AM149: SEAWINDS | AO149: ADEOS-II | AP149: SEAWINDS | AR149: DMSP F-8 | AS149: SSM/1 | AU149: DMSP F-10 | AV149: SSM/1 | AY149: AQUA/AMSR-E, TRMM/TMI, QUIKSCAT/SEAWINDS, ADEOS-II/SEAWINDS, DMSP-F08/SSM/I, DMSP-F10/SSM/I, DMSP-F13/SSM/I, DMSP-F11/SSM/I, DMSP-F14/SSM/I, DMSP-F15/SSM/I, Coriolis/WindSat, DMSP-F17/SSMIS | AZ149: Global | BA149: 27.75 km at equator | BB149: 10 m | BC149: 1 month | BD149: 0.5 m/s | BE149: 0.05 m/s | BI149: no | BK149: Aqua | BL149: AMSR-E | BN149: no | BO149: no | BS149: podaac@podaac.jpl.nasa.gov | BT149: no | BU149: netcdf | BV149: Open Access | BW149: FTP | BZ149: 6 months | CA149: 1331 | CB149: Feb 24 2014 8:44PM | CC149: A5409FA7-D8A5-48E2-B22D-E9A0859E2476 | CF149: SURFACE WIND | CG149: SURFACE WIND SPEED AND DIRECTION | CY149: 24.41666667 | CZ149: 0.75 | DA149: 0.3333333333 | DB149: 0.8571428571 | DC149: 0.5 | DD149: 0.5 | DE149: 1 | DF149: 1 | DG149: 0.7142857143 | DH149: 2 | DI149: 1 | DJ149: 0 | DK149: 0.6666666667 | DL149: 0.7767857143 | DM149: 27.75 km at equator | DN149: 10 m | DO149: 1 month | DP149: 0.5 m/s | DQ149: 0.05 m/s | DR149: 1 | DS149: 0 | DT149: 0 | DU149: =SUM(CY149/30,DL149,DR149,DS149) -> 2.590674603
A150: Current | B150: H. K. Ramapriyan | C150: Rama.Ramapriyan@nasa.gov | D150: CCMP_MEASURES_ATLAS_L3_OW_L2_5_TMI_WIND_VECTORS_FLK | E150: NASA | H150: no | K150: no | L150: no | O150: CDR_ECV01_9 | P150: NOAA | Q150: NASA | R150: NASA | S150: NASA | T150: NASA | U150: NASA | V150: NASA | W150: NASA | X150: NASA | Y150: NASA | Z150: 1997-12-01 | AA150: 2011-12-01 | AC150: NOT SELECTED | AD150: m/s | AE150: TRMM | AF150: TMI | AH150: No | AY150: TRMM/TMI | AZ150: Global | BA150: 27.75 km at equator | BB150: 10 m | BC150: 12 Hours | BD150: 0.5 m/s | BE150: 0.05 m/s | BI150: no | BK150: Aqua | BL150: AMSR-E | BN150: no | BO150: no | BS150: podaac@podaac.jpl.nasa.gov | BT150: no | BU150: not selected | BV150: Open Access | BW150: FTP | BZ150: 6 months | CA150: 1332 | CB150: 2014-02-24T20:44:00 | CC150: BBCE990E-3D03-4DFC-BA99-165331C74C84 | CF150: SURFACE WIND | CG150: SURFACE WIND SPEED AND DIRECTION | CY150: 14 | CZ150: 0.75 | DA150: 0.3333333333 | DB150: 0.8571428571 | DC150: 0.5 | DD150: 0.5 | DE150: 1 | DF150: 1 | DG150: 0.5714285714 | DH150: 2 | DI150: 1 | DJ150: 0 | DK150: 0.6666666667 | DL150: 0.7648809524 | DM150: 27.75 km at equator | DN150: 10 m | DO150: 12 Hours | DP150: 0.5 m/s | DQ150: 0.05 m/s | DR150: 1 | DS150: 0 | DT150: 0 | DU150: =SUM(CY150/30,DL150,DR150,DS150) -> 2.231547619
A151: Current | B151: H. K. Ramapriyan | C151: Rama.Ramapriyan@nasa.gov | D151: AIRSM_CPR_MAT_3.1 | E151: NASA | H151: no | K151: no | L151: no | N151: This Dataset Supports Several Tcdrs (upper-air Temperature, Total Column Water Vapor, Profiles Of Water Vapor And Cloud Amount | O151: CDR_ECV02_2 | P151: NASA | Q151: NASA | R151: NASA | S151: NASA | T151: NASA | U151: NASA | V151: NASA | W151: NASA | X151: NASA | Y151: NASA | Z151: 2006-06-01 | AA151: 2011-03-01 | AC151: NOT SELECTED | AD151: not selected | AE151: Aqua | AH151: No | AY151: Aqua, CloudSat, Calipso; Modis, Airs, AMSU, CPR, CALIOP | AZ151: not selected | BI151: no | BN151: no | BO151: no | BT151: no | BU151: not selected | BV151: not selected | BW151: ftp, OPeNDAP, Mirador | BZ151: Available now | CA151: 1334 | CB151: Feb 24 2014 8:44PM | CC151: 8BB1F607-41FE-4EE8-9CB0-91C90171F821 | CF151: UPPER-AIR TEMPERATURE | CG151: UPPER-AIR TEMPERATURE | CY151: 4.75 | CZ151: 0.75 | DA151: 0.3333333333 | DB151: 0.1428571429 | DC151: 0.5 | DD151: 0.5 | DE151: 1 | DF151: 1 | DG151: 0.2857142857 | DH151: 2 | DI151: 1 | DJ151: 0 | DK151: 0.6666666667 | DL151: 0.681547619 | DM151: 0 | DN151: 0 | DO151: 0 | DP151: 0 | DQ151: 0 | DR151: 0 | DS151: 1 | DT151: This Dataset Supports Several Tcdrs (upper-air Temperature, Total Column Water Vapor, Profiles Of Water Vapor And Cloud Amount | DU151: =SUM(CY151/30,DL151,DR151,DS151) -> 1.839880952
A152: Current | B152: H. K. Ramapriyan | C152: Rama.Ramapriyan@nasa.gov | D152: AIRS_CPR_MAT.3.1 | E152: NASA | H152: no | K152: no | L152: no | N152: Supports Multiple Tcdrs (upper-air Temperature, Total Column Water Vapor, Profiles Of Water Vapor, Cloud Amount) | O152: CDR_ECV02_4 | P152: NASA | Q152: NASA | R152: NASA | S152: NASA | T152: NASA | U152: NASA | V152: NASA | W152: NASA | X152: NASA | Y152: NASA | Z152: 2006-06-01 | AA152: 2011-03-01 | AC152: CLOUD TYPE | AD152: %, m, mW/m*2/sr(cm*-1) | AE152: Aqua | AF152: Modis, AIRS | AH152: Yes | AI152: Cloudsat | AJ152: CPR | AL152: Calipso | AM152: Caliop | AY152: Aqua, CloudSat, Calipso; Modis, Airs, AMSU, CPR, CALIOP | AZ152: not selected | BI152: no | BN152: no | BO152: no | BT152: no | BU152: not selected | BV152: not selected | BW152: ftp, OPeNDAP, Mirador | BZ152: Available now. | CA152: 1335 | CB152: Feb 24 2014 8:44PM | CC152: 121763A0-17A7-4302-8B0F-22CB5C7C1211 | CF152: UPPER-AIR TEMPERATURE | CG152: UPPER-AIR TEMPERATURE | CY152: 4.75 | CZ152: 0.75 | DA152: 0.3333333333 | DB152: 0.1428571429 | DC152: 0.5 | DD152: 0.5 | DE152: 1 | DF152: 1 | DG152: 0.2857142857 | DH152: 2 | DI152: 1 | DJ152: 0 | DL152: 0.6259920635 | DM152: =BA152 -> 0 | DN152: =BB152 -> 0 | DP152: =BD152 -> 0 | DQ152: =BE152 -> 0 | DR152: 0 | DS152: 1 | DT152: Supports Multiple Tcdrs (upper-air Temperature, Total Column Water Vapor, Profiles Of Water Vapor, Cloud Amount) | DU152: =SUM(CY152/30,DL152,DR152,DS152) -> 1.784325397
A153: Current | B153: H. K. Ramapriyan | C153: Rama.Ramapriyan@nasa.gov | D153: ISCCP_TOVS_NAT | E153: NASA | H153: no | K153: no | L153: no | O153: CDR_ECV02_6 | P153: NOAA | Q153: NOAA | R153: NASA | S153: NASA | T153: NASA | U153: NASA | V153: NASA | W153: NASA | X153: NASA | Y153: NASA | Z153: 1983-07-01 | AA153: 2009-12-01 | AC153: NOT SELECTED | AD153: not selected | AE153: TIROS N | AF153: HIRS/2 | AH153: Yes | AI153: NOAA-6 | AJ153: HIRS/2 | AL153: NOAA-7 | AO153: NOAA-8 | AR153: NOAA-9 | AY153: TIROS N|HIRS/2||NOAA-6|HIRS/2Series is continued with NOAA-7 through NOAA-19 with follow-on instruments | AZ153: not selected | BI153: no | BN153: no | BO153: no | BT153: no | BU153: not selected | BV153: not selected | BW153: ftp, ASDC Java Order Tool | BZ153: Available now | CA153: 2003-08-28 | CB153: Feb 24 2014 8:44PM | CC153: 69EDD11D-A7C4-4819-AFA0-D77B651E06AA | CF153: UPPER-AIR TEMPERATURE | CG153: UPPER-AIR TEMPERATURE | CY153: 26.41666667 | CZ153: 0.75 | DA153: 0.3333333333 | DB153: 0.1428571429 | DC153: 0.5 | DD153: 0.5 | DE153: 1 | DF153: 1 | DG153: 0.2857142857 | DH153: 2 | DI153: 1 | DJ153: 0 | DK153: =(COUNTIF(U153,"*")+COUNTIF(W153,"*")+COUNTIF(BO153,"y*"))/3 -> 0.6666666667 | DL153: 0.681547619 | DM153: =BA153 -> 0 | DN153: 0 | DO153: 0 | DP153: 0 | DQ153: 0 | DR153: 0 | DS153: 0 | DT153: 0 | DU153: =SUM(CY153/30,DL153,DR153,DS153) -> 1.562103175
A154: Current | B154: H. K. Ramapriyan | C154: Rama.Ramapriyan@nasa.gov | D154: ISCCP_TOVS_NAT | E154: NASA | H154: no | K154: no | L154: no | O154: CDR_ECV03_10 | P154: NOAA | Q154: NOAA | R154: NASA | S154: NASA | T154: NASA | U154: NASA | V154: NASA | W154: NASA | X154: NASA | Y154: NASA | Z154: 1983-07-01 | AA154: 2009-12-01 | AC154: NOT SELECTED | AD154: not selected | AE154: TIROS N | AF154: HIRS/2 | AH154: Yes | AI154: NOAA-6 | AJ154: HIRS/2 | AL154: NOAA-7 | AO154: NOAA-8 | AR154: NOAA-9 | AY154: TIROS N|HIRS/2||NOAA-6|HIRS/2Series is continued with NOAA-7 through NOAA_19 with follow-on instruments | AZ154: not selected | BI154: no | BN154: no | BO154: no | BT154: no | BU154: not selected | BV154: Open Access | BW154: ftp, ASDC Java Order Tool | BZ154: Available now | CA154: 2003-08-29 | CB154: Feb 24 2014 8:44PM | CC154: B56F9896-D162-415D-A44C-F40F55DA2070 | CF154: PROFILES OF WATER VAPOR | CG154: WATER VAPOUR | CY154: 26.41666667 | CZ154: 0.75 | DA154: 0.3333333333 | DB154: 0.1428571429 | DC154: 0.5 | DD154: 0.5 | DE154: 1 | DF154: 1 | DG154: 0.4285714286 | DH154: 2 | DI154: 1 | DJ154: 0 | DK154: 0.6666666667 | DL154: 0.693452381 | DM154: 0 | DN154: 0 | DO154: 0 | DP154: 0 | DQ154: 0 | DR154: 0 | DS154: 0 | DT154: 0 | DU154: =SUM(CY154/30,DL154,DR154,DS154) -> 1.574007937
A155: Current | B155: John Forsythe | C155: John.Forsythe@colostate.edu | E155: NASA | H155: no | K155: no | L155: no | N155: Monitor The Global And Regional Distribution Of Atmospheric Water Vapor | O155: CDR_ECV03_15 | P155: NASA | Q155: NASA | R155: NOAA | S155: NOAA | T155: NASA | U155: NASA | V155: NASA | W155: NASA | X155: NASA | Y155: NASA | Z155: 1988-01-01 | AA155: 2009-12-01 | AC155: NOT SELECTED | AD155: not selected | AE155: NOAA-9 | AF155: HIRS | AH155: Yes | AI155: NOAA-10 | AJ155: HIRS | AL155: DMSP F-8 | AM155: SSM/I | AO155: DMSP F-10 | AP155: SSM/I | AR155: DMSP F-11 | AS155: SSM/I | AU155: Aqua | AV155: AIRS | AY155: NOAA-9, NOAA-10, NOAA-11, NOAA-13, NOAA-16, NOAA-17, NOAA-12, NOAA-14, NOAA-15, DMSP F8, DMSP F-10, DMSP F-11, DMSP F-13, DMSP F-14, COSMO-SkyMEd1, Aqua. SSM/I, HIRS/2, HIRS/3, AIRS. | AZ155: Global | BA155: ~110 | BB155: Variable (based on pressure levels) | BC155: 1 | BD155: varies with time due to satellite sampling | BE155: varies with time due to satellite sampling | BI155: no | BN155: no | BO155: no | BT155: both | BU155: not selected | BV155: Open Access | BW155: FTP | BZ155: 2014-06-13 | CA155: 1342 | CB155: Feb 24 2014 8:44PM | CC155: F1D100B7-35FB-4159-A582-5163DB3AA7C1 | CF155: TOTAL COLUMN WATER VAPOR | CG155: WATER VAPOUR | CY155: 21.91666667 | CZ155: 0.75 | DA155: 0.3333333333 | DB155: 0.8571428571 | DC155: 0.5 | DD155: 0.5 | DE155: 1 | DF155: 1 | DG155: 0.5714285714 | DH155: 1 | DI155: 1 | DJ155: 0 | DK155: 0.6666666667 | DL155: 0.681547619 | DM155: ~110 | DN155: Variable (based on pressure levels) | DO155: 1 | DP155: varies with time due to satellite sampling | DQ155: varies with time due to satellite sampling | DR155: 1 | DS155: =COUNTIF(N155,"*") -> 1 | DT155: Monitor The Global And Regional Distribution Of Atmospheric Water Vapor | DU155: =SUM(CY155/30,DL155,DR155,DS155) -> 3.412103175
A156: Current | B156: Chung-lin Shie | C156: chung-lin.shie-1@nasa.gov | D156: doi:10.5067/MEASURES/GSSTF/DATA301 | E156: NASA | H156: no | K156: no | L156: no | N156: Global Energy And Water Cycle; Climate Systems Such As Enso And Monsoons, Etc. | O156: CDR_ECV03_16 | P156: NASA | Q156: NASA | R156: not selected | S156: not selected | T156: NASA | U156: NASA | V156: NASA | W156: NASA | X156: NASA | Y156: NASA | Z156: 1987-07-01 | AA156: 2008-12-01 | AB156: 2008-12-31 | AC156: NOT SELECTED | AD156: W/m2 | AE156: DMSP F-8 | AF156: SSM/I | AH156: Yes | AI156: DMSP F-10 | AJ156: SSM/I | AL156: DMSP F-11 | AM156: SSM/I | AO156: DMSP F-13 | AP156: SSM/I | AR156: DMSP F-14 | AS156: SSM/I | AU156: DMSP F-15 | AV156: SSM/I | AY156: DMSP F08, F10, F11, F13, F14, F15. SSM/I | AZ156: Global | BA156: 25 | BC156: 1 | BD156: 3 W/m2 | BE156: N/A. latent heat flux and sensible heat flux are not in the list of TCDRs | BI156: no | BK156: DMSP | BL156: SSM/I | BN156: no | BO156: no | BS156: chung-lin.shie-1@nasa.gov; andrey.k.savtchenko@nasa.gov | BT156: both | BU156: HDF-EOS | BV156: Open Access | BW156: ftp or online download from http://disc.sci.gsfc.nasa.gov/daac-bin/DataHoldingsMEASURES.pl?PROGRAM_List=ChungLinShie | BZ156: Data covering 07/09/1987 to 12/31/2008 are currently available for immediate download | CA156: 1343 | CB156: Feb 24 2014 8:44PM | CC156: A27A0D24-C976-451D-B255-1BC3B93A1A8D | CF156: TOTAL COLUMN WATER VAPOR | CG156: WATER VAPOUR | CY156: 21.41666667 | CZ156: 0.75 | DA156: 0.3333333333 | DB156: 0.7142857143 | DC156: 0.5 | DD156: 0.5 | DE156: 1 | DF156: 1 | DG156: 0.8571428571 | DH156: 2 | DI156: 1 | DJ156: 0 | DK156: 0.6666666667 | DL156: 0.7767857143 | DM156: 25 | DN156: 0 | DO156: 1 | DP156: 3 W/m2 | DQ156: N/A. latent heat flux and sensible heat flux are not in the list of TCDRs | DR156: 0.8 | DS156: 1 | DT156: Global Energy And Water Cycle; Climate Systems Such As Enso And Monsoons, Etc. | DU156: =SUM(CY156/30,DL156,DR156,DS156) -> 3.290674603
A157: Current | B157: Rama Pamapriyan | C157: Rama.Ramapriyan@nasa.gov | D157: doi:10.5067/MEASURES/GSSTF/DATA301 | E157: NASA | H157: no | K157: no | L157: no | N157: Global Energy And Water Cycle; Climate Systems Such As Enso And Monsoons, Etc. | O157: CDR_ECV03_17 | P157: NASA | Q157: NASA | R157: NASA | S157: NASA | T157: NASA | U157: NASA | V157: NASA | W157: NASA | X157: KMA | Y157: NASA | Z157: 1987-07-01 | AA157: 2012-12-01 | AB157: 2014-05-13 | AC157: NOT SELECTED | AD157: not selected | AE157: DMSP F-8 | AF157: SSM/I | AH157: Yes | AI157: DMSP F-10 | AJ157: SSM/I | AL157: DMSP F-11 | AM157: SSM/I | AO157: DMSP F-13 | AP157: SSM/I | AR157: DMSP F-14 | AS157: SSM/I | AU157: DMSP F-15 | AV157: SSM/I | AY157: DMSP F08, F10, F11, F13, F14, F15. SSM/I | AZ157: Global | BA157: 25 | BC157: 1 | BI157: no | BK157: DMSP | BL157: SSM/I | BN157: no | BO157: no | BS157: chung-lin.shie-1@nasa.gov; audrey.k.sasvtchenko@nasa.gov | BT157: both | BU157: HDF-EOS | BV157: Open Access | BW157: ftp or online download from http://disc.sci.gsfc.nasa.gov/daac-bin/DataHoldingsMEASURES.pl?PROGRAM_List=ChungLinShie | BZ157: Datasets are available now. (The GSSTF datasets are climatology data, which are not in real-time distribution. GSSTF2b, GSSTF2c, and GSSTF3 have been distributed in Oct 2010, Oct 2011, and June 2012, respectively. An updated GSSTF3 dataset with an exte | CA157: 1344 | CB157: Feb 24 2014 8:44PM | CC157: CE71793D-09FF-44D1-ACAD-8DBCB17AD57E | CF157: PROFILES OF WATER VAPOR | CG157: WATER VAPOUR | CY157: 25.41666667 | CZ157: 0.75 | DA157: 0.3333333333 | DB157: 0.4285714286 | DC157: 0.5 | DD157: 0.5 | DE157: 1 | DF157: 1 | DG157: 0.8571428571 | DH157: 2 | DI157: 1 | DJ157: 0 | DK157: 0.6666666667 | DL157: 0.7529761905 | DM157: 25 | DN157: 0 | DO157: 1 | DP157: 0 | DQ157: 0 | DR157: 0.4 | DS157: 1 | DT157: Global Energy And Water Cycle; Climate Systems Such As Enso And Monsoons, Etc. | DU157: =SUM(CY157/30,DL157,DR157,DS157) -> 3.000198413
A158: Current | B158: H. K. Ramapriyan@nasa.gov | C158: Rama.Ramapriyan@nasa.gov | D158: SSMI and SSMIS netCDF Data Products | E158: NASA | H158: no | K158: no | L158: no | N158: Understanding Water Cycle Changes, Climate Model Validation, Study Of Long Term Trends | O158: CDR_ECV03_9 | P158: DoD (USA) | Q158: NASA | R158: NASA | S158: NASA | T158: NASA | U158: NASA | V158: NASA | W158: NASA | X158: NASA | Y158: NASA | Z158: 1987-07-01 | AA158: 2012-12-01 | AC158: NOT SELECTED | AD158: mm | AE158: DMSP F-8 | AF158: SSM/I | AH158: Yes | AI158: DMSP F-10 | AJ158: SSM/I | AL158: DMSP F-11 | AM158: SSM/I | AO158: DMSP F-13 | AP158: SSM/I | AR158: DMSP F-14 | AS158: SSM/I, SSM/IS | AU158: DMSP F-15 | AV158: SSM/I, SSM/IS | AY158: DMSP F-8|SSM/I||DMSP F-10|SSM/I||DMSP F-11|SSM/I||DMSP F-13|SSM/IDMSP%20F-14%20through%20F-17%20are%20used%20as%20wellDMSP F8, DMSP F10, DMSP F11, DMSP F13, DMSP F14, DMSP F-15, DMSP F16, DMSP F17. SSM/I and SSM/IS. | AZ158: Global | BA158: 25 | BB158: 0 | BC158: 1 | BD158: 1.0 mm | BE158: .05 mm/decade | BI158: yes | BK158: DMSP | BL158: SSM/I | BN158: no | BO158: no | BS158: ghrcdaac@itsc.uah.edu | BT158: both | BU158: netcdf | BV158: Open Access | BW158: FTP, OpenDAP, WGET | BZ158: Available now. | CA158: 1352 | CB158: Feb 24 2014 8:44PM | CC158: D848CDA6-5A52-4DD4-B078-DA9AC8B9BB4B | CF158: TOTAL COLUMN WATER VAPOR | CG158: WATER VAPOUR | CI158: yes | CJ158: TRMM | CK158: TMI | CL158: Aqua | CM158: AMSR-E | CN158: Coriolis | CO158: Windsat | CY158: 25.41666667 | CZ158: 0.75 | DA158: 0.3333333333 | DB158: 0.8571428571 | DC158: 0.5 | DD158: 0.5 | DE158: 1 | DF158: 1 | DG158: 0.8571428571 | DH158: 2 | DI158: 1 | DJ158: 0 | DK158: 0.6666666667 | DL158: 0.7886904762 | DM158: 25 | DN158: 0 | DO158: 1 | DP158: 1.0 mm | DQ158: .05 mm/decade | DR158: 0.8 | DS158: 1 | DT158: Understanding Water Cycle Changes, Climate Model Validation, Study Of Long Term Trends | DU158: =SUM(CY158/30,DL158,DR158,DS158) -> 3.435912698
A159: Current | B159: H. K. Ramapriyan | C159: Rama.Ramapriyan@nasa.gov | D159: SSMI and SSMIS netCDF Data Products | E159: NASA | H159: no | K159: no | L159: no | N159: Analysis Of Changes In Cloud Cover | O159: CDR_ECV04_17 | P159: DoD (USA) | Q159: NASA | R159: NASA | S159: NASA | T159: NASA | U159: NASA | V159: NASA | W159: NASA | X159: NASA | Y159: NASA | Z159: 1987-07-01 | AA159: 2012-12-01 | AC159: CLOUD LIQUID WATER (COLUMN/PROFILE) | AD159: mm | AE159: DMSP F-8 | AF159: SSM/I, SSM/IS | AH159: Yes | AI159: DMSP F-10 | AJ159: SSM/I, SSM/IS | AL159: DMSP F-11 | AM159: SSM/I, SSM/IS | AO159: DMSP F-13 | AP159: SSM/I, SSM/IS | AR159: DMSP F-14 | AS159: SSM/I, SSM/IS | AU159: DMSP F-15 | AV159: SSM/I, SSM/IS | AY159: DMSP F-8,DMSP F-10,DMSP F-11,DMSP F-13,DMSP F-14,DMSP F-15,DMSP F-16,DMSP F-17. SSM/I and SSM/IS | AZ159: Global | BA159: 25 km | BB159: 0 | BC159: 1 | BD159: 0.02 mm | BE159: unknown | BI159: no | BK159: DMSP | BL159: SSM/I | BN159: no | BO159: no | BS159: ghrcdaac@itsc.uah.edu | BT159: both | BU159: netcdf | BV159: Open Access | BW159: FTP, OpenDAP, WGET | BZ159: Available now. | CA159: 1361 | CB159: Feb 24 2014 8:44PM | CC159: 8EDDE3CF-EC9B-4276-B5DD-6AA1AA640803 | CF159: CLOUD WATER PATH | CG159: CLOUD PROPERTIES | CI159: yes | CJ159: TRMM | CK159: TMI | CL159: Aqua | CM159: AMSR-E | CN159: Coriolis | CO159: Windsat | CY159: 25.41666667 | CZ159: 0.75 | DA159: 0.3333333333 | DB159: 0.8571428571 | DC159: 0.5 | DD159: 0.5 | DE159: 1 | DF159: 1 | DG159: 0.8571428571 | DH159: 2 | DI159: 1 | DJ159: 0 | DK159: 0.6666666667 | DL159: 0.7886904762 | DM159: 25 km | DN159: 0 | DO159: 1 | DP159: 0.02 mm | DQ159: unknown | DR159: 0.6 | DS159: 1 | DT159: Analysis Of Changes In Cloud Cover | DU159: =SUM(CY159/30,DL159,DR159,DS159) -> 3.235912698
A160: Current | B160: H. K. Ramapriyan | C160: Rama.Ramapriyan@nasa.gov | D160: ISCCP_TOVS_NAT | E160: NASA | H160: no | K160: no | L160: no | O160: CDR_ECV04_18 | P160: NOAA | Q160: NOAA | R160: NASA | S160: NASA | T160: NASA | U160: NASA | V160: NASA | W160: NASA | X160: NASA | Y160: NASA | Z160: 1983-07-01 | AA160: 2009-12-01 | AC160: NOT SELECTED | AD160: not selected | AE160: TIROS N | AF160: TOVS (HIRS/2 MSU SSU) | AH160: Yes | AI160: NOAA-6 | AJ160: TOVS (HIRS/2 MSU SSU) | AL160: NOAA-7 | AO160: NOAA-8 | AR160: NOAA-9 | AU160: NOAA-10 | AY160: TIROS N|TOVS (HIRS/2 MSU SSU)||NOAA-6|TOVS (HIRS/2 MSU SSU)NOAA-7 through NOAA-19 | AZ160: not selected | BI160: no | BN160: no | BO160: no | BT160: no | BU160: not selected | BV160: not selected | BW160: ftp; ASDC Java Order Tool | BZ160: Available now. | CA160: 1362 | CB160: 2014-02-24T20:44:00 | CC160: B0AB595C-C24E-4290-9EAA-B4A2DD218048 | CF160: CLOUD AMOUNT | CG160: CLOUD PROPERTIES | CY160: 26.41666667 | CZ160: 0.75 | DA160: 0.3333333333 | DB160: 0.1428571429 | DC160: 0.5 | DD160: 0.5 | DE160: 1 | DF160: 1 | DG160: 0.2857142857 | DH160: 2 | DI160: 1 | DJ160: 0 | DK160: 0.6666666667 | DL160: 0.681547619 | DM160: 0 | DN160: 0 | DO160: 0 | DP160: 0 | DQ160: 0 | DR160: 0 | DS160: 0 | DT160: 0 | DU160: =SUM(CY160/30,DL160,DR160,DS160) -> 1.562103175
A161: Current | B161: H. K. Ramapriyan | C161: Rama.Ramapriyan@nasa.gov | D161: ISCCP_TOVS_NAT | E161: NASA | H161: no | K161: no | L161: no | O161: CDR_ECV04_19 | P161: NOAA | Q161: NOAA | R161: NASA | S161: NASA | T161: NASA | U161: NASA | V161: NASA | W161: NASA | X161: NASA | Y161: NASA | Z161: 1983-07-01 | AA161: 2009-12-01 | AC161: NOT SELECTED | AD161: not selected | AE161: TIROS N | AF161: HIRS/2 | AH161: Yes | AI161: NOAA-6 | AJ161: HIRS/2 | AL161: NOAA-7 | AO161: NOAA-8 | AR161: NOAA-9 | AU161: NOAA-10 | AY161: TIROS N|HIRS/2||NOAA-6|HIRS/2Series is continued with NOAA-7 through NOAA-19 with follow-on instruments | AZ161: not selected | BI161: no | BN161: no | BO161: no | BT161: no | BU161: not selected | BV161: not selected | BW161: ftp; ASDC Java Order Tool | BZ161: Available now. | CA161: 1363 | CB161: 2014-02-24T20:44:00 | CC161: 0EC23640-0BC0-44EC-9417-1EE101E088EF | CF161: CLOUD TOP PRESSURE AND TEMPERATURE | CG161: CLOUD PROPERTIES | CY161: 26.41666667 | CZ161: 0.75 | DA161: 0.3333333333 | DB161: 0.1428571429 | DC161: 0.5 | DD161: 0.5 | DE161: 1 | DF161: 1 | DG161: 0.2857142857 | DH161: 2 | DI161: 1 | DJ161: 0 | DK161: 0.6666666667 | DL161: 0.681547619 | DM161: 0 | DN161: 0 | DO161: 0 | DP161: 0 | DQ161: 0 | DR161: 0 | DS161: 0 | DT161: 0 | DU161: =SUM(CY161/30,DL161,DR161,DS161) -> 1.562103175
A162: Current | B162: H. K. Ramapriyan | C162: Rama.Ramapriyan@nasa.gov | D162: ISCCP_TOVS_NAT | E162: NASA | H162: no | K162: no | L162: no | O162: CDR_ECV04_20 | P162: NOAA | Q162: NOAA | R162: NASA | S162: NASA | T162: NASA | U162: NASA | V162: NASA | W162: NASA | X162: NASA | Y162: NASA | Z162: 1983-07-01 | AA162: 2009-12-01 | AC162: NOT SELECTED | AD162: not selected | AE162: TIROS N | AF162: HIRS/2 | AH162: Yes | AI162: NOAA-6 | AJ162: HIRS/2 | AL162: NOAA-7 | AO162: NOAA-8 | AR162: NOAA-9 | AY162: TIROS N|HIRS/2||NOAA-6|HIRS/2Series is continued with NOAA-7 through NOAA-9 with follow-on instruments | AZ162: not selected | BI162: no | BN162: no | BO162: no | BT162: no | BU162: not selected | BV162: not selected | BW162: ftp; ASDC Java Order Tool | BZ162: Available now. | CA162: 1365 | CB162: 2014-02-24T20:44:00 | CC162: 8E5BB32A-B77F-4896-9E0C-68721886E414 | CF162: CLOUD OPTICAL DEPTH | CG162: CLOUD PROPERTIES | CY162: 26.41666667 | CZ162: 0.75 | DA162: 0.3333333333 | DB162: 0.1428571429 | DC162: 0.5 | DD162: 0.5 | DE162: 1 | DF162: 1 | DG162: 0.2857142857 | DH162: 2 | DI162: 1 | DJ162: 0 | DK162: 0.6666666667 | DL162: 0.681547619 | DM162: 0 | DN162: 0 | DO162: 0 | DP162: 0 | DQ162: 0 | DR162: 0 | DS162: 0 | DT162: 0 | DU162: =SUM(CY162/30,DL162,DR162,DS162) -> 1.562103175
A163: Current | B163: Peter Leonard | C163: pleonard@sesda3.com | D163: TBD | E163: NASA | H163: no | K163: no | L163: no | N163: Earth Energy Balance | O163: CDR_ECV04_39 | P163: NASA | Q163: NASA | R163: NASA | S163: NASA | T163: NASA | U163: NASA | V163: NASA | W163: NASA | X163: NASA | Y163: NASA | Z163: 1979-01-01 | AA163: 2011-12-01 | AB163: 2014-12-12 | AC163: NOT SELECTED | AD163: % | AE163: Nimbus 7 | AF163: SBUV | AH163: Yes | AI163: NOAA-9 | AJ163: SBUV-2 | AL163: NOAA-11 | AM163: SBUV-2 | AO163: NOAA-14 | AP163: SBUV-2 | AR163: NOAA-16 | AS163: SBUV-2 | AU163: NOAA-17 | AV163: SBUV-2 | AY163: Satellites:Nimbus 7/SBUV; NOAA-9, NOAA-11, NOAA-14, NOAA-16, NOAA-17, NOAA-18, NOAA-19/all SBUV-2 | AZ163: Global | BA163: 2 x 5 km2 | BB163: N/A (Total Column) | BC163: 1 | BD163: 0.02 | BE163: 0.02 | BI163: no | BN163: no | BO163: no | BS163: jay.r.herman@nasa.gov | BT163: both | BU163: HDF-EOS | BV163: Open Access | BW163: ftp, Mirador | BZ163: Available now. | CA163: 1384 | CB163: Feb 24 2014 8:44PM | CC163: 3E06AD42-C58B-4FFD-8323-FE54863538F1 | CF163: CLOUD AMOUNT | CG163: CLOUD PROPERTIES | CY163: 32.91666667 | CZ163: 0.75 | DA163: 0.3333333333 | DB163: 0.8571428571 | DC163: 0.5 | DD163: 0.5 | DE163: 1 | DF163: 1 | DG163: 0.8571428571 | DH163: 2 | DI163: 1 | DJ163: 0 | DK163: 0.6666666667 | DL163: 0.7886904762 | DM163: 2 x 5 km2 | DN163: N/A (Total Column) | DO163: 1 | DP163: 0.02 | DQ163: 0.02 | DR163: 1 | DS163: 1 | DT163: Earth Energy Balance | DU163: =SUM(CY163/30,DL163,DR163,DS163) -> 3.885912698
A164: Future | B164: John Kimball | C164: johnk@ntsg.umt.edu | D164: NSIDC-0477 | E164: NASA | H164: no | K164: no | L164: no | N164: Global Change Documentation Of Frozen Season Changes And Frozen Temperature Constraints To Vegetation Productivity, Land-atmosphere C Exchange, Evapotranspiration And Land Surface Water Mobility. The Ft Parameter Provides A Frozen Temperature Constra | O164: CDR_ECV04_40 | P164: NASA | Q164: NASA | R164: NASA | S164: NASA | T164: NASA | U164: NASA | V164: NASA | W164: NASA | X164: NASA | Y164: NASA | Z164: 1979-01-01 | AA164: 2010-12-01 | AC164: NOT SELECTED | AD164: not selected | AE164: NOAA-7 | AF164: SMMR | AH164: Yes | AI164: DMSP F-17 | AJ164: SSM/I | AL164: DMSP F-13 | AM164: SSM/I | AO164: DMSP F-11 | AP164: SSM/I | AR164: DMSP F-8 | AS164: SSM/I | AU164: AQUA | AV164: AMSR-E | AY164: NOAA-7 / SMMR; DMSP F-17, F-13, F-11, F-8 / all with SSM/I; Aqua / AMSR-E | AZ164: Global | BA164: 25-km (global); 3-12-km (Polar) | BB164: Land surface | BC164: Daily | BD164: >80% mean annual spatial classification accuracy | BE164: Number field | BI164: no | BN164: no | BO164: no | BT164: both | BU164: HDF | BV164: Open Access | BW164: FTP | BZ164: Available now | CA164: 1386 | CB164: Feb 24 2014 8:44PM | CC164: AA4175AA-8C02-45A8-8CB0-C611FCB64FB1 | CF164: CLOUD EFFECTIVE PARTICLE RADIUS | CG164: CLOUD PROPERTIES | CY164: 31.91666667 | CZ164: 0.75 | DA164: 0.3333333333 | DB164: 0.8571428571 | DC164: 0.5 | DD164: 0.5 | DE164: 1 | DF164: 1 | DG164: 0.7142857143 | DH164: 2 | DI164: 1 | DJ164: 0 | DK164: 0.6666666667 | DL164: 0.7767857143 | DM164: 25-km (global); 3-12-km (Polar) | DN164: Land surface | DO164: Daily | DP164: >80% mean annual spatial classification accuracy | DQ164: Number field | DR164: 0.8 | DS164: 1 | DT164: Global Change Documentation Of Frozen Season Changes And Frozen Temperature Constraints To Vegetation Productivity, Land-atmosphere C Exchange, Evapotranspiration And Land Surface Water Mobility. The Ft Parameter Provides A Frozen Temperature Constra | DU164: =SUM(CY164/30,DL164,DR164,DS164) -> 3.640674603
A165: Current | B165: John Bates | C165: john.j.bates@noaa.gov | E165: NASA | H165: no | K165: yes | L165: yes | O165: CDR_ECV05_1 | P165: NOAA | Q165: NASA | R165: NASA | S165: NOAA | T165: NASA | U165: NASA | V165: NASA | W165: NOAA | X165: NOAA | Y165: NASA | Z165: 1979-01-01 | AA165: 2012-07-01 | AC165: PRECIPITATION INDEX (DAILY CUMULATIVE) | AD165: mm | AE165: DMSP | AH165: Yes | AI165: NOAA | AL165: Aqua | AY165: not selected|not selectedDMSP; DMSP; NOAA; Aqua; IR; national, regional, special, GTS collections SSMI; SSMIS; TOVS; AIRS; geo-IR; global network of precipitation gauges | AZ165: Global | BA165: 250 | BB165: n/a | BC165: 30 (5 and 1) | BD165: 0.1 | BE165: 0.05 | BI165: yes | BN165: no | BO165: no | BS165: george.j.huffman@nasa.gov | BT165: both | BU165: netcdf | BV165: not selected | BW165: FTP | BZ165: 2 | CA165: 1393 | CB165: Feb 24 2014 8:44PM | CC165: 40E5691E-7693-45BC-8AB8-56F2C81B70B4 | CF165: LIQUID PRECIPITATION | CG165: PRECIPITATION | CY165: 33.5 | CZ165: 0.75 | DA165: 0.3333333333 | DB165: 0.8571428571 | DC165: 0.5 | DD165: 0.5 | DE165: 1 | DF165: 1 | DG165: 0.7142857143 | DH165: 1 | DI165: 1 | DJ165: 0 | DK165: 0.6666666667 | DL165: 0.693452381 | DM165: 250 | DN165: n/a | DO165: 30 (5 and 1) | DP165: 0.1 | DQ165: 0.05 | DR165: 1 | DS165: 0 | DT165: 0 | DU165: =SUM(CY165/30,DL165,DR165,DS165) -> 2.810119048
A166: Current | B166: H. K. Ramapriyan | C166: Rama.Ramapriyan@nasa.gov | D166: SSMI and SSMIS netCDF Data Products | E166: NASA | H166: no | K166: no | L166: no | N166: Study Of Global Changes In Rain Patterns, Analysis Of Water Cycle | O166: CDR_ECV05_4 | P166: DoD (USA) | Q166: NASA | R166: NASA | S166: NASA | T166: NASA | U166: NASA | V166: NASA | W166: NASA | X166: NASA | Y166: NASA | Z166: 1987-07-01 | AA166: 2012-12-01 | AC166: PRECIPITATION RATE (LIQUID) AT THE SURFACE | AD166: not selected | AE166: DMSP F-8 | AF166: SSM/I | AH166: Yes | AI166: DMSP F-10 | AJ166: SSM/I | AL166: DMSP F-11 | AM166: SSM/I | AO166: DMSP F-13 | AP166: SSM/I | AR166: DMSP F-14 | AS166: SSM/I, SSM/IS | AU166: DMSP F-15 | AV166: SSM/I, SSM/IS | AY166: DMSP F-8|SSM/I||DMSP F-10|SSM/I||DMSP F-11|SSM/I||DMSP F-13|SSM/IDMSP%20F-14%20through%20F-17%20are%20used%20as%20welland DMSP F-14, DMSP F-15, DMSP F-16, DMSP F-17. SSM/I and SSM/IS. | AZ166: Global | BA166: 25 km | BB166: 0 | BC166: 1 | BD166: 500 mm/yr | BE166: 4.8 mm/year/decade | BI166: yes | BK166: DMSP | BL166: SSM/I | BN166: no | BO166: no | BS166: ghrcdaac@itsc.uah.edu | BT166: both | BU166: netcdf | BV166: Open Access | BW166: FTP, OpenDAP, WGET | BZ166: Available now. | CA166: 1396 | CB166: Feb 24 2014 8:44PM | CC166: 83AFCDD9-B05C-424B-B86C-401663FE8AC8 | CF166: LIQUID PRECIPITATION | CG166: PRECIPITATION | CI166: yes | CJ166: TRMM | CK166: TMI | CL166: Aqua | CM166: AMSR-E | CN166: Coriolis | CO166: Windsat | CY166: 25.41666667 | CZ166: 0.75 | DA166: 0.3333333333 | DB166: 0.8571428571 | DC166: 0.5 | DD166: 0.5 | DE166: 1 | DF166: 1 | DG166: 0.8571428571 | DH166: 2 | DI166: 1 | DJ166: 0 | DK166: 0.6666666667 | DL166: 0.7886904762 | DM166: 25 km | DN166: 0 | DO166: 1 | DP166: 500 mm/yr | DQ166: 4.8 mm/year/decade | DR166: 0.8 | DS166: 1 | DT166: Study Of Global Changes In Rain Patterns, Analysis Of Water Cycle | DU166: =SUM(CY166/30,DL166,DR166,DS166) -> 3.435912698
A167: Future | B167: Janice Bytheway | C167: janice@atmos.colostate.edu | D167: No | E167: NASA | H167: no | K167: no | L167: no | N167: Quantifying Precipitation With Uncertainty Estimates To Monitor Global And Regional Water And Energy Budgets | O167: CDR_ECV05_8 | P167: NASA | Q167: not selected | R167: NASA | S167: NASA | T167: NASA | U167: not selected | V167: NASA | W167: NASA | X167: NASA | Y167: NASA | Z167: 1987-07-01 | AA167: 2013-12-01 | AC167: PRECIPITATION RATE (LIQUID) AT THE SURFACE | AD167: not selected | AE167: DMSP F-8 | AH167: Yes | AI167: DMSP F-10 | AL167: DMSP F-11 | AO167: DMSP F-13 | AR167: DMSP F-14 | AU167: DMSP F-15 | AY167: Satellites: 300, 302, 303, 305, 306, 345, 381, 408, 409, 206, 215 Instruments: 451, 454, 414, 664 | AZ167: Global | BA167: ~25 | BB167: N/A | BC167: 1 | BD167: resolution dependent | BE167: TBD | BI167: no | BN167: no | BO167: no | BT167: both | BU167: not selected | BV167: Open Access | BW167: FTP | BZ167: TBD (Beta versions available now) | CA167: 1400 | CB167: Feb 24 2014 8:44PM | CC167: A2E4C5FC-0BEF-4B5A-B02C-3ADAAA08483B | CF167: LIQUID PRECIPITATION | CG167: PRECIPITATION | CY167: 26.41666667 | CZ167: 0.75 | DA167: 0.3333333333 | DB167: 0.8571428571 | DC167: 0.5 | DD167: 0.5 | DE167: 1 | DF167: 1 | DG167: 0.5714285714 | DH167: 2 | DI167: 1 | DJ167: 0 | DK167: 0.6666666667 | DL167: 0.7648809524 | DM167: ~25 | DN167: N/A | DO167: 1 | DP167: resolution dependent | DQ167: TBD | DR167: 0.8 | DS167: 1 | DT167: Quantifying Precipitation With Uncertainty Estimates To Monitor Global And Regional Water And Energy Budgets | DU167: =SUM(CY167/30,DL167,DR167,DS167) -> 3.445436508
A168: Future | B168: Janice Bytheway | C168: janice@atmos.colostate.edu | D168: No | E168: NASA | H168: no | K168: no | L168: no | N168: Quantifying Precipitation With Uncertainty Estimates To Monitor Global And Regional Water And Energy Budgets | O168: CDR_ECV05_9 | P168: NASA | Q168: NASA | R168: NASA | S168: NASA | T168: NASA | U168: not selected | V168: NASA | W168: NASA | X168: NASA | Y168: NASA | Z168: 1987-07-01 | AA168: 2013-12-01 | AC168: NOT SELECTED | AD168: not selected | AE168: DMSP F-8 | AH168: Yes | AI168: DMSP F-10 | AL168: DMSP F-11 | AO168: DMSP F-13 | AR168: DMSP F-14 | AU168: DMSP F-15 | AY168: Satellites: DMSP F-8, DMSP F-10, DMSP F-11, DMSP F-13, DMSP F-14, DMSP F-15, DMSP F-16, DMSP F-17, DMSP F-18, Aqua, TRMM. Instruments: SSM/I, SSM/IS, TMI, AMSR-E. | AZ168: Global | BA168: ~25 | BB168: N/A | BC168: 1 | BD168: resolution dependent | BE168: TBD | BI168: no | BN168: no | BO168: no | BT168: both | BU168: not selected | BV168: Open Access | BW168: FTP | BZ168: TBD (Beta versions available now) | CA168: 1401 | CB168: Feb 24 2014 8:44PM | CC168: BFB53D57-BA0D-48FC-A5FB-4654A47C70F3 | CF168: LIQUID PRECIPITATION | CG168: PRECIPITATION | CY168: 26.41666667 | CZ168: 0.75 | DA168: 0.3333333333 | DB168: 0.8571428571 | DC168: 0.5 | DD168: 0.5 | DE168: 1 | DF168: 1 | DG168: 0.5714285714 | DH168: 2 | DI168: 1 | DJ168: 0 | DK168: 0.6666666667 | DL168: 0.7648809524 | DM168: ~25 | DN168: N/A | DO168: 1 | DP168: resolution dependent | DQ168: TBD | DR168: 0.8 | DS168: 1 | DT168: Quantifying Precipitation With Uncertainty Estimates To Monitor Global And Regional Water And Energy Budgets | DU168: =SUM(CY168/30,DL168,DR168,DS168) -> 3.445436508
A169: Future | B169: Townshend Joe Sexton | C169: glcf@umd.edu | D169: No | E169: NASA | H169: no | K169: no | L169: no | N169: Land Cover And Above Ground Biomass Estimation | O169: CDR_ECV06_25 | P169: USGS | Q169: NASA | R169: NASA | S169: USGS | T169: NASA | U169: USGS | V169: NASA | W169: NASA | X169: NASA | Y169: NASA | Z169: 1972-07-01 | AA169: 2008-07-01 | AC169: LAND SURFACE IMAGERY | AD169: not selected | AE169: Landsat-1 | AH169: Yes | AI169: Landsat-2 | AL169: Landsat-3 | AO169: Landsat-4 | AR169: Landsat-5 | AU169: Landsat-7 | AY169: Landsat-1|not selected||Landsat-2|not selected||Landsat-3|not selected||Landsat-4|not selectedLandsat-5, Landsat-7 | AZ169: Global | BA169: 0.03 | BB169: N/A | BC169: N/A | BD169: >90% | BE169: >90% | BI169: no | BN169: no | BO169: no | BT169: both | BU169: not selected | BV169: Open Access | BW169: TBD | BZ169: TBD | CA169: 2003-11-18 | CB169: Feb 24 2014 8:44PM | CC169: 1AAAA1B0-E946-4789-9825-4501FF1193D6 | CF169: REGIONAL AND GLOBAL ABOVE-GROUND FOREST BIOMASS | CG169: ABOVE-GROUND BIOMASS | CY169: 36 | CZ169: 0.75 | DA169: 0.3333333333 | DB169: 0.8571428571 | DC169: 0.5 | DD169: 0.5 | DE169: 1 | DF169: 1 | DG169: 0.5714285714 | DH169: 2 | DI169: 1 | DJ169: 0 | DK169: 0.6666666667 | DL169: 0.7648809524 | DM169: 0.03 | DN169: N/A | DO169: N/A | DP169: >90% | DQ169: >90% | DR169: 0.8 | DS169: 1 | DT169: Land Cover And Above Ground Biomass Estimation | DU169: =SUM(CY169/30,DL169,DR169,DS169) -> 3.764880952
A170: Current | B170: H. K. Ramapriyan | C170: Rama.Ramapriyan@nasa.gov | D170: SBUV2/NOAA-17 Ozone (O3) Profile and Total Column Ozone Monthly L3 Global 5.0deg Lat Zones (SBUV2N17L3zm.1.00) | E170: NASA | H170: no | K170: no | L170: no | N170: Total Column Ozone And Ozone Profiles | O170: CDR_ECV07_10 | P170: NASA | Q170: NASA | R170: NASA | S170: NASA | T170: NASA | U170: NASA | V170: NASA | W170: NASA | X170: NASA | Y170: NASA | Z170: 2002-09-01 | AA170: 2011-12-01 | AC170: NOT SELECTED | AD170: not selected | AE170: NOAA-17 | AF170: SBUV | AH170: No | AY170: NOAA-17/SBUV | AZ170: Global | BA170: 5 degrees | BB170: Number field | BC170: Monthly | BD170: 1 Dobson unit | BE170: 0.01 | BI170: no | BN170: no | BO170: no | BT170: no | BU170: HDF | BV170: Open Access | BW170: ftp, OPeNDAP, Mirador | BZ170: Available now | CA170: 1426 | CB170: Feb 24 2014 8:44PM | CC170: C392697B-EE69-4B8E-A991-35262231ACFD | CF170: TOTAL COLUMN OZONE | CG170: OZONE | CY170: 9.25 | CZ170: 0.75 | DA170: 0.3333333333 | DB170: 0.8571428571 | DC170: 0.5 | DD170: 0.5 | DE170: 1 | DF170: 1 | DG170: 0.5714285714 | DH170: 2 | DI170: 1 | DJ170: 0 | DL170: 0.7093253968 | DM170: =BA170 -> 5 degrees | DN170: =BB170 -> Number field | DP170: =BD170 -> 1 Dobson unit | DQ170: =BE170 -> 0.01 | DR170: 0.6 | DS170: 1 | DT170: Total Column Ozone And Ozone Profiles | DU170: =SUM(CY170/30,DL170,DR170,DS170) -> 2.61765873
A171: Current | B171: H. K. Ramapriyan | C171: Rama.Ramapriyan@nasa.gov | D171: SBUV2/NOAA-18 Ozone (O3) Profile and Total Column Ozone Monthly L3 Global 5.0deg Lat Zones (SBUV2N18L3zm.1.00) | E171: NASA | H171: no | K171: no | L171: no | N171: Total Column Ozone And Ozone Profiles | O171: CDR_ECV07_11 | P171: NASA | Q171: NASA | R171: NASA | S171: NASA | T171: NASA | U171: NASA | V171: NASA | W171: NASA | X171: NASA | Y171: NASA | Z171: 2005-07-01 | AA171: 2011-12-01 | AC171: NOT SELECTED | AD171: not selected | AE171: NOAA-18 | AF171: SBUV | AH171: No | AY171: NOAA-18/SBUV | AZ171: Global | BA171: 5 degrees | BB171: Number field | BC171: Monthly | BD171: 1 Dobson unit | BE171: 0.01 | BI171: no | BN171: no | BO171: no | BT171: no | BU171: HDF | BV171: Open Access | BW171: ftp, OPeNDAP, Mirador | BZ171: Available now | CA171: 1427 | CB171: Feb 24 2014 8:44PM | CC171: 60A13E84-9E61-4FB8-B28E-917D7DE5F3AE | CF171: TOTAL COLUMN OZONE | CG171: OZONE | CY171: 6.416666667 | CZ171: 0.75 | DA171: 0.3333333333 | DB171: 0.8571428571 | DC171: 0.5 | DD171: 0.5 | DE171: 1 | DF171: 1 | DG171: 0.5714285714 | DH171: 2 | DI171: 1 | DJ171: 0 | DK171: =(COUNTIF(U171,"*")+COUNTIF(W171,"*")+COUNTIF(BO171,"y*"))/3 -> 0.6666666667 | DL171: 0.7648809524 | DM171: =BA171 -> 5 degrees | DN171: Number field | DO171: Monthly | DP171: 1 Dobson unit | DQ171: 0.01 | DR171: 0.8 | DS171: 1 | DT171: Total Column Ozone And Ozone Profiles | DU171: =SUM(CY171/30,DL171,DR171,DS171) -> 2.778769841
A172: Current | B172: H. K. Ramapriyan | C172: Rama.Ramapriyan@nasa.gov | D172: SBUV2/NOAA-19 Ozone (O3) Profile and Total Column Ozone Monthly L3 Global 5.0deg Lat Zones (SBUV2N19L3zm.1.00) | E172: NASA | H172: no | K172: no | L172: no | N172: Total Column Ozone And Ozone Profiles | O172: CDR_ECV07_12 | P172: NASA | Q172: NASA | R172: NASA | S172: NASA | T172: NASA | U172: NASA | V172: NASA | W172: NASA | X172: NASA | Y172: NASA | Z172: 2009-03-01 | AA172: 2011-12-01 | AC172: NOT SELECTED | AD172: not selected | AE172: NOAA-19 | AF172: SBUV | AH172: No | AY172: NOAA-19/SBUV | AZ172: Global | BA172: 5 degrees | BB172: Number field | BC172: Monthly | BD172: 1 Dobson unit | BE172: 0.01 | BI172: no | BN172: no | BO172: no | BT172: no | BU172: HDF | BV172: Open Access | BW172: ftp, OPeNDAP, Mirador | BZ172: Available now | CA172: 1428 | CB172: Feb 24 2014 8:44PM | CC172: D38E26E1-0107-4961-8475-7A3C6749260B | CF172: TOTAL COLUMN OZONE | CG172: OZONE | CY172: 2.75 | CZ172: 0.75 | DA172: 0.3333333333 | DB172: 0.8571428571 | DC172: 0.5 | DD172: 0.5 | DE172: 1 | DF172: 1 | DG172: 0.5714285714 | DH172: 2 | DI172: 1 | DJ172: 0 | DK172: 0.6666666667 | DL172: 0.7648809524 | DM172: 5 degrees | DN172: Number field | DO172: Monthly | DP172: 1 Dobson unit | DQ172: 0.01 | DR172: 0.8 | DS172: 1 | DT172: Total Column Ozone And Ozone Profiles | DU172: =SUM(CY172/30,DL172,DR172,DS172) -> 2.656547619
A173: Future | B173: H. K. Ramapriyan | C173: Rama.Ramapriyan@nasa.gov | D173: ISCCP_TOVS_NAT | E173: NASA | H173: no | K173: no | L173: no | O173: CDR_ECV07_13 | P173: NOAA | Q173: NOAA | R173: NASA | S173: NASA | T173: NASA | U173: NASA | V173: NASA | W173: NASA | X173: NASA | Y173: NASA | Z173: 1983-07-01 | AA173: 2009-12-01 | AC173: NOT SELECTED | AD173: not selected | AE173: TIROS N | AF173: HIRS/2 | AH173: Yes | AI173: NOAA-6 | AJ173: HIRS/2 | AL173: NOAA-7 | AO173: NOAA-8 | AR173: NOAA-9 | AY173: TIROS N|HIRS/2||NOAA-6|HIRS/2Series continued with NOAA-7 through NOAA-19 with follow-on instruments | AZ173: not selected | BI173: no | BN173: no | BO173: no | BT173: no | BU173: not selected | BV173: not selected | BW173: ftp, ASDC Java Order Tool | BZ173: Available now | CA173: 2003-11-29 | CB173: Feb 24 2014 8:44PM | CC173: 240AD987-9C48-4752-98BA-95A903005DF1 | CF173: TOTAL COLUMN OZONE | CG173: OZONE | CY173: 26.41666667 | CZ173: 0.75 | DA173: 0.3333333333 | DB173: 0.1428571429 | DC173: 0.5 | DD173: 0.5 | DE173: 1 | DF173: 1 | DG173: 0.2857142857 | DH173: 2 | DI173: 1 | DJ173: 0 | DK173: 0.6666666667 | DL173: 0.681547619 | DM173: 0 | DN173: 0 | DO173: 0 | DP173: 0 | DQ173: 0 | DR173: 0 | DS173: 0 | DT173: 0 | DU173: =SUM(CY173/30,DL173,DR173,DS173) -> 1.562103175
A174: Future | B174: Lucien Froidevaux | C174: lucien.froidevaux@jpl.nasa.gov | E174: NASA | H174: no | K174: no | L174: no | N174: Ozone Radiative Heating And Impact On Dynamics | O174: CDR_ECV07_15 | P174: NASA | Q174: NASA | R174: NASA | S174: NASA | T174: NASA | U174: NASA | V174: NASA | W174: NASA | X174: NASA | Y174: NASA | Z174: 1979-03-01 | AA174: 2012-12-01 | AB174: 2014-06-13 | AC174: OZONE PROFILE | AD174: not selected | AE174: SAGE-AEM-2 | AF174: SAGE 1 | AH174: Yes | AI174: ERBS | AJ174: Sage II | AL174: UARS | AM174: HALOE | AO174: UARS | AP174: MLS | AR174: SCISAT-1 | AS174: ACE-FTS | AU174: Aura | AV174: MLS (EOS-Aura) | AY174: SAGE/AEM-2/SAGE I, ERBS/SAGE II, UARS/HALOE, UARS/MLS, SCISAT-1/ACE-FTS, Aura/MLS (EOS-Aura). | AZ174: Global | BA174: 1000 | BB174: 3 | BC174: 30 | BD174: 0.1 | BE174: <0.5%/yr (but still being studied) | BI174: no | BN174: no | BO174: no | BT174: no | BU174: netcdf | BV174: Open Access | BW174: ftp, Mirador | BZ174: Available now. | CA174: 1431 | CB174: Feb 24 2014 8:44PM | CC174: 3799C597-0532-4AEF-8689-31247C99BBD2 | CF174: OZONE PROFILES | CG174: OZONE | CY174: 33.75 | CZ174: 0.75 | DA174: 0.3333333333 | DB174: 0.8571428571 | DC174: 0.5 | DD174: 0.5 | DE174: 1 | DF174: 1 | DG174: 0.5714285714 | DH174: 2 | DI174: 1 | DJ174: 0 | DK174: 0.6666666667 | DL174: 0.7648809524 | DM174: 1000 | DN174: 3 | DO174: 30 | DP174: 0.1 | DQ174: <0.5%/yr (but still being studied) | DR174: 1 | DS174: 1 | DT174: Ozone Radiative Heating And Impact On Dynamics | DU174: =SUM(CY174/30,DL174,DR174,DS174) -> 3.889880952
A175: Current | B175: H. K. Ramapriyan | C175: Rama.Ramapriyan@nasa.gov | D175: BUV/Nimbus-04 Ozone (O3) Profile and Total Column Ozone Monthly L3 Global 5.0deg Lat Zones (BUVN04L3zm.1.00) | E175: NASA | H175: no | K175: no | L175: no | N175: Two Tcdrs Are Supported - Ozone Profiles And Total Column Ozone | O175: CDR_ECV07_4 | P175: NASA | Q175: NASA | R175: NASA | S175: NASA | T175: NASA | U175: NASA | V175: NASA | W175: NASA | X175: NASA | Y175: NASA | Z175: 1970-05-01 | AA175: 1976-04-01 | AC175: NOT SELECTED | AD175: not selected | AE175: Nimbus-4 | AF175: BUV | AH175: No | AY175: Nimbus-04/BUV | AZ175: Global | BA175: 5 degrees | BB175: Number field | BC175: Monthly | BD175: 1 Dobson unit | BE175: 0.01 | BI175: no | BN175: no | BO175: no | BS175: email field | BT175: no | BU175: HDF | BV175: Open Access | BW175: ftp, OPeNDAP, Mirador | BZ175: Available now. | CA175: 1433 | CB175: Feb 24 2014 8:44PM | CC175: BEA78E1E-4753-4B7C-B90C-B973BCB72616 | CF175: TOTAL COLUMN OZONE | CG175: OZONE | CY175: 5.916666667 | CZ175: 0.75 | DA175: 0.3333333333 | DB175: 0.8571428571 | DC175: 0.5 | DD175: 0.5 | DE175: 1 | DF175: 1 | DG175: 0.7142857143 | DH175: 2 | DI175: 1 | DJ175: 0 | DK175: 0.6666666667 | DL175: 0.7767857143 | DM175: 5 degrees | DN175: Number field | DO175: Monthly | DP175: 1 Dobson unit | DQ175: 0.01 | DR175: 0.8 | DS175: 1 | DT175: Two Tcdrs Are Supported - Ozone Profiles And Total Column Ozone | DU175: =SUM(CY175/30,DL175,DR175,DS175) -> 2.774007937
A176: Current | B176: H. K. Ramapriyan | C176: Rama.Ramapriyan@nasa.gov | D176: SBUV/Nimbus-07 Ozone (O3) Profile and Total Column Ozone Monthly L3 Global 5.0deg Lat Zones (SBUVN07L3zm.1.00) | E176: NASA | H176: no | K176: no | L176: no | N176: Supports Two Tcdrs - Total Column Ozone And Ozone Profiles | O176: CDR_ECV07_5 | P176: NASA | Q176: NASA | R176: NASA | S176: NASA | T176: NASA | U176: NASA | V176: NASA | W176: NASA | X176: NASA | Y176: NASA | Z176: 1978-11-01 | AA176: 1990-07-01 | AC176: NOT SELECTED | AD176: not selected | AE176: Nimbus-7 | AF176: SBUV | AH176: No | AY176: NIMBUS-7/SBUV | AZ176: Global | BA176: 5 degrees | BB176: Number field | BC176: Monthly | BD176: 1 Dobson unit | BE176: 0.01 | BI176: no | BN176: no | BO176: no | BS176: email field | BT176: no | BU176: HDF | BV176: Open Access | BW176: ftp, OPeNDAP, MIrador | BZ176: Available now. | CA176: 1434 | CB176: Feb 24 2014 8:44PM | CC176: 123CE376-42AF-45C8-8CEB-93BE65129318 | CF176: TOTAL COLUMN OZONE | CG176: OZONE | CY176: 11.66666667 | CZ176: 0.75 | DA176: 0.3333333333 | DB176: 0.8571428571 | DC176: 0.5 | DD176: 0.5 | DE176: 1 | DF176: 1 | DG176: 0.7142857143 | DH176: 2 | DI176: 1 | DJ176: 0 | DK176: 0.6666666667 | DL176: 0.7767857143 | DM176: 5 degrees | DN176: Number field | DO176: Monthly | DP176: 1 Dobson unit | DQ176: 0.01 | DR176: 0.8 | DS176: 1 | DT176: Supports Two Tcdrs - Total Column Ozone And Ozone Profiles | DU176: =SUM(CY176/30,DL176,DR176,DS176) -> 2.965674603
A177: Current | B177: H. K. Ramapriyan | C177: Rama.Ramapriyan@nasa.gov | D177: SBUV2/NOAA-09 Ozone (O3) Profile and Total Column Ozone Monthly L3 Global 5.0deg Lat Zones (SBUV2N09L3zm.1.00) | E177: NASA | H177: no | K177: no | L177: no | N177: Supports Two Tcdrs - Total Column Ozone And Ozone Profiles | O177: CDR_ECV07_6 | P177: NASA | Q177: NASA | R177: NASA | S177: NASA | T177: NASA | U177: NASA | V177: NASA | W177: NASA | X177: NASA | Y177: NASA | Z177: 1985-02-01 | AA177: 2098-01-01 | AC177: NOT SELECTED | AD177: not selected | AE177: NOAA-9 | AF177: SBUV | AH177: No | AY177: NOAA-9/SBUV | AZ177: Global | BA177: 5 degrees | BB177: Number field | BC177: Monthly | BD177: 1 Dobson unit | BE177: 0.01 | BI177: no | BN177: no | BO177: no | BS177: email field | BT177: no | BU177: HDF | BV177: Open Access | BW177: ftp,OPeNDAP, Mirador | BZ177: Available now. | CA177: 1435 | CB177: Feb 24 2014 8:44PM | CC177: 7A050047-3C79-4F6F-8198-0DB0F056E3F6 | CF177: TOTAL COLUMN OZONE | CG177: OZONE | CY177: 112.9166667 | CZ177: 0.75 | DA177: 0.3333333333 | DB177: 0.8571428571 | DC177: 0.5 | DD177: 0.5 | DE177: 1 | DF177: 1 | DG177: 0.7142857143 | DH177: 2 | DI177: 1 | DJ177: 0 | DK177: 0.6666666667 | DL177: 0.7767857143 | DM177: 5 degrees | DN177: Number field | DO177: Monthly | DP177: 1 Dobson unit | DQ177: 0.01 | DR177: 0.8 | DS177: 1 | DT177: Supports Two Tcdrs - Total Column Ozone And Ozone Profiles | DU177: =SUM(CY177/30,DL177,DR177,DS177) -> 6.340674603
A178: Current | B178: H. K. Ramapriyan | C178: Rama.Ramapriyan@nasa.gov | D178: SBUV2/NOAA-11 Ozone (O3) Profile and Total Column Ozone Monthly L3 Global 5.0deg Lat Zones (SBUV2N11L3zm.1.00) | E178: NASA | H178: no | K178: no | L178: no | N178: Total Column Ozone And Ozone Profiles | O178: CDR_ECV07_7 | P178: NASA | Q178: NASA | R178: NASA | S178: NASA | T178: NASA | U178: NASA | V178: NASA | W178: NASA | X178: NASA | Y178: NASA | Z178: 1989-01-01 | AA178: 2001-03-01 | AC178: NOT SELECTED | AD178: not selected | AE178: NOAA-11 | AF178: SBUV | AH178: No | AY178: NOAA-11/SBUV | AZ178: Global | BA178: 5 degrees | BB178: Number field | BC178: Monthly | BD178: 1 Dobson unit | BE178: 0.01 | BI178: no | BN178: no | BO178: no | BS178: email field | BT178: no | BU178: HDF | BV178: Open Access | BW178: ftp, OPeNDAP, Mirador | BZ178: Available now | CA178: 1436 | CB178: Feb 24 2014 8:44PM | CC178: BC8033E1-65EE-4CA6-97C2-31EAB25F72D1 | CF178: TOTAL COLUMN OZONE | CG178: OZONE | CY178: 12.16666667 | CZ178: 0.75 | DA178: 0.3333333333 | DB178: 0.8571428571 | DC178: 0.5 | DD178: 0.5 | DE178: 1 | DF178: 1 | DG178: 0.7142857143 | DH178: 2 | DI178: 1 | DJ178: 0 | DK178: 0.6666666667 | DL178: 0.7767857143 | DM178: 5 degrees | DN178: Number field | DO178: Monthly | DP178: 1 Dobson unit | DQ178: 0.01 | DR178: 0.8 | DS178: 1 | DT178: Total Column Ozone And Ozone Profiles | DU178: =SUM(CY178/30,DL178,DR178,DS178) -> 2.98234127
A179: Current | B179: H. K. Ramapriyan | C179: Rama.Ramapriyan@nasa.gov | D179: SBUV2/NOAA-14 Ozone (O3) Profile and Total Column Ozone Monthly L3 Global 5.0deg Lat Zones (SBUV2N14L3zm.1.00) | E179: NASA | H179: no | K179: no | L179: no | N179: Total Column Ozone And Ozone Profiles | O179: CDR_ECV07_8 | P179: NASA | Q179: NASA | R179: NASA | S179: NASA | T179: NASA | U179: NASA | V179: NASA | W179: NASA | X179: NASA | Y179: NASA | Z179: 1995-03-01 | AA179: 2001-09-01 | AC179: NOT SELECTED | AD179: not selected | AE179: NOAA-14 | AF179: SBUV | AH179: No | AY179: NOAA-14/SBUV | AZ179: Global | BA179: 5 degrees | BB179: Number field | BC179: Monthly | BD179: 1 Dobson unit | BE179: 0.01 | BI179: no | BN179: no | BO179: no | BS179: email field | BT179: no | BU179: HDF | BV179: Open Access | BW179: ftp, OPenDAP, Mirador | BZ179: Available now | CA179: 1437 | CB179: Feb 24 2014 8:44PM | CC179: C81D65C1-351C-4810-BB09-BAEB20C8AA3D | CF179: TOTAL COLUMN OZONE | CG179: OZONE | CY179: 6.5 | CZ179: 0.75 | DA179: 0.3333333333 | DB179: 0.8571428571 | DC179: 0.5 | DD179: 0.5 | DE179: 1 | DF179: 1 | DG179: 0.7142857143 | DH179: 2 | DI179: 1 | DJ179: 0 | DK179: 0.6666666667 | DL179: 0.7767857143 | DM179: 5 degrees | DN179: Number field | DO179: Monthly | DP179: 1 Dobson unit | DQ179: 0.01 | DR179: 0.8 | DS179: 1 | DT179: Total Column Ozone And Ozone Profiles | DU179: =SUM(CY179/30,DL179,DR179,DS179) -> 2.793452381
A180: Current | B180: H. K. Ramapriyan | C180: Rama.Ramapriyan@nasa.gov | D180: SBUV2/NOAA-16 Ozone (O3) Profile and Total Column Ozone Monthly L3 Global 5.0deg Lat Zones (SBUV2N16L3zm.1.00) | E180: NASA | H180: no | K180: no | L180: no | N180: Total Column Ozone And Ozone Profiles | O180: CDR_ECV07_9 | P180: NASA | Q180: NASA | R180: NASA | S180: NASA | T180: NASA | U180: NASA | V180: NASA | W180: NASA | X180: NASA | Y180: NASA | Z180: 2000-10-01 | AA180: 2011-12-01 | AC180: NOT SELECTED | AD180: not selected | AE180: NOAA-16 | AF180: SBUV | AH180: No | AY180: NOAA-16/SBUV | AZ180: Global | BA180: 5 degrees | BB180: Number field | BC180: Monthly | BD180: 1 Dobson unit | BE180: 0.01 | BI180: no | BN180: no | BO180: no | BT180: no | BU180: HDF | BV180: Open Access | BW180: Data Dissemination Mechanisms (e.g. FTP, dispatch of media by post, ...) | BZ180: Available now | CA180: 1438 | CB180: Feb 24 2014 8:44PM | CC180: 346876C4-A3D3-4A60-B996-5ADA04D85FED | CF180: TOTAL COLUMN OZONE | CG180: OZONE | CY180: 11.16666667 | CZ180: 0.75 | DA180: 0.3333333333 | DB180: 0.8571428571 | DC180: 0.5 | DD180: 0.5 | DE180: 1 | DF180: 1 | DG180: 0.5714285714 | DH180: 2 | DI180: 1 | DJ180: 0 | DK180: 0.6666666667 | DL180: 0.7648809524 | DM180: 5 degrees | DN180: Number field | DO180: Monthly | DP180: 1 Dobson unit | DQ180: 0.01 | DR180: 0.8 | DS180: 1 | DT180: Total Column Ozone And Ozone Profiles | DU180: =SUM(CY180/30,DL180,DR180,DS180) -> 2.937103175
A181: Current | B181: N. Christina Hsu | C181: Christina.Hsu@nasa.gov | D181: SWDB_L3M10.003 | E181: NASA | H181: no | K181: no | L181: no | N181: Aerosol Forcing In Earth's Radiation Budget; Aerosol/cloud/precipitation Interactions | O181: CDR_ECV09_10 | P181: NASA | Q181: NASA | R181: NASA | S181: NASA | T181: NASA | U181: NASA | V181: NASA | W181: NASA | X181: NASA | Y181: NASA | Z181: 1997-09-01 | AA181: 2010-12-01 | AB181: 2010-12-31 | AC181: AEROSOL OPTICAL DEPTH (COLUMN/PROFILE) | AD181: not selected | AE181: SeaStar | AF181: SeaWiFS | AH181: No | AY181: SeaStar/SeaWiFS | AZ181: Global | BA181: 100 km | BB181: total column | BC181: monthly mean (i.e., ~30 days) | BD181: 0.03 15% over ocean; 0.05 20% over land | BE181: 0.02 over the 13 years of mission | BI181: no | BN181: no | BO181: no | BS181: Christina.Hsu@nasa.gov | BT181: both | BU181: HDF | BV181: Open Access | BW181: FTP, Mirador | BZ181: Dataset has already been released to the public | CA181: 1440 | CB181: Feb 24 2014 8:44PM | CC181: 0D338D0D-EBB4-4045-A49B-936E82E62EF0 | CF181: AEROSOL OPTICAL DEPTH | CG181: AEROSOL PROPERTIES | CY181: 13.25 | CZ181: 0.75 | DA181: 0.3333333333 | DB181: 0.8571428571 | DC181: 0.5 | DD181: 0.5 | DE181: 1 | DF181: 1 | DG181: 0.8571428571 | DH181: 2 | DI181: 1 | DJ181: 0 | DK181: 0.6666666667 | DL181: 0.7886904762 | DM181: 100 km | DN181: total column | DO181: monthly mean (i.e., ~30 days) | DP181: 0.03 15% over ocean; 0.05 20% over land | DQ181: 0.02 over the 13 years of mission | DR181: 1 | DS181: 1 | DT181: Aerosol Forcing In Earth's Radiation Budget; Aerosol/cloud/precipitation Interactions | DU181: =SUM(CY181/30,DL181,DR181,DS181) -> 3.230357143
A182: Current | B182: N. Christina Hsu | C182: Christina.Hsu@nasa.gov | D182: SWDB_L2.003 | E182: NASA | H182: no | K182: no | L182: no | N182: Aerosol Forcing In Earth's Radiation Budget; Aerosol/cloud/precipitation Interactions | O182: CDR_ECV09_6 | P182: NASA | Q182: NASA | R182: NASA | S182: NASA | T182: NASA | U182: NASA | V182: NASA | W182: NASA | X182: NASA | Y182: NASA | Z182: 1997-09-01 | AA182: 2010-12-01 | AB182: 2010-12-31 | AC182: AEROSOL OPTICAL DEPTH (COLUMN/PROFILE) | AD182: not selected | AE182: SeaStar | AF182: SeaWiFS | AH182: No | AY182: not selected|not selected||not selected|not selectedSeaStar/SeaWiFS | AZ182: Global | BA182: 12km | BB182: total column | BC182: Covering the whole globe in 2 days | BD182: 0.03 15% over ocean; 0.05 20% over land | BE182: 0.02 over the 13 years of mission | BI182: no | BN182: no | BO182: no | BS182: Christina.Hsu@nasa.gov | BT182: both | BU182: HDF | BV182: Open Access | BW182: FTP, Mirador | BZ182: Dataset has already been released to the public | CA182: 2003-12-18 | CB182: Feb 24 2014 8:44PM | CC182: DC506C56-8E97-4E9B-9A1D-E9F0BC2E920B | CF182: AEROSOL OPTICAL DEPTH | CG182: AEROSOL PROPERTIES | CY182: 13.25 | CZ182: 0.75 | DA182: 0.3333333333 | DB182: 0.8571428571 | DC182: 0.5 | DD182: 0.5 | DE182: 1 | DF182: 1 | DG182: 0.8571428571 | DH182: 2 | DI182: 1 | DJ182: 0 | DK182: 0.6666666667 | DL182: 0.7886904762 | DM182: 12km | DN182: total column | DO182: Covering the whole globe in 2 days | DP182: 0.03 15% over ocean; 0.05 20% over land | DQ182: 0.02 over the 13 years of mission | DR182: 1 | DS182: 1 | DT182: Aerosol Forcing In Earth's Radiation Budget; Aerosol/cloud/precipitation Interactions | DU182: =SUM(CY182/30,DL182,DR182,DS182) -> 3.230357143
A183: Current | B183: N. Christina Hsu | C183: Christina.Hsu@nasa.gov | D183: SWDB_L305.003 | E183: NASA | H183: no | K183: no | L183: no | N183: Aerosol Forcing In Earth's Radiation Budget; Aerosol/cloud/precipitation Interactions | O183: CDR_ECV09_7 | P183: NASA | Q183: NASA | R183: NASA | S183: NASA | T183: NASA | U183: NASA | V183: NASA | W183: NASA | X183: NASA | Y183: NASA | Z183: 1997-09-01 | AA183: 2010-12-01 | AB183: 2010-12-31 | AC183: AEROSOL OPTICAL DEPTH (COLUMN/PROFILE) | AD183: not selected | AE183: SeaStar | AF183: SeaWiFS | AH183: No | AY183: SeaStar/SeaWiFS | AZ183: Global | BA183: 50 km | BB183: total column | BC183: Covering the whole globe in 2 days | BD183: 0.03 15% over ocean; 0.05 20% over land | BE183: 0.02 over the 13 years of mission | BI183: no | BN183: no | BO183: no | BS183: Christina.Hsu@nasa.gov | BT183: both | BU183: HDF | BV183: Open Access | BW183: FTP, Mirador | BZ183: Dataset has already been released to the public | CA183: 2003-12-19 | CB183: Feb 24 2014 8:44PM | CC183: 5E39DADD-85D7-4EB9-A5B9-BA2B0009BCB9 | CF183: AEROSOL OPTICAL DEPTH | CG183: AEROSOL PROPERTIES | CY183: 13.25 | CZ183: 0.75 | DA183: 0.3333333333 | DB183: 0.8571428571 | DC183: 0.5 | DD183: 0.5 | DE183: 1 | DF183: 1 | DG183: 0.8571428571 | DH183: 2 | DI183: 1 | DJ183: 0 | DK183: 0.6666666667 | DL183: 0.7886904762 | DM183: 50 km | DN183: total column | DO183: Covering the whole globe in 2 days | DP183: 0.03 15% over ocean; 0.05 20% over land | DQ183: 0.02 over the 13 years of mission | DR183: 1 | DS183: 1 | DT183: Aerosol Forcing In Earth's Radiation Budget; Aerosol/cloud/precipitation Interactions | DU183: =SUM(CY183/30,DL183,DR183,DS183) -> 3.230357143
A184: Current | B184: N. Christina Hsu | C184: Christina.Hsu@nasa.gov | D184: SWDB_L310.003 | E184: NASA | H184: no | K184: no | L184: no | N184: Aerosol Forcing In Earth's Radiation Budget; Aerosol/cloud/precipitation Interactions | O184: CDR_ECV09_8 | P184: NASA | Q184: NASA | R184: NASA | S184: NASA | T184: NASA | U184: NASA | V184: NASA | W184: NASA | X184: NASA | Y184: NASA | Z184: 1997-09-01 | AA184: 2010-12-01 | AB184: 2010-12-31 | AC184: AEROSOL OPTICAL DEPTH (COLUMN/PROFILE) | AD184: not selected | AE184: SeaStar | AF184: SeaWiFS | AH184: No | AY184: SeaStar/SeaWiFS | AZ184: Global | BA184: 100 km | BB184: total column | BC184: Covering the whole globe in 2 days | BD184: 0.03 15% over ocean; 0.05 20% over land | BE184: 0.02 over the 13 years of mission | BI184: no | BN184: no | BO184: no | BS184: Christina.Hsu@nasa.gov | BT184: both | BU184: HDF | BV184: Open Access | BW184: FTP, Mirador | BZ184: Dataset has already been released to the public | CA184: 2003-12-20 | CB184: Feb 24 2014 8:44PM | CC184: 131AD538-4069-45CC-9B82-06DA506C341C | CF184: AEROSOL OPTICAL DEPTH | CG184: AEROSOL PROPERTIES | CY184: 13.25 | CZ184: 0.75 | DA184: 0.3333333333 | DB184: 0.8571428571 | DC184: 0.5 | DD184: 0.5 | DE184: 1 | DF184: 1 | DG184: 0.8571428571 | DH184: 2 | DI184: 1 | DJ184: 0 | DK184: 0.6666666667 | DL184: 0.7886904762 | DM184: 100 km | DN184: total column | DO184: Covering the whole globe in 2 days | DP184: 0.03 15% over ocean; 0.05 20% over land | DQ184: 0.02 over the 13 years of mission | DR184: 1 | DS184: 1 | DT184: Aerosol Forcing In Earth's Radiation Budget; Aerosol/cloud/precipitation Interactions | DU184: =SUM(CY184/30,DL184,DR184,DS184) -> 3.230357143
A185: Current | B185: N. Christina Hsu | C185: Christina.Hsu@nasa.gov | D185: SWDB_L3M05.003 | E185: NASA | H185: no | K185: no | L185: no | N185: Aerosol Forcing In Earth's Radiation Budget; Aerosol/cloud/precipitation Interactions | O185: CDR_ECV09_9 | P185: NASA | Q185: NASA | R185: NASA | S185: NASA | T185: NASA | U185: NASA | V185: NASA | W185: NASA | X185: NASA | Y185: NASA | Z185: 1997-09-01 | AA185: 2010-12-01 | AB185: 2010-12-31 | AC185: AEROSOL OPTICAL DEPTH (COLUMN/PROFILE) | AD185: not selected | AE185: SeaStar | AF185: SeaWiFS | AH185: No | AY185: not selected|not selectedSeaStar/SeaWiFS | AZ185: Global | BA185: 50 km | BB185: total column | BC185: monthly mean (i.e., ~30 days) | BD185: 0.03 15% over ocean; 0.05 20% over land | BE185: 0.02 over the 13 years of mission | BI185: no | BN185: no | BO185: no | BS185: Christina.Hsu@nasa.gov | BT185: both | BU185: HDF | BV185: Open Access | BW185: FTP, Mirador | BZ185: Dataset has already been released to the public | CA185: 1451 | CB185: Feb 24 2014 8:44PM | CC185: B66592ED-D4E3-4C1D-AE17-F8BE987E7B53 | CF185: AEROSOL OPTICAL DEPTH | CG185: AEROSOL PROPERTIES | CY185: 13.25 | CZ185: 0.75 | DA185: 0.3333333333 | DB185: 0.8571428571 | DC185: 0.5 | DD185: 0.5 | DE185: 1 | DF185: 1 | DG185: 0.8571428571 | DH185: 2 | DI185: 1 | DJ185: 0 | DK185: 0.6666666667 | DL185: 0.7886904762 | DM185: 50 km | DN185: total column | DO185: monthly mean (i.e., ~30 days) | DP185: 0.03 15% over ocean; 0.05 20% over land | DQ185: 0.02 over the 13 years of mission | DR185: 1 | DS185: 1 | DT185: Aerosol Forcing In Earth's Radiation Budget; Aerosol/cloud/precipitation Interactions | DU185: =SUM(CY185/30,DL185,DR185,DS185) -> 3.230357143
A186: Current | B186: H. K. Ramapriyan | C186: Rama.Ramapriyan@nasa.gov | D186: MEaSUREs Antarctic Grounding Line from Differential Satellite Radar Interferometry (NSIDC-0498) | E186: NASA | H186: no | K186: no | L186: no | N186: Ice Sheet Dynamics, Ice Sheet Modeling, Ice Sheet Mass Balance, Sea Level Contribution From Antarctica | O186: CDR_ECV12_4 | P186: CSA | Q186: NASA | R186: NASA | S186: NASA | T186: NASA | U186: NASA | V186: NASA | W186: NASA | X186: NASA | Y186: NASA | Z186: 1992-01-01 | AA186: 2009-01-01 | AC186: GLACIER MOTION | AD186: not selected | AE186: RADARSAT-1 | AF186: SAR | AH186: Yes | AI186: RADARSAT-2 | AJ186: SAR | AL186: ERS-1 | AM186: SAR | AO186: ERS-2 | AP186: SAR | AR186: ALOS | AS186: L-band SAR | AY186: RADARSAT-1; RADARSAT-2; ERS-1; ERS-2; ALOS. L-band SAR (alos); SAR (ers and radarsat) | AZ186: Regional | BA186: 900 m | BB186: N/A | BC186: annual (for regional maps); NOTE: dataset is not continuous over the period covered | BD186: 17 m/yr | BE186: N/A | BI186: no | BK186: RADARSAT-1 | BL186: SAR-L | BN186: no | BO186: no | BS186: nsidc@nsidc.org | BT186: both | BU186: ASCII | BV186: Open Access | BW186: FTP | BZ186: Available now | CA186: 1459 | CB186: Feb 24 2014 8:44PM | CC186: 74B972D4-8D2A-4BBD-8D0D-A1138F89436F | CF186: ICE-SHEET ELEVATION CHANGES | CG186: ICE SHEETS | CI186: yes | CJ186: RADARSAT-2 | CK186: SAR (RADARSAT) | CL186: ERS-1 | CN186: ERS-2 | CP186: ALOS. | CY186: 17 | CZ186: 0.75 | DA186: 0.3333333333 | DB186: 0.8571428571 | DC186: 0.5 | DD186: 0.5 | DE186: 1 | DF186: 1 | DG186: 0.8571428571 | DH186: 2 | DI186: 1 | DJ186: 0 | DK186: 0.6666666667 | DL186: 0.7886904762 | DM186: 900 m | DN186: N/A | DO186: annual (for regional maps); NOTE: dataset is not continuous over the period covered | DP186: 17 m/yr | DQ186: N/A | DR186: 0.6 | DS186: 1 | DT186: Ice Sheet Dynamics, Ice Sheet Modeling, Ice Sheet Mass Balance, Sea Level Contribution From Antarctica | DU186: =SUM(CY186/30,DL186,DR186,DS186) -> 2.955357143
A187: Current | B187: H. K. Ramapriyan | C187: Rama.Ramapriyan@nasa.gov | D187: MEaSUREs InSAR-Based Ice Velocity Maps of Central Antarctica: 1997 and 2009 (NSIDC-0525) | E187: NASA | H187: no | K187: no | L187: no | N187: Ice Sheet Dynamics, Ice Sheet Modeling, Ice Sheet Mass Balance, Sea Level Contribution From Antarctica | O187: CDR_ECV12_5 | P187: CSA | Q187: NASA | R187: NASA | S187: NASA | T187: NASA | U187: NASA | V187: NASA | W187: NASA | X187: NASA | Y187: NASA | Z187: 1996-01-01 | AA187: 2011-01-01 | AC187: GLACIER MOTION | AD187: not selected | AE187: ENVISAT | AF187: ASAR (envisat) | AH187: Yes | AI187: RADARSAT-1 | AJ187: SAR | AL187: RADARSAT-2 | AM187: SAR | AO187: ERS-1 | AP187: SAR | AR187: ERS-2 | AS187: SAR | AU187: ALOS | AV187: L-band SAR | AY187: ENVISAT; RADARSAT-1; RADARSAT-2; ERS-1; ERS-2; ALOS. ASAR (envisat); L-band SAR (alos); SAR (ERS and RADARSAT) | AZ187: Regional | BA187: 900 m | BB187: N/A | BC187: annual (for regional maps) | BD187: 17 m/yr | BE187: N/A | BI187: no | BK187: ENVISAT | BL187: ASAR | BN187: no | BO187: no | BS187: nsidc@nsidc.org | BT187: both | BU187: netcdf | BV187: Open Access | BW187: FTP | BZ187: Available now | CA187: 1460 | CB187: Feb 24 2014 8:44PM | CC187: 43E98B68-21AA-4A52-A48B-02DD6F71278C | CF187: ICE VELOCITY | CG187: ICE SHEETS | CI187: yes | CJ187: RADARSAT-1 | CK187: SAR-L | CL187: RADARSAT-2 | CM187: SAR (RADARSAT) | CN187: ERS-1 | CP187: ERS-2 | CR187: ALOS | CY187: 15 | CZ187: 0.75 | DA187: 0.3333333333 | DB187: 0.8571428571 | DC187: 0.5 | DD187: 0.5 | DE187: 1 | DF187: 1 | DG187: 0.8571428571 | DH187: 2 | DI187: 1 | DJ187: 0 | DK187: 0.6666666667 | DL187: 0.7886904762 | DM187: 900 m | DN187: N/A | DO187: annual (for regional maps) | DP187: 17 m/yr | DQ187: N/A | DR187: 0.6 | DS187: 1 | DT187: Ice Sheet Dynamics, Ice Sheet Modeling, Ice Sheet Mass Balance, Sea Level Contribution From Antarctica | DU187: =SUM(CY187/30,DL187,DR187,DS187) -> 2.888690476
A188: Future | B188: H. K. Ramapriyan | C188: Rama.Ramapriyan@nasa.gov | D188: ISCCP_TOVS_NAT | E188: NASA | H188: no | K188: no | L188: no | O188: CDR_ECV12_6 | P188: NOAA | Q188: NOAA | R188: NASA | S188: NASA | T188: NASA | U188: NASA | V188: NASA | W188: NASA | X188: NASA | Y188: NASA | Z188: 1983-07-01 | AA188: 2009-12-01 | AC188: NOT SELECTED | AD188: not selected | AE188: TIROS N | AF188: HIRS/2 | AH188: Yes | AI188: NOAA-6 | AJ188: HIRS/2 | AL188: NOAA-7 | AO188: NOAA-8 | AR188: NOAA-9 | AY188: TIROS N|HIRS/2||NOAA-6|HIRS/2Series is continued with NOAA-7 through NOAA-19 with follow-on instruments | AZ188: not selected | BI188: no | BN188: no | BO188: no | BT188: no | BU188: not selected | BV188: not selected | BW188: ftp, ASDC Java Order Tool | BZ188: Available now | CA188: 2003-12-31 | CB188: Feb 24 2014 8:44PM | CC188: 23F4F72A-E2C7-4E94-B035-B0FA6F763796 | CF188: SEA-ICE CONCENTRATION/EXTENT/EDGE | CG188: SEA ICE | CY188: 26.41666667 | CZ188: 0.75 | DA188: 0.3333333333 | DB188: 0.1428571429 | DC188: 0.5 | DD188: 0.5 | DE188: 1 | DF188: 1 | DG188: 0.2857142857 | DH188: 2 | DI188: 1 | DJ188: 0 | DL188: 0.6259920635 | DM188: =BA188 -> 0 | DN188: =BB188 -> 0 | DP188: =BD188 -> 0 | DQ188: =BE188 -> 0 | DR188: 0 | DS188: 0 | DT188: 0 | DU188: =SUM(CY188/30,DL188,DR188,DS188) -> 1.506547619
A189: Future | B189: David Robinson | C189: david.robinson@rutgers.edu | D189: No | E189: NASA | H189: no | K189: no | L189: no | N189: 8.2 Climate Change And Variability, 8.4 Water And Energy Cycle, 8.7 Cryosphere | O189: CDR_ECV12_8 | P189: NASA | Q189: NASA | R189: NASA | S189: NASA | T189: NASA | U189: NASA | V189: NASA | W189: NASA | X189: NASA | Y189: NASA | Z189: 1987-01-01 | AA189: 2010-12-01 | AC189: SEA-ICE COVER | AD189: not selected | AE189: Nimbus-7 | AF189: SSMR | AH189: Yes | AI189: DMSP F-8 | AJ189: SSM/I | AL189: DMSP F-11 | AM189: SSM/I | AO189: DMSP F-13 | AP189: SSM/I | AR189: DMSP F-17 | AS189: SSMIS | AU189: Aqua | AV189: AMSR-E | AY189: DMSP and SSM/I | AZ189: lat/long coordinates | BA189: 25 | BB189: 0 | BC189: 1 | BD189: Number field | BE189: Number field | BI189: no | BN189: no | BO189: no | BT189: no | BU189: not selected | BV189: Open Access | BZ189: 2014-06-13 | CA189: 1463 | CB189: Feb 24 2014 8:44PM | CC189: 7AD9B1DE-421E-435E-8FC1-1D0F4153FDA9 | CF189: SEA-ICE CONCENTRATION/EXTENT/EDGE | CG189: SEA ICE | CY189: 23.91666667 | CZ189: 0.75 | DA189: 0.3333333333 | DB189: 0.8571428571 | DC189: 0.5 | DD189: 0.5 | DE189: 1 | DF189: 1 | DG189: 0.2857142857 | DH189: 1 | DI189: 1 | DJ189: 0 | DK189: =(COUNTIF(U189,"*")+COUNTIF(W189,"*")+COUNTIF(BO189,"y*"))/3 -> 0.6666666667 | DL189: 0.6577380952 | DM189: =BA189 -> 25 | DN189: 0 | DO189: 1 | DP189: Number field | DQ189: Number field | DR189: 0.4 | DS189: 1 | DT189: 8.2 Climate Change And Variability, 8.4 Water And Energy Cycle, 8.7 Cryosphere | DU189: =SUM(CY189/30,DL189,DR189,DS189) -> 2.854960317
A190: Future | B190: Townshend Joe Sexton | C190: glcf@umd.edu | D190: No | E190: NASA | H190: no | K190: no | L190: no | N190: Records Can Be Used For Several Ecv's: Earth Radiation Budget, Lakes, Glaciers And Icecaps, Snow Cover, Albedo, Land Cover, Fapar, Lai, Above-ground Biomass, Fire Disturbance | O190: CDR_ECV12_9 | P190: NASA | Q190: NASA | R190: NASA | S190: not selected | T190: NASA | U190: USGS | V190: NASA | W190: NASA | X190: NASA | Y190: NASA | Z190: 1972-07-01 | AA190: 2008-07-01 | AC190: LAND COVER | AD190: not selected | AE190: Landsat-1 | AH190: Yes | AI190: Landsat-2 | AL190: Landsat-3 | AO190: Landsat-4 | AR190: Landsat-5 | AU190: Landsat-7 | AY190: Landsat-1|not selected||Landsat-2|not selected||Landsat-3|not selected||Landsat-4|not selectedLandsat-5 and Landsat-7 | AZ190: Global | BA190: 0.03 | BB190: N/A | BC190: N/A | BD190: 0.95 | BE190: 0.97 | BI190: no | BM190: TOPEX, POSEIDON-1,TMR, POSEIDON-2, JMR, POSEIDON-3, AMR, SSMI,GPS,Tide gauge network | BN190: no | BO190: no | BT190: both | BU190: not selected | BV190: Open Access | BZ190: TBD | CA190: 1464 | CB190: Feb 24 2014 8:44PM | CC190: 9E751C5F-83B2-4EB5-896E-11910E23E062 | CF190: HIGH-RESOLUTION MAPS OF LAND-COVER TYPE | CG190: LAND COVER | CY190: 36 | CZ190: 0.75 | DA190: 0.3333333333 | DB190: 0.8571428571 | DC190: 0.5 | DD190: 0.5 | DE190: 1 | DF190: 1 | DG190: 0.4285714286 | DH190: 2 | DI190: 1 | DJ190: 0 | DK190: 0.6666666667 | DL190: 0.7529761905 | DM190: 0.03 | DN190: N/A | DO190: N/A | DP190: 0.95 | DQ190: 0.97 | DR190: 0.8 | DS190: 1 | DT190: Records Can Be Used For Several Ecv's: Earth Radiation Budget, Lakes, Glaciers And Icecaps, Snow Cover, Albedo, Land Cover, Fapar, Lai, Above-ground Biomass, Fire Disturbance | DU190: =SUM(CY190/30,DL190,DR190,DS190) -> 3.75297619
A191: Current | B191: H. K. Ramapriyan; Brian Beckley | C191: Rama.Ramapriyan@nasa.gov | D191: PODAAC-GMSLM-TJ121 | E191: NASA | H191: no | K191: no | L191: no | N191: Global And Regional Mean Sea-level | O191: CDR_ECV13_1 | P191: NASA | Q191: NASA | R191: NASA | S191: NASA | T191: NASA | U191: NASA | V191: NASA | W191: NASA | X191: NASA | Y191: NASA | Z191: 1992-09-01 | AA191: 2012-06-01 | AB191: 2014-12-17 | AC191: SEA LEVEL | AD191: mm | AE191: Topex-Poseidon | AF191: Poseidon-1 | AH191: Yes | AI191: Jason-1 | AL191: OSTM (Jason-2) | AP191: Poseidon-1, TMR, Poseidon-2, AMR, Doris, Doris-NG, LRR, LRA, GPS, Grace | AY191: Topex-Poseidon|not selected||Jason-1|not selected||OSTM (Jason-2)|not selectedTOPEX, POSEIDON-1,TMR, POSEIDON-2, JMR, POSEIDON-3, AMR, DORIS, DORIS-NG, LRR, LRA, GPS, GRACE | AZ191: lat/long coordinates | BA191: 156 km at equator | BB191: 6 km | BC191: 2000-01-08T21:36:00 | BD191: 0.4 mm/yr | BE191: 0.12 mm/yr /- 0.4 mm/yr | BI191: no | BK191: Topex-Poseidon | BL191: TMR | BM191: Topex-Poseidon|not selected||Jason-1|not selected||OSTM (Jason-2)|not selected | BN191: no | BO191: no | BS191: podaac@podaac.jpl.nasa.gov | BT191: both | BU191: netcdf | BV191: Open Access | BW191: FTP | BZ191: Available now | CA191: 1465 | CB191: Feb 24 2014 8:44PM | CC191: 3A9696EA-E94A-4F88-B881-621949471472 | CF191: SEA-LEVEL | CG191: SEA LEVEL | CK191: JMR | CY191: 19.75 | CZ191: 0.75 | DA191: 0.3333333333 | DB191: 0.8571428571 | DC191: 0.5 | DD191: 0.5 | DE191: 1 | DF191: 1 | DG191: 0.8571428571 | DH191: 2 | DI191: 1 | DJ191: 0 | DK191: 0.6666666667 | DL191: 0.7886904762 | DM191: 156 km at equator | DN191: 6 km | DO191: 36533.9 | DP191: 0.4 mm/yr | DQ191: 0.12 mm/yr /- 0.4 mm/yr | DR191: 1 | DS191: 1 | DT191: Global And Regional Mean Sea-level | DU191: =SUM(CY191/30,DL191,DR191,DS191) -> 3.44702381
A192: Current | B192: Victor Zlotnicki | C192: victor.zlotnicki@jpl.nasa.gov | D192: PODAAC-TEOCN-0N005 | E192: NASA | H192: no | K192: no | L192: no | N192: Ocean Circulation; Ocean Climate | O192: CDR_ECV13_10 | P192: NASA | Q192: JPL | R192: JPL | S192: JPL | T192: NASA | U192: NASA | V192: NASA | W192: NASA | X192: NASA | Y192: NASA | Z192: 2002-10-01 | AA192: 2012-12-01 | AC192: NOT SELECTED | AD192: cm | AE192: GRACE | AF192: GRACE instrument | AH192: No | AY192: GRACE|GRACE instrument | AZ192: Global | BA192: 111.19 | BC192: 30 | BD192: 2 | BI192: no | BN192: no | BO192: no | BS192: victor.zlotnicki@jpl.nasa.gov | BT192: both | BU192: netcdf | BV192: Open Access | BW192: FTP | BZ192: 3 months | CA192: 1466 | CB192: 2014-02-24T20:44:00 | CC192: 7D69EB5C-D80A-4BC6-AC94-1AE8DD2FACAB | CF192: SEA-LEVEL | CG192: SEA LEVEL | CY192: 10.16666667 | CZ192: 0.75 | DA192: 0.3333333333 | DB192: 0.5714285714 | DC192: 0.5 | DD192: 0.5 | DE192: 1 | DF192: 1 | DG192: 0.8571428571 | DH192: 2 | DI192: 1 | DJ192: 0 | DK192: 0.6666666667 | DL192: 0.7648809524 | DM192: 111.19 | DN192: 0 | DO192: 30 | DP192: 2 | DQ192: 0 | DR192: 0.6 | DS192: 1 | DT192: Ocean Circulation; Ocean Climate | DU192: =SUM(CY192/30,DL192,DR192,DS192) -> 2.703769841
A193: Current | B193: Ed Armstrong | C193: edward.armstrong@jpl.nasa.gov | D193: PODAAC-GHGMR-4FJ01 | E193: NASA | H193: no | K193: yes | L193: yes | N193: Severe Weather Prediction, Marine Biology, Coastal Oceanography. | O193: CDR_ECV14_4 | P193: GHRSST | Q193: not selected | R193: not selected | S193: not selected | T193: JPL | U193: NASA | V193: NASA | W193: NASA | X193: NASA | Y193: NASA | Z193: 2002-06-01 | AA193: 2012-12-01 | AB193: 2014-09-17 | AC193: SEA SURFACE TEMPERATURE | AD193: degrees Kelvin | AF193: AVHRR | AH193: No | AJ193: MODIS | AM193: AMSR-E | AP193: WindSat | AS193: Infra-Red | AV193: Microwave | AY193: AVHRR, MODIS, AMSR-E, WindSat. Infra-red, Microwave | AZ193: Global | BA193: 1 km | BC193: Daily | BD193: 0.4 Kelvins | BE193: to be determined | BI193: yes | BL193: AVHRR | BN193: yes | BO193: yes | BS193: edward.armstrong@jpl.nasa.gov | BT193: both | BU193: netcdf | BV193: Open Access | BW193: FTP, OPeNDAP, THREDDS | BZ193: near real time (4-day latency) | CA193: 1474 | CB193: Feb 24 2014 8:44PM | CC193: 29CE2E21-C87E-49AF-9E0E-D94AFA46BE91 | CF193: SEA-SURFACE TEMPERATURE | CG193: SEA SURFACE TEMPERATURE | CY193: 10.5 | CZ193: 0.5 | DA193: 0.3333333333 | DB193: 0.8571428571 | DC193: 0.5 | DD193: 0.5 | DE193: 1 | DF193: 1 | DG193: 0.8571428571 | DH193: 2 | DI193: 1 | DJ193: 0 | DK193: 1 | DL193: 0.7956349206 | DM193: 1 km | DN193: 0 | DO193: Daily | DP193: 0.4 Kelvins | DQ193: to be determined | DR193: 0.6 | DS193: 1 | DT193: Severe Weather Prediction, Marine Biology, Coastal Oceanography. | DU193: =SUM(CY193/30,DL193,DR193,DS193) -> 2.745634921
A194: Current | B194: H. K. Ramapriyan | C194: Rama.Ramapriyan@nasa.gov | D194: MW OI SST Data Products | E194: NASA | H194: no | K194: no | L194: no | N194: Analysis Of Sst Trends, Detection Of Changes In Sst Patterns, Relationship Of Ssts To Health Issues, Changes In Fisheries | O194: CDR_ECV14_5 | P194: NASA | Q194: NASA | R194: NASA | S194: NASA | T194: NASA | U194: NASA | V194: NASA | W194: NASA | X194: NASA | Y194: NASA | Z194: 1997-12-01 | AA194: 2012-12-01 | AC194: SEA SURFACE TEMPERATURE | AD194: degrees C | AE194: DMSP F-8 | AF194: SSM/I | AH194: Yes | AI194: DMSP F-10 | AJ194: SSM/I | AL194: DMSP F-11 | AM194: SSM/I | AO194: DMSP F-13 | AP194: SSM/I | AR194: DMSP F-14 | AU194: DMSP F-15 | AY194: DMSP F-8|SSM/I||DMSP F-10|SSM/I||DMSP F-11|SSM/I||DMSP F-13|SSM/IDMSP%252520F-14%252520through%252520F-17%252520are%252520also%252520used | AZ194: Global | BA194: 25 km | BB194: 0 | BC194: 1 | BD194: 0.5 deg C | BE194: 0.1 deg C/decade | BI194: yes | BK194: TRMM | BL194: TMI | BN194: no | BO194: no | BS194: support@remss.com | BT194: both | BU194: netcdf | BV194: Open Access | BW194: FTP, OpenDap, WGET | BZ194: 0.15 month | CA194: 1475 | CB194: Feb 24 2014 8:44PM | CC194: 247749C5-5D32-4356-96BC-D6714016C0A5 | CF194: SEA-SURFACE TEMPERATURE | CG194: SEA SURFACE TEMPERATURE | CI194: yes | CJ194: Aqua | CK194: AMSR-E | CL194: Coriolis | CM194: Windsat | CY194: 15 | CZ194: 0.75 | DA194: 0.3333333333 | DB194: 0.8571428571 | DC194: 0.5 | DD194: 0.5 | DE194: 1 | DF194: 1 | DG194: 0.8571428571 | DH194: 2 | DI194: 1 | DJ194: 0 | DK194: 0.6666666667 | DL194: 0.7886904762 | DM194: 25 km | DN194: 0 | DO194: 1 | DP194: 0.5 deg C | DQ194: 0.1 deg C/decade | DR194: 0.6 | DS194: 1 | DT194: Analysis Of Sst Trends, Detection Of Changes In Sst Patterns, Relationship Of Ssts To Health Issues, Changes In Fisheries | DU194: =SUM(CY194/30,DL194,DR194,DS194) -> 2.888690476
A195: Current | B195: Stephane Maritorena | C195: Stephane@eri.ucsb.edu | D195: Chlorophyll Concentration | E195: NASA | H195: no | K195: no | L195: no | N195: Biogeochemistry, Biogeochemical Cycles | O195: CDR_ECV15_5 | P195: NASA | Q195: not selected | R195: not selected | S195: not selected | T195: NASA | U195: not selected | V195: IOCCG | W195: not selected | X195: not selected | Y195: not selected | Z195: 1997-09-01 | AC195: OCEAN CHLOROPHYLL CONCENTRATION | AD195: mg-m-3 | AE195: Envisat | AF195: SeaWiFS | AH195: Yes | AI195: OrbView-2 | AJ195: MODIS | AL195: Aqua | AM195: MERIS | AY195: Envisat, OrbView 2, Aqua. SeaWiFS, MODIS, MERIS | AZ195: Global | BA195: Global | BB195: Global | BC195: 1 | BD195: 0.3 | BE195: 3%/decade (=Target) | BI195: no | BK195: Envisat | BL195: SeaWiFS | BN195: yes | BO195: no | BS195: stephane@eri.ucsb.edu | BT195: both | BU195: HDF | BV195: Open Access | BW195: FTP, OpenDAP | BZ195: ? | CA195: 1481 | CB195: Feb 24 2014 8:44PM | CC195: F19DDC03-F6CB-4DE9-ACF1-11234590184E | CF195: OCEAN COLOUR RADIOMETRY - WATER LEAVING RADIANCE | CG195: OCEAN COLOR | CI195: yes | CJ195: OrbView 2 | CK195: MODIS | CL195: Aqua | CM195: MERIS | CY195: 97.66944444 | CZ195: 0.75 | DA195: 0.3333333333 | DB195: 1 | DC195: 0.5 | DD195: 0.5 | DE195: 1 | DF195: 1 | DG195: 0.8571428571 | DH195: 2 | DI195: 1 | DJ195: 0 | DK195: 0.6666666667 | DL195: 0.8005952381 | DM195: Global | DN195: Global | DO195: 1 | DP195: 0.3 | DQ195: 3%/decade (=Target) | DR195: 1 | DS195: 1 | DT195: Biogeochemistry, Biogeochemical Cycles | DU195: =SUM(CY195/30,DL195,DR195,DS195) -> 6.056243386
A196: Current | B196: Stephane Maritorena | C196: stephane@eri.ucsb.edu | D196: stephane@eri.ucsb.edu Inherent Optical Properties (absorption, backscattering) | E196: NASA | H196: no | K196: no | L196: no | N196: Biogeochemistry, Biogeochemical Cycles, Carbon | O196: CDR_ECV15_6 | P196: NASA | Q196: not selected | R196: not selected | S196: not selected | T196: NASA | U196: not selected | V196: not selected | W196: not selected | X196: not selected | Y196: not selected | Z196: 1997-09-01 | AC196: NOT SELECTED | AD196: m-1 | AE196: OrbView2 | AF196: SeaWiFS | AH196: Yes | AI196: AQUA | AJ196: MODIS | AL196: Envisat | AM196: MERIS | AY196: OrbView2/SeaWiFS; AQUA/MODIS; Envisat/MERIS | AZ196: Global | BA196: Global | BB196: Global | BC196: 1 | BD196: 30% (?) | BE196: 3%/decade (=Target) | BI196: no | BN196: yes | BO196: no | BS196: stephane@eri.ucsb.edu | BT196: both | BU196: HDF | BV196: Open Access | BW196: FTP, OpenDAP | BZ196: ? | CA196: 1482 | CB196: Feb 24 2014 8:44PM | CC196: B5291B41-9502-4DAD-883B-10C607836414 | CF196: OCEAN COLOUR RADIOMETRY - WATER LEAVING RADIANCE | CG196: OCEAN COLOR | CY196: 97.66944444 | CZ196: 0.75 | DA196: 0.3333333333 | DB196: 1 | DC196: 0.5 | DD196: 0.5 | DE196: 1 | DF196: 1 | DG196: 0.8571428571 | DH196: 2 | DI196: 1 | DJ196: 0 | DK196: 0.6666666667 | DL196: 0.8005952381 | DM196: Global | DN196: Global | DO196: 1 | DP196: 30% (?) | DQ196: 3%/decade (=Target) | DR196: 1 | DS196: 1 | DT196: Biogeochemistry, Biogeochemical Cycles, Carbon | DU196: =SUM(CY196/30,DL196,DR196,DS196) -> 6.056243386
A197: Current | B197: H. K. Ramapriyan | C197: Rama.Ramapriyan@nasa.gov | D197: MEaSUREs Greenland Ice Sheet Velocity Map from InSAR Data (NSIDC-0478) | E197: NASA | H197: no | K197: no | L197: no | N197: Change | O197: CDR_ECV20_1 | P197: CSA | Q197: NASA | R197: NASA | S197: NASA | T197: NASA | U197: NASA | V197: NASA | W197: NASA | X197: NASA | Y197: NASA | Z197: 1900-09-01 | AA197: 2009-03-01 | AC197: GLACIER MOTION | AD197: not selected | AE197: ALOS | AH197: Yes | AI197: RADARSAT-1 | AM197: SAR(RADARSAT-2) | AP197: AVNIR-2 | AS197: AVNIR | AV197: PRISM | AY197: ALOS, RADARSAT-1. SAR(RADARSAT-2), AVNIR-2,AVNIR, PRISM. | AZ197: lat/long coordinates | BA197: 0.5km | BB197: N/A | BC197: 2000-2001,2005-2006-2007,2007-2008,2008-2009 | BD197: Accurate to -5m/yr | BE197: Number field | BI197: no | BN197: no | BO197: yes | BS197: nsidc@nsidc.org, ian@apl.washington.edu | BT197: no | BU197: GeoTIFF | BV197: Open Access | BW197: FTP | BZ197: Data currently available | CA197: 1483 | CB197: Feb 24 2014 8:44PM | CC197: BC35C73C-A577-4E53-8BB4-9659EC463AE0 | CF197: ICE VELOCITY | CG197: ICE SHEETS | CY197: 108.5 | CZ197: 0.75 | DA197: 0.3333333333 | DB197: 0.8571428571 | DC197: 0.5 | DD197: 0.5 | DE197: 1 | DF197: 1 | DG197: 0.7142857143 | DH197: 2 | DI197: 1 | DJ197: 0 | DK197: 1 | DL197: 0.8045634921 | DM197: 0.5km | DN197: N/A | DO197: 2000-2001,2005-2006-2007,2007-2008,2008-2009 | DP197: Accurate to -5m/yr | DQ197: Number field | DR197: 0.8 | DS197: 1 | DT197: Change | DU197: =SUM(CY197/30,DL197,DR197,DS197) -> 6.221230159
